Workbook

Sheet Cover
B3: Attachment 9.04
B4: Stand alone and avoidable cost model
B6: 2025-30 Regulatory Proposal
B8: 2024-01-31

Sheet Checklist
B2: Checklist
B4: Yearly update | H4: Initial set up
B6: Colour codes | D6: Steps | H6: Steps
B8: Key | D8: Step | E8: Tab | F8: Description | H8: Step | I8: Tab | J8: Description
B9: Inputs | D9: 1 | E9: X-factors | F9: From PTRM copy and paste x-factor calculations | H9: 1 | I9: X-factors | J9: From PTRM copy and paste x-factor calculations
B10: Parameter | D10: 2 | E10: Assets | F10: From PTRM, copy paste asset calculations | H10: 2 | I10: Assets | J10: From PTRM, copy paste asset calculations
B11: Calculation | D11: 3 | E11: PTRM inputs | F11: From PTRM inputs, copy paste inputs calculations | H11: 3 | I11: PTRM inputs | J11: From PTRM inputs, copy paste inputs calculations
B12: Outputs | D12: 4 | E12: Allocators | F12: Fill in projected/actual customer numbers for each year and code | H12: 4 | I12: Opex costs | J12: Type in operational cost categories into the red boxes
B13: Text | D13: 5 | E13: Allocators | F13: Fill in projected/actual energy consumed for each year and code | H13: 5 | I13: Opex costs | J13: Assign the percentage of operational costs to each category
H14: 6 | I14: Allocators | J14: Type in customer code, name and voltage level
H15: 7 | I15: Allocators | J15: Fill in projected customer numbers for each year and code
H16: 8 | I16: Allocators | J16: Fill in projected energy consumed for each year and code
H17: 9 | I17: Control panel | J17: For standalone costs, choose the proportion of scalable costs for each customer code
H18: 10 | I18: Control panel | J18: For operational costs, assign the percentage allocated to avoidable costs
H19: 11 | I19: Control panel | J19: For operational costs, assign the percentage allocated to the customer
H20: 12 | I20: Control panel | J20: For operational costs, assign if it is a scalable or non-scalable cost
H21: 13 | I21: Control panel | J21: For return of capex, assign the percentage allocated to avoidable costs
H22: 14 | I22: Control panel | J22: For return of capex, assign the percentage allocated to the customer
H23: 15 | I23: Control panel | J23: For return of capex, assign if it is a scalable or non-scalable cost
H24: 16 | I24: Control panel | J24: For return on capex, assign the percentage allocated to avoidable costs
H25: 17 | I25: Control panel | J25: For return on capex, assign the percentage allocated to the customer
H26: 18 | I26: Control panel | J26: For return on capex, assign if it is a scalable or non-scalable cost
H27: 19 | I27: Control panel | J27: For each operational cost and asset put a 1 or 0. This is to map similar opex to capex categories

Sheet Outputs
B2: Outputs
B4: Final output | P4: Standalone costs | AD4: Avoidable costs
B6: Avoidable costs (per cent of revenue) | I6: Standalone costs (per cent of revenue) | P6: Scalable | W6: Non scalable | AD6: Customer related costs | AK6: Energy related costs
B8: Class | C8: 2025-26 | D8: 2026-27 | E8: 2027-28 | F8: 2028-29 | G8: 2029-30 | I8: Class | J8: 2025-26 | K8: 2026-27 | L8: 2027-28 | M8: 2028-29 | N8: 2029-30 | P8: Type | Q8: 2025-26 | R8: 2026-27 | S8: 2027-28 | T8: 2028-29 | U8: 2029-30 | W8: Type | X8: 2025-26 | Y8: 2026-27 | Z8: 2027-28 | AA8: 2028-29 | AB8: 2029-30 | AD8: Type | AE8: 2025-26 | AF8: 2026-27 | AG8: 2027-28 | AH8: 2028-29 | AI8: 2029-30 | AK8: Type | AL8: 2025-26 | AM8: 2026-27 | AN8: 2027-28 | AO8: 2028-29 | AP8: 2029-30
B9: ICC | C9: =(AE$14*(_xlfn.XLOOKUP($B9,Allocators!$B$7:$B$9,Allocators!F$7:F$9)/Allocators!F$11)+AL$14*(_xlfn.XLOOKUP($B9,Allocators!$B$7:$B$9,Allocators!L$7:L$9)/Allocators!L$11))/'BBM Costs'!C$13 -> 0.006607149989 | D9: =(AF$14*(_xlfn.XLOOKUP($B9,Allocators!$B$7:$B$9,Allocators!G$7:G$9)/Allocators!G$11)+AM$14*(_xlfn.XLOOKUP($B9,Allocators!$B$7:$B$9,Allocators!M$7:M$9)/Allocators!M$11))/'BBM Costs'!D$13 -> 0.006319563088 | E9: =(AG$14*(_xlfn.XLOOKUP($B9,Allocators!$B$7:$B$9,Allocators!H$7:H$9)/Allocators!H$11)+AN$14*(_xlfn.XLOOKUP($B9,Allocators!$B$7:$B$9,Allocators!N$7:N$9)/Allocators!N$11))/'BBM Costs'!E$13 -> 0.006209784981 | F9: =(AH$14*(_xlfn.XLOOKUP($B9,Allocators!$B$7:$B$9,Allocators!I$7:I$9)/Allocators!I$11)+AO$14*(_xlfn.XLOOKUP($B9,Allocators!$B$7:$B$9,Allocators!O$7:O$9)/Allocators!O$11))/'BBM Costs'!F$13 -> 0.006070876552 | G9: =(AI$14*(_xlfn.XLOOKUP($B9,Allocators!$B$7:$B$9,Allocators!J$7:J$9)/Allocators!J$11)+AP$14*(_xlfn.XLOOKUP($B9,Allocators!$B$7:$B$9,Allocators!P$7:P$9)/Allocators!P$11))/'BBM Costs'!G$13 -> 0.006088743868 | I9: ICC | J9: =((X$14+(Q$14*_xlfn.XLOOKUP($I9,'Control panel'!$B$7:$B$9,'Control panel'!$C$7:$C$9)))/'BBM Costs'!C$13)+C9 -> 0.05688698363 | K9: =((Y$14+(R$14*_xlfn.XLOOKUP($I9,'Control panel'!$B$7:$B$9,'Control panel'!$C$7:$C$9)))/'BBM Costs'!D$13)+D9 -> 0.07918021081 | L9: =((Z$14+(S$14*_xlfn.XLOOKUP($I9,'Control panel'!$B$7:$B$9,'Control panel'!$C$7:$C$9)))/'BBM Costs'!E$13)+E9 -> 0.08408383256 | M9: =((AA$14+(T$14*_xlfn.XLOOKUP($I9,'Control panel'!$B$7:$B$9,'Control panel'!$C$7:$C$9)))/'BBM Costs'!F$13)+F9 -> 0.09726040077 | N9: =((AB$14+(U$14*_xlfn.XLOOKUP($I9,'Control panel'!$B$7:$B$9,'Control panel'!$C$7:$C$9)))/'BBM Costs'!G$13)+G9 -> 0.09218734714 | P9: Opex | Q9: =SUMPRODUCT('BBM Costs'!J$7:J$25,'Control panel'!$G$7:$G$25,--('Control panel'!$J$7:$J$25=Outputs!$P$6)) -> 318.0871032 | R9: =SUMPRODUCT('BBM Costs'!K$7:K$25,'Control panel'!$G$7:$G$25,--('Control panel'!$J$7:$J$25=Outputs!$P$6)) -> 328.894199 | S9: =SUMPRODUCT('BBM Costs'!L$7:L$25,'Control panel'!$G$7:$G$25,--('Control panel'!$J$7:$J$25=Outputs!$P$6)) -> 346.4482736 | T9: =SUMPRODUCT('BBM Costs'!M$7:M$25,'Control panel'!$G$7:$G$25,--('Control panel'!$J$7:$J$25=Outputs!$P$6)) -> 363.0519234 | U9: =SUMPRODUCT('BBM Costs'!N$7:N$25,'Control panel'!$G$7:$G$25,--('Control panel'!$J$7:$J$25=Outputs!$P$6)) -> 392.1400686 | W9: Opex | X9: =SUMPRODUCT('BBM Costs'!J$7:J$25,'Control panel'!$G$7:$G$25,--('Control panel'!$J$7:$J$25=$W$6)) -> -55.66113324 | Y9: =SUMPRODUCT('BBM Costs'!K$7:K$25,'Control panel'!$G$7:$G$25,--('Control panel'!$J$7:$J$25=$W$6)) -> -18.24508543 | Z9: =SUMPRODUCT('BBM Costs'!L$7:L$25,'Control panel'!$G$7:$G$25,--('Control panel'!$J$7:$J$25=$W$6)) -> -9.06499807 | AA9: =SUMPRODUCT('BBM Costs'!M$7:M$25,'Control panel'!$G$7:$G$25,--('Control panel'!$J$7:$J$25=$W$6)) -> 19.00658032 | AB9: =SUMPRODUCT('BBM Costs'!N$7:N$25,'Control panel'!$G$7:$G$25,--('Control panel'!$J$7:$J$25=$W$6)) -> 11.22746948 | AD9: O&M related | AE9: ='Avoidable costs'!J29 -> 60.29355356 | AF9: ='Avoidable costs'!K29 -> 62.34627011 | AG9: ='Avoidable costs'!L29 -> 65.68321109 | AH9: ='Avoidable costs'!M29 -> 68.83881891 | AI9: ='Avoidable costs'!N29 -> 74.37509853 | AK9: Asset related | AL9: =SUMPRODUCT(IF(AL$8='Avoidable costs'!$W$9:$W$158,1,0),'Avoidable costs'!$Y$9:$Y$158,'Avoidable costs'!$AC$9:$AC$158) -> 119.6988389 | AM9: =SUMPRODUCT(IF(AM$8='Avoidable costs'!$W$9:$W$158,1,0),'Avoidable costs'!$Y$9:$Y$158,'Avoidable costs'!$AC$9:$AC$158) -> 124.1556057 | AN9: =SUMPRODUCT(IF(AN$8='Avoidable costs'!$W$9:$W$158,1,0),'Avoidable costs'!$Y$9:$Y$158,'Avoidable costs'!$AC$9:$AC$158) -> 132.7793833 | AO9: =SUMPRODUCT(IF(AO$8='Avoidable costs'!$W$9:$W$158,1,0),'Avoidable costs'!$Y$9:$Y$158,'Avoidable costs'!$AC$9:$AC$158) -> 141.4659887 | AP9: =SUMPRODUCT(IF(AP$8='Avoidable costs'!$W$9:$W$158,1,0),'Avoidable costs'!$Y$9:$Y$158,'Avoidable costs'!$AC$9:$AC$158) -> 155.0486562
B10: CAC | C10: =(AE$14*(_xlfn.XLOOKUP($B10,Allocators!$B$7:$B$9,Allocators!F$7:F$9)/Allocators!F$11)+AL$14*(_xlfn.XLOOKUP($B10,Allocators!$B$7:$B$9,Allocators!L$7:L$9)/Allocators!L$11))/'BBM Costs'!C$13 -> 0.01380273788 | D10: =(AF$14*(_xlfn.XLOOKUP($B10,Allocators!$B$7:$B$9,Allocators!G$7:G$9)/Allocators!G$11)+AM$14*(_xlfn.XLOOKUP($B10,Allocators!$B$7:$B$9,Allocators!M$7:M$9)/Allocators!M$11))/'BBM Costs'!D$13 -> 0.01320159257 | E10: =(AG$14*(_xlfn.XLOOKUP($B10,Allocators!$B$7:$B$9,Allocators!H$7:H$9)/Allocators!H$11)+AN$14*(_xlfn.XLOOKUP($B10,Allocators!$B$7:$B$9,Allocators!N$7:N$9)/Allocators!N$11))/'BBM Costs'!E$13 -> 0.01297172121 | F10: =(AH$14*(_xlfn.XLOOKUP($B10,Allocators!$B$7:$B$9,Allocators!I$7:I$9)/Allocators!I$11)+AO$14*(_xlfn.XLOOKUP($B10,Allocators!$B$7:$B$9,Allocators!O$7:O$9)/Allocators!O$11))/'BBM Costs'!F$13 -> 0.01268104955 | G10: =(AI$14*(_xlfn.XLOOKUP($B10,Allocators!$B$7:$B$9,Allocators!J$7:J$9)/Allocators!J$11)+AP$14*(_xlfn.XLOOKUP($B10,Allocators!$B$7:$B$9,Allocators!P$7:P$9)/Allocators!P$11))/'BBM Costs'!G$13 -> 0.01271800313 | I10: CAC | J10: =((X$14+(Q$14*_xlfn.XLOOKUP($I10,'Control panel'!$B$7:$B$9,'Control panel'!$C$7:$C$9)))/'BBM Costs'!C$13)+C10 -> 0.3253961353 | K10: =((Y$14+(R$14*_xlfn.XLOOKUP($I10,'Control panel'!$B$7:$B$9,'Control panel'!$C$7:$C$9)))/'BBM Costs'!D$13)+D10 -> 0.3380981403 | L10: =((Z$14+(S$14*_xlfn.XLOOKUP($I10,'Control panel'!$B$7:$B$9,'Control panel'!$C$7:$C$9)))/'BBM Costs'!E$13)+E10 -> 0.339823364 | M10: =((AA$14+(T$14*_xlfn.XLOOKUP($I10,'Control panel'!$B$7:$B$9,'Control panel'!$C$7:$C$9)))/'BBM Costs'!F$13)+F10 -> 0.3476956379 | N10: =((AB$14+(U$14*_xlfn.XLOOKUP($I10,'Control panel'!$B$7:$B$9,'Control panel'!$C$7:$C$9)))/'BBM Costs'!G$13)+G10 -> 0.3408807387 | P10: Return on | Q10: =SUMPRODUCT('BBM Costs'!X$7:X$36,'Control panel'!$U$7:$U$36,--('Control panel'!$X$7:$X$36=Outputs!$P$6)) -> 805.4381537 | R10: =SUMPRODUCT('BBM Costs'!Y$7:Y$36,'Control panel'!$U$7:$U$36,--('Control panel'!$X$7:$X$36=Outputs!$P$6)) -> 840.8321156 | S10: =SUMPRODUCT('BBM Costs'!Z$7:Z$36,'Control panel'!$U$7:$U$36,--('Control panel'!$X$7:$X$36=Outputs!$P$6)) -> 899.7505086 | T10: =SUMPRODUCT('BBM Costs'!AA$7:AA$36,'Control panel'!$U$7:$U$36,--('Control panel'!$X$7:$X$36=Outputs!$P$6)) -> 956.4503229 | U10: =SUMPRODUCT('BBM Costs'!AB$7:AB$36,'Control panel'!$U$7:$U$36,--('Control panel'!$X$7:$X$36=Outputs!$P$6)) -> 1047.021424 | W10: Return on | X10: =SUMPRODUCT('BBM Costs'!X$7:X$36,'Control panel'!$U$7:$U$36,--('Control panel'!$X$7:$X$36=$W$6)) -> 0 | Y10: =SUMPRODUCT('BBM Costs'!Y$7:Y$36,'Control panel'!$U$7:$U$36,--('Control panel'!$X$7:$X$36=$W$6)) -> 0 | Z10: =SUMPRODUCT('BBM Costs'!Z$7:Z$36,'Control panel'!$U$7:$U$36,--('Control panel'!$X$7:$X$36=$W$6)) -> 0 | AA10: =SUMPRODUCT('BBM Costs'!AA$7:AA$36,'Control panel'!$U$7:$U$36,--('Control panel'!$X$7:$X$36=$W$6)) -> 0 | AB10: =SUMPRODUCT('BBM Costs'!AB$7:AB$36,'Control panel'!$U$7:$U$36,--('Control panel'!$X$7:$X$36=$W$6)) -> 0 | AD10: Asset related | AE10: ='Avoidable costs'!Q29 -> 46.25195371 | AF10: ='Avoidable costs'!R29 -> 47.82661874 | AG10: ='Avoidable costs'!S29 -> 50.38642871 | AH10: ='Avoidable costs'!T29 -> 52.80713571 | AI10: ='Avoidable costs'!U29 -> 57.0540864
B11: SAC | C11: =(AE$14*(_xlfn.XLOOKUP($B11,Allocators!$B$7:$B$9,Allocators!F$7:F$9)/Allocators!F$11)+AL$14*(_xlfn.XLOOKUP($B11,Allocators!$B$7:$B$9,Allocators!L$7:L$9)/Allocators!L$11))/'BBM Costs'!C$13 -> 0.1292704525 | D11: =(AF$14*(_xlfn.XLOOKUP($B11,Allocators!$B$7:$B$9,Allocators!G$7:G$9)/Allocators!G$11)+AM$14*(_xlfn.XLOOKUP($B11,Allocators!$B$7:$B$9,Allocators!M$7:M$9)/Allocators!M$11))/'BBM Costs'!D$13 -> 0.123699428 | E11: =(AG$14*(_xlfn.XLOOKUP($B11,Allocators!$B$7:$B$9,Allocators!H$7:H$9)/Allocators!H$11)+AN$14*(_xlfn.XLOOKUP($B11,Allocators!$B$7:$B$9,Allocators!N$7:N$9)/Allocators!N$11))/'BBM Costs'!E$13 -> 0.1213292552 | F11: =(AH$14*(_xlfn.XLOOKUP($B11,Allocators!$B$7:$B$9,Allocators!I$7:I$9)/Allocators!I$11)+AO$14*(_xlfn.XLOOKUP($B11,Allocators!$B$7:$B$9,Allocators!O$7:O$9)/Allocators!O$11))/'BBM Costs'!F$13 -> 0.1184965462 | G11: =(AI$14*(_xlfn.XLOOKUP($B11,Allocators!$B$7:$B$9,Allocators!J$7:J$9)/Allocators!J$11)+AP$14*(_xlfn.XLOOKUP($B11,Allocators!$B$7:$B$9,Allocators!P$7:P$9)/Allocators!P$11))/'BBM Costs'!G$13 -> 0.1192479865 | I11: SAC | J11: =((X$14+(Q$14*_xlfn.XLOOKUP($I11,'Control panel'!$B$7:$B$9,'Control panel'!$C$7:$C$9)))/'BBM Costs'!C$13)+C11 -> 0.9634909773 | K11: =((Y$14+(R$14*_xlfn.XLOOKUP($I11,'Control panel'!$B$7:$B$9,'Control panel'!$C$7:$C$9)))/'BBM Costs'!D$13)+D11 -> 0.9526677759 | L11: =((Z$14+(S$14*_xlfn.XLOOKUP($I11,'Control panel'!$B$7:$B$9,'Control panel'!$C$7:$C$9)))/'BBM Costs'!E$13)+E11 -> 0.9461360883 | M11: =((AA$14+(T$14*_xlfn.XLOOKUP($I11,'Control panel'!$B$7:$B$9,'Control panel'!$C$7:$C$9)))/'BBM Costs'!F$13)+F11 -> 0.9411612627 | N11: =((AB$14+(U$14*_xlfn.XLOOKUP($I11,'Control panel'!$B$7:$B$9,'Control panel'!$C$7:$C$9)))/'BBM Costs'!G$13)+G11 -> 0.9315389868 | P11: Return of | Q11: =SUMPRODUCT('BBM Costs'!Q$7:Q$36,'Control panel'!$N$7:$N$36,--('Control panel'!$Q$7:$Q$36=Outputs!$P$6)) -> 193.0741981 | R11: =SUMPRODUCT('BBM Costs'!R$7:R$36,'Control panel'!$N$7:$N$36,--('Control panel'!$Q$7:$Q$36=Outputs!$P$6)) -> 204.8245473 | S11: =SUMPRODUCT('BBM Costs'!S$7:S$36,'Control panel'!$N$7:$N$36,--('Control panel'!$Q$7:$Q$36=Outputs!$P$6)) -> 223.6253254 | T11: =SUMPRODUCT('BBM Costs'!T$7:T$36,'Control panel'!$N$7:$N$36,--('Control panel'!$Q$7:$Q$36=Outputs!$P$6)) -> 238.5791266 | U11: =SUMPRODUCT('BBM Costs'!U$7:U$36,'Control panel'!$N$7:$N$36,--('Control panel'!$Q$7:$Q$36=Outputs!$P$6)) -> 235.1988207 | W11: Return of | X11: =SUMPRODUCT('BBM Costs'!Q$7:Q$36,'Control panel'!$N$7:$N$36,--('Control panel'!$Q$7:$Q$36=$W$6)) -> 0 | Y11: =SUMPRODUCT('BBM Costs'!R$7:R$36,'Control panel'!$N$7:$N$36,--('Control panel'!$Q$7:$Q$36=$W$6)) -> 0 | Z11: =SUMPRODUCT('BBM Costs'!S$7:S$36,'Control panel'!$N$7:$N$36,--('Control panel'!$Q$7:$Q$36=$W$6)) -> 0 | AA11: =SUMPRODUCT('BBM Costs'!T$7:T$36,'Control panel'!$N$7:$N$36,--('Control panel'!$Q$7:$Q$36=$W$6)) -> 0 | AB11: =SUMPRODUCT('BBM Costs'!U$7:U$36,'Control panel'!$N$7:$N$36,--('Control panel'!$Q$7:$Q$36=$W$6)) -> 0
P14: Total | Q14: =SUM(Q9:Q11) -> 1316.599455 | R14: =SUM(R9:R11) -> 1374.550862 | S14: 1469.824108 | T14: 1558.081373 | U14: 1674.360314 | W14: Total | X14: =SUM(X9:X11) -> -55.66113324 | Y14: =SUM(Y9:Y11) -> -18.24508543 | Z14: -9.06499807 | AA14: 19.00658032 | AB14: 11.22746948 | AD14: Total | AE14: =SUM(AE9:AE11) -> 106.5455073 | AF14: =SUM(AF9:AF11) -> 110.1728888 | AG14: 116.0696398 | AH14: 121.6459546 | AI14: 131.4291849 | AK14: Total | AL14: =SUM(AL9:AL11) -> 119.6988389 | AM14: =SUM(AM9:AM11) -> 124.1556057 | AN14: 132.7793833 | AO14: 141.4659887 | AP14: 155.0486562

Sheet Avoidable costs
B2: Avoidable costs
B4: Customer related costs | W4: Energy related costs
B6: Total costs | I6: Operational expenditure | P6: Asset related costs | W6: Energy related costs | AE6: Matching | AZ6: Asset values
B8: Category | C8: 2025-26 | D8: 2026-27 | E8: 2027-28 | F8: 2028-29 | G8: 2029-30 | I8: Category | J8: 2025-26 | K8: 2026-27 | L8: 2027-28 | M8: 2028-29 | N8: 2029-30 | P8: Category | Q8: 2025-26 | R8: 2026-27 | S8: 2027-28 | T8: 2028-29 | U8: 2029-30 | W8: Year | X8: Category | Y8: Asset related helper column | Z8: Opex | AA8: Return of capex | AB8: Return on capex | AC8: Total | AE8: Category | AF8: =$B$9 -> Preventative maintenance | AG8: =$B$10 -> Corrective maintenance | AH8: =$B$11 -> Vegetation management | AI8: =$B$12 -> Emergency response | AJ8: =$B$13 -> Other network maintenance costs | AK8: =$B$14 -> Network operations | AL8: =$B$15 -> Network billing and other energy market services | AM8: =$B$16 -> Customer services | AN8: =$B$17 -> DSM initiatives | AO8: =$B$18 -> Levies | AP8: =$B$19 -> Debt raising costs | AQ8: =$B$20 -> Other support costs | AR8: =$B$21 -> Corporate allocations | AT8: =$B$23 -> EBSS | AU8: =$B$24 -> CESS | AV8: =$B$25 -> Control period carryover | AW8: =$B$26 -> Shared asset decrements | AX8: =$B$27 -> DMIA | AZ8: Year | BA8: Preventative maintenance | BB8: Corrective maintenance | BC8: Vegetation management | BD8: Emergency response | BE8: Other network maintenance costs | BF8: Network operations | BG8: Network billing and other energy market services | BH8: Customer services | BI8: DSM initiatives | BJ8: Levies | BK8: Debt raising costs | BL8: Other support costs | BM8: Corporate allocations | BO8: EBSS | BP8: CESS | BQ8: Control period carryover | BR8: Shared asset decrements | BS8: DMIA
B9: ='Opex costs'!B7 -> Preventative maintenance | C9: =_xlfn.XLOOKUP($B9,'BBM Costs'!$I$7:$I$25,'BBM Costs'!J$7:J$25)*_xlfn.XLOOKUP($B9,'Control panel'!$E$7:$E$25,'Control panel'!$F$7:$F$25) -> 31.76954906 | D9: =_xlfn.XLOOKUP($B9,'BBM Costs'!$I$7:$I$25,'BBM Costs'!K$7:K$25)*_xlfn.XLOOKUP($B9,'Control panel'!$E$7:$E$25,'Control panel'!$F$7:$F$25) -> 32.85115522 | E9: =_xlfn.XLOOKUP($B9,'BBM Costs'!$I$7:$I$25,'BBM Costs'!L$7:L$25)*_xlfn.XLOOKUP($B9,'Control panel'!$E$7:$E$25,'Control panel'!$F$7:$F$25) -> 34.60943789 | F9: =_xlfn.XLOOKUP($B9,'BBM Costs'!$I$7:$I$25,'BBM Costs'!M$7:M$25)*_xlfn.XLOOKUP($B9,'Control panel'!$E$7:$E$25,'Control panel'!$F$7:$F$25) -> 36.27217348 | G9: =_xlfn.XLOOKUP($B9,'BBM Costs'!$I$7:$I$25,'BBM Costs'!N$7:N$25)*_xlfn.XLOOKUP($B9,'Control panel'!$E$7:$E$25,'Control panel'!$F$7:$F$25) -> 39.18931962 | I9: =B9 -> Preventative maintenance | J9: =C9*_xlfn.XLOOKUP($I9,'Control panel'!$E$7:$E$25,'Control panel'!$H$7:$H$25) -> 7.942387265 | K9: =D9*_xlfn.XLOOKUP($I9,'Control panel'!$E$7:$E$25,'Control panel'!$H$7:$H$25) -> 8.212788805 | L9: =E9*_xlfn.XLOOKUP($I9,'Control panel'!$E$7:$E$25,'Control panel'!$H$7:$H$25) -> 8.652359471 | M9: =F9*_xlfn.XLOOKUP($I9,'Control panel'!$E$7:$E$25,'Control panel'!$H$7:$H$25) -> 9.06804337 | N9: =G9*_xlfn.XLOOKUP($I9,'Control panel'!$E$7:$E$25,'Control panel'!$H$7:$H$25) -> 9.797329904 | P9: =B9 -> Preventative maintenance | Q9: =C9*_xlfn.XLOOKUP($P9,'Control panel'!$E$7:$E$25,'Control panel'!$I$7:$I$25) -> 23.82716179 | R9: =D9*_xlfn.XLOOKUP($P9,'Control panel'!$E$7:$E$25,'Control panel'!$I$7:$I$25) -> 24.63836641 | S9: =E9*_xlfn.XLOOKUP($P9,'Control panel'!$E$7:$E$25,'Control panel'!$I$7:$I$25) -> 25.95707841 | T9: =F9*_xlfn.XLOOKUP($P9,'Control panel'!$E$7:$E$25,'Control panel'!$I$7:$I$25) -> 27.20413011 | U9: =G9*_xlfn.XLOOKUP($P9,'Control panel'!$E$7:$E$25,'Control panel'!$I$7:$I$25) -> 29.39198971 | W9: 2025-26 | X9: ='PTRM Data'!B7 -> OH Sub-transmission lines | Y9: =_xlfn.XLOOKUP(X9,'Control panel'!$L$7:$L$36,'Control panel'!$P$7:$P$36) -> 1 | Z9: =SUMPRODUCT(_xlfn.XLOOKUP(W9,$AZ$9:$AZ$13,$BA$9:$BS$13),_xlfn.XLOOKUP(X9,$AE$9:$AE$38,$AF$9:$AX$38)) -> 2.533341971 | AA9: =_xlfn.XLOOKUP(W9,'BBM Costs'!$Q$6:$U$6,_xlfn.XLOOKUP(X9,'BBM Costs'!$P$7:$P$36,'BBM Costs'!$Q$7:$U$36))*_xlfn.XLOOKUP(X9,'Control panel'!$L$7:$L$36,'Control panel'!$M$7:$M$36) -> 0 | AB9: =_xlfn.XLOOKUP(W9,'BBM Costs'!$X$6:$AB$6,_xlfn.XLOOKUP(X9,'BBM Costs'!$W$7:$W$36,'BBM Costs'!$X$7:$AB$36))*_xlfn.XLOOKUP(X9,'Control panel'!$S$7:$S$36,'Control panel'!$T$7:$T$36) -> 0 | AC9: =SUM(Z9:AB9) -> 2.533341971 | AE9: ='PTRM Data'!B7 -> OH Sub-transmission lines | AF9: ='Control panel'!$AA7/SUMPRODUCT('Control panel'!$AA$7:$AA$36,'Control panel'!AB$7:AB$36)*'Control panel'!AB7 -> 0.05578303726 | AG9: ='Control panel'!$AA7/SUMPRODUCT('Control panel'!$AA$7:$AA$36,'Control panel'!AC$7:AC$36)*'Control panel'!AC7 -> 0.05578303726 | AH9: ='Control panel'!$AA7/SUMPRODUCT('Control panel'!$AA$7:$AA$36,'Control panel'!AD$7:AD$36)*'Control panel'!AD7 -> 0.05798529931 | AI9: ='Control panel'!$AA7/SUMPRODUCT('Control panel'!$AA$7:$AA$36,'Control panel'!AE$7:AE$36)*'Control panel'!AE7 -> 0.1554664756 | AJ9: ='Control panel'!$AA7/SUMPRODUCT('Control panel'!$AA$7:$AA$36,'Control panel'!AF$7:AF$36)*'Control panel'!AF7 -> 0.05072797703 | AK9: ='Control panel'!$AA7/SUMPRODUCT('Control panel'!$AA$7:$AA$36,'Control panel'!AG$7:AG$36)*'Control panel'!AG7 -> 0.05665985535 | AL9: ='Control panel'!$AA7/SUMPRODUCT('Control panel'!$AA$7:$AA$36,'Control panel'!AH$7:AH$36)*'Control panel'!AH7 -> 0 | AM9: ='Control panel'!$AA7/SUMPRODUCT('Control panel'!$AA$7:$AA$36,'Control panel'!AI$7:AI$36)*'Control panel'!AI7 -> 0.05072797703 | AN9: ='Control panel'!$AA7/SUMPRODUCT('Control panel'!$AA$7:$AA$36,'Control panel'!AJ$7:AJ$36)*'Control panel'!AJ7 -> 0 | AO9: ='Control panel'!$AA7/SUMPRODUCT('Control panel'!$AA$7:$AA$36,'Control panel'!AK$7:AK$36)*'Control panel'!AK7 -> 0.05072797703 | AP9: ='Control panel'!$AA7/SUMPRODUCT('Control panel'!$AA$7:$AA$36,'Control panel'!AL$7:AL$36)*'Control panel'!AL7 -> 0.05072797703 | AQ9: ='Control panel'!$AA7/SUMPRODUCT('Control panel'!$AA$7:$AA$36,'Control panel'!AM$7:AM$36)*'Control panel'!AM7 -> 0.05665985535 | AR9: ='Control panel'!$AA7/SUMPRODUCT('Control panel'!$AA$7:$AA$36,'Control panel'!AN$7:AN$36)*'Control panel'!AN7 -> 0.05666069953 | AT9: ='Control panel'!$AA7/SUMPRODUCT('Control panel'!$AA$7:$AA$36,'Control panel'!AP$7:AP$36)*'Control panel'!AP7 -> 0.0506543199 | AU9: ='Control panel'!$AA7/SUMPRODUCT('Control panel'!$AA$7:$AA$36,'Control panel'!AQ$7:AQ$36)*'Control panel'!AQ7 -> 0.0506543199 | AV9: ='Control panel'!$AA7/SUMPRODUCT('Control panel'!$AA$7:$AA$36,'Control panel'!AR$7:AR$36)*'Control panel'!AR7 -> 0.0506543199 | AW9: ='Control panel'!$AA7/SUMPRODUCT('Control panel'!$AA$7:$AA$36,'Control panel'!AS$7:AS$36)*'Control panel'!AS7 -> 0.0506543199 | AX9: ='Control panel'!$AA7/SUMPRODUCT('Control panel'!$AA$7:$AA$36,'Control panel'!AT$7:AT$36)*'Control panel'!AT7 -> 0.0506543199 | AZ9: 2025-26 | BA9: =_xlfn.XLOOKUP($AZ9,$Q$8:$U$8,_xlfn.XLOOKUP(BA$8,$P$9:$P$27,$Q$9:$U$27)) -> 23.82716179 | BB9: =_xlfn.XLOOKUP($AZ9,$Q$8:$U$8,_xlfn.XLOOKUP(BB$8,$P$9:$P$27,$Q$9:$U$27)) -> 15.73891412 | BC9: =_xlfn.XLOOKUP($AZ9,$Q$8:$U$8,_xlfn.XLOOKUP(BC$8,$P$9:$P$27,$Q$9:$U$27)) -> 0 | BD9: =_xlfn.XLOOKUP($AZ9,$Q$8:$U$8,_xlfn.XLOOKUP(BD$8,$P$9:$P$27,$Q$9:$U$27)) -> 0 | BE9: =_xlfn.XLOOKUP($AZ9,$Q$8:$U$8,_xlfn.XLOOKUP(BE$8,$P$9:$P$27,$Q$9:$U$27)) -> 0 | BF9: =_xlfn.XLOOKUP($AZ9,$Q$8:$U$8,_xlfn.XLOOKUP(BF$8,$P$9:$P$27,$Q$9:$U$27)) -> 0 | BG9: =_xlfn.XLOOKUP($AZ9,$Q$8:$U$8,_xlfn.XLOOKUP(BG$8,$P$9:$P$27,$Q$9:$U$27)) -> 0 | BH9: =_xlfn.XLOOKUP($AZ9,$Q$8:$U$8,_xlfn.XLOOKUP(BH$8,$P$9:$P$27,$Q$9:$U$27)) -> 0 | BI9: =_xlfn.XLOOKUP($AZ9,$Q$8:$U$8,_xlfn.XLOOKUP(BI$8,$P$9:$P$27,$Q$9:$U$27)) -> 0.9282548237 | BJ9: =_xlfn.XLOOKUP($AZ9,$Q$8:$U$8,_xlfn.XLOOKUP(BJ$8,$P$9:$P$27,$Q$9:$U$27)) -> 0 | BK9: =_xlfn.XLOOKUP($AZ9,$Q$8:$U$8,_xlfn.XLOOKUP(BK$8,$P$9:$P$27,$Q$9:$U$27)) -> 0 | BL9: =_xlfn.XLOOKUP($AZ9,$Q$8:$U$8,_xlfn.XLOOKUP(BL$8,$P$9:$P$27,$Q$9:$U$27)) -> 5.757622966 | BM9: =_xlfn.XLOOKUP($AZ9,$Q$8:$U$8,_xlfn.XLOOKUP(BM$8,$P$9:$P$27,$Q$9:$U$27)) -> 0 | BN9: =_xlfn.XLOOKUP($AZ9,$Q$8:$U$8,_xlfn.XLOOKUP(BN$8,$P$9:$P$27,$Q$9:$U$27)) -> 0 | BO9: =_xlfn.XLOOKUP($AZ9,$Q$8:$U$8,_xlfn.XLOOKUP(BO$8,$P$9:$P$27,$Q$9:$U$27)) -> 0 | BP9: =_xlfn.XLOOKUP($AZ9,$Q$8:$U$8,_xlfn.XLOOKUP(BP$8,$P$9:$P$27,$Q$9:$U$27)) -> 0 | BQ9: =_xlfn.XLOOKUP($AZ9,$Q$8:$U$8,_xlfn.XLOOKUP(BQ$8,$P$9:$P$27,$Q$9:$U$27)) -> 0 | BR9: =_xlfn.XLOOKUP($AZ9,$Q$8:$U$8,_xlfn.XLOOKUP(BR$8,$P$9:$P$27,$Q$9:$U$27)) -> 0 | BS9: =_xlfn.XLOOKUP($AZ9,$Q$8:$U$8,_xlfn.XLOOKUP(BS$8,$P$9:$P$27,$Q$9:$U$27)) -> 0
B10: ='Opex costs'!B8 -> Corrective maintenance | C10: =_xlfn.XLOOKUP($B10,'BBM Costs'!$I$7:$I$25,'BBM Costs'!J$7:J$25)*_xlfn.XLOOKUP($B10,'Control panel'!$E$7:$E$25,'Control panel'!$F$7:$F$25) -> 20.98521883 | D10: =_xlfn.XLOOKUP($B10,'BBM Costs'!$I$7:$I$25,'BBM Costs'!K$7:K$25)*_xlfn.XLOOKUP($B10,'Control panel'!$E$7:$E$25,'Control panel'!$F$7:$F$25) -> 21.69966844 | E10: =_xlfn.XLOOKUP($B10,'BBM Costs'!$I$7:$I$25,'BBM Costs'!L$7:L$25)*_xlfn.XLOOKUP($B10,'Control panel'!$E$7:$E$25,'Control panel'!$F$7:$F$25) -> 22.86109338 | F10: =_xlfn.XLOOKUP($B10,'BBM Costs'!$I$7:$I$25,'BBM Costs'!M$7:M$25)*_xlfn.XLOOKUP($B10,'Control panel'!$E$7:$E$25,'Control panel'!$F$7:$F$25) -> 23.95940517 | G10: =_xlfn.XLOOKUP($B10,'BBM Costs'!$I$7:$I$25,'BBM Costs'!N$7:N$25)*_xlfn.XLOOKUP($B10,'Control panel'!$E$7:$E$25,'Control panel'!$F$7:$F$25) -> 25.88631165 | I10: =B10 -> Corrective maintenance | J10: =C10*_xlfn.XLOOKUP($I10,'Control panel'!$E$7:$E$25,'Control panel'!$H$7:$H$25) -> 5.246304708 | K10: =D10*_xlfn.XLOOKUP($I10,'Control panel'!$E$7:$E$25,'Control panel'!$H$7:$H$25) -> 5.42491711 | L10: =E10*_xlfn.XLOOKUP($I10,'Control panel'!$E$7:$E$25,'Control panel'!$H$7:$H$25) -> 5.715273345 | M10: =F10*_xlfn.XLOOKUP($I10,'Control panel'!$E$7:$E$25,'Control panel'!$H$7:$H$25) -> 5.989851292 | N10: =G10*_xlfn.XLOOKUP($I10,'Control panel'!$E$7:$E$25,'Control panel'!$H$7:$H$25) -> 6.471577913 | P10: =B10 -> Corrective maintenance | Q10: =C10*_xlfn.XLOOKUP($P10,'Control panel'!$E$7:$E$25,'Control panel'!$I$7:$I$25) -> 15.73891412 | R10: =D10*_xlfn.XLOOKUP($P10,'Control panel'!$E$7:$E$25,'Control panel'!$I$7:$I$25) -> 16.27475133 | S10: =E10*_xlfn.XLOOKUP($P10,'Control panel'!$E$7:$E$25,'Control panel'!$I$7:$I$25) -> 17.14582003 | T10: =F10*_xlfn.XLOOKUP($P10,'Control panel'!$E$7:$E$25,'Control panel'!$I$7:$I$25) -> 17.96955388 | U10: =G10*_xlfn.XLOOKUP($P10,'Control panel'!$E$7:$E$25,'Control panel'!$I$7:$I$25) -> 19.41473374 | W10: 2025-26 | X10: ='PTRM Data'!B8 -> UG Sub-transmission cables | Y10: =_xlfn.XLOOKUP(X10,'Control panel'!$L$7:$L$36,'Control panel'!$P$7:$P$36) -> 1 | Z10: =SUMPRODUCT(_xlfn.XLOOKUP(W10,$AZ$9:$AZ$13,$BA$9:$BS$13),_xlfn.XLOOKUP(X10,$AE$9:$AE$38,$AF$9:$AX$38)) -> 2.798265828 | AA10: =_xlfn.XLOOKUP(W10,'BBM Costs'!$Q$6:$U$6,_xlfn.XLOOKUP(X10,'BBM Costs'!$P$7:$P$36,'BBM Costs'!$Q$7:$U$36))*_xlfn.XLOOKUP(X10,'Control panel'!$L$7:$L$36,'Control panel'!$M$7:$M$36) -> 0 | AB10: =_xlfn.XLOOKUP(W10,'BBM Costs'!$X$6:$AB$6,_xlfn.XLOOKUP(X10,'BBM Costs'!$W$7:$W$36,'BBM Costs'!$X$7:$AB$36))*_xlfn.XLOOKUP(X10,'Control panel'!$S$7:$S$36,'Control panel'!$T$7:$T$36) -> 0 | AC10: =SUM(Z10:AB10) -> 2.798265828 | AE10: ='PTRM Data'!B8 -> UG Sub-transmission cables | AF10: ='Control panel'!$AA8/SUMPRODUCT('Control panel'!$AA$7:$AA$36,'Control panel'!AB$7:AB$36)*'Control panel'!AB8 -> 0.06161654 | AG10: ='Control panel'!$AA8/SUMPRODUCT('Control panel'!$AA$7:$AA$36,'Control panel'!AC$7:AC$36)*'Control panel'!AC8 -> 0.06161654 | AH10: ='Control panel'!$AA8/SUMPRODUCT('Control panel'!$AA$7:$AA$36,'Control panel'!AD$7:AD$36)*'Control panel'!AD8 -> 0.06404910327 | AI10: ='Control panel'!$AA8/SUMPRODUCT('Control panel'!$AA$7:$AA$36,'Control panel'!AE$7:AE$36)*'Control panel'!AE8 -> 0 | AJ10: ='Control panel'!$AA8/SUMPRODUCT('Control panel'!$AA$7:$AA$36,'Control panel'!AF$7:AF$36)*'Control panel'!AF8 -> 0.05603284761 | AK10: ='Control panel'!$AA8/SUMPRODUCT('Control panel'!$AA$7:$AA$36,'Control panel'!AG$7:AG$36)*'Control panel'!AG8 -> 0.06258505121 | AL10: ='Control panel'!$AA8/SUMPRODUCT('Control panel'!$AA$7:$AA$36,'Control panel'!AH$7:AH$36)*'Control panel'!AH8 -> 0 | AM10: ='Control panel'!$AA8/SUMPRODUCT('Control panel'!$AA$7:$AA$36,'Control panel'!AI$7:AI$36)*'Control panel'!AI8 -> 0.05603284761 | AN10: ='Control panel'!$AA8/SUMPRODUCT('Control panel'!$AA$7:$AA$36,'Control panel'!AJ$7:AJ$36)*'Control panel'!AJ8 -> 0 | AO10: ='Control panel'!$AA8/SUMPRODUCT('Control panel'!$AA$7:$AA$36,'Control panel'!AK$7:AK$36)*'Control panel'!AK8 -> 0.05603284761 | AP10: ='Control panel'!$AA8/SUMPRODUCT('Control panel'!$AA$7:$AA$36,'Control panel'!AL$7:AL$36)*'Control panel'!AL8 -> 0.05603284761 | AQ10: ='Control panel'!$AA8/SUMPRODUCT('Control panel'!$AA$7:$AA$36,'Control panel'!AM$7:AM$36)*'Control panel'!AM8 -> 0.06258505121 | AR10: ='Control panel'!$AA8/SUMPRODUCT('Control panel'!$AA$7:$AA$36,'Control panel'!AN$7:AN$36)*'Control panel'!AN8 -> 0.06258598367 | AT10: ='Control panel'!$AA8/SUMPRODUCT('Control panel'!$AA$7:$AA$36,'Control panel'!AP$7:AP$36)*'Control panel'!AP8 -> 0.0559514878 | AU10: ='Control panel'!$AA8/SUMPRODUCT('Control panel'!$AA$7:$AA$36,'Control panel'!AQ$7:AQ$36)*'Control panel'!AQ8 -> 0.0559514878 | AV10: ='Control panel'!$AA8/SUMPRODUCT('Control panel'!$AA$7:$AA$36,'Control panel'!AR$7:AR$36)*'Control panel'!AR8 -> 0.0559514878 | AW10: ='Control panel'!$AA8/SUMPRODUCT('Control panel'!$AA$7:$AA$36,'Control panel'!AS$7:AS$36)*'Control panel'!AS8 -> 0.0559514878 | AX10: ='Control panel'!$AA8/SUMPRODUCT('Control panel'!$AA$7:$AA$36,'Control panel'!AT$7:AT$36)*'Control panel'!AT8 -> 0.0559514878 | AZ10: 2026-27 | BA10: =_xlfn.XLOOKUP($AZ10,$Q$8:$U$8,_xlfn.XLOOKUP(BA$8,$P$9:$P$27,$Q$9:$U$27)) -> 24.63836641 | BB10: =_xlfn.XLOOKUP($AZ10,$Q$8:$U$8,_xlfn.XLOOKUP(BB$8,$P$9:$P$27,$Q$9:$U$27)) -> 16.27475133 | BC10: =_xlfn.XLOOKUP($AZ10,$Q$8:$U$8,_xlfn.XLOOKUP(BC$8,$P$9:$P$27,$Q$9:$U$27)) -> 0 | BD10: =_xlfn.XLOOKUP($AZ10,$Q$8:$U$8,_xlfn.XLOOKUP(BD$8,$P$9:$P$27,$Q$9:$U$27)) -> 0 | BE10: =_xlfn.XLOOKUP($AZ10,$Q$8:$U$8,_xlfn.XLOOKUP(BE$8,$P$9:$P$27,$Q$9:$U$27)) -> 0 | BF10: =_xlfn.XLOOKUP($AZ10,$Q$8:$U$8,_xlfn.XLOOKUP(BF$8,$P$9:$P$27,$Q$9:$U$27)) -> 0 | BG10: =_xlfn.XLOOKUP($AZ10,$Q$8:$U$8,_xlfn.XLOOKUP(BG$8,$P$9:$P$27,$Q$9:$U$27)) -> 0 | BH10: =_xlfn.XLOOKUP($AZ10,$Q$8:$U$8,_xlfn.XLOOKUP(BH$8,$P$9:$P$27,$Q$9:$U$27)) -> 0 | BI10: =_xlfn.XLOOKUP($AZ10,$Q$8:$U$8,_xlfn.XLOOKUP(BI$8,$P$9:$P$27,$Q$9:$U$27)) -> 0.9598576058 | BJ10: =_xlfn.XLOOKUP($AZ10,$Q$8:$U$8,_xlfn.XLOOKUP(BJ$8,$P$9:$P$27,$Q$9:$U$27)) -> 0 | BK10: =_xlfn.XLOOKUP($AZ10,$Q$8:$U$8,_xlfn.XLOOKUP(BK$8,$P$9:$P$27,$Q$9:$U$27)) -> 0 | BL10: =_xlfn.XLOOKUP($AZ10,$Q$8:$U$8,_xlfn.XLOOKUP(BL$8,$P$9:$P$27,$Q$9:$U$27)) -> 5.95364339 | BM10: =_xlfn.XLOOKUP($AZ10,$Q$8:$U$8,_xlfn.XLOOKUP(BM$8,$P$9:$P$27,$Q$9:$U$27)) -> 0 | BN10: =_xlfn.XLOOKUP($AZ10,$Q$8:$U$8,_xlfn.XLOOKUP(BN$8,$P$9:$P$27,$Q$9:$U$27)) -> 0 | BO10: =_xlfn.XLOOKUP($AZ10,$Q$8:$U$8,_xlfn.XLOOKUP(BO$8,$P$9:$P$27,$Q$9:$U$27)) -> 0 | BP10: =_xlfn.XLOOKUP($AZ10,$Q$8:$U$8,_xlfn.XLOOKUP(BP$8,$P$9:$P$27,$Q$9:$U$27)) -> 0 | BQ10: =_xlfn.XLOOKUP($AZ10,$Q$8:$U$8,_xlfn.XLOOKUP(BQ$8,$P$9:$P$27,$Q$9:$U$27)) -> 0 | BR10: =_xlfn.XLOOKUP($AZ10,$Q$8:$U$8,_xlfn.XLOOKUP(BR$8,$P$9:$P$27,$Q$9:$U$27)) -> 0 | BS10: =_xlfn.XLOOKUP($AZ10,$Q$8:$U$8,_xlfn.XLOOKUP(BS$8,$P$9:$P$27,$Q$9:$U$27)) -> 0
B11: ='Opex costs'!B9 -> Vegetation management | C11: =_xlfn.XLOOKUP($B11,'BBM Costs'!$I$7:$I$25,'BBM Costs'!J$7:J$25)*_xlfn.XLOOKUP($B11,'Control panel'!$E$7:$E$25,'Control panel'!$F$7:$F$25) -> 0 | D11: =_xlfn.XLOOKUP($B11,'BBM Costs'!$I$7:$I$25,'BBM Costs'!K$7:K$25)*_xlfn.XLOOKUP($B11,'Control panel'!$E$7:$E$25,'Control panel'!$F$7:$F$25) -> 0 | E11: =_xlfn.XLOOKUP($B11,'BBM Costs'!$I$7:$I$25,'BBM Costs'!L$7:L$25)*_xlfn.XLOOKUP($B11,'Control panel'!$E$7:$E$25,'Control panel'!$F$7:$F$25) -> 0 | F11: =_xlfn.XLOOKUP($B11,'BBM Costs'!$I$7:$I$25,'BBM Costs'!M$7:M$25)*_xlfn.XLOOKUP($B11,'Control panel'!$E$7:$E$25,'Control panel'!$F$7:$F$25) -> 0 | G11: =_xlfn.XLOOKUP($B11,'BBM Costs'!$I$7:$I$25,'BBM Costs'!N$7:N$25)*_xlfn.XLOOKUP($B11,'Control panel'!$E$7:$E$25,'Control panel'!$F$7:$F$25) -> 0 | I11: Vegetation management | J11: =C11*_xlfn.XLOOKUP($I11,'Control panel'!$E$7:$E$25,'Control panel'!$H$7:$H$25) -> 0 | K11: =D11*_xlfn.XLOOKUP($I11,'Control panel'!$E$7:$E$25,'Control panel'!$H$7:$H$25) -> 0 | L11: =E11*_xlfn.XLOOKUP($I11,'Control panel'!$E$7:$E$25,'Control panel'!$H$7:$H$25) -> 0 | M11: =F11*_xlfn.XLOOKUP($I11,'Control panel'!$E$7:$E$25,'Control panel'!$H$7:$H$25) -> 0 | N11: =G11*_xlfn.XLOOKUP($I11,'Control panel'!$E$7:$E$25,'Control panel'!$H$7:$H$25) -> 0 | P11: Vegetation management | Q11: =C11*_xlfn.XLOOKUP($P11,'Control panel'!$E$7:$E$25,'Control panel'!$I$7:$I$25) -> 0 | R11: =D11*_xlfn.XLOOKUP($P11,'Control panel'!$E$7:$E$25,'Control panel'!$I$7:$I$25) -> 0 | S11: =E11*_xlfn.XLOOKUP($P11,'Control panel'!$E$7:$E$25,'Control panel'!$I$7:$I$25) -> 0 | T11: =F11*_xlfn.XLOOKUP($P11,'Control panel'!$E$7:$E$25,'Control panel'!$I$7:$I$25) -> 0 | U11: =G11*_xlfn.XLOOKUP($P11,'Control panel'!$E$7:$E$25,'Control panel'!$I$7:$I$25) -> 0 | W11: 2025-26 | X11: ='PTRM Data'!B9 -> OH Distribution Lines | Y11: =_xlfn.XLOOKUP(X11,'Control panel'!$L$7:$L$36,'Control panel'!$P$7:$P$36) -> 0.75 | Z11: 10.09734407 | AA11: =_xlfn.XLOOKUP(W11,'BBM Costs'!$Q$6:$U$6,_xlfn.XLOOKUP(X11,'BBM Costs'!$P$7:$P$36,'BBM Costs'!$Q$7:$U$36))*_xlfn.XLOOKUP(X11,'Control panel'!$L$7:$L$36,'Control panel'!$M$7:$M$36) -> 6.743483743 | AB11: =_xlfn.XLOOKUP(W11,'BBM Costs'!$X$6:$AB$6,_xlfn.XLOOKUP(X11,'BBM Costs'!$W$7:$W$36,'BBM Costs'!$X$7:$AB$36))*_xlfn.XLOOKUP(X11,'Control panel'!$S$7:$S$36,'Control panel'!$T$7:$T$36) -> 46.90676736 | AC11: 63.74759517 | AE11: ='PTRM Data'!B9 -> OH Distribution Lines | AF11: ='Control panel'!$AA9/SUMPRODUCT('Control panel'!$AA$7:$AA$36,'Control panel'!AB$7:AB$36)*'Control panel'!AB9 -> 0.2223389209 | AG11: ='Control panel'!$AA9/SUMPRODUCT('Control panel'!$AA$7:$AA$36,'Control panel'!AC$7:AC$36)*'Control panel'!AC9 -> 0.2223389209 | AH11: ='Control panel'!$AA9/SUMPRODUCT('Control panel'!$AA$7:$AA$36,'Control panel'!AD$7:AD$36)*'Control panel'!AD9 -> 0.2311166532 | AI11: ='Control panel'!$AA9/SUMPRODUCT('Control panel'!$AA$7:$AA$36,'Control panel'!AE$7:AE$36)*'Control panel'!AE9 -> 0.6196551878 | AJ11: ='Control panel'!$AA9/SUMPRODUCT('Control panel'!$AA$7:$AA$36,'Control panel'!AF$7:AF$36)*'Control panel'!AF9 -> 0.2021905624 | AK11: ='Control panel'!$AA9/SUMPRODUCT('Control panel'!$AA$7:$AA$36,'Control panel'!AG$7:AG$36)*'Control panel'!AG9 -> 0.2258337251 | AL11: ='Control panel'!$AA9/SUMPRODUCT('Control panel'!$AA$7:$AA$36,'Control panel'!AH$7:AH$36)*'Control panel'!AH9 -> 0 | AM11: ='Control panel'!$AA9/SUMPRODUCT('Control panel'!$AA$7:$AA$36,'Control panel'!AI$7:AI$36)*'Control panel'!AI9 -> 0.2021905624 | AN11: ='Control panel'!$AA9/SUMPRODUCT('Control panel'!$AA$7:$AA$36,'Control panel'!AJ$7:AJ$36)*'Control panel'!AJ9 -> 0 | AO11: ='Control panel'!$AA9/SUMPRODUCT('Control panel'!$AA$7:$AA$36,'Control panel'!AK$7:AK$36)*'Control panel'!AK9 -> 0.2021905624 | AP11: ='Control panel'!$AA9/SUMPRODUCT('Control panel'!$AA$7:$AA$36,'Control panel'!AL$7:AL$36)*'Control panel'!AL9 -> 0.2021905624 | AQ11: ='Control panel'!$AA9/SUMPRODUCT('Control panel'!$AA$7:$AA$36,'Control panel'!AM$7:AM$36)*'Control panel'!AM9 -> 0.2258337251 | AR11: ='Control panel'!$AA9/SUMPRODUCT('Control panel'!$AA$7:$AA$36,'Control panel'!AN$7:AN$36)*'Control panel'!AN9 -> 0.2258370898 | AT11: ='Control panel'!$AA9/SUMPRODUCT('Control panel'!$AA$7:$AA$36,'Control panel'!AP$7:AP$36)*'Control panel'!AP9 -> 0.2018969812 | AU11: ='Control panel'!$AA9/SUMPRODUCT('Control panel'!$AA$7:$AA$36,'Control panel'!AQ$7:AQ$36)*'Control panel'!AQ9 -> 0.2018969812 | AV11: ='Control panel'!$AA9/SUMPRODUCT('Control panel'!$AA$7:$AA$36,'Control panel'!AR$7:AR$36)*'Control panel'!AR9 -> 0.2018969812 | AW11: ='Control panel'!$AA9/SUMPRODUCT('Control panel'!$AA$7:$AA$36,'Control panel'!AS$7:AS$36)*'Control panel'!AS9 -> 0.2018969812 | AX11: ='Control panel'!$AA9/SUMPRODUCT('Control panel'!$AA$7:$AA$36,'Control panel'!AT$7:AT$36)*'Control panel'!AT9 -> 0.2018969812 | AZ11: 2027-28 | BA11: =_xlfn.XLOOKUP($AZ11,$Q$8:$U$8,_xlfn.XLOOKUP(BA$8,$P$9:$P$27,$Q$9:$U$27)) -> 25.95707841 | BB11: =_xlfn.XLOOKUP($AZ11,$Q$8:$U$8,_xlfn.XLOOKUP(BB$8,$P$9:$P$27,$Q$9:$U$27)) -> 17.14582003 | BC11: =_xlfn.XLOOKUP($AZ11,$Q$8:$U$8,_xlfn.XLOOKUP(BC$8,$P$9:$P$27,$Q$9:$U$27)) -> 0 | BD11: =_xlfn.XLOOKUP($AZ11,$Q$8:$U$8,_xlfn.XLOOKUP(BD$8,$P$9:$P$27,$Q$9:$U$27)) -> 0 | BE11: =_xlfn.XLOOKUP($AZ11,$Q$8:$U$8,_xlfn.XLOOKUP(BE$8,$P$9:$P$27,$Q$9:$U$27)) -> 0 | BF11: =_xlfn.XLOOKUP($AZ11,$Q$8:$U$8,_xlfn.XLOOKUP(BF$8,$P$9:$P$27,$Q$9:$U$27)) -> 0 | BG11: =_xlfn.XLOOKUP($AZ11,$Q$8:$U$8,_xlfn.XLOOKUP(BG$8,$P$9:$P$27,$Q$9:$U$27)) -> 0 | BH11: =_xlfn.XLOOKUP($AZ11,$Q$8:$U$8,_xlfn.XLOOKUP(BH$8,$P$9:$P$27,$Q$9:$U$27)) -> 0 | BI11: =_xlfn.XLOOKUP($AZ11,$Q$8:$U$8,_xlfn.XLOOKUP(BI$8,$P$9:$P$27,$Q$9:$U$27)) -> 1.011231781 | BJ11: =_xlfn.XLOOKUP($AZ11,$Q$8:$U$8,_xlfn.XLOOKUP(BJ$8,$P$9:$P$27,$Q$9:$U$27)) -> 0 | BK11: =_xlfn.XLOOKUP($AZ11,$Q$8:$U$8,_xlfn.XLOOKUP(BK$8,$P$9:$P$27,$Q$9:$U$27)) -> 0 | BL11: =_xlfn.XLOOKUP($AZ11,$Q$8:$U$8,_xlfn.XLOOKUP(BL$8,$P$9:$P$27,$Q$9:$U$27)) -> 6.272298485 | BM11: =_xlfn.XLOOKUP($AZ11,$Q$8:$U$8,_xlfn.XLOOKUP(BM$8,$P$9:$P$27,$Q$9:$U$27)) -> 0 | BN11: =_xlfn.XLOOKUP($AZ11,$Q$8:$U$8,_xlfn.XLOOKUP(BN$8,$P$9:$P$27,$Q$9:$U$27)) -> 0 | BO11: =_xlfn.XLOOKUP($AZ11,$Q$8:$U$8,_xlfn.XLOOKUP(BO$8,$P$9:$P$27,$Q$9:$U$27)) -> 0 | BP11: =_xlfn.XLOOKUP($AZ11,$Q$8:$U$8,_xlfn.XLOOKUP(BP$8,$P$9:$P$27,$Q$9:$U$27)) -> 0 | BQ11: =_xlfn.XLOOKUP($AZ11,$Q$8:$U$8,_xlfn.XLOOKUP(BQ$8,$P$9:$P$27,$Q$9:$U$27)) -> 0 | BR11: =_xlfn.XLOOKUP($AZ11,$Q$8:$U$8,_xlfn.XLOOKUP(BR$8,$P$9:$P$27,$Q$9:$U$27)) -> 0 | BS11: =_xlfn.XLOOKUP($AZ11,$Q$8:$U$8,_xlfn.XLOOKUP(BS$8,$P$9:$P$27,$Q$9:$U$27)) -> 0
B12: ='Opex costs'!B10 -> Emergency response | C12: =_xlfn.XLOOKUP($B12,'BBM Costs'!$I$7:$I$25,'BBM Costs'!J$7:J$25)*_xlfn.XLOOKUP($B12,'Control panel'!$E$7:$E$25,'Control panel'!$F$7:$F$25) -> 0 | D12: =_xlfn.XLOOKUP($B12,'BBM Costs'!$I$7:$I$25,'BBM Costs'!K$7:K$25)*_xlfn.XLOOKUP($B12,'Control panel'!$E$7:$E$25,'Control panel'!$F$7:$F$25) -> 0 | E12: =_xlfn.XLOOKUP($B12,'BBM Costs'!$I$7:$I$25,'BBM Costs'!L$7:L$25)*_xlfn.XLOOKUP($B12,'Control panel'!$E$7:$E$25,'Control panel'!$F$7:$F$25) -> 0 | F12: =_xlfn.XLOOKUP($B12,'BBM Costs'!$I$7:$I$25,'BBM Costs'!M$7:M$25)*_xlfn.XLOOKUP($B12,'Control panel'!$E$7:$E$25,'Control panel'!$F$7:$F$25) -> 0 | G12: =_xlfn.XLOOKUP($B12,'BBM Costs'!$I$7:$I$25,'BBM Costs'!N$7:N$25)*_xlfn.XLOOKUP($B12,'Control panel'!$E$7:$E$25,'Control panel'!$F$7:$F$25) -> 0 | I12: Emergency response | J12: =C12*_xlfn.XLOOKUP($I12,'Control panel'!$E$7:$E$25,'Control panel'!$H$7:$H$25) -> 0 | K12: =D12*_xlfn.XLOOKUP($I12,'Control panel'!$E$7:$E$25,'Control panel'!$H$7:$H$25) -> 0 | L12: =E12*_xlfn.XLOOKUP($I12,'Control panel'!$E$7:$E$25,'Control panel'!$H$7:$H$25) -> 0 | M12: =F12*_xlfn.XLOOKUP($I12,'Control panel'!$E$7:$E$25,'Control panel'!$H$7:$H$25) -> 0 | N12: =G12*_xlfn.XLOOKUP($I12,'Control panel'!$E$7:$E$25,'Control panel'!$H$7:$H$25) -> 0 | P12: Emergency response | Q12: =C12*_xlfn.XLOOKUP($P12,'Control panel'!$E$7:$E$25,'Control panel'!$I$7:$I$25) -> 0 | R12: =D12*_xlfn.XLOOKUP($P12,'Control panel'!$E$7:$E$25,'Control panel'!$I$7:$I$25) -> 0 | S12: =E12*_xlfn.XLOOKUP($P12,'Control panel'!$E$7:$E$25,'Control panel'!$I$7:$I$25) -> 0 | T12: =F12*_xlfn.XLOOKUP($P12,'Control panel'!$E$7:$E$25,'Control panel'!$I$7:$I$25) -> 0 | U12: =G12*_xlfn.XLOOKUP($P12,'Control panel'!$E$7:$E$25,'Control panel'!$I$7:$I$25) -> 0 | W12: 2025-26 | X12: ='PTRM Data'!B10 -> UG Distribution Cables | Y12: =_xlfn.XLOOKUP(X12,'Control panel'!$L$7:$L$36,'Control panel'!$P$7:$P$36) -> 0.75 | Z12: 8.589062925 | AA12: =_xlfn.XLOOKUP(W12,'BBM Costs'!$Q$6:$U$6,_xlfn.XLOOKUP(X12,'BBM Costs'!$P$7:$P$36,'BBM Costs'!$Q$7:$U$36))*_xlfn.XLOOKUP(X12,'Control panel'!$L$7:$L$36,'Control panel'!$M$7:$M$36) -> -0.6720581105 | AB12: =_xlfn.XLOOKUP(W12,'BBM Costs'!$X$6:$AB$6,_xlfn.XLOOKUP(X12,'BBM Costs'!$W$7:$W$36,'BBM Costs'!$X$7:$AB$36))*_xlfn.XLOOKUP(X12,'Control panel'!$S$7:$S$36,'Control panel'!$T$7:$T$36) -> 39.90011371 | AC12: 47.81711853 | AE12: ='PTRM Data'!B10 -> UG Distribution Cables | AF12: ='Control panel'!$AA10/SUMPRODUCT('Control panel'!$AA$7:$AA$36,'Control panel'!AB$7:AB$36)*'Control panel'!AB10 -> 0.1891272566 | AG12: ='Control panel'!$AA10/SUMPRODUCT('Control panel'!$AA$7:$AA$36,'Control panel'!AC$7:AC$36)*'Control panel'!AC10 -> 0.1891272566 | AH12: ='Control panel'!$AA10/SUMPRODUCT('Control panel'!$AA$7:$AA$36,'Control panel'!AD$7:AD$36)*'Control panel'!AD10 -> 0.1965938235 | AI12: ='Control panel'!$AA10/SUMPRODUCT('Control panel'!$AA$7:$AA$36,'Control panel'!AE$7:AE$36)*'Control panel'!AE10 -> 0 | AJ12: ='Control panel'!$AA10/SUMPRODUCT('Control panel'!$AA$7:$AA$36,'Control panel'!AF$7:AF$36)*'Control panel'!AF10 -> 0.1719885399 | AK12: ='Control panel'!$AA10/SUMPRODUCT('Control panel'!$AA$7:$AA$36,'Control panel'!AG$7:AG$36)*'Control panel'!AG10 -> 0.1921000277 | AL12: ='Control panel'!$AA10/SUMPRODUCT('Control panel'!$AA$7:$AA$36,'Control panel'!AH$7:AH$36)*'Control panel'!AH10 -> 0 | AM12: ='Control panel'!$AA10/SUMPRODUCT('Control panel'!$AA$7:$AA$36,'Control panel'!AI$7:AI$36)*'Control panel'!AI10 -> 0.1719885399 | AN12: ='Control panel'!$AA10/SUMPRODUCT('Control panel'!$AA$7:$AA$36,'Control panel'!AJ$7:AJ$36)*'Control panel'!AJ10 -> 0 | AO12: ='Control panel'!$AA10/SUMPRODUCT('Control panel'!$AA$7:$AA$36,'Control panel'!AK$7:AK$36)*'Control panel'!AK10 -> 0.1719885399 | AP12: ='Control panel'!$AA10/SUMPRODUCT('Control panel'!$AA$7:$AA$36,'Control panel'!AL$7:AL$36)*'Control panel'!AL10 -> 0.1719885399 | AQ12: ='Control panel'!$AA10/SUMPRODUCT('Control panel'!$AA$7:$AA$36,'Control panel'!AM$7:AM$36)*'Control panel'!AM10 -> 0.1921000277 | AR12: ='Control panel'!$AA10/SUMPRODUCT('Control panel'!$AA$7:$AA$36,'Control panel'!AN$7:AN$36)*'Control panel'!AN10 -> 0.1921028898 | AT12: ='Control panel'!$AA10/SUMPRODUCT('Control panel'!$AA$7:$AA$36,'Control panel'!AP$7:AP$36)*'Control panel'!AP10 -> 0.1717388122 | AU12: ='Control panel'!$AA10/SUMPRODUCT('Control panel'!$AA$7:$AA$36,'Control panel'!AQ$7:AQ$36)*'Control panel'!AQ10 -> 0.1717388122 | AV12: ='Control panel'!$AA10/SUMPRODUCT('Control panel'!$AA$7:$AA$36,'Control panel'!AR$7:AR$36)*'Control panel'!AR10 -> 0.1717388122 | AW12: ='Control panel'!$AA10/SUMPRODUCT('Control panel'!$AA$7:$AA$36,'Control panel'!AS$7:AS$36)*'Control panel'!AS10 -> 0.1717388122 | AX12: ='Control panel'!$AA10/SUMPRODUCT('Control panel'!$AA$7:$AA$36,'Control panel'!AT$7:AT$36)*'Control panel'!AT10 -> 0.1717388122 | AZ12: 2028-29 | BA12: =_xlfn.XLOOKUP($AZ12,$Q$8:$U$8,_xlfn.XLOOKUP(BA$8,$P$9:$P$27,$Q$9:$U$27)) -> 27.20413011 | BB12: =_xlfn.XLOOKUP($AZ12,$Q$8:$U$8,_xlfn.XLOOKUP(BB$8,$P$9:$P$27,$Q$9:$U$27)) -> 17.96955388 | BC12: =_xlfn.XLOOKUP($AZ12,$Q$8:$U$8,_xlfn.XLOOKUP(BC$8,$P$9:$P$27,$Q$9:$U$27)) -> 0 | BD12: =_xlfn.XLOOKUP($AZ12,$Q$8:$U$8,_xlfn.XLOOKUP(BD$8,$P$9:$P$27,$Q$9:$U$27)) -> 0 | BE12: =_xlfn.XLOOKUP($AZ12,$Q$8:$U$8,_xlfn.XLOOKUP(BE$8,$P$9:$P$27,$Q$9:$U$27)) -> 0 | BF12: =_xlfn.XLOOKUP($AZ12,$Q$8:$U$8,_xlfn.XLOOKUP(BF$8,$P$9:$P$27,$Q$9:$U$27)) -> 0 | BG12: =_xlfn.XLOOKUP($AZ12,$Q$8:$U$8,_xlfn.XLOOKUP(BG$8,$P$9:$P$27,$Q$9:$U$27)) -> 0 | BH12: =_xlfn.XLOOKUP($AZ12,$Q$8:$U$8,_xlfn.XLOOKUP(BH$8,$P$9:$P$27,$Q$9:$U$27)) -> 0 | BI12: =_xlfn.XLOOKUP($AZ12,$Q$8:$U$8,_xlfn.XLOOKUP(BI$8,$P$9:$P$27,$Q$9:$U$27)) -> 1.059814225 | BJ12: =_xlfn.XLOOKUP($AZ12,$Q$8:$U$8,_xlfn.XLOOKUP(BJ$8,$P$9:$P$27,$Q$9:$U$27)) -> 0 | BK12: =_xlfn.XLOOKUP($AZ12,$Q$8:$U$8,_xlfn.XLOOKUP(BK$8,$P$9:$P$27,$Q$9:$U$27)) -> 0 | BL12: =_xlfn.XLOOKUP($AZ12,$Q$8:$U$8,_xlfn.XLOOKUP(BL$8,$P$9:$P$27,$Q$9:$U$27)) -> 6.5736375 | BM12: =_xlfn.XLOOKUP($AZ12,$Q$8:$U$8,_xlfn.XLOOKUP(BM$8,$P$9:$P$27,$Q$9:$U$27)) -> 0 | BN12: =_xlfn.XLOOKUP($AZ12,$Q$8:$U$8,_xlfn.XLOOKUP(BN$8,$P$9:$P$27,$Q$9:$U$27)) -> 0 | BO12: =_xlfn.XLOOKUP($AZ12,$Q$8:$U$8,_xlfn.XLOOKUP(BO$8,$P$9:$P$27,$Q$9:$U$27)) -> 0 | BP12: =_xlfn.XLOOKUP($AZ12,$Q$8:$U$8,_xlfn.XLOOKUP(BP$8,$P$9:$P$27,$Q$9:$U$27)) -> 0 | BQ12: =_xlfn.XLOOKUP($AZ12,$Q$8:$U$8,_xlfn.XLOOKUP(BQ$8,$P$9:$P$27,$Q$9:$U$27)) -> 0 | BR12: =_xlfn.XLOOKUP($AZ12,$Q$8:$U$8,_xlfn.XLOOKUP(BR$8,$P$9:$P$27,$Q$9:$U$27)) -> 0 | BS12: =_xlfn.XLOOKUP($AZ12,$Q$8:$U$8,_xlfn.XLOOKUP(BS$8,$P$9:$P$27,$Q$9:$U$27)) -> 0
B13: ='Opex costs'!B11 -> Other network maintenance costs | C13: =_xlfn.XLOOKUP($B13,'BBM Costs'!$I$7:$I$25,'BBM Costs'!J$7:J$25)*_xlfn.XLOOKUP($B13,'Control panel'!$E$7:$E$25,'Control panel'!$F$7:$F$25) -> 0 | D13: =_xlfn.XLOOKUP($B13,'BBM Costs'!$I$7:$I$25,'BBM Costs'!K$7:K$25)*_xlfn.XLOOKUP($B13,'Control panel'!$E$7:$E$25,'Control panel'!$F$7:$F$25) -> 0 | E13: =_xlfn.XLOOKUP($B13,'BBM Costs'!$I$7:$I$25,'BBM Costs'!L$7:L$25)*_xlfn.XLOOKUP($B13,'Control panel'!$E$7:$E$25,'Control panel'!$F$7:$F$25) -> 0 | F13: =_xlfn.XLOOKUP($B13,'BBM Costs'!$I$7:$I$25,'BBM Costs'!M$7:M$25)*_xlfn.XLOOKUP($B13,'Control panel'!$E$7:$E$25,'Control panel'!$F$7:$F$25) -> 0 | G13: =_xlfn.XLOOKUP($B13,'BBM Costs'!$I$7:$I$25,'BBM Costs'!N$7:N$25)*_xlfn.XLOOKUP($B13,'Control panel'!$E$7:$E$25,'Control panel'!$F$7:$F$25) -> 0 | I13: Other network maintenance costs | J13: =C13*_xlfn.XLOOKUP($I13,'Control panel'!$E$7:$E$25,'Control panel'!$H$7:$H$25) -> 0 | K13: =D13*_xlfn.XLOOKUP($I13,'Control panel'!$E$7:$E$25,'Control panel'!$H$7:$H$25) -> 0 | L13: =E13*_xlfn.XLOOKUP($I13,'Control panel'!$E$7:$E$25,'Control panel'!$H$7:$H$25) -> 0 | M13: =F13*_xlfn.XLOOKUP($I13,'Control panel'!$E$7:$E$25,'Control panel'!$H$7:$H$25) -> 0 | N13: =G13*_xlfn.XLOOKUP($I13,'Control panel'!$E$7:$E$25,'Control panel'!$H$7:$H$25) -> 0 | P13: Other network maintenance costs | Q13: =C13*_xlfn.XLOOKUP($P13,'Control panel'!$E$7:$E$25,'Control panel'!$I$7:$I$25) -> 0 | R13: =D13*_xlfn.XLOOKUP($P13,'Control panel'!$E$7:$E$25,'Control panel'!$I$7:$I$25) -> 0 | S13: =E13*_xlfn.XLOOKUP($P13,'Control panel'!$E$7:$E$25,'Control panel'!$I$7:$I$25) -> 0 | T13: =F13*_xlfn.XLOOKUP($P13,'Control panel'!$E$7:$E$25,'Control panel'!$I$7:$I$25) -> 0 | U13: =G13*_xlfn.XLOOKUP($P13,'Control panel'!$E$7:$E$25,'Control panel'!$I$7:$I$25) -> 0 | W13: 2025-26 | X13: ='PTRM Data'!B11 -> Distribution Equipment | Y13: =_xlfn.XLOOKUP(X13,'Control panel'!$L$7:$L$36,'Control panel'!$P$7:$P$36) -> 0.75 | Z13: 1.617595775 | AA13: =_xlfn.XLOOKUP(W13,'BBM Costs'!$Q$6:$U$6,_xlfn.XLOOKUP(X13,'BBM Costs'!$P$7:$P$36,'BBM Costs'!$Q$7:$U$36))*_xlfn.XLOOKUP(X13,'Control panel'!$L$7:$L$36,'Control panel'!$M$7:$M$36) -> 2.073552162 | AB13: =_xlfn.XLOOKUP(W13,'BBM Costs'!$X$6:$AB$6,_xlfn.XLOOKUP(X13,'BBM Costs'!$W$7:$W$36,'BBM Costs'!$X$7:$AB$36))*_xlfn.XLOOKUP(X13,'Control panel'!$S$7:$S$36,'Control panel'!$T$7:$T$36) -> 7.514469964 | AC13: 11.2056179 | AE13: ='PTRM Data'!B11 -> Distribution Equipment | AF13: ='Control panel'!$AA11/SUMPRODUCT('Control panel'!$AA$7:$AA$36,'Control panel'!AB$7:AB$36)*'Control panel'!AB11 -> 0.03561872278 | AG13: ='Control panel'!$AA11/SUMPRODUCT('Control panel'!$AA$7:$AA$36,'Control panel'!AC$7:AC$36)*'Control panel'!AC11 -> 0.03561872278 | AH13: ='Control panel'!$AA11/SUMPRODUCT('Control panel'!$AA$7:$AA$36,'Control panel'!AD$7:AD$36)*'Control panel'!AD11 -> 0.03702491659 | AI13: ='Control panel'!$AA11/SUMPRODUCT('Control panel'!$AA$7:$AA$36,'Control panel'!AE$7:AE$36)*'Control panel'!AE11 -> 0 | AJ13: ='Control panel'!$AA11/SUMPRODUCT('Control panel'!$AA$7:$AA$36,'Control panel'!AF$7:AF$36)*'Control panel'!AF11 -> 0.03239095324 | AK13: ='Control panel'!$AA11/SUMPRODUCT('Control panel'!$AA$7:$AA$36,'Control panel'!AG$7:AG$36)*'Control panel'!AG11 -> 0.03617859084 | AL13: ='Control panel'!$AA11/SUMPRODUCT('Control panel'!$AA$7:$AA$36,'Control panel'!AH$7:AH$36)*'Control panel'!AH11 -> 0 | AM13: ='Control panel'!$AA11/SUMPRODUCT('Control panel'!$AA$7:$AA$36,'Control panel'!AI$7:AI$36)*'Control panel'!AI11 -> 0.03239095324 | AN13: ='Control panel'!$AA11/SUMPRODUCT('Control panel'!$AA$7:$AA$36,'Control panel'!AJ$7:AJ$36)*'Control panel'!AJ11 -> 0 | AO13: ='Control panel'!$AA11/SUMPRODUCT('Control panel'!$AA$7:$AA$36,'Control panel'!AK$7:AK$36)*'Control panel'!AK11 -> 0.03239095324 | AP13: ='Control panel'!$AA11/SUMPRODUCT('Control panel'!$AA$7:$AA$36,'Control panel'!AL$7:AL$36)*'Control panel'!AL11 -> 0.03239095324 | AQ13: ='Control panel'!$AA11/SUMPRODUCT('Control panel'!$AA$7:$AA$36,'Control panel'!AM$7:AM$36)*'Control panel'!AM11 -> 0.03617859084 | AR13: ='Control panel'!$AA11/SUMPRODUCT('Control panel'!$AA$7:$AA$36,'Control panel'!AN$7:AN$36)*'Control panel'!AN11 -> 0.03617912987 | AT13: ='Control panel'!$AA11/SUMPRODUCT('Control panel'!$AA$7:$AA$36,'Control panel'!AP$7:AP$36)*'Control panel'!AP11 -> 0.0323439215 | AU13: ='Control panel'!$AA11/SUMPRODUCT('Control panel'!$AA$7:$AA$36,'Control panel'!AQ$7:AQ$36)*'Control panel'!AQ11 -> 0.0323439215 | AV13: ='Control panel'!$AA11/SUMPRODUCT('Control panel'!$AA$7:$AA$36,'Control panel'!AR$7:AR$36)*'Control panel'!AR11 -> 0.0323439215 | AW13: ='Control panel'!$AA11/SUMPRODUCT('Control panel'!$AA$7:$AA$36,'Control panel'!AS$7:AS$36)*'Control panel'!AS11 -> 0.0323439215 | AX13: ='Control panel'!$AA11/SUMPRODUCT('Control panel'!$AA$7:$AA$36,'Control panel'!AT$7:AT$36)*'Control panel'!AT11 -> 0.0323439215 | AZ13: 2029-30 | BA13: =_xlfn.XLOOKUP($AZ13,$Q$8:$U$8,_xlfn.XLOOKUP(BA$8,$P$9:$P$27,$Q$9:$U$27)) -> 29.39198971 | BB13: =_xlfn.XLOOKUP($AZ13,$Q$8:$U$8,_xlfn.XLOOKUP(BB$8,$P$9:$P$27,$Q$9:$U$27)) -> 19.41473374 | BC13: =_xlfn.XLOOKUP($AZ13,$Q$8:$U$8,_xlfn.XLOOKUP(BC$8,$P$9:$P$27,$Q$9:$U$27)) -> 0 | BD13: =_xlfn.XLOOKUP($AZ13,$Q$8:$U$8,_xlfn.XLOOKUP(BD$8,$P$9:$P$27,$Q$9:$U$27)) -> 0 | BE13: =_xlfn.XLOOKUP($AZ13,$Q$8:$U$8,_xlfn.XLOOKUP(BE$8,$P$9:$P$27,$Q$9:$U$27)) -> 0 | BF13: =_xlfn.XLOOKUP($AZ13,$Q$8:$U$8,_xlfn.XLOOKUP(BF$8,$P$9:$P$27,$Q$9:$U$27)) -> 0 | BG13: =_xlfn.XLOOKUP($AZ13,$Q$8:$U$8,_xlfn.XLOOKUP(BG$8,$P$9:$P$27,$Q$9:$U$27)) -> 0 | BH13: =_xlfn.XLOOKUP($AZ13,$Q$8:$U$8,_xlfn.XLOOKUP(BH$8,$P$9:$P$27,$Q$9:$U$27)) -> 0 | BI13: =_xlfn.XLOOKUP($AZ13,$Q$8:$U$8,_xlfn.XLOOKUP(BI$8,$P$9:$P$27,$Q$9:$U$27)) -> 1.145048515 | BJ13: =_xlfn.XLOOKUP($AZ13,$Q$8:$U$8,_xlfn.XLOOKUP(BJ$8,$P$9:$P$27,$Q$9:$U$27)) -> 0 | BK13: =_xlfn.XLOOKUP($AZ13,$Q$8:$U$8,_xlfn.XLOOKUP(BK$8,$P$9:$P$27,$Q$9:$U$27)) -> 0 | BL13: =_xlfn.XLOOKUP($AZ13,$Q$8:$U$8,_xlfn.XLOOKUP(BL$8,$P$9:$P$27,$Q$9:$U$27)) -> 7.102314428 | BM13: =_xlfn.XLOOKUP($AZ13,$Q$8:$U$8,_xlfn.XLOOKUP(BM$8,$P$9:$P$27,$Q$9:$U$27)) -> 0 | BN13: =_xlfn.XLOOKUP($AZ13,$Q$8:$U$8,_xlfn.XLOOKUP(BN$8,$P$9:$P$27,$Q$9:$U$27)) -> 0 | BO13: =_xlfn.XLOOKUP($AZ13,$Q$8:$U$8,_xlfn.XLOOKUP(BO$8,$P$9:$P$27,$Q$9:$U$27)) -> 0 | BP13: =_xlfn.XLOOKUP($AZ13,$Q$8:$U$8,_xlfn.XLOOKUP(BP$8,$P$9:$P$27,$Q$9:$U$27)) -> 0 | BQ13: =_xlfn.XLOOKUP($AZ13,$Q$8:$U$8,_xlfn.XLOOKUP(BQ$8,$P$9:$P$27,$Q$9:$U$27)) -> 0 | BR13: =_xlfn.XLOOKUP($AZ13,$Q$8:$U$8,_xlfn.XLOOKUP(BR$8,$P$9:$P$27,$Q$9:$U$27)) -> 0 | BS13: =_xlfn.XLOOKUP($AZ13,$Q$8:$U$8,_xlfn.XLOOKUP(BS$8,$P$9:$P$27,$Q$9:$U$27)) -> 0
B14: ='Opex costs'!B12 -> Network operations | C14: =_xlfn.XLOOKUP($B14,'BBM Costs'!$I$7:$I$25,'BBM Costs'!J$7:J$25)*_xlfn.XLOOKUP($B14,'Control panel'!$E$7:$E$25,'Control panel'!$F$7:$F$25) -> 0 | D14: =_xlfn.XLOOKUP($B14,'BBM Costs'!$I$7:$I$25,'BBM Costs'!K$7:K$25)*_xlfn.XLOOKUP($B14,'Control panel'!$E$7:$E$25,'Control panel'!$F$7:$F$25) -> 0 | E14: =_xlfn.XLOOKUP($B14,'BBM Costs'!$I$7:$I$25,'BBM Costs'!L$7:L$25)*_xlfn.XLOOKUP($B14,'Control panel'!$E$7:$E$25,'Control panel'!$F$7:$F$25) -> 0 | F14: =_xlfn.XLOOKUP($B14,'BBM Costs'!$I$7:$I$25,'BBM Costs'!M$7:M$25)*_xlfn.XLOOKUP($B14,'Control panel'!$E$7:$E$25,'Control panel'!$F$7:$F$25) -> 0 | G14: =_xlfn.XLOOKUP($B14,'BBM Costs'!$I$7:$I$25,'BBM Costs'!N$7:N$25)*_xlfn.XLOOKUP($B14,'Control panel'!$E$7:$E$25,'Control panel'!$F$7:$F$25) -> 0 | I14: Network operations | J14: =C14*_xlfn.XLOOKUP($I14,'Control panel'!$E$7:$E$25,'Control panel'!$H$7:$H$25) -> 0 | K14: =D14*_xlfn.XLOOKUP($I14,'Control panel'!$E$7:$E$25,'Control panel'!$H$7:$H$25) -> 0 | L14: =E14*_xlfn.XLOOKUP($I14,'Control panel'!$E$7:$E$25,'Control panel'!$H$7:$H$25) -> 0 | M14: =F14*_xlfn.XLOOKUP($I14,'Control panel'!$E$7:$E$25,'Control panel'!$H$7:$H$25) -> 0 | N14: =G14*_xlfn.XLOOKUP($I14,'Control panel'!$E$7:$E$25,'Control panel'!$H$7:$H$25) -> 0 | P14: Network operations | Q14: =C14*_xlfn.XLOOKUP($P14,'Control panel'!$E$7:$E$25,'Control panel'!$I$7:$I$25) -> 0 | R14: =D14*_xlfn.XLOOKUP($P14,'Control panel'!$E$7:$E$25,'Control panel'!$I$7:$I$25) -> 0 | S14: =E14*_xlfn.XLOOKUP($P14,'Control panel'!$E$7:$E$25,'Control panel'!$I$7:$I$25) -> 0 | T14: =F14*_xlfn.XLOOKUP($P14,'Control panel'!$E$7:$E$25,'Control panel'!$I$7:$I$25) -> 0 | U14: =G14*_xlfn.XLOOKUP($P14,'Control panel'!$E$7:$E$25,'Control panel'!$I$7:$I$25) -> 0 | W14: 2025-26 | X14: ='PTRM Data'!B12 -> Substation Bays | Y14: =_xlfn.XLOOKUP(X14,'Control panel'!$L$7:$L$36,'Control panel'!$P$7:$P$36) -> 1 | Z14: 2.666764341 | AA14: =_xlfn.XLOOKUP(W14,'BBM Costs'!$Q$6:$U$6,_xlfn.XLOOKUP(X14,'BBM Costs'!$P$7:$P$36,'BBM Costs'!$Q$7:$U$36))*_xlfn.XLOOKUP(X14,'Control panel'!$L$7:$L$36,'Control panel'!$M$7:$M$36) -> 0 | AB14: =_xlfn.XLOOKUP(W14,'BBM Costs'!$X$6:$AB$6,_xlfn.XLOOKUP(X14,'BBM Costs'!$W$7:$W$36,'BBM Costs'!$X$7:$AB$36))*_xlfn.XLOOKUP(X14,'Control panel'!$S$7:$S$36,'Control panel'!$T$7:$T$36) -> 0 | AC14: 2.666764341 | AE14: ='PTRM Data'!B12 -> Substation Bays | AF14: ='Control panel'!$AA12/SUMPRODUCT('Control panel'!$AA$7:$AA$36,'Control panel'!AB$7:AB$36)*'Control panel'!AB12 -> 0.05872093711 | AG14: ='Control panel'!$AA12/SUMPRODUCT('Control panel'!$AA$7:$AA$36,'Control panel'!AC$7:AC$36)*'Control panel'!AC12 -> 0.05872093711 | AH14: ='Control panel'!$AA12/SUMPRODUCT('Control panel'!$AA$7:$AA$36,'Control panel'!AD$7:AD$36)*'Control panel'!AD12 -> 0.06103918469 | AI14: ='Control panel'!$AA12/SUMPRODUCT('Control panel'!$AA$7:$AA$36,'Control panel'!AE$7:AE$36)*'Control panel'!AE12 -> 0 | AJ14: ='Control panel'!$AA12/SUMPRODUCT('Control panel'!$AA$7:$AA$36,'Control panel'!AF$7:AF$36)*'Control panel'!AF12 -> 0.05339964433 | AK14: ='Control panel'!$AA12/SUMPRODUCT('Control panel'!$AA$7:$AA$36,'Control panel'!AG$7:AG$36)*'Control panel'!AG12 -> 0.05964393418 | AL14: ='Control panel'!$AA12/SUMPRODUCT('Control panel'!$AA$7:$AA$36,'Control panel'!AH$7:AH$36)*'Control panel'!AH12 -> 0 | AM14: ='Control panel'!$AA12/SUMPRODUCT('Control panel'!$AA$7:$AA$36,'Control panel'!AI$7:AI$36)*'Control panel'!AI12 -> 0.05339964433 | AN14: ='Control panel'!$AA12/SUMPRODUCT('Control panel'!$AA$7:$AA$36,'Control panel'!AJ$7:AJ$36)*'Control panel'!AJ12 -> 0 | AO14: ='Control panel'!$AA12/SUMPRODUCT('Control panel'!$AA$7:$AA$36,'Control panel'!AK$7:AK$36)*'Control panel'!AK12 -> 0.05339964433 | AP14: ='Control panel'!$AA12/SUMPRODUCT('Control panel'!$AA$7:$AA$36,'Control panel'!AL$7:AL$36)*'Control panel'!AL12 -> 0.05339964433 | AQ14: ='Control panel'!$AA12/SUMPRODUCT('Control panel'!$AA$7:$AA$36,'Control panel'!AM$7:AM$36)*'Control panel'!AM12 -> 0.05964393418 | AR14: ='Control panel'!$AA12/SUMPRODUCT('Control panel'!$AA$7:$AA$36,'Control panel'!AN$7:AN$36)*'Control panel'!AN12 -> 0.05964482283 | AT14: ='Control panel'!$AA12/SUMPRODUCT('Control panel'!$AA$7:$AA$36,'Control panel'!AP$7:AP$36)*'Control panel'!AP12 -> 0.05332210793 | AU14: ='Control panel'!$AA12/SUMPRODUCT('Control panel'!$AA$7:$AA$36,'Control panel'!AQ$7:AQ$36)*'Control panel'!AQ12 -> 0.05332210793 | AV14: ='Control panel'!$AA12/SUMPRODUCT('Control panel'!$AA$7:$AA$36,'Control panel'!AR$7:AR$36)*'Control panel'!AR12 -> 0.05332210793 | AW14: ='Control panel'!$AA12/SUMPRODUCT('Control panel'!$AA$7:$AA$36,'Control panel'!AS$7:AS$36)*'Control panel'!AS12 -> 0.05332210793 | AX14: ='Control panel'!$AA12/SUMPRODUCT('Control panel'!$AA$7:$AA$36,'Control panel'!AT$7:AT$36)*'Control panel'!AT12 -> 0.05332210793
B15: ='Opex costs'!B13 -> Network billing and other energy market services | C15: =_xlfn.XLOOKUP($B15,'BBM Costs'!$I$7:$I$25,'BBM Costs'!J$7:J$25)*_xlfn.XLOOKUP($B15,'Control panel'!$E$7:$E$25,'Control panel'!$F$7:$F$25) -> 3.548085953 | D15: =_xlfn.XLOOKUP($B15,'BBM Costs'!$I$7:$I$25,'BBM Costs'!K$7:K$25)*_xlfn.XLOOKUP($B15,'Control panel'!$E$7:$E$25,'Control panel'!$F$7:$F$25) -> 3.668881864 | E15: =_xlfn.XLOOKUP($B15,'BBM Costs'!$I$7:$I$25,'BBM Costs'!L$7:L$25)*_xlfn.XLOOKUP($B15,'Control panel'!$E$7:$E$25,'Control panel'!$F$7:$F$25) -> 3.865250344 | F15: =_xlfn.XLOOKUP($B15,'BBM Costs'!$I$7:$I$25,'BBM Costs'!M$7:M$25)*_xlfn.XLOOKUP($B15,'Control panel'!$E$7:$E$25,'Control panel'!$F$7:$F$25) -> 4.050947937 | G15: =_xlfn.XLOOKUP($B15,'BBM Costs'!$I$7:$I$25,'BBM Costs'!N$7:N$25)*_xlfn.XLOOKUP($B15,'Control panel'!$E$7:$E$25,'Control panel'!$F$7:$F$25) -> 4.376740576 | I15: Network billing and other energy market services | J15: =C15*_xlfn.XLOOKUP($I15,'Control panel'!$E$7:$E$25,'Control panel'!$H$7:$H$25) -> 3.548085953 | K15: =D15*_xlfn.XLOOKUP($I15,'Control panel'!$E$7:$E$25,'Control panel'!$H$7:$H$25) -> 3.668881864 | L15: =E15*_xlfn.XLOOKUP($I15,'Control panel'!$E$7:$E$25,'Control panel'!$H$7:$H$25) -> 3.865250344 | M15: =F15*_xlfn.XLOOKUP($I15,'Control panel'!$E$7:$E$25,'Control panel'!$H$7:$H$25) -> 4.050947937 | N15: =G15*_xlfn.XLOOKUP($I15,'Control panel'!$E$7:$E$25,'Control panel'!$H$7:$H$25) -> 4.376740576 | P15: Network billing and other energy market services | Q15: =C15*_xlfn.XLOOKUP($P15,'Control panel'!$E$7:$E$25,'Control panel'!$I$7:$I$25) -> 0 | R15: =D15*_xlfn.XLOOKUP($P15,'Control panel'!$E$7:$E$25,'Control panel'!$I$7:$I$25) -> 0 | S15: =E15*_xlfn.XLOOKUP($P15,'Control panel'!$E$7:$E$25,'Control panel'!$I$7:$I$25) -> 0 | T15: =F15*_xlfn.XLOOKUP($P15,'Control panel'!$E$7:$E$25,'Control panel'!$I$7:$I$25) -> 0 | U15: =G15*_xlfn.XLOOKUP($P15,'Control panel'!$E$7:$E$25,'Control panel'!$I$7:$I$25) -> 0 | W15: 2025-26 | X15: ='PTRM Data'!B13 -> Substation Establishment | Y15: =_xlfn.XLOOKUP(X15,'Control panel'!$L$7:$L$36,'Control panel'!$P$7:$P$36) -> 1 | Z15: 1.83922328 | AA15: =_xlfn.XLOOKUP(W15,'BBM Costs'!$Q$6:$U$6,_xlfn.XLOOKUP(X15,'BBM Costs'!$P$7:$P$36,'BBM Costs'!$Q$7:$U$36))*_xlfn.XLOOKUP(X15,'Control panel'!$L$7:$L$36,'Control panel'!$M$7:$M$36) -> 0 | AB15: =_xlfn.XLOOKUP(W15,'BBM Costs'!$X$6:$AB$6,_xlfn.XLOOKUP(X15,'BBM Costs'!$W$7:$W$36,'BBM Costs'!$X$7:$AB$36))*_xlfn.XLOOKUP(X15,'Control panel'!$S$7:$S$36,'Control panel'!$T$7:$T$36) -> 0 | AC15: 1.83922328 | AE15: ='PTRM Data'!B13 -> Substation Establishment | AF15: ='Control panel'!$AA13/SUMPRODUCT('Control panel'!$AA$7:$AA$36,'Control panel'!AB$7:AB$36)*'Control panel'!AB13 -> 0.04049885956 | AG15: ='Control panel'!$AA13/SUMPRODUCT('Control panel'!$AA$7:$AA$36,'Control panel'!AC$7:AC$36)*'Control panel'!AC13 -> 0.04049885956 | AH15: ='Control panel'!$AA13/SUMPRODUCT('Control panel'!$AA$7:$AA$36,'Control panel'!AD$7:AD$36)*'Control panel'!AD13 -> 0.0420977166 | AI15: ='Control panel'!$AA13/SUMPRODUCT('Control panel'!$AA$7:$AA$36,'Control panel'!AE$7:AE$36)*'Control panel'!AE13 -> 0.1128697051 | AJ15: ='Control panel'!$AA13/SUMPRODUCT('Control panel'!$AA$7:$AA$36,'Control panel'!AF$7:AF$36)*'Control panel'!AF13 -> 0.0368288519 | AK15: ='Control panel'!$AA13/SUMPRODUCT('Control panel'!$AA$7:$AA$36,'Control panel'!AG$7:AG$36)*'Control panel'!AG13 -> 0.04113543539 | AL15: ='Control panel'!$AA13/SUMPRODUCT('Control panel'!$AA$7:$AA$36,'Control panel'!AH$7:AH$36)*'Control panel'!AH13 -> 0 | AM15: ='Control panel'!$AA13/SUMPRODUCT('Control panel'!$AA$7:$AA$36,'Control panel'!AI$7:AI$36)*'Control panel'!AI13 -> 0.0368288519 | AN15: ='Control panel'!$AA13/SUMPRODUCT('Control panel'!$AA$7:$AA$36,'Control panel'!AJ$7:AJ$36)*'Control panel'!AJ13 -> 0 | AO15: ='Control panel'!$AA13/SUMPRODUCT('Control panel'!$AA$7:$AA$36,'Control panel'!AK$7:AK$36)*'Control panel'!AK13 -> 0.0368288519 | AP15: ='Control panel'!$AA13/SUMPRODUCT('Control panel'!$AA$7:$AA$36,'Control panel'!AL$7:AL$36)*'Control panel'!AL13 -> 0.0368288519 | AQ15: ='Control panel'!$AA13/SUMPRODUCT('Control panel'!$AA$7:$AA$36,'Control panel'!AM$7:AM$36)*'Control panel'!AM13 -> 0.04113543539 | AR15: ='Control panel'!$AA13/SUMPRODUCT('Control panel'!$AA$7:$AA$36,'Control panel'!AN$7:AN$36)*'Control panel'!AN13 -> 0.04113604827 | AT15: ='Control panel'!$AA13/SUMPRODUCT('Control panel'!$AA$7:$AA$36,'Control panel'!AP$7:AP$36)*'Control panel'!AP13 -> 0.03677537633 | AU15: ='Control panel'!$AA13/SUMPRODUCT('Control panel'!$AA$7:$AA$36,'Control panel'!AQ$7:AQ$36)*'Control panel'!AQ13 -> 0.03677537633 | AV15: ='Control panel'!$AA13/SUMPRODUCT('Control panel'!$AA$7:$AA$36,'Control panel'!AR$7:AR$36)*'Control panel'!AR13 -> 0.03677537633 | AW15: ='Control panel'!$AA13/SUMPRODUCT('Control panel'!$AA$7:$AA$36,'Control panel'!AS$7:AS$36)*'Control panel'!AS13 -> 0.03677537633 | AX15: ='Control panel'!$AA13/SUMPRODUCT('Control panel'!$AA$7:$AA$36,'Control panel'!AT$7:AT$36)*'Control panel'!AT13 -> 0.03677537633
B16: ='Opex costs'!B14 -> Customer services | C16: =_xlfn.XLOOKUP($B16,'BBM Costs'!$I$7:$I$25,'BBM Costs'!J$7:J$25)*_xlfn.XLOOKUP($B16,'Control panel'!$E$7:$E$25,'Control panel'!$F$7:$F$25) -> 16.81326448 | D16: =_xlfn.XLOOKUP($B16,'BBM Costs'!$I$7:$I$25,'BBM Costs'!K$7:K$25)*_xlfn.XLOOKUP($B16,'Control panel'!$E$7:$E$25,'Control panel'!$F$7:$F$25) -> 17.38567835 | E16: =_xlfn.XLOOKUP($B16,'BBM Costs'!$I$7:$I$25,'BBM Costs'!L$7:L$25)*_xlfn.XLOOKUP($B16,'Control panel'!$E$7:$E$25,'Control panel'!$F$7:$F$25) -> 18.31620687 | F16: =_xlfn.XLOOKUP($B16,'BBM Costs'!$I$7:$I$25,'BBM Costs'!M$7:M$25)*_xlfn.XLOOKUP($B16,'Control panel'!$E$7:$E$25,'Control panel'!$F$7:$F$25) -> 19.19616941 | G16: =_xlfn.XLOOKUP($B16,'BBM Costs'!$I$7:$I$25,'BBM Costs'!N$7:N$25)*_xlfn.XLOOKUP($B16,'Control panel'!$E$7:$E$25,'Control panel'!$F$7:$F$25) -> 20.73999836 | I16: Customer services | J16: =C16*_xlfn.XLOOKUP($I16,'Control panel'!$E$7:$E$25,'Control panel'!$H$7:$H$25) -> 16.81326448 | K16: =D16*_xlfn.XLOOKUP($I16,'Control panel'!$E$7:$E$25,'Control panel'!$H$7:$H$25) -> 17.38567835 | L16: =E16*_xlfn.XLOOKUP($I16,'Control panel'!$E$7:$E$25,'Control panel'!$H$7:$H$25) -> 18.31620687 | M16: =F16*_xlfn.XLOOKUP($I16,'Control panel'!$E$7:$E$25,'Control panel'!$H$7:$H$25) -> 19.19616941 | N16: =G16*_xlfn.XLOOKUP($I16,'Control panel'!$E$7:$E$25,'Control panel'!$H$7:$H$25) -> 20.73999836 | P16: Customer services | Q16: =C16*_xlfn.XLOOKUP($P16,'Control panel'!$E$7:$E$25,'Control panel'!$I$7:$I$25) -> 0 | R16: =D16*_xlfn.XLOOKUP($P16,'Control panel'!$E$7:$E$25,'Control panel'!$I$7:$I$25) -> 0 | S16: =E16*_xlfn.XLOOKUP($P16,'Control panel'!$E$7:$E$25,'Control panel'!$I$7:$I$25) -> 0 | T16: =F16*_xlfn.XLOOKUP($P16,'Control panel'!$E$7:$E$25,'Control panel'!$I$7:$I$25) -> 0 | U16: =G16*_xlfn.XLOOKUP($P16,'Control panel'!$E$7:$E$25,'Control panel'!$I$7:$I$25) -> 0 | W16: 2025-26 | X16: ='PTRM Data'!B14 -> Distribution Substation Switchgear | Y16: =_xlfn.XLOOKUP(X16,'Control panel'!$L$7:$L$36,'Control panel'!$P$7:$P$36) -> 0.75 | Z16: 0.632444954 | AA16: =_xlfn.XLOOKUP(W16,'BBM Costs'!$Q$6:$U$6,_xlfn.XLOOKUP(X16,'BBM Costs'!$P$7:$P$36,'BBM Costs'!$Q$7:$U$36))*_xlfn.XLOOKUP(X16,'Control panel'!$L$7:$L$36,'Control panel'!$M$7:$M$36) -> 0.3515541523 | AB16: =_xlfn.XLOOKUP(W16,'BBM Costs'!$X$6:$AB$6,_xlfn.XLOOKUP(X16,'BBM Costs'!$W$7:$W$36,'BBM Costs'!$X$7:$AB$36))*_xlfn.XLOOKUP(X16,'Control panel'!$S$7:$S$36,'Control panel'!$T$7:$T$36) -> 2.937995193 | AC16: 3.921994299 | AE16: ='PTRM Data'!B14 -> Distribution Substation Switchgear | AF16: ='Control panel'!$AA14/SUMPRODUCT('Control panel'!$AA$7:$AA$36,'Control panel'!AB$7:AB$36)*'Control panel'!AB14 -> 0.01392615005 | AG16: ='Control panel'!$AA14/SUMPRODUCT('Control panel'!$AA$7:$AA$36,'Control panel'!AC$7:AC$36)*'Control panel'!AC14 -> 0.01392615005 | AH16: ='Control panel'!$AA14/SUMPRODUCT('Control panel'!$AA$7:$AA$36,'Control panel'!AD$7:AD$36)*'Control panel'!AD14 -> 0.01447594141 | AI16: ='Control panel'!$AA14/SUMPRODUCT('Control panel'!$AA$7:$AA$36,'Control panel'!AE$7:AE$36)*'Control panel'!AE14 -> 0 | AJ16: ='Control panel'!$AA14/SUMPRODUCT('Control panel'!$AA$7:$AA$36,'Control panel'!AF$7:AF$36)*'Control panel'!AF14 -> 0.01266416199 | AK16: ='Control panel'!$AA14/SUMPRODUCT('Control panel'!$AA$7:$AA$36,'Control panel'!AG$7:AG$36)*'Control panel'!AG14 -> 0.01414504635 | AL16: ='Control panel'!$AA14/SUMPRODUCT('Control panel'!$AA$7:$AA$36,'Control panel'!AH$7:AH$36)*'Control panel'!AH14 -> 0 | AM16: ='Control panel'!$AA14/SUMPRODUCT('Control panel'!$AA$7:$AA$36,'Control panel'!AI$7:AI$36)*'Control panel'!AI14 -> 0.01266416199 | AN16: ='Control panel'!$AA14/SUMPRODUCT('Control panel'!$AA$7:$AA$36,'Control panel'!AJ$7:AJ$36)*'Control panel'!AJ14 -> 0 | AO16: ='Control panel'!$AA14/SUMPRODUCT('Control panel'!$AA$7:$AA$36,'Control panel'!AK$7:AK$36)*'Control panel'!AK14 -> 0.01266416199 | AP16: ='Control panel'!$AA14/SUMPRODUCT('Control panel'!$AA$7:$AA$36,'Control panel'!AL$7:AL$36)*'Control panel'!AL14 -> 0.01266416199 | AQ16: ='Control panel'!$AA14/SUMPRODUCT('Control panel'!$AA$7:$AA$36,'Control panel'!AM$7:AM$36)*'Control panel'!AM14 -> 0.01414504635 | AR16: ='Control panel'!$AA14/SUMPRODUCT('Control panel'!$AA$7:$AA$36,'Control panel'!AN$7:AN$36)*'Control panel'!AN14 -> 0.0141452571 | AT16: ='Control panel'!$AA14/SUMPRODUCT('Control panel'!$AA$7:$AA$36,'Control panel'!AP$7:AP$36)*'Control panel'!AP14 -> 0.0126457736 | AU16: ='Control panel'!$AA14/SUMPRODUCT('Control panel'!$AA$7:$AA$36,'Control panel'!AQ$7:AQ$36)*'Control panel'!AQ14 -> 0.0126457736 | AV16: ='Control panel'!$AA14/SUMPRODUCT('Control panel'!$AA$7:$AA$36,'Control panel'!AR$7:AR$36)*'Control panel'!AR14 -> 0.0126457736 | AW16: ='Control panel'!$AA14/SUMPRODUCT('Control panel'!$AA$7:$AA$36,'Control panel'!AS$7:AS$36)*'Control panel'!AS14 -> 0.0126457736 | AX16: ='Control panel'!$AA14/SUMPRODUCT('Control panel'!$AA$7:$AA$36,'Control panel'!AT$7:AT$36)*'Control panel'!AT14 -> 0.0126457736
B17: ='Opex costs'!B15 -> DSM initiatives | C17: =_xlfn.XLOOKUP($B17,'BBM Costs'!$I$7:$I$25,'BBM Costs'!J$7:J$25)*_xlfn.XLOOKUP($B17,'Control panel'!$E$7:$E$25,'Control panel'!$F$7:$F$25) -> 4.641274119 | D17: =_xlfn.XLOOKUP($B17,'BBM Costs'!$I$7:$I$25,'BBM Costs'!K$7:K$25)*_xlfn.XLOOKUP($B17,'Control panel'!$E$7:$E$25,'Control panel'!$F$7:$F$25) -> 4.799288029 | E17: =_xlfn.XLOOKUP($B17,'BBM Costs'!$I$7:$I$25,'BBM Costs'!L$7:L$25)*_xlfn.XLOOKUP($B17,'Control panel'!$E$7:$E$25,'Control panel'!$F$7:$F$25) -> 5.056158903 | F17: =_xlfn.XLOOKUP($B17,'BBM Costs'!$I$7:$I$25,'BBM Costs'!M$7:M$25)*_xlfn.XLOOKUP($B17,'Control panel'!$E$7:$E$25,'Control panel'!$F$7:$F$25) -> 5.299071123 | G17: =_xlfn.XLOOKUP($B17,'BBM Costs'!$I$7:$I$25,'BBM Costs'!N$7:N$25)*_xlfn.XLOOKUP($B17,'Control panel'!$E$7:$E$25,'Control panel'!$F$7:$F$25) -> 5.725242575 | I17: DSM initiatives | J17: =C17*_xlfn.XLOOKUP($I17,'Control panel'!$E$7:$E$25,'Control panel'!$H$7:$H$25) -> 3.713019295 | K17: =D17*_xlfn.XLOOKUP($I17,'Control panel'!$E$7:$E$25,'Control panel'!$H$7:$H$25) -> 3.839430423 | L17: =E17*_xlfn.XLOOKUP($I17,'Control panel'!$E$7:$E$25,'Control panel'!$H$7:$H$25) -> 4.044927122 | M17: =F17*_xlfn.XLOOKUP($I17,'Control panel'!$E$7:$E$25,'Control panel'!$H$7:$H$25) -> 4.239256898 | N17: =G17*_xlfn.XLOOKUP($I17,'Control panel'!$E$7:$E$25,'Control panel'!$H$7:$H$25) -> 4.58019406 | P17: DSM initiatives | Q17: =C17*_xlfn.XLOOKUP($P17,'Control panel'!$E$7:$E$25,'Control panel'!$I$7:$I$25) -> 0.9282548237 | R17: =D17*_xlfn.XLOOKUP($P17,'Control panel'!$E$7:$E$25,'Control panel'!$I$7:$I$25) -> 0.9598576058 | S17: =E17*_xlfn.XLOOKUP($P17,'Control panel'!$E$7:$E$25,'Control panel'!$I$7:$I$25) -> 1.011231781 | T17: =F17*_xlfn.XLOOKUP($P17,'Control panel'!$E$7:$E$25,'Control panel'!$I$7:$I$25) -> 1.059814225 | U17: =G17*_xlfn.XLOOKUP($P17,'Control panel'!$E$7:$E$25,'Control panel'!$I$7:$I$25) -> 1.145048515 | W17: 2025-26 | X17: ='PTRM Data'!B15 -> Zone Transformers | Y17: =_xlfn.XLOOKUP(X17,'Control panel'!$L$7:$L$36,'Control panel'!$P$7:$P$36) -> 1 | Z17: 3.554222645 | AA17: =_xlfn.XLOOKUP(W17,'BBM Costs'!$Q$6:$U$6,_xlfn.XLOOKUP(X17,'BBM Costs'!$P$7:$P$36,'BBM Costs'!$Q$7:$U$36))*_xlfn.XLOOKUP(X17,'Control panel'!$L$7:$L$36,'Control panel'!$M$7:$M$36) -> 0 | AB17: =_xlfn.XLOOKUP(W17,'BBM Costs'!$X$6:$AB$6,_xlfn.XLOOKUP(X17,'BBM Costs'!$W$7:$W$36,'BBM Costs'!$X$7:$AB$36))*_xlfn.XLOOKUP(X17,'Control panel'!$S$7:$S$36,'Control panel'!$T$7:$T$36) -> 0 | AC17: 3.554222645 | AE17: ='PTRM Data'!B15 -> Zone Transformers | AF17: ='Control panel'!$AA15/SUMPRODUCT('Control panel'!$AA$7:$AA$36,'Control panel'!AB$7:AB$36)*'Control panel'!AB15 -> 0.07826236507 | AG17: ='Control panel'!$AA15/SUMPRODUCT('Control panel'!$AA$7:$AA$36,'Control panel'!AC$7:AC$36)*'Control panel'!AC15 -> 0.07826236507 | AH17: ='Control panel'!$AA15/SUMPRODUCT('Control panel'!$AA$7:$AA$36,'Control panel'!AD$7:AD$36)*'Control panel'!AD15 -> 0.08135208993 | AI17: ='Control panel'!$AA15/SUMPRODUCT('Control panel'!$AA$7:$AA$36,'Control panel'!AE$7:AE$36)*'Control panel'!AE15 -> 0 | AJ17: ='Control panel'!$AA15/SUMPRODUCT('Control panel'!$AA$7:$AA$36,'Control panel'!AF$7:AF$36)*'Control panel'!AF15 -> 0.07117022761 | AK17: ='Control panel'!$AA15/SUMPRODUCT('Control panel'!$AA$7:$AA$36,'Control panel'!AG$7:AG$36)*'Control panel'!AG15 -> 0.07949252143 | AL17: ='Control panel'!$AA15/SUMPRODUCT('Control panel'!$AA$7:$AA$36,'Control panel'!AH$7:AH$36)*'Control panel'!AH15 -> 0 | AM17: ='Control panel'!$AA15/SUMPRODUCT('Control panel'!$AA$7:$AA$36,'Control panel'!AI$7:AI$36)*'Control panel'!AI15 -> 0.07117022761 | AN17: ='Control panel'!$AA15/SUMPRODUCT('Control panel'!$AA$7:$AA$36,'Control panel'!AJ$7:AJ$36)*'Control panel'!AJ15 -> 0 | AO17: ='Control panel'!$AA15/SUMPRODUCT('Control panel'!$AA$7:$AA$36,'Control panel'!AK$7:AK$36)*'Control panel'!AK15 -> 0.07117022761 | AP17: ='Control panel'!$AA15/SUMPRODUCT('Control panel'!$AA$7:$AA$36,'Control panel'!AL$7:AL$36)*'Control panel'!AL15 -> 0.07117022761 | AQ17: ='Control panel'!$AA15/SUMPRODUCT('Control panel'!$AA$7:$AA$36,'Control panel'!AM$7:AM$36)*'Control panel'!AM15 -> 0.07949252143 | AR17: ='Control panel'!$AA15/SUMPRODUCT('Control panel'!$AA$7:$AA$36,'Control panel'!AN$7:AN$36)*'Control panel'!AN15 -> 0.0794937058 | AT17: ='Control panel'!$AA15/SUMPRODUCT('Control panel'!$AA$7:$AA$36,'Control panel'!AP$7:AP$36)*'Control panel'!AP15 -> 0.07106688828 | AU17: ='Control panel'!$AA15/SUMPRODUCT('Control panel'!$AA$7:$AA$36,'Control panel'!AQ$7:AQ$36)*'Control panel'!AQ15 -> 0.07106688828 | AV17: ='Control panel'!$AA15/SUMPRODUCT('Control panel'!$AA$7:$AA$36,'Control panel'!AR$7:AR$36)*'Control panel'!AR15 -> 0.07106688828 | AW17: ='Control panel'!$AA15/SUMPRODUCT('Control panel'!$AA$7:$AA$36,'Control panel'!AS$7:AS$36)*'Control panel'!AS15 -> 0.07106688828 | AX17: ='Control panel'!$AA15/SUMPRODUCT('Control panel'!$AA$7:$AA$36,'Control panel'!AT$7:AT$36)*'Control panel'!AT15 -> 0.07106688828
B18: ='Opex costs'!B16 -> Levies | C18: =_xlfn.XLOOKUP($B18,'BBM Costs'!$I$7:$I$25,'BBM Costs'!J$7:J$25)*_xlfn.XLOOKUP($B18,'Control panel'!$E$7:$E$25,'Control panel'!$F$7:$F$25) -> 0 | D18: =_xlfn.XLOOKUP($B18,'BBM Costs'!$I$7:$I$25,'BBM Costs'!K$7:K$25)*_xlfn.XLOOKUP($B18,'Control panel'!$E$7:$E$25,'Control panel'!$F$7:$F$25) -> 0 | E18: =_xlfn.XLOOKUP($B18,'BBM Costs'!$I$7:$I$25,'BBM Costs'!L$7:L$25)*_xlfn.XLOOKUP($B18,'Control panel'!$E$7:$E$25,'Control panel'!$F$7:$F$25) -> 0 | F18: =_xlfn.XLOOKUP($B18,'BBM Costs'!$I$7:$I$25,'BBM Costs'!M$7:M$25)*_xlfn.XLOOKUP($B18,'Control panel'!$E$7:$E$25,'Control panel'!$F$7:$F$25) -> 0 | G18: =_xlfn.XLOOKUP($B18,'BBM Costs'!$I$7:$I$25,'BBM Costs'!N$7:N$25)*_xlfn.XLOOKUP($B18,'Control panel'!$E$7:$E$25,'Control panel'!$F$7:$F$25) -> 0 | I18: Levies | J18: =C18*_xlfn.XLOOKUP($I18,'Control panel'!$E$7:$E$25,'Control panel'!$H$7:$H$25) -> 0 | K18: =D18*_xlfn.XLOOKUP($I18,'Control panel'!$E$7:$E$25,'Control panel'!$H$7:$H$25) -> 0 | L18: =E18*_xlfn.XLOOKUP($I18,'Control panel'!$E$7:$E$25,'Control panel'!$H$7:$H$25) -> 0 | M18: =F18*_xlfn.XLOOKUP($I18,'Control panel'!$E$7:$E$25,'Control panel'!$H$7:$H$25) -> 0 | N18: =G18*_xlfn.XLOOKUP($I18,'Control panel'!$E$7:$E$25,'Control panel'!$H$7:$H$25) -> 0 | P18: Levies | Q18: =C18*_xlfn.XLOOKUP($P18,'Control panel'!$E$7:$E$25,'Control panel'!$I$7:$I$25) -> 0 | R18: =D18*_xlfn.XLOOKUP($P18,'Control panel'!$E$7:$E$25,'Control panel'!$I$7:$I$25) -> 0 | S18: =E18*_xlfn.XLOOKUP($P18,'Control panel'!$E$7:$E$25,'Control panel'!$I$7:$I$25) -> 0 | T18: =F18*_xlfn.XLOOKUP($P18,'Control panel'!$E$7:$E$25,'Control panel'!$I$7:$I$25) -> 0 | U18: =G18*_xlfn.XLOOKUP($P18,'Control panel'!$E$7:$E$25,'Control panel'!$I$7:$I$25) -> 0 | W18: 2025-26 | X18: ='PTRM Data'!B16 -> Distribution Transformers | Y18: =_xlfn.XLOOKUP(X18,'Control panel'!$L$7:$L$36,'Control panel'!$P$7:$P$36) -> 0.2 | Z18: 5.731046973 | AA18: =_xlfn.XLOOKUP(W18,'BBM Costs'!$Q$6:$U$6,_xlfn.XLOOKUP(X18,'BBM Costs'!$P$7:$P$36,'BBM Costs'!$Q$7:$U$36))*_xlfn.XLOOKUP(X18,'Control panel'!$L$7:$L$36,'Control panel'!$M$7:$M$36) -> 7.638747392 | AB18: =_xlfn.XLOOKUP(W18,'BBM Costs'!$X$6:$AB$6,_xlfn.XLOOKUP(X18,'BBM Costs'!$W$7:$W$36,'BBM Costs'!$X$7:$AB$36))*_xlfn.XLOOKUP(X18,'Control panel'!$S$7:$S$36,'Control panel'!$T$7:$T$36) -> 26.62332642 | AC18: 39.99312079 | AE18: ='PTRM Data'!B16 -> Distribution Transformers | AF18: ='Control panel'!$AA16/SUMPRODUCT('Control panel'!$AA$7:$AA$36,'Control panel'!AB$7:AB$36)*'Control panel'!AB16 -> 0.1261950461 | AG18: ='Control panel'!$AA16/SUMPRODUCT('Control panel'!$AA$7:$AA$36,'Control panel'!AC$7:AC$36)*'Control panel'!AC16 -> 0.1261950461 | AH18: ='Control panel'!$AA16/SUMPRODUCT('Control panel'!$AA$7:$AA$36,'Control panel'!AD$7:AD$36)*'Control panel'!AD16 -> 0.1311771083 | AI18: ='Control panel'!$AA16/SUMPRODUCT('Control panel'!$AA$7:$AA$36,'Control panel'!AE$7:AE$36)*'Control panel'!AE16 -> 0 | AJ18: ='Control panel'!$AA16/SUMPRODUCT('Control panel'!$AA$7:$AA$36,'Control panel'!AF$7:AF$36)*'Control panel'!AF16 -> 0.1147592479 | AK18: ='Control panel'!$AA16/SUMPRODUCT('Control panel'!$AA$7:$AA$36,'Control panel'!AG$7:AG$36)*'Control panel'!AG16 -> 0.1281786258 | AL18: ='Control panel'!$AA16/SUMPRODUCT('Control panel'!$AA$7:$AA$36,'Control panel'!AH$7:AH$36)*'Control panel'!AH16 -> 0 | AM18: ='Control panel'!$AA16/SUMPRODUCT('Control panel'!$AA$7:$AA$36,'Control panel'!AI$7:AI$36)*'Control panel'!AI16 -> 0.1147592479 | AN18: ='Control panel'!$AA16/SUMPRODUCT('Control panel'!$AA$7:$AA$36,'Control panel'!AJ$7:AJ$36)*'Control panel'!AJ16 -> 0 | AO18: ='Control panel'!$AA16/SUMPRODUCT('Control panel'!$AA$7:$AA$36,'Control panel'!AK$7:AK$36)*'Control panel'!AK16 -> 0.1147592479 | AP18: ='Control panel'!$AA16/SUMPRODUCT('Control panel'!$AA$7:$AA$36,'Control panel'!AL$7:AL$36)*'Control panel'!AL16 -> 0.1147592479 | AQ18: ='Control panel'!$AA16/SUMPRODUCT('Control panel'!$AA$7:$AA$36,'Control panel'!AM$7:AM$36)*'Control panel'!AM16 -> 0.1281786258 | AR18: ='Control panel'!$AA16/SUMPRODUCT('Control panel'!$AA$7:$AA$36,'Control panel'!AN$7:AN$36)*'Control panel'!AN16 -> 0.1281805355 | AT18: ='Control panel'!$AA16/SUMPRODUCT('Control panel'!$AA$7:$AA$36,'Control panel'!AP$7:AP$36)*'Control panel'!AP16 -> 0.1145926172 | AU18: ='Control panel'!$AA16/SUMPRODUCT('Control panel'!$AA$7:$AA$36,'Control panel'!AQ$7:AQ$36)*'Control panel'!AQ16 -> 0.1145926172 | AV18: ='Control panel'!$AA16/SUMPRODUCT('Control panel'!$AA$7:$AA$36,'Control panel'!AR$7:AR$36)*'Control panel'!AR16 -> 0.1145926172 | AW18: ='Control panel'!$AA16/SUMPRODUCT('Control panel'!$AA$7:$AA$36,'Control panel'!AS$7:AS$36)*'Control panel'!AS16 -> 0.1145926172 | AX18: ='Control panel'!$AA16/SUMPRODUCT('Control panel'!$AA$7:$AA$36,'Control panel'!AT$7:AT$36)*'Control panel'!AT16 -> 0.1145926172
B19: ='Opex costs'!B17 -> Debt raising costs | C19: =_xlfn.XLOOKUP($B19,'BBM Costs'!$I$7:$I$25,'BBM Costs'!J$7:J$25)*_xlfn.XLOOKUP($B19,'Control panel'!$E$7:$E$25,'Control panel'!$F$7:$F$25) -> 0 | D19: =_xlfn.XLOOKUP($B19,'BBM Costs'!$I$7:$I$25,'BBM Costs'!K$7:K$25)*_xlfn.XLOOKUP($B19,'Control panel'!$E$7:$E$25,'Control panel'!$F$7:$F$25) -> 0 | E19: =_xlfn.XLOOKUP($B19,'BBM Costs'!$I$7:$I$25,'BBM Costs'!L$7:L$25)*_xlfn.XLOOKUP($B19,'Control panel'!$E$7:$E$25,'Control panel'!$F$7:$F$25) -> 0 | F19: =_xlfn.XLOOKUP($B19,'BBM Costs'!$I$7:$I$25,'BBM Costs'!M$7:M$25)*_xlfn.XLOOKUP($B19,'Control panel'!$E$7:$E$25,'Control panel'!$F$7:$F$25) -> 0 | G19: =_xlfn.XLOOKUP($B19,'BBM Costs'!$I$7:$I$25,'BBM Costs'!N$7:N$25)*_xlfn.XLOOKUP($B19,'Control panel'!$E$7:$E$25,'Control panel'!$F$7:$F$25) -> 0 | I19: Debt raising costs | J19: =C19*_xlfn.XLOOKUP($I19,'Control panel'!$E$7:$E$25,'Control panel'!$H$7:$H$25) -> 0 | K19: =D19*_xlfn.XLOOKUP($I19,'Control panel'!$E$7:$E$25,'Control panel'!$H$7:$H$25) -> 0 | L19: =E19*_xlfn.XLOOKUP($I19,'Control panel'!$E$7:$E$25,'Control panel'!$H$7:$H$25) -> 0 | M19: =F19*_xlfn.XLOOKUP($I19,'Control panel'!$E$7:$E$25,'Control panel'!$H$7:$H$25) -> 0 | N19: =G19*_xlfn.XLOOKUP($I19,'Control panel'!$E$7:$E$25,'Control panel'!$H$7:$H$25) -> 0 | P19: Debt raising costs | Q19: =C19*_xlfn.XLOOKUP($P19,'Control panel'!$E$7:$E$25,'Control panel'!$I$7:$I$25) -> 0 | R19: =D19*_xlfn.XLOOKUP($P19,'Control panel'!$E$7:$E$25,'Control panel'!$I$7:$I$25) -> 0 | S19: =E19*_xlfn.XLOOKUP($P19,'Control panel'!$E$7:$E$25,'Control panel'!$I$7:$I$25) -> 0 | T19: =F19*_xlfn.XLOOKUP($P19,'Control panel'!$E$7:$E$25,'Control panel'!$I$7:$I$25) -> 0 | U19: =G19*_xlfn.XLOOKUP($P19,'Control panel'!$E$7:$E$25,'Control panel'!$I$7:$I$25) -> 0 | W19: 2025-26 | X19: ='PTRM Data'!B17 -> Low Voltage Services | Y19: =_xlfn.XLOOKUP(X19,'Control panel'!$L$7:$L$36,'Control panel'!$P$7:$P$36) -> 0 | Z19: 2.643331102 | AA19: =_xlfn.XLOOKUP(W19,'BBM Costs'!$Q$6:$U$6,_xlfn.XLOOKUP(X19,'BBM Costs'!$P$7:$P$36,'BBM Costs'!$Q$7:$U$36))*_xlfn.XLOOKUP(X19,'Control panel'!$L$7:$L$36,'Control panel'!$M$7:$M$36) -> 0 | AB19: =_xlfn.XLOOKUP(W19,'BBM Costs'!$X$6:$AB$6,_xlfn.XLOOKUP(X19,'BBM Costs'!$W$7:$W$36,'BBM Costs'!$X$7:$AB$36))*_xlfn.XLOOKUP(X19,'Control panel'!$S$7:$S$36,'Control panel'!$T$7:$T$36) -> 0 | AC19: 2.643331102 | AE19: ='PTRM Data'!B17 -> Low Voltage Services | AF19: ='Control panel'!$AA17/SUMPRODUCT('Control panel'!$AA$7:$AA$36,'Control panel'!AB$7:AB$36)*'Control panel'!AB17 -> 0.039596636 | AG19: ='Control panel'!$AA17/SUMPRODUCT('Control panel'!$AA$7:$AA$36,'Control panel'!AC$7:AC$36)*'Control panel'!AC17 -> 0.039596636 | AH19: ='Control panel'!$AA17/SUMPRODUCT('Control panel'!$AA$7:$AA$36,'Control panel'!AD$7:AD$36)*'Control panel'!AD17 -> 0.04115987409 | AI19: ='Control panel'!$AA17/SUMPRODUCT('Control panel'!$AA$7:$AA$36,'Control panel'!AE$7:AE$36)*'Control panel'!AE17 -> 0 | AJ19: ='Control panel'!$AA17/SUMPRODUCT('Control panel'!$AA$7:$AA$36,'Control panel'!AF$7:AF$36)*'Control panel'!AF17 -> 0.03600838786 | AK19: ='Control panel'!$AA17/SUMPRODUCT('Control panel'!$AA$7:$AA$36,'Control panel'!AG$7:AG$36)*'Control panel'!AG17 -> 0.04021903035 | AL19: ='Control panel'!$AA17/SUMPRODUCT('Control panel'!$AA$7:$AA$36,'Control panel'!AH$7:AH$36)*'Control panel'!AH17 -> 0.4953759056 | AM19: ='Control panel'!$AA17/SUMPRODUCT('Control panel'!$AA$7:$AA$36,'Control panel'!AI$7:AI$36)*'Control panel'!AI17 -> 0.03600838786 | AN19: ='Control panel'!$AA17/SUMPRODUCT('Control panel'!$AA$7:$AA$36,'Control panel'!AJ$7:AJ$36)*'Control panel'!AJ17 -> 0.9103982678 | AO19: ='Control panel'!$AA17/SUMPRODUCT('Control panel'!$AA$7:$AA$36,'Control panel'!AK$7:AK$36)*'Control panel'!AK17 -> 0.03600838786 | AP19: ='Control panel'!$AA17/SUMPRODUCT('Control panel'!$AA$7:$AA$36,'Control panel'!AL$7:AL$36)*'Control panel'!AL17 -> 0.03600838786 | AQ19: ='Control panel'!$AA17/SUMPRODUCT('Control panel'!$AA$7:$AA$36,'Control panel'!AM$7:AM$36)*'Control panel'!AM17 -> 0.04021903035 | AR19: ='Control panel'!$AA17/SUMPRODUCT('Control panel'!$AA$7:$AA$36,'Control panel'!AN$7:AN$36)*'Control panel'!AN17 -> 0.04021962957 | AT19: ='Control panel'!$AA17/SUMPRODUCT('Control panel'!$AA$7:$AA$36,'Control panel'!AP$7:AP$36)*'Control panel'!AP17 -> 0.0359561036 | AU19: ='Control panel'!$AA17/SUMPRODUCT('Control panel'!$AA$7:$AA$36,'Control panel'!AQ$7:AQ$36)*'Control panel'!AQ17 -> 0.0359561036 | AV19: ='Control panel'!$AA17/SUMPRODUCT('Control panel'!$AA$7:$AA$36,'Control panel'!AR$7:AR$36)*'Control panel'!AR17 -> 0.0359561036 | AW19: ='Control panel'!$AA17/SUMPRODUCT('Control panel'!$AA$7:$AA$36,'Control panel'!AS$7:AS$36)*'Control panel'!AS17 -> 0.0359561036 | AX19: ='Control panel'!$AA17/SUMPRODUCT('Control panel'!$AA$7:$AA$36,'Control panel'!AT$7:AT$36)*'Control panel'!AT17 -> 0.0359561036
B20: ='Opex costs'!B18 -> Other support costs | C20: =_xlfn.XLOOKUP($B20,'BBM Costs'!$I$7:$I$25,'BBM Costs'!J$7:J$25)*_xlfn.XLOOKUP($B20,'Control panel'!$E$7:$E$25,'Control panel'!$F$7:$F$25) -> 28.78811483 | D20: =_xlfn.XLOOKUP($B20,'BBM Costs'!$I$7:$I$25,'BBM Costs'!K$7:K$25)*_xlfn.XLOOKUP($B20,'Control panel'!$E$7:$E$25,'Control panel'!$F$7:$F$25) -> 29.76821695 | E20: =_xlfn.XLOOKUP($B20,'BBM Costs'!$I$7:$I$25,'BBM Costs'!L$7:L$25)*_xlfn.XLOOKUP($B20,'Control panel'!$E$7:$E$25,'Control panel'!$F$7:$F$25) -> 31.36149242 | F20: =_xlfn.XLOOKUP($B20,'BBM Costs'!$I$7:$I$25,'BBM Costs'!M$7:M$25)*_xlfn.XLOOKUP($B20,'Control panel'!$E$7:$E$25,'Control panel'!$F$7:$F$25) -> 32.8681875 | G20: =_xlfn.XLOOKUP($B20,'BBM Costs'!$I$7:$I$25,'BBM Costs'!N$7:N$25)*_xlfn.XLOOKUP($B20,'Control panel'!$E$7:$E$25,'Control panel'!$F$7:$F$25) -> 35.51157214 | I20: Other support costs | J20: =C20*_xlfn.XLOOKUP($I20,'Control panel'!$E$7:$E$25,'Control panel'!$H$7:$H$25) -> 23.03049187 | K20: =D20*_xlfn.XLOOKUP($I20,'Control panel'!$E$7:$E$25,'Control panel'!$H$7:$H$25) -> 23.81457356 | L20: =E20*_xlfn.XLOOKUP($I20,'Control panel'!$E$7:$E$25,'Control panel'!$H$7:$H$25) -> 25.08919394 | M20: =F20*_xlfn.XLOOKUP($I20,'Control panel'!$E$7:$E$25,'Control panel'!$H$7:$H$25) -> 26.29455 | N20: =G20*_xlfn.XLOOKUP($I20,'Control panel'!$E$7:$E$25,'Control panel'!$H$7:$H$25) -> 28.40925771 | P20: Other support costs | Q20: =C20*_xlfn.XLOOKUP($P20,'Control panel'!$E$7:$E$25,'Control panel'!$I$7:$I$25) -> 5.757622966 | R20: =D20*_xlfn.XLOOKUP($P20,'Control panel'!$E$7:$E$25,'Control panel'!$I$7:$I$25) -> 5.95364339 | S20: =E20*_xlfn.XLOOKUP($P20,'Control panel'!$E$7:$E$25,'Control panel'!$I$7:$I$25) -> 6.272298485 | T20: =F20*_xlfn.XLOOKUP($P20,'Control panel'!$E$7:$E$25,'Control panel'!$I$7:$I$25) -> 6.5736375 | U20: =G20*_xlfn.XLOOKUP($P20,'Control panel'!$E$7:$E$25,'Control panel'!$I$7:$I$25) -> 7.102314428 | W20: 2025-26 | X20: ='PTRM Data'!B18 -> Load Control & Network Metering Devices | Y20: =_xlfn.XLOOKUP(X20,'Control panel'!$L$7:$L$36,'Control panel'!$P$7:$P$36) -> 0 | Z20: 0.2601576189 | AA20: =_xlfn.XLOOKUP(W20,'BBM Costs'!$Q$6:$U$6,_xlfn.XLOOKUP(X20,'BBM Costs'!$P$7:$P$36,'BBM Costs'!$Q$7:$U$36))*_xlfn.XLOOKUP(X20,'Control panel'!$L$7:$L$36,'Control panel'!$M$7:$M$36) -> 0 | AB20: =_xlfn.XLOOKUP(W20,'BBM Costs'!$X$6:$AB$6,_xlfn.XLOOKUP(X20,'BBM Costs'!$W$7:$W$36,'BBM Costs'!$X$7:$AB$36))*_xlfn.XLOOKUP(X20,'Control panel'!$S$7:$S$36,'Control panel'!$T$7:$T$36) -> 0 | AC20: 0.2601576189 | AE20: ='PTRM Data'!B18 -> Load Control & Network Metering Devices | AF20: ='Control panel'!$AA18/SUMPRODUCT('Control panel'!$AA$7:$AA$36,'Control panel'!AB$7:AB$36)*'Control panel'!AB18 -> 0.003897115473 | AG20: ='Control panel'!$AA18/SUMPRODUCT('Control panel'!$AA$7:$AA$36,'Control panel'!AC$7:AC$36)*'Control panel'!AC18 -> 0.003897115473 | AH20: ='Control panel'!$AA18/SUMPRODUCT('Control panel'!$AA$7:$AA$36,'Control panel'!AD$7:AD$36)*'Control panel'!AD18 -> 0.004050969941 | AI20: ='Control panel'!$AA18/SUMPRODUCT('Control panel'!$AA$7:$AA$36,'Control panel'!AE$7:AE$36)*'Control panel'!AE18 -> 0 | AJ20: ='Control panel'!$AA18/SUMPRODUCT('Control panel'!$AA$7:$AA$36,'Control panel'!AF$7:AF$36)*'Control panel'!AF18 -> 0.003543958772 | AK20: ='Control panel'!$AA18/SUMPRODUCT('Control panel'!$AA$7:$AA$36,'Control panel'!AG$7:AG$36)*'Control panel'!AG18 -> 0.003958371753 | AL20: ='Control panel'!$AA18/SUMPRODUCT('Control panel'!$AA$7:$AA$36,'Control panel'!AH$7:AH$36)*'Control panel'!AH18 -> 0.04875507876 | AM20: ='Control panel'!$AA18/SUMPRODUCT('Control panel'!$AA$7:$AA$36,'Control panel'!AI$7:AI$36)*'Control panel'!AI18 -> 0.003543958772 | AN20: ='Control panel'!$AA18/SUMPRODUCT('Control panel'!$AA$7:$AA$36,'Control panel'!AJ$7:AJ$36)*'Control panel'!AJ18 -> 0.08960173222 | AO20: ='Control panel'!$AA18/SUMPRODUCT('Control panel'!$AA$7:$AA$36,'Control panel'!AK$7:AK$36)*'Control panel'!AK18 -> 0.003543958772 | AP20: ='Control panel'!$AA18/SUMPRODUCT('Control panel'!$AA$7:$AA$36,'Control panel'!AL$7:AL$36)*'Control panel'!AL18 -> 0.003543958772 | AQ20: ='Control panel'!$AA18/SUMPRODUCT('Control panel'!$AA$7:$AA$36,'Control panel'!AM$7:AM$36)*'Control panel'!AM18 -> 0.003958371753 | AR20: ='Control panel'!$AA18/SUMPRODUCT('Control panel'!$AA$7:$AA$36,'Control panel'!AN$7:AN$36)*'Control panel'!AN18 -> 0.003958430729 | AT20: ='Control panel'!$AA18/SUMPRODUCT('Control panel'!$AA$7:$AA$36,'Control panel'!AP$7:AP$36)*'Control panel'!AP18 -> 0.003538812936 | AU20: ='Control panel'!$AA18/SUMPRODUCT('Control panel'!$AA$7:$AA$36,'Control panel'!AQ$7:AQ$36)*'Control panel'!AQ18 -> 0.003538812936 | AV20: ='Control panel'!$AA18/SUMPRODUCT('Control panel'!$AA$7:$AA$36,'Control panel'!AR$7:AR$36)*'Control panel'!AR18 -> 0.003538812936 | AW20: ='Control panel'!$AA18/SUMPRODUCT('Control panel'!$AA$7:$AA$36,'Control panel'!AS$7:AS$36)*'Control panel'!AS18 -> 0.003538812936 | AX20: ='Control panel'!$AA18/SUMPRODUCT('Control panel'!$AA$7:$AA$36,'Control panel'!AT$7:AT$36)*'Control panel'!AT18 -> 0.003538812936
B21: ='Opex costs'!B19 -> Corporate allocations | C21: =_xlfn.XLOOKUP($B21,'BBM Costs'!$I$7:$I$25,'BBM Costs'!J$7:J$25)*_xlfn.XLOOKUP($B21,'Control panel'!$E$7:$E$25,'Control panel'!$F$7:$F$25) -> 0 | D21: =_xlfn.XLOOKUP($B21,'BBM Costs'!$I$7:$I$25,'BBM Costs'!K$7:K$25)*_xlfn.XLOOKUP($B21,'Control panel'!$E$7:$E$25,'Control panel'!$F$7:$F$25) -> 0 | E21: =_xlfn.XLOOKUP($B21,'BBM Costs'!$I$7:$I$25,'BBM Costs'!L$7:L$25)*_xlfn.XLOOKUP($B21,'Control panel'!$E$7:$E$25,'Control panel'!$F$7:$F$25) -> 0 | F21: =_xlfn.XLOOKUP($B21,'BBM Costs'!$I$7:$I$25,'BBM Costs'!M$7:M$25)*_xlfn.XLOOKUP($B21,'Control panel'!$E$7:$E$25,'Control panel'!$F$7:$F$25) -> 0 | G21: =_xlfn.XLOOKUP($B21,'BBM Costs'!$I$7:$I$25,'BBM Costs'!N$7:N$25)*_xlfn.XLOOKUP($B21,'Control panel'!$E$7:$E$25,'Control panel'!$F$7:$F$25) -> 0 | I21: Corporate allocations | J21: =C21*_xlfn.XLOOKUP($I21,'Control panel'!$E$7:$E$25,'Control panel'!$H$7:$H$25) -> 0 | K21: =D21*_xlfn.XLOOKUP($I21,'Control panel'!$E$7:$E$25,'Control panel'!$H$7:$H$25) -> 0 | L21: =E21*_xlfn.XLOOKUP($I21,'Control panel'!$E$7:$E$25,'Control panel'!$H$7:$H$25) -> 0 | M21: =F21*_xlfn.XLOOKUP($I21,'Control panel'!$E$7:$E$25,'Control panel'!$H$7:$H$25) -> 0 | N21: =G21*_xlfn.XLOOKUP($I21,'Control panel'!$E$7:$E$25,'Control panel'!$H$7:$H$25) -> 0 | P21: Corporate allocations | Q21: =C21*_xlfn.XLOOKUP($P21,'Control panel'!$E$7:$E$25,'Control panel'!$I$7:$I$25) -> 0 | R21: =D21*_xlfn.XLOOKUP($P21,'Control panel'!$E$7:$E$25,'Control panel'!$I$7:$I$25) -> 0 | S21: =E21*_xlfn.XLOOKUP($P21,'Control panel'!$E$7:$E$25,'Control panel'!$I$7:$I$25) -> 0 | T21: =F21*_xlfn.XLOOKUP($P21,'Control panel'!$E$7:$E$25,'Control panel'!$I$7:$I$25) -> 0 | U21: =G21*_xlfn.XLOOKUP($P21,'Control panel'!$E$7:$E$25,'Control panel'!$I$7:$I$25) -> 0 | W21: 2025-26 | X21: ='PTRM Data'!B19 -> Communications - Pilot Wires | Y21: =_xlfn.XLOOKUP(X21,'Control panel'!$L$7:$L$36,'Control panel'!$P$7:$P$36) -> 1 | Z21: 1.654836718 | AA21: =_xlfn.XLOOKUP(W21,'BBM Costs'!$Q$6:$U$6,_xlfn.XLOOKUP(X21,'BBM Costs'!$P$7:$P$36,'BBM Costs'!$Q$7:$U$36))*_xlfn.XLOOKUP(X21,'Control panel'!$L$7:$L$36,'Control panel'!$M$7:$M$36) -> 0 | AB21: =_xlfn.XLOOKUP(W21,'BBM Costs'!$X$6:$AB$6,_xlfn.XLOOKUP(X21,'BBM Costs'!$W$7:$W$36,'BBM Costs'!$X$7:$AB$36))*_xlfn.XLOOKUP(X21,'Control panel'!$S$7:$S$36,'Control panel'!$T$7:$T$36) -> 0 | AC21: 1.654836718 | AE21: ='PTRM Data'!B19 -> Communications - Pilot Wires | AF21: ='Control panel'!$AA19/SUMPRODUCT('Control panel'!$AA$7:$AA$36,'Control panel'!AB$7:AB$36)*'Control panel'!AB19 -> 0.0364387514 | AG21: ='Control panel'!$AA19/SUMPRODUCT('Control panel'!$AA$7:$AA$36,'Control panel'!AC$7:AC$36)*'Control panel'!AC19 -> 0.0364387514 | AH21: ='Control panel'!$AA19/SUMPRODUCT('Control panel'!$AA$7:$AA$36,'Control panel'!AD$7:AD$36)*'Control panel'!AD19 -> 0.03787731917 | AI21: ='Control panel'!$AA19/SUMPRODUCT('Control panel'!$AA$7:$AA$36,'Control panel'!AE$7:AE$36)*'Control panel'!AE19 -> 0 | AJ21: ='Control panel'!$AA19/SUMPRODUCT('Control panel'!$AA$7:$AA$36,'Control panel'!AF$7:AF$36)*'Control panel'!AF19 -> 0.03313667084 | AK21: ='Control panel'!$AA19/SUMPRODUCT('Control panel'!$AA$7:$AA$36,'Control panel'!AG$7:AG$36)*'Control panel'!AG19 -> 0.03701150897 | AL21: ='Control panel'!$AA19/SUMPRODUCT('Control panel'!$AA$7:$AA$36,'Control panel'!AH$7:AH$36)*'Control panel'!AH19 -> 0.4558690156 | AM21: ='Control panel'!$AA19/SUMPRODUCT('Control panel'!$AA$7:$AA$36,'Control panel'!AI$7:AI$36)*'Control panel'!AI19 -> 0.03313667084 | AN21: ='Control panel'!$AA19/SUMPRODUCT('Control panel'!$AA$7:$AA$36,'Control panel'!AJ$7:AJ$36)*'Control panel'!AJ19 -> 0 | AO21: ='Control panel'!$AA19/SUMPRODUCT('Control panel'!$AA$7:$AA$36,'Control panel'!AK$7:AK$36)*'Control panel'!AK19 -> 0.03313667084 | AP21: ='Control panel'!$AA19/SUMPRODUCT('Control panel'!$AA$7:$AA$36,'Control panel'!AL$7:AL$36)*'Control panel'!AL19 -> 0.03313667084 | AQ21: ='Control panel'!$AA19/SUMPRODUCT('Control panel'!$AA$7:$AA$36,'Control panel'!AM$7:AM$36)*'Control panel'!AM19 -> 0.03701150897 | AR21: ='Control panel'!$AA19/SUMPRODUCT('Control panel'!$AA$7:$AA$36,'Control panel'!AN$7:AN$36)*'Control panel'!AN19 -> 0.0370120604 | AT21: ='Control panel'!$AA19/SUMPRODUCT('Control panel'!$AA$7:$AA$36,'Control panel'!AP$7:AP$36)*'Control panel'!AP19 -> 0.03308855633 | AU21: ='Control panel'!$AA19/SUMPRODUCT('Control panel'!$AA$7:$AA$36,'Control panel'!AQ$7:AQ$36)*'Control panel'!AQ19 -> 0.03308855633 | AV21: ='Control panel'!$AA19/SUMPRODUCT('Control panel'!$AA$7:$AA$36,'Control panel'!AR$7:AR$36)*'Control panel'!AR19 -> 0.03308855633 | AW21: ='Control panel'!$AA19/SUMPRODUCT('Control panel'!$AA$7:$AA$36,'Control panel'!AS$7:AS$36)*'Control panel'!AS19 -> 0.03308855633 | AX21: ='Control panel'!$AA19/SUMPRODUCT('Control panel'!$AA$7:$AA$36,'Control panel'!AT$7:AT$36)*'Control panel'!AT19 -> 0.03308855633
W22: 2025-26 | X22: ='PTRM Data'!B20 -> Streetlighting (Residual Rate 2 Assets) | Y22: =_xlfn.XLOOKUP(X22,'Control panel'!$L$7:$L$36,'Control panel'!$P$7:$P$36) -> 1 | Z22: 0 | AA22: =_xlfn.XLOOKUP(W22,'BBM Costs'!$Q$6:$U$6,_xlfn.XLOOKUP(X22,'BBM Costs'!$P$7:$P$36,'BBM Costs'!$Q$7:$U$36))*_xlfn.XLOOKUP(X22,'Control panel'!$L$7:$L$36,'Control panel'!$M$7:$M$36) -> 0 | AB22: =_xlfn.XLOOKUP(W22,'BBM Costs'!$X$6:$AB$6,_xlfn.XLOOKUP(X22,'BBM Costs'!$W$7:$W$36,'BBM Costs'!$X$7:$AB$36))*_xlfn.XLOOKUP(X22,'Control panel'!$S$7:$S$36,'Control panel'!$T$7:$T$36) -> 0 | AC22: 0 | AE22: ='PTRM Data'!B20 -> Streetlighting (Residual Rate 2 Assets) | AF22: ='Control panel'!$AA20/SUMPRODUCT('Control panel'!$AA$7:$AA$36,'Control panel'!AB$7:AB$36)*'Control panel'!AB20 -> 0 | AG22: ='Control panel'!$AA20/SUMPRODUCT('Control panel'!$AA$7:$AA$36,'Control panel'!AC$7:AC$36)*'Control panel'!AC20 -> 0 | AH22: ='Control panel'!$AA20/SUMPRODUCT('Control panel'!$AA$7:$AA$36,'Control panel'!AD$7:AD$36)*'Control panel'!AD20 -> 0 | AI22: ='Control panel'!$AA20/SUMPRODUCT('Control panel'!$AA$7:$AA$36,'Control panel'!AE$7:AE$36)*'Control panel'!AE20 -> 0 | AJ22: ='Control panel'!$AA20/SUMPRODUCT('Control panel'!$AA$7:$AA$36,'Control panel'!AF$7:AF$36)*'Control panel'!AF20 -> -1.333907466e-05 | AK22: ='Control panel'!$AA20/SUMPRODUCT('Control panel'!$AA$7:$AA$36,'Control panel'!AG$7:AG$36)*'Control panel'!AG20 -> 0 | AL22: ='Control panel'!$AA20/SUMPRODUCT('Control panel'!$AA$7:$AA$36,'Control panel'!AH$7:AH$36)*'Control panel'!AH20 -> 0 | AM22: ='Control panel'!$AA20/SUMPRODUCT('Control panel'!$AA$7:$AA$36,'Control panel'!AI$7:AI$36)*'Control panel'!AI20 -> -1.333907466e-05 | AN22: ='Control panel'!$AA20/SUMPRODUCT('Control panel'!$AA$7:$AA$36,'Control panel'!AJ$7:AJ$36)*'Control panel'!AJ20 -> 0 | AO22: ='Control panel'!$AA20/SUMPRODUCT('Control panel'!$AA$7:$AA$36,'Control panel'!AK$7:AK$36)*'Control panel'!AK20 -> -1.333907466e-05 | AP22: ='Control panel'!$AA20/SUMPRODUCT('Control panel'!$AA$7:$AA$36,'Control panel'!AL$7:AL$36)*'Control panel'!AL20 -> -1.333907466e-05 | AQ22: ='Control panel'!$AA20/SUMPRODUCT('Control panel'!$AA$7:$AA$36,'Control panel'!AM$7:AM$36)*'Control panel'!AM20 -> 0 | AR22: ='Control panel'!$AA20/SUMPRODUCT('Control panel'!$AA$7:$AA$36,'Control panel'!AN$7:AN$36)*'Control panel'!AN20 -> -1.489910195e-05 | AT22: ='Control panel'!$AA20/SUMPRODUCT('Control panel'!$AA$7:$AA$36,'Control panel'!AP$7:AP$36)*'Control panel'!AP20 -> -1.33197063e-05 | AU22: ='Control panel'!$AA20/SUMPRODUCT('Control panel'!$AA$7:$AA$36,'Control panel'!AQ$7:AQ$36)*'Control panel'!AQ20 -> -1.33197063e-05 | AV22: ='Control panel'!$AA20/SUMPRODUCT('Control panel'!$AA$7:$AA$36,'Control panel'!AR$7:AR$36)*'Control panel'!AR20 -> -1.33197063e-05 | AW22: ='Control panel'!$AA20/SUMPRODUCT('Control panel'!$AA$7:$AA$36,'Control panel'!AS$7:AS$36)*'Control panel'!AS20 -> -1.33197063e-05 | AX22: ='Control panel'!$AA20/SUMPRODUCT('Control panel'!$AA$7:$AA$36,'Control panel'!AT$7:AT$36)*'Control panel'!AT20 -> -1.33197063e-05
B23: EBSS | C23: =_xlfn.XLOOKUP($B23,'BBM Costs'!$I$7:$I$25,'BBM Costs'!J$7:J$25)*_xlfn.XLOOKUP($B23,'Control panel'!$E$7:$E$25,'Control panel'!$F$7:$F$25) -> 0 | D23: =_xlfn.XLOOKUP($B23,'BBM Costs'!$I$7:$I$25,'BBM Costs'!K$7:K$25)*_xlfn.XLOOKUP($B23,'Control panel'!$E$7:$E$25,'Control panel'!$F$7:$F$25) -> 0 | E23: =_xlfn.XLOOKUP($B23,'BBM Costs'!$I$7:$I$25,'BBM Costs'!L$7:L$25)*_xlfn.XLOOKUP($B23,'Control panel'!$E$7:$E$25,'Control panel'!$F$7:$F$25) -> 0 | F23: =_xlfn.XLOOKUP($B23,'BBM Costs'!$I$7:$I$25,'BBM Costs'!M$7:M$25)*_xlfn.XLOOKUP($B23,'Control panel'!$E$7:$E$25,'Control panel'!$F$7:$F$25) -> 0 | G23: =_xlfn.XLOOKUP($B23,'BBM Costs'!$I$7:$I$25,'BBM Costs'!N$7:N$25)*_xlfn.XLOOKUP($B23,'Control panel'!$E$7:$E$25,'Control panel'!$F$7:$F$25) -> 0 | I23: EBSS | J23: =C23*_xlfn.XLOOKUP($I23,'Control panel'!$E$7:$E$25,'Control panel'!$H$7:$H$25) -> 0 | K23: =D23*_xlfn.XLOOKUP($I23,'Control panel'!$E$7:$E$25,'Control panel'!$H$7:$H$25) -> 0 | L23: =E23*_xlfn.XLOOKUP($I23,'Control panel'!$E$7:$E$25,'Control panel'!$H$7:$H$25) -> 0 | M23: =F23*_xlfn.XLOOKUP($I23,'Control panel'!$E$7:$E$25,'Control panel'!$H$7:$H$25) -> 0 | N23: =G23*_xlfn.XLOOKUP($I23,'Control panel'!$E$7:$E$25,'Control panel'!$H$7:$H$25) -> 0 | P23: EBSS | Q23: =C23*_xlfn.XLOOKUP($P23,'Control panel'!$E$7:$E$25,'Control panel'!$I$7:$I$25) -> 0 | R23: =D23*_xlfn.XLOOKUP($P23,'Control panel'!$E$7:$E$25,'Control panel'!$I$7:$I$25) -> 0 | S23: =E23*_xlfn.XLOOKUP($P23,'Control panel'!$E$7:$E$25,'Control panel'!$I$7:$I$25) -> 0 | T23: =F23*_xlfn.XLOOKUP($P23,'Control panel'!$E$7:$E$25,'Control panel'!$I$7:$I$25) -> 0 | U23: =G23*_xlfn.XLOOKUP($P23,'Control panel'!$E$7:$E$25,'Control panel'!$I$7:$I$25) -> 0 | W23: 2025-26 | X23: ='PTRM Data'!B21 -> Systems Buildings | Y23: =_xlfn.XLOOKUP(X23,'Control panel'!$L$7:$L$36,'Control panel'!$P$7:$P$36) -> 1 | Z23: 1.019619606 | AA23: =_xlfn.XLOOKUP(W23,'BBM Costs'!$Q$6:$U$6,_xlfn.XLOOKUP(X23,'BBM Costs'!$P$7:$P$36,'BBM Costs'!$Q$7:$U$36))*_xlfn.XLOOKUP(X23,'Control panel'!$L$7:$L$36,'Control panel'!$M$7:$M$36) -> 0 | AB23: =_xlfn.XLOOKUP(W23,'BBM Costs'!$X$6:$AB$6,_xlfn.XLOOKUP(X23,'BBM Costs'!$W$7:$W$36,'BBM Costs'!$X$7:$AB$36))*_xlfn.XLOOKUP(X23,'Control panel'!$S$7:$S$36,'Control panel'!$T$7:$T$36) -> 0 | AC23: 1.019619606 | AE23: ='PTRM Data'!B21 -> Systems Buildings | AF23: ='Control panel'!$AA21/SUMPRODUCT('Control panel'!$AA$7:$AA$36,'Control panel'!AB$7:AB$36)*'Control panel'!AB21 -> 0.02245155967 | AG23: ='Control panel'!$AA21/SUMPRODUCT('Control panel'!$AA$7:$AA$36,'Control panel'!AC$7:AC$36)*'Control panel'!AC21 -> 0.02245155967 | AH23: ='Control panel'!$AA21/SUMPRODUCT('Control panel'!$AA$7:$AA$36,'Control panel'!AD$7:AD$36)*'Control panel'!AD21 -> 0 | AI23: ='Control panel'!$AA21/SUMPRODUCT('Control panel'!$AA$7:$AA$36,'Control panel'!AE$7:AE$36)*'Control panel'!AE21 -> 0 | AJ23: ='Control panel'!$AA21/SUMPRODUCT('Control panel'!$AA$7:$AA$36,'Control panel'!AF$7:AF$36)*'Control panel'!AF21 -> 0.02041699878 | AK23: ='Control panel'!$AA21/SUMPRODUCT('Control panel'!$AA$7:$AA$36,'Control panel'!AG$7:AG$36)*'Control panel'!AG21 -> 0.02280446147 | AL23: ='Control panel'!$AA21/SUMPRODUCT('Control panel'!$AA$7:$AA$36,'Control panel'!AH$7:AH$36)*'Control panel'!AH21 -> 0 | AM23: ='Control panel'!$AA21/SUMPRODUCT('Control panel'!$AA$7:$AA$36,'Control panel'!AI$7:AI$36)*'Control panel'!AI21 -> 0.02041699878 | AN23: ='Control panel'!$AA21/SUMPRODUCT('Control panel'!$AA$7:$AA$36,'Control panel'!AJ$7:AJ$36)*'Control panel'!AJ21 -> 0 | AO23: ='Control panel'!$AA21/SUMPRODUCT('Control panel'!$AA$7:$AA$36,'Control panel'!AK$7:AK$36)*'Control panel'!AK21 -> 0.02041699878 | AP23: ='Control panel'!$AA21/SUMPRODUCT('Control panel'!$AA$7:$AA$36,'Control panel'!AL$7:AL$36)*'Control panel'!AL21 -> 0.02041699878 | AQ23: ='Control panel'!$AA21/SUMPRODUCT('Control panel'!$AA$7:$AA$36,'Control panel'!AM$7:AM$36)*'Control panel'!AM21 -> 0.02280446147 | AR23: ='Control panel'!$AA21/SUMPRODUCT('Control panel'!$AA$7:$AA$36,'Control panel'!AN$7:AN$36)*'Control panel'!AN21 -> 0.02280480123 | AT23: ='Control panel'!$AA21/SUMPRODUCT('Control panel'!$AA$7:$AA$36,'Control panel'!AP$7:AP$36)*'Control panel'!AP21 -> 0.02038735325 | AU23: ='Control panel'!$AA21/SUMPRODUCT('Control panel'!$AA$7:$AA$36,'Control panel'!AQ$7:AQ$36)*'Control panel'!AQ21 -> 0.02038735325 | AV23: ='Control panel'!$AA21/SUMPRODUCT('Control panel'!$AA$7:$AA$36,'Control panel'!AR$7:AR$36)*'Control panel'!AR21 -> 0.02038735325 | AW23: ='Control panel'!$AA21/SUMPRODUCT('Control panel'!$AA$7:$AA$36,'Control panel'!AS$7:AS$36)*'Control panel'!AS21 -> 0.02038735325 | AX23: ='Control panel'!$AA21/SUMPRODUCT('Control panel'!$AA$7:$AA$36,'Control panel'!AT$7:AT$36)*'Control panel'!AT21 -> 0.02038735325
B24: CESS | C24: =_xlfn.XLOOKUP($B24,'BBM Costs'!$I$7:$I$25,'BBM Costs'!J$7:J$25)*_xlfn.XLOOKUP($B24,'Control panel'!$E$7:$E$25,'Control panel'!$F$7:$F$25) -> 0 | D24: =_xlfn.XLOOKUP($B24,'BBM Costs'!$I$7:$I$25,'BBM Costs'!K$7:K$25)*_xlfn.XLOOKUP($B24,'Control panel'!$E$7:$E$25,'Control panel'!$F$7:$F$25) -> 0 | E24: =_xlfn.XLOOKUP($B24,'BBM Costs'!$I$7:$I$25,'BBM Costs'!L$7:L$25)*_xlfn.XLOOKUP($B24,'Control panel'!$E$7:$E$25,'Control panel'!$F$7:$F$25) -> 0 | F24: =_xlfn.XLOOKUP($B24,'BBM Costs'!$I$7:$I$25,'BBM Costs'!M$7:M$25)*_xlfn.XLOOKUP($B24,'Control panel'!$E$7:$E$25,'Control panel'!$F$7:$F$25) -> 0 | G24: =_xlfn.XLOOKUP($B24,'BBM Costs'!$I$7:$I$25,'BBM Costs'!N$7:N$25)*_xlfn.XLOOKUP($B24,'Control panel'!$E$7:$E$25,'Control panel'!$F$7:$F$25) -> 0 | I24: CESS | J24: =C24*_xlfn.XLOOKUP($I24,'Control panel'!$E$7:$E$25,'Control panel'!$H$7:$H$25) -> 0 | K24: =D24*_xlfn.XLOOKUP($I24,'Control panel'!$E$7:$E$25,'Control panel'!$H$7:$H$25) -> 0 | L24: =E24*_xlfn.XLOOKUP($I24,'Control panel'!$E$7:$E$25,'Control panel'!$H$7:$H$25) -> 0 | M24: =F24*_xlfn.XLOOKUP($I24,'Control panel'!$E$7:$E$25,'Control panel'!$H$7:$H$25) -> 0 | N24: =G24*_xlfn.XLOOKUP($I24,'Control panel'!$E$7:$E$25,'Control panel'!$H$7:$H$25) -> 0 | P24: CESS | Q24: =C24*_xlfn.XLOOKUP($P24,'Control panel'!$E$7:$E$25,'Control panel'!$I$7:$I$25) -> 0 | R24: =D24*_xlfn.XLOOKUP($P24,'Control panel'!$E$7:$E$25,'Control panel'!$I$7:$I$25) -> 0 | S24: =E24*_xlfn.XLOOKUP($P24,'Control panel'!$E$7:$E$25,'Control panel'!$I$7:$I$25) -> 0 | T24: =F24*_xlfn.XLOOKUP($P24,'Control panel'!$E$7:$E$25,'Control panel'!$I$7:$I$25) -> 0 | U24: =G24*_xlfn.XLOOKUP($P24,'Control panel'!$E$7:$E$25,'Control panel'!$I$7:$I$25) -> 0 | W24: 2025-26 | X24: ='PTRM Data'!B22 -> Systems Easements | Y24: =_xlfn.XLOOKUP(X24,'Control panel'!$L$7:$L$36,'Control panel'!$P$7:$P$36) -> 1 | Z24: 0.6122897972 | AA24: =_xlfn.XLOOKUP(W24,'BBM Costs'!$Q$6:$U$6,_xlfn.XLOOKUP(X24,'BBM Costs'!$P$7:$P$36,'BBM Costs'!$Q$7:$U$36))*_xlfn.XLOOKUP(X24,'Control panel'!$L$7:$L$36,'Control panel'!$M$7:$M$36) -> 0 | AB24: =_xlfn.XLOOKUP(W24,'BBM Costs'!$X$6:$AB$6,_xlfn.XLOOKUP(X24,'BBM Costs'!$W$7:$W$36,'BBM Costs'!$X$7:$AB$36))*_xlfn.XLOOKUP(X24,'Control panel'!$S$7:$S$36,'Control panel'!$T$7:$T$36) -> 0 | AC24: 0.6122897972 | AE24: ='PTRM Data'!B22 -> Systems Easements | AF24: ='Control panel'!$AA22/SUMPRODUCT('Control panel'!$AA$7:$AA$36,'Control panel'!AB$7:AB$36)*'Control panel'!AB22 -> 0.01547512062 | AG24: ='Control panel'!$AA22/SUMPRODUCT('Control panel'!$AA$7:$AA$36,'Control panel'!AC$7:AC$36)*'Control panel'!AC22 -> 0.01547512062 | AH24: ='Control panel'!$AA22/SUMPRODUCT('Control panel'!$AA$7:$AA$36,'Control panel'!AD$7:AD$36)*'Control panel'!AD22 -> 0 | AI24: ='Control panel'!$AA22/SUMPRODUCT('Control panel'!$AA$7:$AA$36,'Control panel'!AE$7:AE$36)*'Control panel'!AE22 -> 0.04312892557 | AJ24: ='Control panel'!$AA22/SUMPRODUCT('Control panel'!$AA$7:$AA$36,'Control panel'!AF$7:AF$36)*'Control panel'!AF22 -> 0.0140727648 | AK24: ='Control panel'!$AA22/SUMPRODUCT('Control panel'!$AA$7:$AA$36,'Control panel'!AG$7:AG$36)*'Control panel'!AG22 -> 0 | AL24: ='Control panel'!$AA22/SUMPRODUCT('Control panel'!$AA$7:$AA$36,'Control panel'!AH$7:AH$36)*'Control panel'!AH22 -> 0 | AM24: ='Control panel'!$AA22/SUMPRODUCT('Control panel'!$AA$7:$AA$36,'Control panel'!AI$7:AI$36)*'Control panel'!AI22 -> 0.0140727648 | AN24: ='Control panel'!$AA22/SUMPRODUCT('Control panel'!$AA$7:$AA$36,'Control panel'!AJ$7:AJ$36)*'Control panel'!AJ22 -> 0 | AO24: ='Control panel'!$AA22/SUMPRODUCT('Control panel'!$AA$7:$AA$36,'Control panel'!AK$7:AK$36)*'Control panel'!AK22 -> 0.0140727648 | AP24: ='Control panel'!$AA22/SUMPRODUCT('Control panel'!$AA$7:$AA$36,'Control panel'!AL$7:AL$36)*'Control panel'!AL22 -> 0.0140727648 | AQ24: ='Control panel'!$AA22/SUMPRODUCT('Control panel'!$AA$7:$AA$36,'Control panel'!AM$7:AM$36)*'Control panel'!AM22 -> 0 | AR24: ='Control panel'!$AA22/SUMPRODUCT('Control panel'!$AA$7:$AA$36,'Control panel'!AN$7:AN$36)*'Control panel'!AN22 -> 0 | AT24: ='Control panel'!$AA22/SUMPRODUCT('Control panel'!$AA$7:$AA$36,'Control panel'!AP$7:AP$36)*'Control panel'!AP22 -> 0.01405233112 | AU24: ='Control panel'!$AA22/SUMPRODUCT('Control panel'!$AA$7:$AA$36,'Control panel'!AQ$7:AQ$36)*'Control panel'!AQ22 -> 0.01405233112 | AV24: ='Control panel'!$AA22/SUMPRODUCT('Control panel'!$AA$7:$AA$36,'Control panel'!AR$7:AR$36)*'Control panel'!AR22 -> 0.01405233112 | AW24: ='Control panel'!$AA22/SUMPRODUCT('Control panel'!$AA$7:$AA$36,'Control panel'!AS$7:AS$36)*'Control panel'!AS22 -> 0.01405233112 | AX24: ='Control panel'!$AA22/SUMPRODUCT('Control panel'!$AA$7:$AA$36,'Control panel'!AT$7:AT$36)*'Control panel'!AT22 -> 0.01405233112
B25: Control period carryover | C25: =_xlfn.XLOOKUP($B25,'BBM Costs'!$I$7:$I$25,'BBM Costs'!J$7:J$25)*_xlfn.XLOOKUP($B25,'Control panel'!$E$7:$E$25,'Control panel'!$F$7:$F$25) -> 0 | D25: =_xlfn.XLOOKUP($B25,'BBM Costs'!$I$7:$I$25,'BBM Costs'!K$7:K$25)*_xlfn.XLOOKUP($B25,'Control panel'!$E$7:$E$25,'Control panel'!$F$7:$F$25) -> 0 | E25: =_xlfn.XLOOKUP($B25,'BBM Costs'!$I$7:$I$25,'BBM Costs'!L$7:L$25)*_xlfn.XLOOKUP($B25,'Control panel'!$E$7:$E$25,'Control panel'!$F$7:$F$25) -> 0 | F25: =_xlfn.XLOOKUP($B25,'BBM Costs'!$I$7:$I$25,'BBM Costs'!M$7:M$25)*_xlfn.XLOOKUP($B25,'Control panel'!$E$7:$E$25,'Control panel'!$F$7:$F$25) -> 0 | G25: =_xlfn.XLOOKUP($B25,'BBM Costs'!$I$7:$I$25,'BBM Costs'!N$7:N$25)*_xlfn.XLOOKUP($B25,'Control panel'!$E$7:$E$25,'Control panel'!$F$7:$F$25) -> 0 | I25: Control period carryover | J25: =C25*_xlfn.XLOOKUP($I25,'Control panel'!$E$7:$E$25,'Control panel'!$H$7:$H$25) -> 0 | K25: =D25*_xlfn.XLOOKUP($I25,'Control panel'!$E$7:$E$25,'Control panel'!$H$7:$H$25) -> 0 | L25: =E25*_xlfn.XLOOKUP($I25,'Control panel'!$E$7:$E$25,'Control panel'!$H$7:$H$25) -> 0 | M25: =F25*_xlfn.XLOOKUP($I25,'Control panel'!$E$7:$E$25,'Control panel'!$H$7:$H$25) -> 0 | N25: =G25*_xlfn.XLOOKUP($I25,'Control panel'!$E$7:$E$25,'Control panel'!$H$7:$H$25) -> 0 | P25: Control period carryover | Q25: =C25*_xlfn.XLOOKUP($P25,'Control panel'!$E$7:$E$25,'Control panel'!$I$7:$I$25) -> 0 | R25: =D25*_xlfn.XLOOKUP($P25,'Control panel'!$E$7:$E$25,'Control panel'!$I$7:$I$25) -> 0 | S25: =E25*_xlfn.XLOOKUP($P25,'Control panel'!$E$7:$E$25,'Control panel'!$I$7:$I$25) -> 0 | T25: =F25*_xlfn.XLOOKUP($P25,'Control panel'!$E$7:$E$25,'Control panel'!$I$7:$I$25) -> 0 | U25: =G25*_xlfn.XLOOKUP($P25,'Control panel'!$E$7:$E$25,'Control panel'!$I$7:$I$25) -> 0 | W25: 2025-26 | X25: ='PTRM Data'!B23 -> System Land | Y25: =_xlfn.XLOOKUP(X25,'Control panel'!$L$7:$L$36,'Control panel'!$P$7:$P$36) -> 1 | Z25: 0 | AA25: =_xlfn.XLOOKUP(W25,'BBM Costs'!$Q$6:$U$6,_xlfn.XLOOKUP(X25,'BBM Costs'!$P$7:$P$36,'BBM Costs'!$Q$7:$U$36))*_xlfn.XLOOKUP(X25,'Control panel'!$L$7:$L$36,'Control panel'!$M$7:$M$36) -> 0 | AB25: =_xlfn.XLOOKUP(W25,'BBM Costs'!$X$6:$AB$6,_xlfn.XLOOKUP(X25,'BBM Costs'!$W$7:$W$36,'BBM Costs'!$X$7:$AB$36))*_xlfn.XLOOKUP(X25,'Control panel'!$S$7:$S$36,'Control panel'!$T$7:$T$36) -> 0 | AC25: 0 | AE25: ='PTRM Data'!B23 -> System Land | AF25: ='Control panel'!$AA23/SUMPRODUCT('Control panel'!$AA$7:$AA$36,'Control panel'!AB$7:AB$36)*'Control panel'!AB23 -> 0 | AG25: ='Control panel'!$AA23/SUMPRODUCT('Control panel'!$AA$7:$AA$36,'Control panel'!AC$7:AC$36)*'Control panel'!AC23 -> 0 | AH25: ='Control panel'!$AA23/SUMPRODUCT('Control panel'!$AA$7:$AA$36,'Control panel'!AD$7:AD$36)*'Control panel'!AD23 -> 0 | AI25: ='Control panel'!$AA23/SUMPRODUCT('Control panel'!$AA$7:$AA$36,'Control panel'!AE$7:AE$36)*'Control panel'!AE23 -> 0.06887970597 | AJ25: ='Control panel'!$AA23/SUMPRODUCT('Control panel'!$AA$7:$AA$36,'Control panel'!AF$7:AF$36)*'Control panel'!AF23 -> 0.02247512288 | AK25: ='Control panel'!$AA23/SUMPRODUCT('Control panel'!$AA$7:$AA$36,'Control panel'!AG$7:AG$36)*'Control panel'!AG23 -> 0 | AL25: ='Control panel'!$AA23/SUMPRODUCT('Control panel'!$AA$7:$AA$36,'Control panel'!AH$7:AH$36)*'Control panel'!AH23 -> 0 | AM25: ='Control panel'!$AA23/SUMPRODUCT('Control panel'!$AA$7:$AA$36,'Control panel'!AI$7:AI$36)*'Control panel'!AI23 -> 0.02247512288 | AN25: ='Control panel'!$AA23/SUMPRODUCT('Control panel'!$AA$7:$AA$36,'Control panel'!AJ$7:AJ$36)*'Control panel'!AJ23 -> 0 | AO25: ='Control panel'!$AA23/SUMPRODUCT('Control panel'!$AA$7:$AA$36,'Control panel'!AK$7:AK$36)*'Control panel'!AK23 -> 0.02247512288 | AP25: ='Control panel'!$AA23/SUMPRODUCT('Control panel'!$AA$7:$AA$36,'Control panel'!AL$7:AL$36)*'Control panel'!AL23 -> 0.02247512288 | AQ25: ='Control panel'!$AA23/SUMPRODUCT('Control panel'!$AA$7:$AA$36,'Control panel'!AM$7:AM$36)*'Control panel'!AM23 -> 0 | AR25: ='Control panel'!$AA23/SUMPRODUCT('Control panel'!$AA$7:$AA$36,'Control panel'!AN$7:AN$36)*'Control panel'!AN23 -> 0 | AT25: ='Control panel'!$AA23/SUMPRODUCT('Control panel'!$AA$7:$AA$36,'Control panel'!AP$7:AP$36)*'Control panel'!AP23 -> 0.02244248895 | AU25: ='Control panel'!$AA23/SUMPRODUCT('Control panel'!$AA$7:$AA$36,'Control panel'!AQ$7:AQ$36)*'Control panel'!AQ23 -> 0.02244248895 | AV25: ='Control panel'!$AA23/SUMPRODUCT('Control panel'!$AA$7:$AA$36,'Control panel'!AR$7:AR$36)*'Control panel'!AR23 -> 0.02244248895 | AW25: ='Control panel'!$AA23/SUMPRODUCT('Control panel'!$AA$7:$AA$36,'Control panel'!AS$7:AS$36)*'Control panel'!AS23 -> 0.02244248895 | AX25: ='Control panel'!$AA23/SUMPRODUCT('Control panel'!$AA$7:$AA$36,'Control panel'!AT$7:AT$36)*'Control panel'!AT23 -> 0.02244248895
B26: Shared asset decrements | C26: =_xlfn.XLOOKUP($B26,'BBM Costs'!$I$7:$I$25,'BBM Costs'!J$7:J$25)*_xlfn.XLOOKUP($B26,'Control panel'!$E$7:$E$25,'Control panel'!$F$7:$F$25) -> 0 | D26: =_xlfn.XLOOKUP($B26,'BBM Costs'!$I$7:$I$25,'BBM Costs'!K$7:K$25)*_xlfn.XLOOKUP($B26,'Control panel'!$E$7:$E$25,'Control panel'!$F$7:$F$25) -> 0 | E26: =_xlfn.XLOOKUP($B26,'BBM Costs'!$I$7:$I$25,'BBM Costs'!L$7:L$25)*_xlfn.XLOOKUP($B26,'Control panel'!$E$7:$E$25,'Control panel'!$F$7:$F$25) -> 0 | F26: =_xlfn.XLOOKUP($B26,'BBM Costs'!$I$7:$I$25,'BBM Costs'!M$7:M$25)*_xlfn.XLOOKUP($B26,'Control panel'!$E$7:$E$25,'Control panel'!$F$7:$F$25) -> 0 | G26: =_xlfn.XLOOKUP($B26,'BBM Costs'!$I$7:$I$25,'BBM Costs'!N$7:N$25)*_xlfn.XLOOKUP($B26,'Control panel'!$E$7:$E$25,'Control panel'!$F$7:$F$25) -> 0 | I26: Shared asset decrements | J26: =C26*_xlfn.XLOOKUP($I26,'Control panel'!$E$7:$E$25,'Control panel'!$H$7:$H$25) -> 0 | K26: =D26*_xlfn.XLOOKUP($I26,'Control panel'!$E$7:$E$25,'Control panel'!$H$7:$H$25) -> 0 | L26: =E26*_xlfn.XLOOKUP($I26,'Control panel'!$E$7:$E$25,'Control panel'!$H$7:$H$25) -> 0 | M26: =F26*_xlfn.XLOOKUP($I26,'Control panel'!$E$7:$E$25,'Control panel'!$H$7:$H$25) -> 0 | N26: =G26*_xlfn.XLOOKUP($I26,'Control panel'!$E$7:$E$25,'Control panel'!$H$7:$H$25) -> 0 | P26: Shared asset decrements | Q26: =C26*_xlfn.XLOOKUP($P26,'Control panel'!$E$7:$E$25,'Control panel'!$I$7:$I$25) -> 0 | R26: =D26*_xlfn.XLOOKUP($P26,'Control panel'!$E$7:$E$25,'Control panel'!$I$7:$I$25) -> 0 | S26: =E26*_xlfn.XLOOKUP($P26,'Control panel'!$E$7:$E$25,'Control panel'!$I$7:$I$25) -> 0 | T26: =F26*_xlfn.XLOOKUP($P26,'Control panel'!$E$7:$E$25,'Control panel'!$I$7:$I$25) -> 0 | U26: =G26*_xlfn.XLOOKUP($P26,'Control panel'!$E$7:$E$25,'Control panel'!$I$7:$I$25) -> 0 | W26: 2025-26 | X26: ='PTRM Data'!B24 -> Control Centre - SCADA | Y26: =_xlfn.XLOOKUP(X26,'Control panel'!$L$7:$L$36,'Control panel'!$P$7:$P$36) -> 1 | Z26: 0.002406107426 | AA26: =_xlfn.XLOOKUP(W26,'BBM Costs'!$Q$6:$U$6,_xlfn.XLOOKUP(X26,'BBM Costs'!$P$7:$P$36,'BBM Costs'!$Q$7:$U$36))*_xlfn.XLOOKUP(X26,'Control panel'!$L$7:$L$36,'Control panel'!$M$7:$M$36) -> 0 | AB26: =_xlfn.XLOOKUP(W26,'BBM Costs'!$X$6:$AB$6,_xlfn.XLOOKUP(X26,'BBM Costs'!$W$7:$W$36,'BBM Costs'!$X$7:$AB$36))*_xlfn.XLOOKUP(X26,'Control panel'!$S$7:$S$36,'Control panel'!$T$7:$T$36) -> 0 | AC26: 0.002406107426 | AE26: ='PTRM Data'!B24 -> Control Centre - SCADA | AF26: ='Control panel'!$AA24/SUMPRODUCT('Control panel'!$AA$7:$AA$36,'Control panel'!AB$7:AB$36)*'Control panel'!AB24 -> 5.298139048e-05 | AG26: ='Control panel'!$AA24/SUMPRODUCT('Control panel'!$AA$7:$AA$36,'Control panel'!AC$7:AC$36)*'Control panel'!AC24 -> 5.298139048e-05 | AH26: ='Control panel'!$AA24/SUMPRODUCT('Control panel'!$AA$7:$AA$36,'Control panel'!AD$7:AD$36)*'Control panel'!AD24 -> 0 | AI26: ='Control panel'!$AA24/SUMPRODUCT('Control panel'!$AA$7:$AA$36,'Control panel'!AE$7:AE$36)*'Control panel'!AE24 -> 0 | AJ26: ='Control panel'!$AA24/SUMPRODUCT('Control panel'!$AA$7:$AA$36,'Control panel'!AF$7:AF$36)*'Control panel'!AF24 -> 4.818021556e-05 | AK26: ='Control panel'!$AA24/SUMPRODUCT('Control panel'!$AA$7:$AA$36,'Control panel'!AG$7:AG$36)*'Control panel'!AG24 -> 5.381417127e-05 | AL26: ='Control panel'!$AA24/SUMPRODUCT('Control panel'!$AA$7:$AA$36,'Control panel'!AH$7:AH$36)*'Control panel'!AH24 -> 0 | AM26: ='Control panel'!$AA24/SUMPRODUCT('Control panel'!$AA$7:$AA$36,'Control panel'!AI$7:AI$36)*'Control panel'!AI24 -> 4.818021556e-05 | AN26: ='Control panel'!$AA24/SUMPRODUCT('Control panel'!$AA$7:$AA$36,'Control panel'!AJ$7:AJ$36)*'Control panel'!AJ24 -> 0 | AO26: ='Control panel'!$AA24/SUMPRODUCT('Control panel'!$AA$7:$AA$36,'Control panel'!AK$7:AK$36)*'Control panel'!AK24 -> 4.818021556e-05 | AP26: ='Control panel'!$AA24/SUMPRODUCT('Control panel'!$AA$7:$AA$36,'Control panel'!AL$7:AL$36)*'Control panel'!AL24 -> 4.818021556e-05 | AQ26: ='Control panel'!$AA24/SUMPRODUCT('Control panel'!$AA$7:$AA$36,'Control panel'!AM$7:AM$36)*'Control panel'!AM24 -> 5.381417127e-05 | AR26: ='Control panel'!$AA24/SUMPRODUCT('Control panel'!$AA$7:$AA$36,'Control panel'!AN$7:AN$36)*'Control panel'!AN24 -> 5.381497306e-05 | AT26: ='Control panel'!$AA24/SUMPRODUCT('Control panel'!$AA$7:$AA$36,'Control panel'!AP$7:AP$36)*'Control panel'!AP24 -> 4.811025778e-05 | AU26: ='Control panel'!$AA24/SUMPRODUCT('Control panel'!$AA$7:$AA$36,'Control panel'!AQ$7:AQ$36)*'Control panel'!AQ24 -> 4.811025778e-05 | AV26: ='Control panel'!$AA24/SUMPRODUCT('Control panel'!$AA$7:$AA$36,'Control panel'!AR$7:AR$36)*'Control panel'!AR24 -> 4.811025778e-05 | AW26: ='Control panel'!$AA24/SUMPRODUCT('Control panel'!$AA$7:$AA$36,'Control panel'!AS$7:AS$36)*'Control panel'!AS24 -> 4.811025778e-05 | AX26: ='Control panel'!$AA24/SUMPRODUCT('Control panel'!$AA$7:$AA$36,'Control panel'!AT$7:AT$36)*'Control panel'!AT24 -> 4.811025778e-05
B27: DMIA | C27: =_xlfn.XLOOKUP($B27,'BBM Costs'!$I$7:$I$25,'BBM Costs'!J$7:J$25)*_xlfn.XLOOKUP($B27,'Control panel'!$E$7:$E$25,'Control panel'!$F$7:$F$25) -> 0 | D27: =_xlfn.XLOOKUP($B27,'BBM Costs'!$I$7:$I$25,'BBM Costs'!K$7:K$25)*_xlfn.XLOOKUP($B27,'Control panel'!$E$7:$E$25,'Control panel'!$F$7:$F$25) -> 0 | E27: =_xlfn.XLOOKUP($B27,'BBM Costs'!$I$7:$I$25,'BBM Costs'!L$7:L$25)*_xlfn.XLOOKUP($B27,'Control panel'!$E$7:$E$25,'Control panel'!$F$7:$F$25) -> 0 | F27: =_xlfn.XLOOKUP($B27,'BBM Costs'!$I$7:$I$25,'BBM Costs'!M$7:M$25)*_xlfn.XLOOKUP($B27,'Control panel'!$E$7:$E$25,'Control panel'!$F$7:$F$25) -> 0 | G27: =_xlfn.XLOOKUP($B27,'BBM Costs'!$I$7:$I$25,'BBM Costs'!N$7:N$25)*_xlfn.XLOOKUP($B27,'Control panel'!$E$7:$E$25,'Control panel'!$F$7:$F$25) -> 0 | I27: DMIA | J27: =C27*_xlfn.XLOOKUP($I27,'Control panel'!$E$7:$E$25,'Control panel'!$H$7:$H$25) -> 0 | K27: =D27*_xlfn.XLOOKUP($I27,'Control panel'!$E$7:$E$25,'Control panel'!$H$7:$H$25) -> 0 | L27: =E27*_xlfn.XLOOKUP($I27,'Control panel'!$E$7:$E$25,'Control panel'!$H$7:$H$25) -> 0 | M27: =F27*_xlfn.XLOOKUP($I27,'Control panel'!$E$7:$E$25,'Control panel'!$H$7:$H$25) -> 0 | N27: =G27*_xlfn.XLOOKUP($I27,'Control panel'!$E$7:$E$25,'Control panel'!$H$7:$H$25) -> 0 | P27: DMIA | Q27: =C27*_xlfn.XLOOKUP($P27,'Control panel'!$E$7:$E$25,'Control panel'!$I$7:$I$25) -> 0 | R27: =D27*_xlfn.XLOOKUP($P27,'Control panel'!$E$7:$E$25,'Control panel'!$I$7:$I$25) -> 0 | S27: =E27*_xlfn.XLOOKUP($P27,'Control panel'!$E$7:$E$25,'Control panel'!$I$7:$I$25) -> 0 | T27: =F27*_xlfn.XLOOKUP($P27,'Control panel'!$E$7:$E$25,'Control panel'!$I$7:$I$25) -> 0 | U27: =G27*_xlfn.XLOOKUP($P27,'Control panel'!$E$7:$E$25,'Control panel'!$I$7:$I$25) -> 0 | W27: 2025-26 | X27: ='PTRM Data'!B25 -> Motor Vehicles | Y27: =_xlfn.XLOOKUP(X27,'Control panel'!$L$7:$L$36,'Control panel'!$P$7:$P$36) -> 1 | Z27: 0 | AA27: =_xlfn.XLOOKUP(W27,'BBM Costs'!$Q$6:$U$6,_xlfn.XLOOKUP(X27,'BBM Costs'!$P$7:$P$36,'BBM Costs'!$Q$7:$U$36))*_xlfn.XLOOKUP(X27,'Control panel'!$L$7:$L$36,'Control panel'!$M$7:$M$36) -> 0 | AB27: =_xlfn.XLOOKUP(W27,'BBM Costs'!$X$6:$AB$6,_xlfn.XLOOKUP(X27,'BBM Costs'!$W$7:$W$36,'BBM Costs'!$X$7:$AB$36))*_xlfn.XLOOKUP(X27,'Control panel'!$S$7:$S$36,'Control panel'!$T$7:$T$36) -> 0 | AC27: 0 | AE27: ='PTRM Data'!B25 -> Motor Vehicles | AF27: ='Control panel'!$AA25/SUMPRODUCT('Control panel'!$AA$7:$AA$36,'Control panel'!AB$7:AB$36)*'Control panel'!AB25 -> 0 | AG27: ='Control panel'!$AA25/SUMPRODUCT('Control panel'!$AA$7:$AA$36,'Control panel'!AC$7:AC$36)*'Control panel'!AC25 -> 0 | AH27: ='Control panel'!$AA25/SUMPRODUCT('Control panel'!$AA$7:$AA$36,'Control panel'!AD$7:AD$36)*'Control panel'!AD25 -> 0 | AI27: ='Control panel'!$AA25/SUMPRODUCT('Control panel'!$AA$7:$AA$36,'Control panel'!AE$7:AE$36)*'Control panel'!AE25 -> 0 | AJ27: ='Control panel'!$AA25/SUMPRODUCT('Control panel'!$AA$7:$AA$36,'Control panel'!AF$7:AF$36)*'Control panel'!AF25 -> 0.009065477878 | AK27: ='Control panel'!$AA25/SUMPRODUCT('Control panel'!$AA$7:$AA$36,'Control panel'!AG$7:AG$36)*'Control panel'!AG25 -> 0 | AL27: ='Control panel'!$AA25/SUMPRODUCT('Control panel'!$AA$7:$AA$36,'Control panel'!AH$7:AH$36)*'Control panel'!AH25 -> 0 | AM27: ='Control panel'!$AA25/SUMPRODUCT('Control panel'!$AA$7:$AA$36,'Control panel'!AI$7:AI$36)*'Control panel'!AI25 -> 0.009065477878 | AN27: ='Control panel'!$AA25/SUMPRODUCT('Control panel'!$AA$7:$AA$36,'Control panel'!AJ$7:AJ$36)*'Control panel'!AJ25 -> 0 | AO27: ='Control panel'!$AA25/SUMPRODUCT('Control panel'!$AA$7:$AA$36,'Control panel'!AK$7:AK$36)*'Control panel'!AK25 -> 0.009065477878 | AP27: ='Control panel'!$AA25/SUMPRODUCT('Control panel'!$AA$7:$AA$36,'Control panel'!AL$7:AL$36)*'Control panel'!AL25 -> 0.009065477878 | AQ27: ='Control panel'!$AA25/SUMPRODUCT('Control panel'!$AA$7:$AA$36,'Control panel'!AM$7:AM$36)*'Control panel'!AM25 -> 0 | AR27: ='Control panel'!$AA25/SUMPRODUCT('Control panel'!$AA$7:$AA$36,'Control panel'!AN$7:AN$36)*'Control panel'!AN25 -> 0 | AT27: ='Control panel'!$AA25/SUMPRODUCT('Control panel'!$AA$7:$AA$36,'Control panel'!AP$7:AP$36)*'Control panel'!AP25 -> 0.009052314784 | AU27: ='Control panel'!$AA25/SUMPRODUCT('Control panel'!$AA$7:$AA$36,'Control panel'!AQ$7:AQ$36)*'Control panel'!AQ25 -> 0.009052314784 | AV27: ='Control panel'!$AA25/SUMPRODUCT('Control panel'!$AA$7:$AA$36,'Control panel'!AR$7:AR$36)*'Control panel'!AR25 -> 0.009052314784 | AW27: ='Control panel'!$AA25/SUMPRODUCT('Control panel'!$AA$7:$AA$36,'Control panel'!AS$7:AS$36)*'Control panel'!AS25 -> 0.009052314784 | AX27: ='Control panel'!$AA25/SUMPRODUCT('Control panel'!$AA$7:$AA$36,'Control panel'!AT$7:AT$36)*'Control panel'!AT25 -> 0.009052314784
W28: 2025-26 | X28: ='PTRM Data'!B26 -> Plant & Equipment | Y28: =_xlfn.XLOOKUP(X28,'Control panel'!$L$7:$L$36,'Control panel'!$P$7:$P$36) -> 1 | Z28: 0 | AA28: =_xlfn.XLOOKUP(W28,'BBM Costs'!$Q$6:$U$6,_xlfn.XLOOKUP(X28,'BBM Costs'!$P$7:$P$36,'BBM Costs'!$Q$7:$U$36))*_xlfn.XLOOKUP(X28,'Control panel'!$L$7:$L$36,'Control panel'!$M$7:$M$36) -> 0 | AB28: =_xlfn.XLOOKUP(W28,'BBM Costs'!$X$6:$AB$6,_xlfn.XLOOKUP(X28,'BBM Costs'!$W$7:$W$36,'BBM Costs'!$X$7:$AB$36))*_xlfn.XLOOKUP(X28,'Control panel'!$S$7:$S$36,'Control panel'!$T$7:$T$36) -> 0 | AC28: 0 | AE28: ='PTRM Data'!B26 -> Plant & Equipment | AF28: ='Control panel'!$AA26/SUMPRODUCT('Control panel'!$AA$7:$AA$36,'Control panel'!AB$7:AB$36)*'Control panel'!AB26 -> 0 | AG28: ='Control panel'!$AA26/SUMPRODUCT('Control panel'!$AA$7:$AA$36,'Control panel'!AC$7:AC$36)*'Control panel'!AC26 -> 0 | AH28: ='Control panel'!$AA26/SUMPRODUCT('Control panel'!$AA$7:$AA$36,'Control panel'!AD$7:AD$36)*'Control panel'!AD26 -> 0 | AI28: ='Control panel'!$AA26/SUMPRODUCT('Control panel'!$AA$7:$AA$36,'Control panel'!AE$7:AE$36)*'Control panel'!AE26 -> 0 | AJ28: ='Control panel'!$AA26/SUMPRODUCT('Control panel'!$AA$7:$AA$36,'Control panel'!AF$7:AF$36)*'Control panel'!AF26 -> 0.00131123384 | AK28: ='Control panel'!$AA26/SUMPRODUCT('Control panel'!$AA$7:$AA$36,'Control panel'!AG$7:AG$36)*'Control panel'!AG26 -> 0 | AL28: ='Control panel'!$AA26/SUMPRODUCT('Control panel'!$AA$7:$AA$36,'Control panel'!AH$7:AH$36)*'Control panel'!AH26 -> 0 | AM28: ='Control panel'!$AA26/SUMPRODUCT('Control panel'!$AA$7:$AA$36,'Control panel'!AI$7:AI$36)*'Control panel'!AI26 -> 0.00131123384 | AN28: ='Control panel'!$AA26/SUMPRODUCT('Control panel'!$AA$7:$AA$36,'Control panel'!AJ$7:AJ$36)*'Control panel'!AJ26 -> 0 | AO28: ='Control panel'!$AA26/SUMPRODUCT('Control panel'!$AA$7:$AA$36,'Control panel'!AK$7:AK$36)*'Control panel'!AK26 -> 0.00131123384 | AP28: ='Control panel'!$AA26/SUMPRODUCT('Control panel'!$AA$7:$AA$36,'Control panel'!AL$7:AL$36)*'Control panel'!AL26 -> 0.00131123384 | AQ28: ='Control panel'!$AA26/SUMPRODUCT('Control panel'!$AA$7:$AA$36,'Control panel'!AM$7:AM$36)*'Control panel'!AM26 -> 0 | AR28: ='Control panel'!$AA26/SUMPRODUCT('Control panel'!$AA$7:$AA$36,'Control panel'!AN$7:AN$36)*'Control panel'!AN26 -> 0 | AT28: ='Control panel'!$AA26/SUMPRODUCT('Control panel'!$AA$7:$AA$36,'Control panel'!AP$7:AP$36)*'Control panel'!AP26 -> 0.001309329926 | AU28: ='Control panel'!$AA26/SUMPRODUCT('Control panel'!$AA$7:$AA$36,'Control panel'!AQ$7:AQ$36)*'Control panel'!AQ26 -> 0.001309329926 | AV28: ='Control panel'!$AA26/SUMPRODUCT('Control panel'!$AA$7:$AA$36,'Control panel'!AR$7:AR$36)*'Control panel'!AR26 -> 0.001309329926 | AW28: ='Control panel'!$AA26/SUMPRODUCT('Control panel'!$AA$7:$AA$36,'Control panel'!AS$7:AS$36)*'Control panel'!AS26 -> 0.001309329926 | AX28: ='Control panel'!$AA26/SUMPRODUCT('Control panel'!$AA$7:$AA$36,'Control panel'!AT$7:AT$36)*'Control panel'!AT26 -> 0.001309329926
B29: Total | C29: =SUM(C9:C27) -> 106.5455073 | D29: =SUM(D9:D27) -> 110.1728888 | E29: 116.0696398 | F29: 121.6459546 | G29: 131.4291849 | I29: Total | J29: =SUM(J9:J27) -> 60.29355356 | K29: =SUM(K9:K27) -> 62.34627011 | L29: 65.68321109 | M29: 68.83881891 | N29: 74.37509853 | P29: Total | Q29: =SUM(Q9:Q27) -> 46.25195371 | R29: =SUM(R9:R27) -> 47.82661874 | S29: 50.38642871 | T29: 52.80713571 | U29: 57.0540864 | W29: 2025-26 | X29: ='PTRM Data'!B27 -> Buildings | Y29: =_xlfn.XLOOKUP(X29,'Control panel'!$L$7:$L$36,'Control panel'!$P$7:$P$36) -> 1 | Z29: 0 | AA29: =_xlfn.XLOOKUP(W29,'BBM Costs'!$Q$6:$U$6,_xlfn.XLOOKUP(X29,'BBM Costs'!$P$7:$P$36,'BBM Costs'!$Q$7:$U$36))*_xlfn.XLOOKUP(X29,'Control panel'!$L$7:$L$36,'Control panel'!$M$7:$M$36) -> 0 | AB29: =_xlfn.XLOOKUP(W29,'BBM Costs'!$X$6:$AB$6,_xlfn.XLOOKUP(X29,'BBM Costs'!$W$7:$W$36,'BBM Costs'!$X$7:$AB$36))*_xlfn.XLOOKUP(X29,'Control panel'!$S$7:$S$36,'Control panel'!$T$7:$T$36) -> 0 | AC29: 0 | AE29: ='PTRM Data'!B27 -> Buildings | AF29: ='Control panel'!$AA27/SUMPRODUCT('Control panel'!$AA$7:$AA$36,'Control panel'!AB$7:AB$36)*'Control panel'!AB27 -> 0 | AG29: ='Control panel'!$AA27/SUMPRODUCT('Control panel'!$AA$7:$AA$36,'Control panel'!AC$7:AC$36)*'Control panel'!AC27 -> 0 | AH29: ='Control panel'!$AA27/SUMPRODUCT('Control panel'!$AA$7:$AA$36,'Control panel'!AD$7:AD$36)*'Control panel'!AD27 -> 0 | AI29: ='Control panel'!$AA27/SUMPRODUCT('Control panel'!$AA$7:$AA$36,'Control panel'!AE$7:AE$36)*'Control panel'!AE27 -> 0 | AJ29: ='Control panel'!$AA27/SUMPRODUCT('Control panel'!$AA$7:$AA$36,'Control panel'!AF$7:AF$36)*'Control panel'!AF27 -> 0.02260059502 | AK29: ='Control panel'!$AA27/SUMPRODUCT('Control panel'!$AA$7:$AA$36,'Control panel'!AG$7:AG$36)*'Control panel'!AG27 -> 0 | AL29: ='Control panel'!$AA27/SUMPRODUCT('Control panel'!$AA$7:$AA$36,'Control panel'!AH$7:AH$36)*'Control panel'!AH27 -> 0 | AM29: ='Control panel'!$AA27/SUMPRODUCT('Control panel'!$AA$7:$AA$36,'Control panel'!AI$7:AI$36)*'Control panel'!AI27 -> 0.02260059502 | AN29: ='Control panel'!$AA27/SUMPRODUCT('Control panel'!$AA$7:$AA$36,'Control panel'!AJ$7:AJ$36)*'Control panel'!AJ27 -> 0 | AO29: ='Control panel'!$AA27/SUMPRODUCT('Control panel'!$AA$7:$AA$36,'Control panel'!AK$7:AK$36)*'Control panel'!AK27 -> 0.02260059502 | AP29: ='Control panel'!$AA27/SUMPRODUCT('Control panel'!$AA$7:$AA$36,'Control panel'!AL$7:AL$36)*'Control panel'!AL27 -> 0.02260059502 | AQ29: ='Control panel'!$AA27/SUMPRODUCT('Control panel'!$AA$7:$AA$36,'Control panel'!AM$7:AM$36)*'Control panel'!AM27 -> 0 | AR29: ='Control panel'!$AA27/SUMPRODUCT('Control panel'!$AA$7:$AA$36,'Control panel'!AN$7:AN$36)*'Control panel'!AN27 -> 0 | AT29: ='Control panel'!$AA27/SUMPRODUCT('Control panel'!$AA$7:$AA$36,'Control panel'!AP$7:AP$36)*'Control panel'!AP27 -> 0.02256777891 | AU29: ='Control panel'!$AA27/SUMPRODUCT('Control panel'!$AA$7:$AA$36,'Control panel'!AQ$7:AQ$36)*'Control panel'!AQ27 -> 0.02256777891 | AV29: ='Control panel'!$AA27/SUMPRODUCT('Control panel'!$AA$7:$AA$36,'Control panel'!AR$7:AR$36)*'Control panel'!AR27 -> 0.02256777891 | AW29: ='Control panel'!$AA27/SUMPRODUCT('Control panel'!$AA$7:$AA$36,'Control panel'!AS$7:AS$36)*'Control panel'!AS27 -> 0.02256777891 | AX29: ='Control panel'!$AA27/SUMPRODUCT('Control panel'!$AA$7:$AA$36,'Control panel'!AT$7:AT$36)*'Control panel'!AT27 -> 0.02256777891
W30: 2025-26 | X30: ='PTRM Data'!B28 -> Office Equipment & Furniture | Y30: =_xlfn.XLOOKUP(X30,'Control panel'!$L$7:$L$36,'Control panel'!$P$7:$P$36) -> 1 | Z30: 0 | AA30: =_xlfn.XLOOKUP(W30,'BBM Costs'!$Q$6:$U$6,_xlfn.XLOOKUP(X30,'BBM Costs'!$P$7:$P$36,'BBM Costs'!$Q$7:$U$36))*_xlfn.XLOOKUP(X30,'Control panel'!$L$7:$L$36,'Control panel'!$M$7:$M$36) -> 0 | AB30: =_xlfn.XLOOKUP(W30,'BBM Costs'!$X$6:$AB$6,_xlfn.XLOOKUP(X30,'BBM Costs'!$W$7:$W$36,'BBM Costs'!$X$7:$AB$36))*_xlfn.XLOOKUP(X30,'Control panel'!$S$7:$S$36,'Control panel'!$T$7:$T$36) -> 0 | AC30: 0 | AE30: ='PTRM Data'!B28 -> Office Equipment & Furniture | AF30: ='Control panel'!$AA28/SUMPRODUCT('Control panel'!$AA$7:$AA$36,'Control panel'!AB$7:AB$36)*'Control panel'!AB28 -> 0 | AG30: ='Control panel'!$AA28/SUMPRODUCT('Control panel'!$AA$7:$AA$36,'Control panel'!AC$7:AC$36)*'Control panel'!AC28 -> 0 | AH30: ='Control panel'!$AA28/SUMPRODUCT('Control panel'!$AA$7:$AA$36,'Control panel'!AD$7:AD$36)*'Control panel'!AD28 -> 0 | AI30: ='Control panel'!$AA28/SUMPRODUCT('Control panel'!$AA$7:$AA$36,'Control panel'!AE$7:AE$36)*'Control panel'!AE28 -> 0 | AJ30: ='Control panel'!$AA28/SUMPRODUCT('Control panel'!$AA$7:$AA$36,'Control panel'!AF$7:AF$36)*'Control panel'!AF28 -> -0.000664625031 | AK30: ='Control panel'!$AA28/SUMPRODUCT('Control panel'!$AA$7:$AA$36,'Control panel'!AG$7:AG$36)*'Control panel'!AG28 -> 0 | AL30: ='Control panel'!$AA28/SUMPRODUCT('Control panel'!$AA$7:$AA$36,'Control panel'!AH$7:AH$36)*'Control panel'!AH28 -> 0 | AM30: ='Control panel'!$AA28/SUMPRODUCT('Control panel'!$AA$7:$AA$36,'Control panel'!AI$7:AI$36)*'Control panel'!AI28 -> -0.000664625031 | AN30: ='Control panel'!$AA28/SUMPRODUCT('Control panel'!$AA$7:$AA$36,'Control panel'!AJ$7:AJ$36)*'Control panel'!AJ28 -> 0 | AO30: ='Control panel'!$AA28/SUMPRODUCT('Control panel'!$AA$7:$AA$36,'Control panel'!AK$7:AK$36)*'Control panel'!AK28 -> -0.000664625031 | AP30: ='Control panel'!$AA28/SUMPRODUCT('Control panel'!$AA$7:$AA$36,'Control panel'!AL$7:AL$36)*'Control panel'!AL28 -> -0.000664625031 | AQ30: ='Control panel'!$AA28/SUMPRODUCT('Control panel'!$AA$7:$AA$36,'Control panel'!AM$7:AM$36)*'Control panel'!AM28 -> 0 | AR30: ='Control panel'!$AA28/SUMPRODUCT('Control panel'!$AA$7:$AA$36,'Control panel'!AN$7:AN$36)*'Control panel'!AN28 -> 0 | AT30: ='Control panel'!$AA28/SUMPRODUCT('Control panel'!$AA$7:$AA$36,'Control panel'!AP$7:AP$36)*'Control panel'!AP28 -> -0.000663659994 | AU30: ='Control panel'!$AA28/SUMPRODUCT('Control panel'!$AA$7:$AA$36,'Control panel'!AQ$7:AQ$36)*'Control panel'!AQ28 -> -0.000663659994 | AV30: ='Control panel'!$AA28/SUMPRODUCT('Control panel'!$AA$7:$AA$36,'Control panel'!AR$7:AR$36)*'Control panel'!AR28 -> -0.000663659994 | AW30: ='Control panel'!$AA28/SUMPRODUCT('Control panel'!$AA$7:$AA$36,'Control panel'!AS$7:AS$36)*'Control panel'!AS28 -> -0.000663659994 | AX30: ='Control panel'!$AA28/SUMPRODUCT('Control panel'!$AA$7:$AA$36,'Control panel'!AT$7:AT$36)*'Control panel'!AT28 -> -0.000663659994
W31: 2025-26 | X31: ='PTRM Data'!B29 -> Initial Leases (10 yr life) | Y31: =_xlfn.XLOOKUP(X31,'Control panel'!$L$7:$L$36,'Control panel'!$P$7:$P$36) -> 1 | Z31: 0 | AA31: =_xlfn.XLOOKUP(W31,'BBM Costs'!$Q$6:$U$6,_xlfn.XLOOKUP(X31,'BBM Costs'!$P$7:$P$36,'BBM Costs'!$Q$7:$U$36))*_xlfn.XLOOKUP(X31,'Control panel'!$L$7:$L$36,'Control panel'!$M$7:$M$36) -> 0 | AB31: =_xlfn.XLOOKUP(W31,'BBM Costs'!$X$6:$AB$6,_xlfn.XLOOKUP(X31,'BBM Costs'!$W$7:$W$36,'BBM Costs'!$X$7:$AB$36))*_xlfn.XLOOKUP(X31,'Control panel'!$S$7:$S$36,'Control panel'!$T$7:$T$36) -> 0 | AC31: 0 | AE31: ='PTRM Data'!B29 -> Initial Leases (10 yr life) | AF31: ='Control panel'!$AA29/SUMPRODUCT('Control panel'!$AA$7:$AA$36,'Control panel'!AB$7:AB$36)*'Control panel'!AB29 -> 0 | AG31: ='Control panel'!$AA29/SUMPRODUCT('Control panel'!$AA$7:$AA$36,'Control panel'!AC$7:AC$36)*'Control panel'!AC29 -> 0 | AH31: ='Control panel'!$AA29/SUMPRODUCT('Control panel'!$AA$7:$AA$36,'Control panel'!AD$7:AD$36)*'Control panel'!AD29 -> 0 | AI31: ='Control panel'!$AA29/SUMPRODUCT('Control panel'!$AA$7:$AA$36,'Control panel'!AE$7:AE$36)*'Control panel'!AE29 -> 0 | AJ31: ='Control panel'!$AA29/SUMPRODUCT('Control panel'!$AA$7:$AA$36,'Control panel'!AF$7:AF$36)*'Control panel'!AF29 -> 0.002861763357 | AK31: ='Control panel'!$AA29/SUMPRODUCT('Control panel'!$AA$7:$AA$36,'Control panel'!AG$7:AG$36)*'Control panel'!AG29 -> 0 | AL31: ='Control panel'!$AA29/SUMPRODUCT('Control panel'!$AA$7:$AA$36,'Control panel'!AH$7:AH$36)*'Control panel'!AH29 -> 0 | AM31: ='Control panel'!$AA29/SUMPRODUCT('Control panel'!$AA$7:$AA$36,'Control panel'!AI$7:AI$36)*'Control panel'!AI29 -> 0.002861763357 | AN31: ='Control panel'!$AA29/SUMPRODUCT('Control panel'!$AA$7:$AA$36,'Control panel'!AJ$7:AJ$36)*'Control panel'!AJ29 -> 0 | AO31: ='Control panel'!$AA29/SUMPRODUCT('Control panel'!$AA$7:$AA$36,'Control panel'!AK$7:AK$36)*'Control panel'!AK29 -> 0.002861763357 | AP31: ='Control panel'!$AA29/SUMPRODUCT('Control panel'!$AA$7:$AA$36,'Control panel'!AL$7:AL$36)*'Control panel'!AL29 -> 0.002861763357 | AQ31: ='Control panel'!$AA29/SUMPRODUCT('Control panel'!$AA$7:$AA$36,'Control panel'!AM$7:AM$36)*'Control panel'!AM29 -> 0 | AR31: ='Control panel'!$AA29/SUMPRODUCT('Control panel'!$AA$7:$AA$36,'Control panel'!AN$7:AN$36)*'Control panel'!AN29 -> 0 | AT31: ='Control panel'!$AA29/SUMPRODUCT('Control panel'!$AA$7:$AA$36,'Control panel'!AP$7:AP$36)*'Control panel'!AP29 -> 0.002857608071 | AU31: ='Control panel'!$AA29/SUMPRODUCT('Control panel'!$AA$7:$AA$36,'Control panel'!AQ$7:AQ$36)*'Control panel'!AQ29 -> 0.002857608071 | AV31: ='Control panel'!$AA29/SUMPRODUCT('Control panel'!$AA$7:$AA$36,'Control panel'!AR$7:AR$36)*'Control panel'!AR29 -> 0.002857608071 | AW31: ='Control panel'!$AA29/SUMPRODUCT('Control panel'!$AA$7:$AA$36,'Control panel'!AS$7:AS$36)*'Control panel'!AS29 -> 0.002857608071 | AX31: ='Control panel'!$AA29/SUMPRODUCT('Control panel'!$AA$7:$AA$36,'Control panel'!AT$7:AT$36)*'Control panel'!AT29 -> 0.002857608071
W32: 2025-26 | X32: ='PTRM Data'!B30 -> Lease Extensions (5yr Life) | Y32: =_xlfn.XLOOKUP(X32,'Control panel'!$L$7:$L$36,'Control panel'!$P$7:$P$36) -> 1 | Z32: 0 | AA32: =_xlfn.XLOOKUP(W32,'BBM Costs'!$Q$6:$U$6,_xlfn.XLOOKUP(X32,'BBM Costs'!$P$7:$P$36,'BBM Costs'!$Q$7:$U$36))*_xlfn.XLOOKUP(X32,'Control panel'!$L$7:$L$36,'Control panel'!$M$7:$M$36) -> 0 | AB32: =_xlfn.XLOOKUP(W32,'BBM Costs'!$X$6:$AB$6,_xlfn.XLOOKUP(X32,'BBM Costs'!$W$7:$W$36,'BBM Costs'!$X$7:$AB$36))*_xlfn.XLOOKUP(X32,'Control panel'!$S$7:$S$36,'Control panel'!$T$7:$T$36) -> 0 | AC32: 0 | AE32: ='PTRM Data'!B30 -> Lease Extensions (5yr Life) | AF32: ='Control panel'!$AA30/SUMPRODUCT('Control panel'!$AA$7:$AA$36,'Control panel'!AB$7:AB$36)*'Control panel'!AB30 -> 0 | AG32: ='Control panel'!$AA30/SUMPRODUCT('Control panel'!$AA$7:$AA$36,'Control panel'!AC$7:AC$36)*'Control panel'!AC30 -> 0 | AH32: ='Control panel'!$AA30/SUMPRODUCT('Control panel'!$AA$7:$AA$36,'Control panel'!AD$7:AD$36)*'Control panel'!AD30 -> 0 | AI32: ='Control panel'!$AA30/SUMPRODUCT('Control panel'!$AA$7:$AA$36,'Control panel'!AE$7:AE$36)*'Control panel'!AE30 -> 0 | AJ32: ='Control panel'!$AA30/SUMPRODUCT('Control panel'!$AA$7:$AA$36,'Control panel'!AF$7:AF$36)*'Control panel'!AF30 -> 0 | AK32: ='Control panel'!$AA30/SUMPRODUCT('Control panel'!$AA$7:$AA$36,'Control panel'!AG$7:AG$36)*'Control panel'!AG30 -> 0 | AL32: ='Control panel'!$AA30/SUMPRODUCT('Control panel'!$AA$7:$AA$36,'Control panel'!AH$7:AH$36)*'Control panel'!AH30 -> 0 | AM32: ='Control panel'!$AA30/SUMPRODUCT('Control panel'!$AA$7:$AA$36,'Control panel'!AI$7:AI$36)*'Control panel'!AI30 -> 0 | AN32: ='Control panel'!$AA30/SUMPRODUCT('Control panel'!$AA$7:$AA$36,'Control panel'!AJ$7:AJ$36)*'Control panel'!AJ30 -> 0 | AO32: ='Control panel'!$AA30/SUMPRODUCT('Control panel'!$AA$7:$AA$36,'Control panel'!AK$7:AK$36)*'Control panel'!AK30 -> 0 | AP32: ='Control panel'!$AA30/SUMPRODUCT('Control panel'!$AA$7:$AA$36,'Control panel'!AL$7:AL$36)*'Control panel'!AL30 -> 0 | AQ32: ='Control panel'!$AA30/SUMPRODUCT('Control panel'!$AA$7:$AA$36,'Control panel'!AM$7:AM$36)*'Control panel'!AM30 -> 0 | AR32: ='Control panel'!$AA30/SUMPRODUCT('Control panel'!$AA$7:$AA$36,'Control panel'!AN$7:AN$36)*'Control panel'!AN30 -> 0 | AT32: ='Control panel'!$AA30/SUMPRODUCT('Control panel'!$AA$7:$AA$36,'Control panel'!AP$7:AP$36)*'Control panel'!AP30 -> 0 | AU32: ='Control panel'!$AA30/SUMPRODUCT('Control panel'!$AA$7:$AA$36,'Control panel'!AQ$7:AQ$36)*'Control panel'!AQ30 -> 0 | AV32: ='Control panel'!$AA30/SUMPRODUCT('Control panel'!$AA$7:$AA$36,'Control panel'!AR$7:AR$36)*'Control panel'!AR30 -> 0 | AW32: ='Control panel'!$AA30/SUMPRODUCT('Control panel'!$AA$7:$AA$36,'Control panel'!AS$7:AS$36)*'Control panel'!AS30 -> 0 | AX32: ='Control panel'!$AA30/SUMPRODUCT('Control panel'!$AA$7:$AA$36,'Control panel'!AT$7:AT$36)*'Control panel'!AT30 -> 0
W33: 2025-26 | X33: ='PTRM Data'!B31 -> Land | Y33: =_xlfn.XLOOKUP(X33,'Control panel'!$L$7:$L$36,'Control panel'!$P$7:$P$36) -> 1 | Z33: 0 | AA33: =_xlfn.XLOOKUP(W33,'BBM Costs'!$Q$6:$U$6,_xlfn.XLOOKUP(X33,'BBM Costs'!$P$7:$P$36,'BBM Costs'!$Q$7:$U$36))*_xlfn.XLOOKUP(X33,'Control panel'!$L$7:$L$36,'Control panel'!$M$7:$M$36) -> 0 | AB33: =_xlfn.XLOOKUP(W33,'BBM Costs'!$X$6:$AB$6,_xlfn.XLOOKUP(X33,'BBM Costs'!$W$7:$W$36,'BBM Costs'!$X$7:$AB$36))*_xlfn.XLOOKUP(X33,'Control panel'!$S$7:$S$36,'Control panel'!$T$7:$T$36) -> 0 | AC33: 0 | AE33: ='PTRM Data'!B31 -> Land | AF33: ='Control panel'!$AA31/SUMPRODUCT('Control panel'!$AA$7:$AA$36,'Control panel'!AB$7:AB$36)*'Control panel'!AB31 -> 0 | AG33: ='Control panel'!$AA31/SUMPRODUCT('Control panel'!$AA$7:$AA$36,'Control panel'!AC$7:AC$36)*'Control panel'!AC31 -> 0 | AH33: ='Control panel'!$AA31/SUMPRODUCT('Control panel'!$AA$7:$AA$36,'Control panel'!AD$7:AD$36)*'Control panel'!AD31 -> 0 | AI33: ='Control panel'!$AA31/SUMPRODUCT('Control panel'!$AA$7:$AA$36,'Control panel'!AE$7:AE$36)*'Control panel'!AE31 -> 0 | AJ33: ='Control panel'!$AA31/SUMPRODUCT('Control panel'!$AA$7:$AA$36,'Control panel'!AF$7:AF$36)*'Control panel'!AF31 -> 0.01247826869 | AK33: ='Control panel'!$AA31/SUMPRODUCT('Control panel'!$AA$7:$AA$36,'Control panel'!AG$7:AG$36)*'Control panel'!AG31 -> 0 | AL33: ='Control panel'!$AA31/SUMPRODUCT('Control panel'!$AA$7:$AA$36,'Control panel'!AH$7:AH$36)*'Control panel'!AH31 -> 0 | AM33: ='Control panel'!$AA31/SUMPRODUCT('Control panel'!$AA$7:$AA$36,'Control panel'!AI$7:AI$36)*'Control panel'!AI31 -> 0.01247826869 | AN33: ='Control panel'!$AA31/SUMPRODUCT('Control panel'!$AA$7:$AA$36,'Control panel'!AJ$7:AJ$36)*'Control panel'!AJ31 -> 0 | AO33: ='Control panel'!$AA31/SUMPRODUCT('Control panel'!$AA$7:$AA$36,'Control panel'!AK$7:AK$36)*'Control panel'!AK31 -> 0.01247826869 | AP33: ='Control panel'!$AA31/SUMPRODUCT('Control panel'!$AA$7:$AA$36,'Control panel'!AL$7:AL$36)*'Control panel'!AL31 -> 0.01247826869 | AQ33: ='Control panel'!$AA31/SUMPRODUCT('Control panel'!$AA$7:$AA$36,'Control panel'!AM$7:AM$36)*'Control panel'!AM31 -> 0 | AR33: ='Control panel'!$AA31/SUMPRODUCT('Control panel'!$AA$7:$AA$36,'Control panel'!AN$7:AN$36)*'Control panel'!AN31 -> 0 | AT33: ='Control panel'!$AA31/SUMPRODUCT('Control panel'!$AA$7:$AA$36,'Control panel'!AP$7:AP$36)*'Control panel'!AP31 -> 0.01246015022 | AU33: ='Control panel'!$AA31/SUMPRODUCT('Control panel'!$AA$7:$AA$36,'Control panel'!AQ$7:AQ$36)*'Control panel'!AQ31 -> 0.01246015022 | AV33: ='Control panel'!$AA31/SUMPRODUCT('Control panel'!$AA$7:$AA$36,'Control panel'!AR$7:AR$36)*'Control panel'!AR31 -> 0.01246015022 | AW33: ='Control panel'!$AA31/SUMPRODUCT('Control panel'!$AA$7:$AA$36,'Control panel'!AS$7:AS$36)*'Control panel'!AS31 -> 0.01246015022 | AX33: ='Control panel'!$AA31/SUMPRODUCT('Control panel'!$AA$7:$AA$36,'Control panel'!AT$7:AT$36)*'Control panel'!AT31 -> 0.01246015022
W34: 2025-26 | X34: ='PTRM Data'!B32 -> In-house software | Y34: =_xlfn.XLOOKUP(X34,'Control panel'!$L$7:$L$36,'Control panel'!$P$7:$P$36) -> 1 | Z34: 0 | AA34: =_xlfn.XLOOKUP(W34,'BBM Costs'!$Q$6:$U$6,_xlfn.XLOOKUP(X34,'BBM Costs'!$P$7:$P$36,'BBM Costs'!$Q$7:$U$36))*_xlfn.XLOOKUP(X34,'Control panel'!$L$7:$L$36,'Control panel'!$M$7:$M$36) -> 0 | AB34: =_xlfn.XLOOKUP(W34,'BBM Costs'!$X$6:$AB$6,_xlfn.XLOOKUP(X34,'BBM Costs'!$W$7:$W$36,'BBM Costs'!$X$7:$AB$36))*_xlfn.XLOOKUP(X34,'Control panel'!$S$7:$S$36,'Control panel'!$T$7:$T$36) -> 0 | AC34: 0 | AE34: ='PTRM Data'!B32 -> In-house software | AF34: ='Control panel'!$AA32/SUMPRODUCT('Control panel'!$AA$7:$AA$36,'Control panel'!AB$7:AB$36)*'Control panel'!AB32 -> 0 | AG34: ='Control panel'!$AA32/SUMPRODUCT('Control panel'!$AA$7:$AA$36,'Control panel'!AC$7:AC$36)*'Control panel'!AC32 -> 0 | AH34: ='Control panel'!$AA32/SUMPRODUCT('Control panel'!$AA$7:$AA$36,'Control panel'!AD$7:AD$36)*'Control panel'!AD32 -> 0 | AI34: ='Control panel'!$AA32/SUMPRODUCT('Control panel'!$AA$7:$AA$36,'Control panel'!AE$7:AE$36)*'Control panel'!AE32 -> 0 | AJ34: ='Control panel'!$AA32/SUMPRODUCT('Control panel'!$AA$7:$AA$36,'Control panel'!AF$7:AF$36)*'Control panel'!AF32 -> 0.01245513935 | AK34: ='Control panel'!$AA32/SUMPRODUCT('Control panel'!$AA$7:$AA$36,'Control panel'!AG$7:AG$36)*'Control panel'!AG32 -> 0 | AL34: ='Control panel'!$AA32/SUMPRODUCT('Control panel'!$AA$7:$AA$36,'Control panel'!AH$7:AH$36)*'Control panel'!AH32 -> 0 | AM34: ='Control panel'!$AA32/SUMPRODUCT('Control panel'!$AA$7:$AA$36,'Control panel'!AI$7:AI$36)*'Control panel'!AI32 -> 0.01245513935 | AN34: ='Control panel'!$AA32/SUMPRODUCT('Control panel'!$AA$7:$AA$36,'Control panel'!AJ$7:AJ$36)*'Control panel'!AJ32 -> 0 | AO34: ='Control panel'!$AA32/SUMPRODUCT('Control panel'!$AA$7:$AA$36,'Control panel'!AK$7:AK$36)*'Control panel'!AK32 -> 0.01245513935 | AP34: ='Control panel'!$AA32/SUMPRODUCT('Control panel'!$AA$7:$AA$36,'Control panel'!AL$7:AL$36)*'Control panel'!AL32 -> 0.01245513935 | AQ34: ='Control panel'!$AA32/SUMPRODUCT('Control panel'!$AA$7:$AA$36,'Control panel'!AM$7:AM$36)*'Control panel'!AM32 -> 0 | AR34: ='Control panel'!$AA32/SUMPRODUCT('Control panel'!$AA$7:$AA$36,'Control panel'!AN$7:AN$36)*'Control panel'!AN32 -> 0 | AT34: ='Control panel'!$AA32/SUMPRODUCT('Control panel'!$AA$7:$AA$36,'Control panel'!AP$7:AP$36)*'Control panel'!AP32 -> 0.01243705446 | AU34: ='Control panel'!$AA32/SUMPRODUCT('Control panel'!$AA$7:$AA$36,'Control panel'!AQ$7:AQ$36)*'Control panel'!AQ32 -> 0.01243705446 | AV34: ='Control panel'!$AA32/SUMPRODUCT('Control panel'!$AA$7:$AA$36,'Control panel'!AR$7:AR$36)*'Control panel'!AR32 -> 0.01243705446 | AW34: ='Control panel'!$AA32/SUMPRODUCT('Control panel'!$AA$7:$AA$36,'Control panel'!AS$7:AS$36)*'Control panel'!AS32 -> 0.01243705446 | AX34: ='Control panel'!$AA32/SUMPRODUCT('Control panel'!$AA$7:$AA$36,'Control panel'!AT$7:AT$36)*'Control panel'!AT32 -> 0.01243705446
W35: 2025-26 | X35: ='PTRM Data'!B33 -> IT Systems | Y35: =_xlfn.XLOOKUP(X35,'Control panel'!$L$7:$L$36,'Control panel'!$P$7:$P$36) -> 1 | Z35: 0 | AA35: =_xlfn.XLOOKUP(W35,'BBM Costs'!$Q$6:$U$6,_xlfn.XLOOKUP(X35,'BBM Costs'!$P$7:$P$36,'BBM Costs'!$Q$7:$U$36))*_xlfn.XLOOKUP(X35,'Control panel'!$L$7:$L$36,'Control panel'!$M$7:$M$36) -> 0 | AB35: =_xlfn.XLOOKUP(W35,'BBM Costs'!$X$6:$AB$6,_xlfn.XLOOKUP(X35,'BBM Costs'!$W$7:$W$36,'BBM Costs'!$X$7:$AB$36))*_xlfn.XLOOKUP(X35,'Control panel'!$S$7:$S$36,'Control panel'!$T$7:$T$36) -> 0 | AC35: 0 | AE35: ='PTRM Data'!B33 -> IT Systems | AF35: ='Control panel'!$AA33/SUMPRODUCT('Control panel'!$AA$7:$AA$36,'Control panel'!AB$7:AB$36)*'Control panel'!AB33 -> 0 | AG35: ='Control panel'!$AA33/SUMPRODUCT('Control panel'!$AA$7:$AA$36,'Control panel'!AC$7:AC$36)*'Control panel'!AC33 -> 0 | AH35: ='Control panel'!$AA33/SUMPRODUCT('Control panel'!$AA$7:$AA$36,'Control panel'!AD$7:AD$36)*'Control panel'!AD33 -> 0 | AI35: ='Control panel'!$AA33/SUMPRODUCT('Control panel'!$AA$7:$AA$36,'Control panel'!AE$7:AE$36)*'Control panel'!AE33 -> 0 | AJ35: ='Control panel'!$AA33/SUMPRODUCT('Control panel'!$AA$7:$AA$36,'Control panel'!AF$7:AF$36)*'Control panel'!AF33 -> 0.0003338646396 | AK35: ='Control panel'!$AA33/SUMPRODUCT('Control panel'!$AA$7:$AA$36,'Control panel'!AG$7:AG$36)*'Control panel'!AG33 -> 0 | AL35: ='Control panel'!$AA33/SUMPRODUCT('Control panel'!$AA$7:$AA$36,'Control panel'!AH$7:AH$36)*'Control panel'!AH33 -> 0 | AM35: ='Control panel'!$AA33/SUMPRODUCT('Control panel'!$AA$7:$AA$36,'Control panel'!AI$7:AI$36)*'Control panel'!AI33 -> 0.0003338646396 | AN35: ='Control panel'!$AA33/SUMPRODUCT('Control panel'!$AA$7:$AA$36,'Control panel'!AJ$7:AJ$36)*'Control panel'!AJ33 -> 0 | AO35: ='Control panel'!$AA33/SUMPRODUCT('Control panel'!$AA$7:$AA$36,'Control panel'!AK$7:AK$36)*'Control panel'!AK33 -> 0.0003338646396 | AP35: ='Control panel'!$AA33/SUMPRODUCT('Control panel'!$AA$7:$AA$36,'Control panel'!AL$7:AL$36)*'Control panel'!AL33 -> 0.0003338646396 | AQ35: ='Control panel'!$AA33/SUMPRODUCT('Control panel'!$AA$7:$AA$36,'Control panel'!AM$7:AM$36)*'Control panel'!AM33 -> 0 | AR35: ='Control panel'!$AA33/SUMPRODUCT('Control panel'!$AA$7:$AA$36,'Control panel'!AN$7:AN$36)*'Control panel'!AN33 -> 0 | AT35: ='Control panel'!$AA33/SUMPRODUCT('Control panel'!$AA$7:$AA$36,'Control panel'!AP$7:AP$36)*'Control panel'!AP33 -> 0.0003333798674 | AU35: ='Control panel'!$AA33/SUMPRODUCT('Control panel'!$AA$7:$AA$36,'Control panel'!AQ$7:AQ$36)*'Control panel'!AQ33 -> 0.0003333798674 | AV35: ='Control panel'!$AA33/SUMPRODUCT('Control panel'!$AA$7:$AA$36,'Control panel'!AR$7:AR$36)*'Control panel'!AR33 -> 0.0003333798674 | AW35: ='Control panel'!$AA33/SUMPRODUCT('Control panel'!$AA$7:$AA$36,'Control panel'!AS$7:AS$36)*'Control panel'!AS33 -> 0.0003333798674 | AX35: ='Control panel'!$AA33/SUMPRODUCT('Control panel'!$AA$7:$AA$36,'Control panel'!AT$7:AT$36)*'Control panel'!AT33 -> 0.0003333798674
W36: 2025-26 | X36: ='PTRM Data'!B34 -> Legacy ICT Assets | Y36: =_xlfn.XLOOKUP(X36,'Control panel'!$L$7:$L$36,'Control panel'!$P$7:$P$36) -> 1 | Z36: 0 | AA36: =_xlfn.XLOOKUP(W36,'BBM Costs'!$Q$6:$U$6,_xlfn.XLOOKUP(X36,'BBM Costs'!$P$7:$P$36,'BBM Costs'!$Q$7:$U$36))*_xlfn.XLOOKUP(X36,'Control panel'!$L$7:$L$36,'Control panel'!$M$7:$M$36) -> 0 | AB36: =_xlfn.XLOOKUP(W36,'BBM Costs'!$X$6:$AB$6,_xlfn.XLOOKUP(X36,'BBM Costs'!$W$7:$W$36,'BBM Costs'!$X$7:$AB$36))*_xlfn.XLOOKUP(X36,'Control panel'!$S$7:$S$36,'Control panel'!$T$7:$T$36) -> 0 | AC36: 0 | AE36: ='PTRM Data'!B34 -> Legacy ICT Assets | AF36: ='Control panel'!$AA34/SUMPRODUCT('Control panel'!$AA$7:$AA$36,'Control panel'!AB$7:AB$36)*'Control panel'!AB34 -> 0 | AG36: ='Control panel'!$AA34/SUMPRODUCT('Control panel'!$AA$7:$AA$36,'Control panel'!AC$7:AC$36)*'Control panel'!AC34 -> 0 | AH36: ='Control panel'!$AA34/SUMPRODUCT('Control panel'!$AA$7:$AA$36,'Control panel'!AD$7:AD$36)*'Control panel'!AD34 -> 0 | AI36: ='Control panel'!$AA34/SUMPRODUCT('Control panel'!$AA$7:$AA$36,'Control panel'!AE$7:AE$36)*'Control panel'!AE34 -> 0 | AJ36: ='Control panel'!$AA34/SUMPRODUCT('Control panel'!$AA$7:$AA$36,'Control panel'!AF$7:AF$36)*'Control panel'!AF34 -> 0.004783232266 | AK36: ='Control panel'!$AA34/SUMPRODUCT('Control panel'!$AA$7:$AA$36,'Control panel'!AG$7:AG$36)*'Control panel'!AG34 -> 0 | AL36: ='Control panel'!$AA34/SUMPRODUCT('Control panel'!$AA$7:$AA$36,'Control panel'!AH$7:AH$36)*'Control panel'!AH34 -> 0 | AM36: ='Control panel'!$AA34/SUMPRODUCT('Control panel'!$AA$7:$AA$36,'Control panel'!AI$7:AI$36)*'Control panel'!AI34 -> 0.004783232266 | AN36: ='Control panel'!$AA34/SUMPRODUCT('Control panel'!$AA$7:$AA$36,'Control panel'!AJ$7:AJ$36)*'Control panel'!AJ34 -> 0 | AO36: ='Control panel'!$AA34/SUMPRODUCT('Control panel'!$AA$7:$AA$36,'Control panel'!AK$7:AK$36)*'Control panel'!AK34 -> 0.004783232266 | AP36: ='Control panel'!$AA34/SUMPRODUCT('Control panel'!$AA$7:$AA$36,'Control panel'!AL$7:AL$36)*'Control panel'!AL34 -> 0.004783232266 | AQ36: ='Control panel'!$AA34/SUMPRODUCT('Control panel'!$AA$7:$AA$36,'Control panel'!AM$7:AM$36)*'Control panel'!AM34 -> 0 | AR36: ='Control panel'!$AA34/SUMPRODUCT('Control panel'!$AA$7:$AA$36,'Control panel'!AN$7:AN$36)*'Control panel'!AN34 -> 0 | AT36: ='Control panel'!$AA34/SUMPRODUCT('Control panel'!$AA$7:$AA$36,'Control panel'!AP$7:AP$36)*'Control panel'!AP34 -> 0.004776287003 | AU36: ='Control panel'!$AA34/SUMPRODUCT('Control panel'!$AA$7:$AA$36,'Control panel'!AQ$7:AQ$36)*'Control panel'!AQ34 -> 0.004776287003 | AV36: ='Control panel'!$AA34/SUMPRODUCT('Control panel'!$AA$7:$AA$36,'Control panel'!AR$7:AR$36)*'Control panel'!AR34 -> 0.004776287003 | AW36: ='Control panel'!$AA34/SUMPRODUCT('Control panel'!$AA$7:$AA$36,'Control panel'!AS$7:AS$36)*'Control panel'!AS34 -> 0.004776287003 | AX36: ='Control panel'!$AA34/SUMPRODUCT('Control panel'!$AA$7:$AA$36,'Control panel'!AT$7:AT$36)*'Control panel'!AT34 -> 0.004776287003
W37: 2025-26 | X37: ='PTRM Data'!B35 -> Buildings - capital works | Y37: =_xlfn.XLOOKUP(X37,'Control panel'!$L$7:$L$36,'Control panel'!$P$7:$P$36) -> 1 | Z37: 0 | AA37: =_xlfn.XLOOKUP(W37,'BBM Costs'!$Q$6:$U$6,_xlfn.XLOOKUP(X37,'BBM Costs'!$P$7:$P$36,'BBM Costs'!$Q$7:$U$36))*_xlfn.XLOOKUP(X37,'Control panel'!$L$7:$L$36,'Control panel'!$M$7:$M$36) -> 0 | AB37: =_xlfn.XLOOKUP(W37,'BBM Costs'!$X$6:$AB$6,_xlfn.XLOOKUP(X37,'BBM Costs'!$W$7:$W$36,'BBM Costs'!$X$7:$AB$36))*_xlfn.XLOOKUP(X37,'Control panel'!$S$7:$S$36,'Control panel'!$T$7:$T$36) -> 0 | AC37: 0 | AE37: ='PTRM Data'!B35 -> Buildings - capital works | AF37: ='Control panel'!$AA35/SUMPRODUCT('Control panel'!$AA$7:$AA$36,'Control panel'!AB$7:AB$36)*'Control panel'!AB35 -> 0 | AG37: ='Control panel'!$AA35/SUMPRODUCT('Control panel'!$AA$7:$AA$36,'Control panel'!AC$7:AC$36)*'Control panel'!AC35 -> 0 | AH37: ='Control panel'!$AA35/SUMPRODUCT('Control panel'!$AA$7:$AA$36,'Control panel'!AD$7:AD$36)*'Control panel'!AD35 -> 0 | AI37: ='Control panel'!$AA35/SUMPRODUCT('Control panel'!$AA$7:$AA$36,'Control panel'!AE$7:AE$36)*'Control panel'!AE35 -> 0 | AJ37: ='Control panel'!$AA35/SUMPRODUCT('Control panel'!$AA$7:$AA$36,'Control panel'!AF$7:AF$36)*'Control panel'!AF35 -> 0.002933291021 | AK37: ='Control panel'!$AA35/SUMPRODUCT('Control panel'!$AA$7:$AA$36,'Control panel'!AG$7:AG$36)*'Control panel'!AG35 -> 0 | AL37: ='Control panel'!$AA35/SUMPRODUCT('Control panel'!$AA$7:$AA$36,'Control panel'!AH$7:AH$36)*'Control panel'!AH35 -> 0 | AM37: ='Control panel'!$AA35/SUMPRODUCT('Control panel'!$AA$7:$AA$36,'Control panel'!AI$7:AI$36)*'Control panel'!AI35 -> 0.002933291021 | AN37: ='Control panel'!$AA35/SUMPRODUCT('Control panel'!$AA$7:$AA$36,'Control panel'!AJ$7:AJ$36)*'Control panel'!AJ35 -> 0 | AO37: ='Control panel'!$AA35/SUMPRODUCT('Control panel'!$AA$7:$AA$36,'Control panel'!AK$7:AK$36)*'Control panel'!AK35 -> 0.002933291021 | AP37: ='Control panel'!$AA35/SUMPRODUCT('Control panel'!$AA$7:$AA$36,'Control panel'!AL$7:AL$36)*'Control panel'!AL35 -> 0.002933291021 | AQ37: ='Control panel'!$AA35/SUMPRODUCT('Control panel'!$AA$7:$AA$36,'Control panel'!AM$7:AM$36)*'Control panel'!AM35 -> 0 | AR37: ='Control panel'!$AA35/SUMPRODUCT('Control panel'!$AA$7:$AA$36,'Control panel'!AN$7:AN$36)*'Control panel'!AN35 -> 0 | AT37: ='Control panel'!$AA35/SUMPRODUCT('Control panel'!$AA$7:$AA$36,'Control panel'!AP$7:AP$36)*'Control panel'!AP35 -> 0.002929031876 | AU37: ='Control panel'!$AA35/SUMPRODUCT('Control panel'!$AA$7:$AA$36,'Control panel'!AQ$7:AQ$36)*'Control panel'!AQ35 -> 0.002929031876 | AV37: ='Control panel'!$AA35/SUMPRODUCT('Control panel'!$AA$7:$AA$36,'Control panel'!AR$7:AR$36)*'Control panel'!AR35 -> 0.002929031876 | AW37: ='Control panel'!$AA35/SUMPRODUCT('Control panel'!$AA$7:$AA$36,'Control panel'!AS$7:AS$36)*'Control panel'!AS35 -> 0.002929031876 | AX37: ='Control panel'!$AA35/SUMPRODUCT('Control panel'!$AA$7:$AA$36,'Control panel'!AT$7:AT$36)*'Control panel'!AT35 -> 0.002929031876
W38: 2025-26 | X38: ='PTRM Data'!B36 -> Equity raising costs | Y38: =_xlfn.XLOOKUP(X38,'Control panel'!$L$7:$L$36,'Control panel'!$P$7:$P$36) -> 1 | Z38: 0 | AA38: =_xlfn.XLOOKUP(W38,'BBM Costs'!$Q$6:$U$6,_xlfn.XLOOKUP(X38,'BBM Costs'!$P$7:$P$36,'BBM Costs'!$Q$7:$U$36))*_xlfn.XLOOKUP(X38,'Control panel'!$L$7:$L$36,'Control panel'!$M$7:$M$36) -> 0 | AB38: =_xlfn.XLOOKUP(W38,'BBM Costs'!$X$6:$AB$6,_xlfn.XLOOKUP(X38,'BBM Costs'!$W$7:$W$36,'BBM Costs'!$X$7:$AB$36))*_xlfn.XLOOKUP(X38,'Control panel'!$S$7:$S$36,'Control panel'!$T$7:$T$36) -> 0 | AC38: 0 | AE38: ='PTRM Data'!B36 -> Equity raising costs | AF38: ='Control panel'!$AA36/SUMPRODUCT('Control panel'!$AA$7:$AA$36,'Control panel'!AB$7:AB$36)*'Control panel'!AB36 -> 0 | AG38: ='Control panel'!$AA36/SUMPRODUCT('Control panel'!$AA$7:$AA$36,'Control panel'!AC$7:AC$36)*'Control panel'!AC36 -> 0 | AH38: ='Control panel'!$AA36/SUMPRODUCT('Control panel'!$AA$7:$AA$36,'Control panel'!AD$7:AD$36)*'Control panel'!AD36 -> 0 | AI38: ='Control panel'!$AA36/SUMPRODUCT('Control panel'!$AA$7:$AA$36,'Control panel'!AE$7:AE$36)*'Control panel'!AE36 -> 0 | AJ38: ='Control panel'!$AA36/SUMPRODUCT('Control panel'!$AA$7:$AA$36,'Control panel'!AF$7:AF$36)*'Control panel'!AF36 -> 0 | AK38: ='Control panel'!$AA36/SUMPRODUCT('Control panel'!$AA$7:$AA$36,'Control panel'!AG$7:AG$36)*'Control panel'!AG36 -> 0 | AL38: ='Control panel'!$AA36/SUMPRODUCT('Control panel'!$AA$7:$AA$36,'Control panel'!AH$7:AH$36)*'Control panel'!AH36 -> 0 | AM38: ='Control panel'!$AA36/SUMPRODUCT('Control panel'!$AA$7:$AA$36,'Control panel'!AI$7:AI$36)*'Control panel'!AI36 -> 0 | AN38: ='Control panel'!$AA36/SUMPRODUCT('Control panel'!$AA$7:$AA$36,'Control panel'!AJ$7:AJ$36)*'Control panel'!AJ36 -> 0 | AO38: ='Control panel'!$AA36/SUMPRODUCT('Control panel'!$AA$7:$AA$36,'Control panel'!AK$7:AK$36)*'Control panel'!AK36 -> 0 | AP38: ='Control panel'!$AA36/SUMPRODUCT('Control panel'!$AA$7:$AA$36,'Control panel'!AL$7:AL$36)*'Control panel'!AL36 -> 0 | AQ38: ='Control panel'!$AA36/SUMPRODUCT('Control panel'!$AA$7:$AA$36,'Control panel'!AM$7:AM$36)*'Control panel'!AM36 -> 0 | AR38: ='Control panel'!$AA36/SUMPRODUCT('Control panel'!$AA$7:$AA$36,'Control panel'!AN$7:AN$36)*'Control panel'!AN36 -> 0 | AT38: ='Control panel'!$AA36/SUMPRODUCT('Control panel'!$AA$7:$AA$36,'Control panel'!AP$7:AP$36)*'Control panel'!AP36 -> 0.001452002167 | AU38: ='Control panel'!$AA36/SUMPRODUCT('Control panel'!$AA$7:$AA$36,'Control panel'!AQ$7:AQ$36)*'Control panel'!AQ36 -> 0.001452002167 | AV38: ='Control panel'!$AA36/SUMPRODUCT('Control panel'!$AA$7:$AA$36,'Control panel'!AR$7:AR$36)*'Control panel'!AR36 -> 0.001452002167 | AW38: ='Control panel'!$AA36/SUMPRODUCT('Control panel'!$AA$7:$AA$36,'Control panel'!AS$7:AS$36)*'Control panel'!AS36 -> 0.001452002167 | AX38: ='Control panel'!$AA36/SUMPRODUCT('Control panel'!$AA$7:$AA$36,'Control panel'!AT$7:AT$36)*'Control panel'!AT36 -> 0.001452002167
W39: 2026-27 | X39: ='PTRM Data'!B7 -> OH Sub-transmission lines | Y39: =_xlfn.XLOOKUP(X39,'Control panel'!$L$7:$L$36,'Control panel'!$P$7:$P$36) -> 1 | Z39: 2.619590545 | AA39: =_xlfn.XLOOKUP(W39,'BBM Costs'!$Q$6:$U$6,_xlfn.XLOOKUP(X39,'BBM Costs'!$P$7:$P$36,'BBM Costs'!$Q$7:$U$36))*_xlfn.XLOOKUP(X39,'Control panel'!$L$7:$L$36,'Control panel'!$M$7:$M$36) -> 0 | AB39: =_xlfn.XLOOKUP(W39,'BBM Costs'!$X$6:$AB$6,_xlfn.XLOOKUP(X39,'BBM Costs'!$W$7:$W$36,'BBM Costs'!$X$7:$AB$36))*_xlfn.XLOOKUP(X39,'Control panel'!$S$7:$S$36,'Control panel'!$T$7:$T$36) -> 0 | AC39: 2.619590545
W40: 2026-27 | X40: ='PTRM Data'!B8 -> UG Sub-transmission cables | Y40: =_xlfn.XLOOKUP(X40,'Control panel'!$L$7:$L$36,'Control panel'!$P$7:$P$36) -> 1 | Z40: 2.893533832 | AA40: =_xlfn.XLOOKUP(W40,'BBM Costs'!$Q$6:$U$6,_xlfn.XLOOKUP(X40,'BBM Costs'!$P$7:$P$36,'BBM Costs'!$Q$7:$U$36))*_xlfn.XLOOKUP(X40,'Control panel'!$L$7:$L$36,'Control panel'!$M$7:$M$36) -> 0 | AB40: =_xlfn.XLOOKUP(W40,'BBM Costs'!$X$6:$AB$6,_xlfn.XLOOKUP(X40,'BBM Costs'!$W$7:$W$36,'BBM Costs'!$X$7:$AB$36))*_xlfn.XLOOKUP(X40,'Control panel'!$S$7:$S$36,'Control panel'!$T$7:$T$36) -> 0 | AC40: 2.893533832
W41: 2026-27 | X41: ='PTRM Data'!B9 -> OH Distribution Lines | Y41: =_xlfn.XLOOKUP(X41,'Control panel'!$L$7:$L$36,'Control panel'!$P$7:$P$36) -> 0.75 | Z41: 10.44111192 | AA41: =_xlfn.XLOOKUP(W41,'BBM Costs'!$Q$6:$U$6,_xlfn.XLOOKUP(X41,'BBM Costs'!$P$7:$P$36,'BBM Costs'!$Q$7:$U$36))*_xlfn.XLOOKUP(X41,'Control panel'!$L$7:$L$36,'Control panel'!$M$7:$M$36) -> 6.660249795 | AB41: =_xlfn.XLOOKUP(W41,'BBM Costs'!$X$6:$AB$6,_xlfn.XLOOKUP(X41,'BBM Costs'!$W$7:$W$36,'BBM Costs'!$X$7:$AB$36))*_xlfn.XLOOKUP(X41,'Control panel'!$S$7:$S$36,'Control panel'!$T$7:$T$36) -> 49.85015443 | AC41: 66.95151614
W42: 2026-27 | X42: ='PTRM Data'!B10 -> UG Distribution Cables | Y42: =_xlfn.XLOOKUP(X42,'Control panel'!$L$7:$L$36,'Control panel'!$P$7:$P$36) -> 0.75 | Z42: 8.881480779 | AA42: =_xlfn.XLOOKUP(W42,'BBM Costs'!$Q$6:$U$6,_xlfn.XLOOKUP(X42,'BBM Costs'!$P$7:$P$36,'BBM Costs'!$Q$7:$U$36))*_xlfn.XLOOKUP(X42,'Control panel'!$L$7:$L$36,'Control panel'!$M$7:$M$36) -> -0.7558564702 | AB42: =_xlfn.XLOOKUP(W42,'BBM Costs'!$X$6:$AB$6,_xlfn.XLOOKUP(X42,'BBM Costs'!$W$7:$W$36,'BBM Costs'!$X$7:$AB$36))*_xlfn.XLOOKUP(X42,'Control panel'!$S$7:$S$36,'Control panel'!$T$7:$T$36) -> 40.72484863 | AC42: 48.85047294
W43: 2026-27 | X43: ='PTRM Data'!B11 -> Distribution Equipment | Y43: =_xlfn.XLOOKUP(X43,'Control panel'!$L$7:$L$36,'Control panel'!$P$7:$P$36) -> 0.75 | Z43: 1.672667427 | AA43: =_xlfn.XLOOKUP(W43,'BBM Costs'!$Q$6:$U$6,_xlfn.XLOOKUP(X43,'BBM Costs'!$P$7:$P$36,'BBM Costs'!$Q$7:$U$36))*_xlfn.XLOOKUP(X43,'Control panel'!$L$7:$L$36,'Control panel'!$M$7:$M$36) -> 2.136341642 | AB43: =_xlfn.XLOOKUP(W43,'BBM Costs'!$X$6:$AB$6,_xlfn.XLOOKUP(X43,'BBM Costs'!$W$7:$W$36,'BBM Costs'!$X$7:$AB$36))*_xlfn.XLOOKUP(X43,'Control panel'!$S$7:$S$36,'Control panel'!$T$7:$T$36) -> 7.968864417 | AC43: 11.77787349
W44: 2026-27 | X44: ='PTRM Data'!B12 -> Substation Bays | Y44: =_xlfn.XLOOKUP(X44,'Control panel'!$L$7:$L$36,'Control panel'!$P$7:$P$36) -> 1 | Z44: 2.757555329 | AA44: =_xlfn.XLOOKUP(W44,'BBM Costs'!$Q$6:$U$6,_xlfn.XLOOKUP(X44,'BBM Costs'!$P$7:$P$36,'BBM Costs'!$Q$7:$U$36))*_xlfn.XLOOKUP(X44,'Control panel'!$L$7:$L$36,'Control panel'!$M$7:$M$36) -> 0 | AB44: =_xlfn.XLOOKUP(W44,'BBM Costs'!$X$6:$AB$6,_xlfn.XLOOKUP(X44,'BBM Costs'!$W$7:$W$36,'BBM Costs'!$X$7:$AB$36))*_xlfn.XLOOKUP(X44,'Control panel'!$S$7:$S$36,'Control panel'!$T$7:$T$36) -> 0 | AC44: 2.757555329
W45: 2026-27 | X45: ='PTRM Data'!B13 -> Substation Establishment | Y45: =_xlfn.XLOOKUP(X45,'Control panel'!$L$7:$L$36,'Control panel'!$P$7:$P$36) -> 1 | Z45: 1.901840323 | AA45: =_xlfn.XLOOKUP(W45,'BBM Costs'!$Q$6:$U$6,_xlfn.XLOOKUP(X45,'BBM Costs'!$P$7:$P$36,'BBM Costs'!$Q$7:$U$36))*_xlfn.XLOOKUP(X45,'Control panel'!$L$7:$L$36,'Control panel'!$M$7:$M$36) -> 0 | AB45: =_xlfn.XLOOKUP(W45,'BBM Costs'!$X$6:$AB$6,_xlfn.XLOOKUP(X45,'BBM Costs'!$W$7:$W$36,'BBM Costs'!$X$7:$AB$36))*_xlfn.XLOOKUP(X45,'Control panel'!$S$7:$S$36,'Control panel'!$T$7:$T$36) -> 0 | AC45: 1.901840323
W46: 2026-27 | X46: ='PTRM Data'!B14 -> Distribution Substation Switchgear | Y46: =_xlfn.XLOOKUP(X46,'Control panel'!$L$7:$L$36,'Control panel'!$P$7:$P$36) -> 0.75 | Z46: 0.6539767786 | AA46: =_xlfn.XLOOKUP(W46,'BBM Costs'!$Q$6:$U$6,_xlfn.XLOOKUP(X46,'BBM Costs'!$P$7:$P$36,'BBM Costs'!$Q$7:$U$36))*_xlfn.XLOOKUP(X46,'Control panel'!$L$7:$L$36,'Control panel'!$M$7:$M$36) -> 0.3607406312 | AB46: =_xlfn.XLOOKUP(W46,'BBM Costs'!$X$6:$AB$6,_xlfn.XLOOKUP(X46,'BBM Costs'!$W$7:$W$36,'BBM Costs'!$X$7:$AB$36))*_xlfn.XLOOKUP(X46,'Control panel'!$S$7:$S$36,'Control panel'!$T$7:$T$36) -> 2.956049514 | AC46: 3.970766924
W47: 2026-27 | X47: ='PTRM Data'!B15 -> Zone Transformers | Y47: =_xlfn.XLOOKUP(X47,'Control panel'!$L$7:$L$36,'Control panel'!$P$7:$P$36) -> 1 | Z47: 3.675227482 | AA47: =_xlfn.XLOOKUP(W47,'BBM Costs'!$Q$6:$U$6,_xlfn.XLOOKUP(X47,'BBM Costs'!$P$7:$P$36,'BBM Costs'!$Q$7:$U$36))*_xlfn.XLOOKUP(X47,'Control panel'!$L$7:$L$36,'Control panel'!$M$7:$M$36) -> 0 | AB47: =_xlfn.XLOOKUP(W47,'BBM Costs'!$X$6:$AB$6,_xlfn.XLOOKUP(X47,'BBM Costs'!$W$7:$W$36,'BBM Costs'!$X$7:$AB$36))*_xlfn.XLOOKUP(X47,'Control panel'!$S$7:$S$36,'Control panel'!$T$7:$T$36) -> 0 | AC47: 3.675227482
W48: 2026-27 | X48: ='PTRM Data'!B16 -> Distribution Transformers | Y48: =_xlfn.XLOOKUP(X48,'Control panel'!$L$7:$L$36,'Control panel'!$P$7:$P$36) -> 0.2 | Z48: 5.926162607 | AA48: =_xlfn.XLOOKUP(W48,'BBM Costs'!$Q$6:$U$6,_xlfn.XLOOKUP(X48,'BBM Costs'!$P$7:$P$36,'BBM Costs'!$Q$7:$U$36))*_xlfn.XLOOKUP(X48,'Control panel'!$L$7:$L$36,'Control panel'!$M$7:$M$36) -> 7.794540907 | AB48: =_xlfn.XLOOKUP(W48,'BBM Costs'!$X$6:$AB$6,_xlfn.XLOOKUP(X48,'BBM Costs'!$W$7:$W$36,'BBM Costs'!$X$7:$AB$36))*_xlfn.XLOOKUP(X48,'Control panel'!$S$7:$S$36,'Control panel'!$T$7:$T$36) -> 27.49806343 | AC48: 41.21876694
W49: 2026-27 | X49: ='PTRM Data'!B17 -> Low Voltage Services | Y49: =_xlfn.XLOOKUP(X49,'Control panel'!$L$7:$L$36,'Control panel'!$P$7:$P$36) -> 0 | Z49: 2.733324297 | AA49: =_xlfn.XLOOKUP(W49,'BBM Costs'!$Q$6:$U$6,_xlfn.XLOOKUP(X49,'BBM Costs'!$P$7:$P$36,'BBM Costs'!$Q$7:$U$36))*_xlfn.XLOOKUP(X49,'Control panel'!$L$7:$L$36,'Control panel'!$M$7:$M$36) -> 0 | AB49: =_xlfn.XLOOKUP(W49,'BBM Costs'!$X$6:$AB$6,_xlfn.XLOOKUP(X49,'BBM Costs'!$W$7:$W$36,'BBM Costs'!$X$7:$AB$36))*_xlfn.XLOOKUP(X49,'Control panel'!$S$7:$S$36,'Control panel'!$T$7:$T$36) -> 0 | AC49: 2.733324297
W50: 2026-27 | X50: ='PTRM Data'!B18 -> Load Control & Network Metering Devices | Y50: =_xlfn.XLOOKUP(X50,'Control panel'!$L$7:$L$36,'Control panel'!$P$7:$P$36) -> 0 | Z50: 0.2690147822 | AA50: =_xlfn.XLOOKUP(W50,'BBM Costs'!$Q$6:$U$6,_xlfn.XLOOKUP(X50,'BBM Costs'!$P$7:$P$36,'BBM Costs'!$Q$7:$U$36))*_xlfn.XLOOKUP(X50,'Control panel'!$L$7:$L$36,'Control panel'!$M$7:$M$36) -> 0 | AB50: =_xlfn.XLOOKUP(W50,'BBM Costs'!$X$6:$AB$6,_xlfn.XLOOKUP(X50,'BBM Costs'!$W$7:$W$36,'BBM Costs'!$X$7:$AB$36))*_xlfn.XLOOKUP(X50,'Control panel'!$S$7:$S$36,'Control panel'!$T$7:$T$36) -> 0 | AC50: 0.2690147822
W51: 2026-27 | X51: ='PTRM Data'!B19 -> Communications - Pilot Wires | Y51: =_xlfn.XLOOKUP(X51,'Control panel'!$L$7:$L$36,'Control panel'!$P$7:$P$36) -> 1 | Z51: 1.711176252 | AA51: =_xlfn.XLOOKUP(W51,'BBM Costs'!$Q$6:$U$6,_xlfn.XLOOKUP(X51,'BBM Costs'!$P$7:$P$36,'BBM Costs'!$Q$7:$U$36))*_xlfn.XLOOKUP(X51,'Control panel'!$L$7:$L$36,'Control panel'!$M$7:$M$36) -> 0 | AB51: =_xlfn.XLOOKUP(W51,'BBM Costs'!$X$6:$AB$6,_xlfn.XLOOKUP(X51,'BBM Costs'!$W$7:$W$36,'BBM Costs'!$X$7:$AB$36))*_xlfn.XLOOKUP(X51,'Control panel'!$S$7:$S$36,'Control panel'!$T$7:$T$36) -> 0 | AC51: 1.711176252
W52: 2026-27 | X52: ='PTRM Data'!B20 -> Streetlighting (Residual Rate 2 Assets) | Y52: =_xlfn.XLOOKUP(X52,'Control panel'!$L$7:$L$36,'Control panel'!$P$7:$P$36) -> 1 | Z52: 0 | AA52: =_xlfn.XLOOKUP(W52,'BBM Costs'!$Q$6:$U$6,_xlfn.XLOOKUP(X52,'BBM Costs'!$P$7:$P$36,'BBM Costs'!$Q$7:$U$36))*_xlfn.XLOOKUP(X52,'Control panel'!$L$7:$L$36,'Control panel'!$M$7:$M$36) -> 0 | AB52: =_xlfn.XLOOKUP(W52,'BBM Costs'!$X$6:$AB$6,_xlfn.XLOOKUP(X52,'BBM Costs'!$W$7:$W$36,'BBM Costs'!$X$7:$AB$36))*_xlfn.XLOOKUP(X52,'Control panel'!$S$7:$S$36,'Control panel'!$T$7:$T$36) -> 0 | AC52: 0
W53: 2026-27 | X53: ='PTRM Data'!B21 -> Systems Buildings | Y53: =_xlfn.XLOOKUP(X53,'Control panel'!$L$7:$L$36,'Control panel'!$P$7:$P$36) -> 1 | Z53: 1.054332936 | AA53: =_xlfn.XLOOKUP(W53,'BBM Costs'!$Q$6:$U$6,_xlfn.XLOOKUP(X53,'BBM Costs'!$P$7:$P$36,'BBM Costs'!$Q$7:$U$36))*_xlfn.XLOOKUP(X53,'Control panel'!$L$7:$L$36,'Control panel'!$M$7:$M$36) -> 0 | AB53: =_xlfn.XLOOKUP(W53,'BBM Costs'!$X$6:$AB$6,_xlfn.XLOOKUP(X53,'BBM Costs'!$W$7:$W$36,'BBM Costs'!$X$7:$AB$36))*_xlfn.XLOOKUP(X53,'Control panel'!$S$7:$S$36,'Control panel'!$T$7:$T$36) -> 0 | AC53: 1.054332936
W54: 2026-27 | X54: ='PTRM Data'!B22 -> Systems Easements | Y54: =_xlfn.XLOOKUP(X54,'Control panel'!$L$7:$L$36,'Control panel'!$P$7:$P$36) -> 1 | Z54: 0.6331354319 | AA54: =_xlfn.XLOOKUP(W54,'BBM Costs'!$Q$6:$U$6,_xlfn.XLOOKUP(X54,'BBM Costs'!$P$7:$P$36,'BBM Costs'!$Q$7:$U$36))*_xlfn.XLOOKUP(X54,'Control panel'!$L$7:$L$36,'Control panel'!$M$7:$M$36) -> 0 | AB54: =_xlfn.XLOOKUP(W54,'BBM Costs'!$X$6:$AB$6,_xlfn.XLOOKUP(X54,'BBM Costs'!$W$7:$W$36,'BBM Costs'!$X$7:$AB$36))*_xlfn.XLOOKUP(X54,'Control panel'!$S$7:$S$36,'Control panel'!$T$7:$T$36) -> 0 | AC54: 0.6331354319
W55: 2026-27 | X55: ='PTRM Data'!B23 -> System Land | Y55: =_xlfn.XLOOKUP(X55,'Control panel'!$L$7:$L$36,'Control panel'!$P$7:$P$36) -> 1 | Z55: 0 | AA55: =_xlfn.XLOOKUP(W55,'BBM Costs'!$Q$6:$U$6,_xlfn.XLOOKUP(X55,'BBM Costs'!$P$7:$P$36,'BBM Costs'!$Q$7:$U$36))*_xlfn.XLOOKUP(X55,'Control panel'!$L$7:$L$36,'Control panel'!$M$7:$M$36) -> 0 | AB55: =_xlfn.XLOOKUP(W55,'BBM Costs'!$X$6:$AB$6,_xlfn.XLOOKUP(X55,'BBM Costs'!$W$7:$W$36,'BBM Costs'!$X$7:$AB$36))*_xlfn.XLOOKUP(X55,'Control panel'!$S$7:$S$36,'Control panel'!$T$7:$T$36) -> 0 | AC55: 0
W56: 2026-27 | X56: ='PTRM Data'!B24 -> Control Centre - SCADA | Y56: =_xlfn.XLOOKUP(X56,'Control panel'!$L$7:$L$36,'Control panel'!$P$7:$P$36) -> 1 | Z56: 0.002488024252 | AA56: =_xlfn.XLOOKUP(W56,'BBM Costs'!$Q$6:$U$6,_xlfn.XLOOKUP(X56,'BBM Costs'!$P$7:$P$36,'BBM Costs'!$Q$7:$U$36))*_xlfn.XLOOKUP(X56,'Control panel'!$L$7:$L$36,'Control panel'!$M$7:$M$36) -> 0 | AB56: =_xlfn.XLOOKUP(W56,'BBM Costs'!$X$6:$AB$6,_xlfn.XLOOKUP(X56,'BBM Costs'!$W$7:$W$36,'BBM Costs'!$X$7:$AB$36))*_xlfn.XLOOKUP(X56,'Control panel'!$S$7:$S$36,'Control panel'!$T$7:$T$36) -> 0 | AC56: 0.002488024252
W57: 2026-27 | X57: ='PTRM Data'!B25 -> Motor Vehicles | Y57: =_xlfn.XLOOKUP(X57,'Control panel'!$L$7:$L$36,'Control panel'!$P$7:$P$36) -> 1 | Z57: 0 | AA57: =_xlfn.XLOOKUP(W57,'BBM Costs'!$Q$6:$U$6,_xlfn.XLOOKUP(X57,'BBM Costs'!$P$7:$P$36,'BBM Costs'!$Q$7:$U$36))*_xlfn.XLOOKUP(X57,'Control panel'!$L$7:$L$36,'Control panel'!$M$7:$M$36) -> 0 | AB57: =_xlfn.XLOOKUP(W57,'BBM Costs'!$X$6:$AB$6,_xlfn.XLOOKUP(X57,'BBM Costs'!$W$7:$W$36,'BBM Costs'!$X$7:$AB$36))*_xlfn.XLOOKUP(X57,'Control panel'!$S$7:$S$36,'Control panel'!$T$7:$T$36) -> 0 | AC57: 0
W58: 2026-27 | X58: ='PTRM Data'!B26 -> Plant & Equipment | Y58: =_xlfn.XLOOKUP(X58,'Control panel'!$L$7:$L$36,'Control panel'!$P$7:$P$36) -> 1 | Z58: 0 | AA58: =_xlfn.XLOOKUP(W58,'BBM Costs'!$Q$6:$U$6,_xlfn.XLOOKUP(X58,'BBM Costs'!$P$7:$P$36,'BBM Costs'!$Q$7:$U$36))*_xlfn.XLOOKUP(X58,'Control panel'!$L$7:$L$36,'Control panel'!$M$7:$M$36) -> 0 | AB58: =_xlfn.XLOOKUP(W58,'BBM Costs'!$X$6:$AB$6,_xlfn.XLOOKUP(X58,'BBM Costs'!$W$7:$W$36,'BBM Costs'!$X$7:$AB$36))*_xlfn.XLOOKUP(X58,'Control panel'!$S$7:$S$36,'Control panel'!$T$7:$T$36) -> 0 | AC58: 0
W59: 2026-27 | X59: ='PTRM Data'!B27 -> Buildings | Y59: =_xlfn.XLOOKUP(X59,'Control panel'!$L$7:$L$36,'Control panel'!$P$7:$P$36) -> 1 | Z59: 0 | AA59: =_xlfn.XLOOKUP(W59,'BBM Costs'!$Q$6:$U$6,_xlfn.XLOOKUP(X59,'BBM Costs'!$P$7:$P$36,'BBM Costs'!$Q$7:$U$36))*_xlfn.XLOOKUP(X59,'Control panel'!$L$7:$L$36,'Control panel'!$M$7:$M$36) -> 0 | AB59: =_xlfn.XLOOKUP(W59,'BBM Costs'!$X$6:$AB$6,_xlfn.XLOOKUP(X59,'BBM Costs'!$W$7:$W$36,'BBM Costs'!$X$7:$AB$36))*_xlfn.XLOOKUP(X59,'Control panel'!$S$7:$S$36,'Control panel'!$T$7:$T$36) -> 0 | AC59: 0
W60: 2026-27 | X60: ='PTRM Data'!B28 -> Office Equipment & Furniture | Y60: =_xlfn.XLOOKUP(X60,'Control panel'!$L$7:$L$36,'Control panel'!$P$7:$P$36) -> 1 | Z60: 0 | AA60: =_xlfn.XLOOKUP(W60,'BBM Costs'!$Q$6:$U$6,_xlfn.XLOOKUP(X60,'BBM Costs'!$P$7:$P$36,'BBM Costs'!$Q$7:$U$36))*_xlfn.XLOOKUP(X60,'Control panel'!$L$7:$L$36,'Control panel'!$M$7:$M$36) -> 0 | AB60: =_xlfn.XLOOKUP(W60,'BBM Costs'!$X$6:$AB$6,_xlfn.XLOOKUP(X60,'BBM Costs'!$W$7:$W$36,'BBM Costs'!$X$7:$AB$36))*_xlfn.XLOOKUP(X60,'Control panel'!$S$7:$S$36,'Control panel'!$T$7:$T$36) -> 0 | AC60: 0
W61: 2026-27 | X61: ='PTRM Data'!B29 -> Initial Leases (10 yr life) | Y61: =_xlfn.XLOOKUP(X61,'Control panel'!$L$7:$L$36,'Control panel'!$P$7:$P$36) -> 1 | Z61: 0 | AA61: =_xlfn.XLOOKUP(W61,'BBM Costs'!$Q$6:$U$6,_xlfn.XLOOKUP(X61,'BBM Costs'!$P$7:$P$36,'BBM Costs'!$Q$7:$U$36))*_xlfn.XLOOKUP(X61,'Control panel'!$L$7:$L$36,'Control panel'!$M$7:$M$36) -> 0 | AB61: =_xlfn.XLOOKUP(W61,'BBM Costs'!$X$6:$AB$6,_xlfn.XLOOKUP(X61,'BBM Costs'!$W$7:$W$36,'BBM Costs'!$X$7:$AB$36))*_xlfn.XLOOKUP(X61,'Control panel'!$S$7:$S$36,'Control panel'!$T$7:$T$36) -> 0 | AC61: 0
W62: 2026-27 | X62: ='PTRM Data'!B30 -> Lease Extensions (5yr Life) | Y62: =_xlfn.XLOOKUP(X62,'Control panel'!$L$7:$L$36,'Control panel'!$P$7:$P$36) -> 1 | Z62: 0 | AA62: =_xlfn.XLOOKUP(W62,'BBM Costs'!$Q$6:$U$6,_xlfn.XLOOKUP(X62,'BBM Costs'!$P$7:$P$36,'BBM Costs'!$Q$7:$U$36))*_xlfn.XLOOKUP(X62,'Control panel'!$L$7:$L$36,'Control panel'!$M$7:$M$36) -> 0 | AB62: =_xlfn.XLOOKUP(W62,'BBM Costs'!$X$6:$AB$6,_xlfn.XLOOKUP(X62,'BBM Costs'!$W$7:$W$36,'BBM Costs'!$X$7:$AB$36))*_xlfn.XLOOKUP(X62,'Control panel'!$S$7:$S$36,'Control panel'!$T$7:$T$36) -> 0 | AC62: 0
W63: 2026-27 | X63: ='PTRM Data'!B31 -> Land | Y63: =_xlfn.XLOOKUP(X63,'Control panel'!$L$7:$L$36,'Control panel'!$P$7:$P$36) -> 1 | Z63: 0 | AA63: =_xlfn.XLOOKUP(W63,'BBM Costs'!$Q$6:$U$6,_xlfn.XLOOKUP(X63,'BBM Costs'!$P$7:$P$36,'BBM Costs'!$Q$7:$U$36))*_xlfn.XLOOKUP(X63,'Control panel'!$L$7:$L$36,'Control panel'!$M$7:$M$36) -> 0 | AB63: =_xlfn.XLOOKUP(W63,'BBM Costs'!$X$6:$AB$6,_xlfn.XLOOKUP(X63,'BBM Costs'!$W$7:$W$36,'BBM Costs'!$X$7:$AB$36))*_xlfn.XLOOKUP(X63,'Control panel'!$S$7:$S$36,'Control panel'!$T$7:$T$36) -> 0 | AC63: 0
W64: 2026-27 | X64: ='PTRM Data'!B32 -> In-house software | Y64: =_xlfn.XLOOKUP(X64,'Control panel'!$L$7:$L$36,'Control panel'!$P$7:$P$36) -> 1 | Z64: 0 | AA64: =_xlfn.XLOOKUP(W64,'BBM Costs'!$Q$6:$U$6,_xlfn.XLOOKUP(X64,'BBM Costs'!$P$7:$P$36,'BBM Costs'!$Q$7:$U$36))*_xlfn.XLOOKUP(X64,'Control panel'!$L$7:$L$36,'Control panel'!$M$7:$M$36) -> 0 | AB64: =_xlfn.XLOOKUP(W64,'BBM Costs'!$X$6:$AB$6,_xlfn.XLOOKUP(X64,'BBM Costs'!$W$7:$W$36,'BBM Costs'!$X$7:$AB$36))*_xlfn.XLOOKUP(X64,'Control panel'!$S$7:$S$36,'Control panel'!$T$7:$T$36) -> 0 | AC64: 0
W65: 2026-27 | X65: ='PTRM Data'!B33 -> IT Systems | Y65: =_xlfn.XLOOKUP(X65,'Control panel'!$L$7:$L$36,'Control panel'!$P$7:$P$36) -> 1 | Z65: 0 | AA65: =_xlfn.XLOOKUP(W65,'BBM Costs'!$Q$6:$U$6,_xlfn.XLOOKUP(X65,'BBM Costs'!$P$7:$P$36,'BBM Costs'!$Q$7:$U$36))*_xlfn.XLOOKUP(X65,'Control panel'!$L$7:$L$36,'Control panel'!$M$7:$M$36) -> 0 | AB65: =_xlfn.XLOOKUP(W65,'BBM Costs'!$X$6:$AB$6,_xlfn.XLOOKUP(X65,'BBM Costs'!$W$7:$W$36,'BBM Costs'!$X$7:$AB$36))*_xlfn.XLOOKUP(X65,'Control panel'!$S$7:$S$36,'Control panel'!$T$7:$T$36) -> 0 | AC65: 0
W66: 2026-27 | X66: ='PTRM Data'!B34 -> Legacy ICT Assets | Y66: =_xlfn.XLOOKUP(X66,'Control panel'!$L$7:$L$36,'Control panel'!$P$7:$P$36) -> 1 | Z66: 0 | AA66: =_xlfn.XLOOKUP(W66,'BBM Costs'!$Q$6:$U$6,_xlfn.XLOOKUP(X66,'BBM Costs'!$P$7:$P$36,'BBM Costs'!$Q$7:$U$36))*_xlfn.XLOOKUP(X66,'Control panel'!$L$7:$L$36,'Control panel'!$M$7:$M$36) -> 0 | AB66: =_xlfn.XLOOKUP(W66,'BBM Costs'!$X$6:$AB$6,_xlfn.XLOOKUP(X66,'BBM Costs'!$W$7:$W$36,'BBM Costs'!$X$7:$AB$36))*_xlfn.XLOOKUP(X66,'Control panel'!$S$7:$S$36,'Control panel'!$T$7:$T$36) -> 0 | AC66: 0
W67: 2026-27 | X67: ='PTRM Data'!B35 -> Buildings - capital works | Y67: =_xlfn.XLOOKUP(X67,'Control panel'!$L$7:$L$36,'Control panel'!$P$7:$P$36) -> 1 | Z67: 0 | AA67: =_xlfn.XLOOKUP(W67,'BBM Costs'!$Q$6:$U$6,_xlfn.XLOOKUP(X67,'BBM Costs'!$P$7:$P$36,'BBM Costs'!$Q$7:$U$36))*_xlfn.XLOOKUP(X67,'Control panel'!$L$7:$L$36,'Control panel'!$M$7:$M$36) -> 0 | AB67: =_xlfn.XLOOKUP(W67,'BBM Costs'!$X$6:$AB$6,_xlfn.XLOOKUP(X67,'BBM Costs'!$W$7:$W$36,'BBM Costs'!$X$7:$AB$36))*_xlfn.XLOOKUP(X67,'Control panel'!$S$7:$S$36,'Control panel'!$T$7:$T$36) -> 0 | AC67: 0
W68: 2026-27 | X68: ='PTRM Data'!B36 -> Equity raising costs | Y68: =_xlfn.XLOOKUP(X68,'Control panel'!$L$7:$L$36,'Control panel'!$P$7:$P$36) -> 1 | Z68: 0 | AA68: =_xlfn.XLOOKUP(W68,'BBM Costs'!$Q$6:$U$6,_xlfn.XLOOKUP(X68,'BBM Costs'!$P$7:$P$36,'BBM Costs'!$Q$7:$U$36))*_xlfn.XLOOKUP(X68,'Control panel'!$L$7:$L$36,'Control panel'!$M$7:$M$36) -> 0 | AB68: =_xlfn.XLOOKUP(W68,'BBM Costs'!$X$6:$AB$6,_xlfn.XLOOKUP(X68,'BBM Costs'!$W$7:$W$36,'BBM Costs'!$X$7:$AB$36))*_xlfn.XLOOKUP(X68,'Control panel'!$S$7:$S$36,'Control panel'!$T$7:$T$36) -> 0 | AC68: 0
W69: 2027-28 | X69: ='PTRM Data'!B7 -> OH Sub-transmission lines | Y69: =_xlfn.XLOOKUP(X69,'Control panel'!$L$7:$L$36,'Control panel'!$P$7:$P$36) -> 1 | Z69: 2.759798115 | AA69: =_xlfn.XLOOKUP(W69,'BBM Costs'!$Q$6:$U$6,_xlfn.XLOOKUP(X69,'BBM Costs'!$P$7:$P$36,'BBM Costs'!$Q$7:$U$36))*_xlfn.XLOOKUP(X69,'Control panel'!$L$7:$L$36,'Control panel'!$M$7:$M$36) -> 0 | AB69: =_xlfn.XLOOKUP(W69,'BBM Costs'!$X$6:$AB$6,_xlfn.XLOOKUP(X69,'BBM Costs'!$W$7:$W$36,'BBM Costs'!$X$7:$AB$36))*_xlfn.XLOOKUP(X69,'Control panel'!$S$7:$S$36,'Control panel'!$T$7:$T$36) -> 0 | AC69: 2.759798115
W70: 2027-28 | X70: ='PTRM Data'!B8 -> UG Sub-transmission cables | Y70: =_xlfn.XLOOKUP(X70,'Control panel'!$L$7:$L$36,'Control panel'!$P$7:$P$36) -> 1 | Z70: 3.048403588 | AA70: =_xlfn.XLOOKUP(W70,'BBM Costs'!$Q$6:$U$6,_xlfn.XLOOKUP(X70,'BBM Costs'!$P$7:$P$36,'BBM Costs'!$Q$7:$U$36))*_xlfn.XLOOKUP(X70,'Control panel'!$L$7:$L$36,'Control panel'!$M$7:$M$36) -> 0 | AB70: =_xlfn.XLOOKUP(W70,'BBM Costs'!$X$6:$AB$6,_xlfn.XLOOKUP(X70,'BBM Costs'!$W$7:$W$36,'BBM Costs'!$X$7:$AB$36))*_xlfn.XLOOKUP(X70,'Control panel'!$S$7:$S$36,'Control panel'!$T$7:$T$36) -> 0 | AC70: 3.048403588
W71: 2027-28 | X71: ='PTRM Data'!B9 -> OH Distribution Lines | Y71: =_xlfn.XLOOKUP(X71,'Control panel'!$L$7:$L$36,'Control panel'!$P$7:$P$36) -> 0.75 | Z71: 10.99994846 | AA71: =_xlfn.XLOOKUP(W71,'BBM Costs'!$Q$6:$U$6,_xlfn.XLOOKUP(X71,'BBM Costs'!$P$7:$P$36,'BBM Costs'!$Q$7:$U$36))*_xlfn.XLOOKUP(X71,'Control panel'!$L$7:$L$36,'Control panel'!$M$7:$M$36) -> 7.203486178 | AB71: =_xlfn.XLOOKUP(W71,'BBM Costs'!$X$6:$AB$6,_xlfn.XLOOKUP(X71,'BBM Costs'!$W$7:$W$36,'BBM Costs'!$X$7:$AB$36))*_xlfn.XLOOKUP(X71,'Control panel'!$S$7:$S$36,'Control panel'!$T$7:$T$36) -> 54.45664798 | AC71: 72.66008262
W72: 2027-28 | X72: ='PTRM Data'!B10 -> UG Distribution Cables | Y72: =_xlfn.XLOOKUP(X72,'Control panel'!$L$7:$L$36,'Control panel'!$P$7:$P$36) -> 0.75 | Z72: 9.356841649 | AA72: =_xlfn.XLOOKUP(W72,'BBM Costs'!$Q$6:$U$6,_xlfn.XLOOKUP(X72,'BBM Costs'!$P$7:$P$36,'BBM Costs'!$Q$7:$U$36))*_xlfn.XLOOKUP(X72,'Control panel'!$L$7:$L$36,'Control panel'!$M$7:$M$36) -> -0.3125890883 | AB72: =_xlfn.XLOOKUP(W72,'BBM Costs'!$X$6:$AB$6,_xlfn.XLOOKUP(X72,'BBM Costs'!$W$7:$W$36,'BBM Costs'!$X$7:$AB$36))*_xlfn.XLOOKUP(X72,'Control panel'!$S$7:$S$36,'Control panel'!$T$7:$T$36) -> 42.6046764 | AC72: 51.64892896
W73: 2027-28 | X73: ='PTRM Data'!B11 -> Distribution Equipment | Y73: =_xlfn.XLOOKUP(X73,'Control panel'!$L$7:$L$36,'Control panel'!$P$7:$P$36) -> 0.75 | Z73: 1.762193111 | AA73: =_xlfn.XLOOKUP(W73,'BBM Costs'!$Q$6:$U$6,_xlfn.XLOOKUP(X73,'BBM Costs'!$P$7:$P$36,'BBM Costs'!$Q$7:$U$36))*_xlfn.XLOOKUP(X73,'Control panel'!$L$7:$L$36,'Control panel'!$M$7:$M$36) -> 2.304707107 | AB73: =_xlfn.XLOOKUP(W73,'BBM Costs'!$X$6:$AB$6,_xlfn.XLOOKUP(X73,'BBM Costs'!$W$7:$W$36,'BBM Costs'!$X$7:$AB$36))*_xlfn.XLOOKUP(X73,'Control panel'!$S$7:$S$36,'Control panel'!$T$7:$T$36) -> 8.638252234 | AC73: 12.70515245
W74: 2027-28 | X74: ='PTRM Data'!B12 -> Substation Bays | Y74: =_xlfn.XLOOKUP(X74,'Control panel'!$L$7:$L$36,'Control panel'!$P$7:$P$36) -> 1 | Z74: =SUMPRODUCT(_xlfn.XLOOKUP(W74,$AZ$9:$AZ$13,$BA$9:$BS$13),_xlfn.XLOOKUP(X74,$AE$9:$AE$38,$AF$9:$AX$38)) -> 2.905147147 | AA74: =_xlfn.XLOOKUP(W74,'BBM Costs'!$Q$6:$U$6,_xlfn.XLOOKUP(X74,'BBM Costs'!$P$7:$P$36,'BBM Costs'!$Q$7:$U$36))*_xlfn.XLOOKUP(X74,'Control panel'!$L$7:$L$36,'Control panel'!$M$7:$M$36) -> 0 | AB74: =_xlfn.XLOOKUP(W74,'BBM Costs'!$X$6:$AB$6,_xlfn.XLOOKUP(X74,'BBM Costs'!$W$7:$W$36,'BBM Costs'!$X$7:$AB$36))*_xlfn.XLOOKUP(X74,'Control panel'!$S$7:$S$36,'Control panel'!$T$7:$T$36) -> 0 | AC74: =SUM(Z74:AB74) -> 2.905147147
W75: 2027-28 | X75: ='PTRM Data'!B13 -> Substation Establishment | Y75: =_xlfn.XLOOKUP(X75,'Control panel'!$L$7:$L$36,'Control panel'!$P$7:$P$36) -> 1 | Z75: 2.00363196 | AA75: =_xlfn.XLOOKUP(W75,'BBM Costs'!$Q$6:$U$6,_xlfn.XLOOKUP(X75,'BBM Costs'!$P$7:$P$36,'BBM Costs'!$Q$7:$U$36))*_xlfn.XLOOKUP(X75,'Control panel'!$L$7:$L$36,'Control panel'!$M$7:$M$36) -> 0 | AB75: =_xlfn.XLOOKUP(W75,'BBM Costs'!$X$6:$AB$6,_xlfn.XLOOKUP(X75,'BBM Costs'!$W$7:$W$36,'BBM Costs'!$X$7:$AB$36))*_xlfn.XLOOKUP(X75,'Control panel'!$S$7:$S$36,'Control panel'!$T$7:$T$36) -> 0 | AC75: 2.00363196
W76: 2027-28 | X76: ='PTRM Data'!B14 -> Distribution Substation Switchgear | Y76: =_xlfn.XLOOKUP(X76,'Control panel'!$L$7:$L$36,'Control panel'!$P$7:$P$36) -> 0.75 | Z76: 0.6889793844 | AA76: =_xlfn.XLOOKUP(W76,'BBM Costs'!$Q$6:$U$6,_xlfn.XLOOKUP(X76,'BBM Costs'!$P$7:$P$36,'BBM Costs'!$Q$7:$U$36))*_xlfn.XLOOKUP(X76,'Control panel'!$L$7:$L$36,'Control panel'!$M$7:$M$36) -> 0.4087104689 | AB76: =_xlfn.XLOOKUP(W76,'BBM Costs'!$X$6:$AB$6,_xlfn.XLOOKUP(X76,'BBM Costs'!$W$7:$W$36,'BBM Costs'!$X$7:$AB$36))*_xlfn.XLOOKUP(X76,'Control panel'!$S$7:$S$36,'Control panel'!$T$7:$T$36) -> 3.045974697 | AC76: 4.143664551
W77: 2027-28 | X77: ='PTRM Data'!B15 -> Zone Transformers | Y77: =_xlfn.XLOOKUP(X77,'Control panel'!$L$7:$L$36,'Control panel'!$P$7:$P$36) -> 1 | Z77: 3.871935596 | AA77: =_xlfn.XLOOKUP(W77,'BBM Costs'!$Q$6:$U$6,_xlfn.XLOOKUP(X77,'BBM Costs'!$P$7:$P$36,'BBM Costs'!$Q$7:$U$36))*_xlfn.XLOOKUP(X77,'Control panel'!$L$7:$L$36,'Control panel'!$M$7:$M$36) -> 0 | AB77: =_xlfn.XLOOKUP(W77,'BBM Costs'!$X$6:$AB$6,_xlfn.XLOOKUP(X77,'BBM Costs'!$W$7:$W$36,'BBM Costs'!$X$7:$AB$36))*_xlfn.XLOOKUP(X77,'Control panel'!$S$7:$S$36,'Control panel'!$T$7:$T$36) -> 0 | AC77: 3.871935596
W78: 2027-28 | X78: ='PTRM Data'!B16 -> Distribution Transformers | Y78: =_xlfn.XLOOKUP(X78,'Control panel'!$L$7:$L$36,'Control panel'!$P$7:$P$36) -> 0.2 | Z78: 6.243346856 | AA78: =_xlfn.XLOOKUP(W78,'BBM Costs'!$Q$6:$U$6,_xlfn.XLOOKUP(X78,'BBM Costs'!$P$7:$P$36,'BBM Costs'!$Q$7:$U$36))*_xlfn.XLOOKUP(X78,'Control panel'!$L$7:$L$36,'Control panel'!$M$7:$M$36) -> 8.310537633 | AB78: =_xlfn.XLOOKUP(W78,'BBM Costs'!$X$6:$AB$6,_xlfn.XLOOKUP(X78,'BBM Costs'!$W$7:$W$36,'BBM Costs'!$X$7:$AB$36))*_xlfn.XLOOKUP(X78,'Control panel'!$S$7:$S$36,'Control panel'!$T$7:$T$36) -> 29.14074028 | AC78: 43.69462477
W79: 2027-28 | X79: ='PTRM Data'!B17 -> Low Voltage Services | Y79: =_xlfn.XLOOKUP(X79,'Control panel'!$L$7:$L$36,'Control panel'!$P$7:$P$36) -> 0 | Z79: 2.879619205 | AA79: =_xlfn.XLOOKUP(W79,'BBM Costs'!$Q$6:$U$6,_xlfn.XLOOKUP(X79,'BBM Costs'!$P$7:$P$36,'BBM Costs'!$Q$7:$U$36))*_xlfn.XLOOKUP(X79,'Control panel'!$L$7:$L$36,'Control panel'!$M$7:$M$36) -> 0 | AB79: =_xlfn.XLOOKUP(W79,'BBM Costs'!$X$6:$AB$6,_xlfn.XLOOKUP(X79,'BBM Costs'!$W$7:$W$36,'BBM Costs'!$X$7:$AB$36))*_xlfn.XLOOKUP(X79,'Control panel'!$S$7:$S$36,'Control panel'!$T$7:$T$36) -> 0 | AC79: 2.879619205
W80: 2027-28 | X80: ='PTRM Data'!B18 -> Load Control & Network Metering Devices | Y80: =_xlfn.XLOOKUP(X80,'Control panel'!$L$7:$L$36,'Control panel'!$P$7:$P$36) -> 0 | Z80: 0.2834131808 | AA80: =_xlfn.XLOOKUP(W80,'BBM Costs'!$Q$6:$U$6,_xlfn.XLOOKUP(X80,'BBM Costs'!$P$7:$P$36,'BBM Costs'!$Q$7:$U$36))*_xlfn.XLOOKUP(X80,'Control panel'!$L$7:$L$36,'Control panel'!$M$7:$M$36) -> 0 | AB80: =_xlfn.XLOOKUP(W80,'BBM Costs'!$X$6:$AB$6,_xlfn.XLOOKUP(X80,'BBM Costs'!$W$7:$W$36,'BBM Costs'!$X$7:$AB$36))*_xlfn.XLOOKUP(X80,'Control panel'!$S$7:$S$36,'Control panel'!$T$7:$T$36) -> 0 | AC80: 0.2834131808
W81: 2027-28 | X81: ='PTRM Data'!B19 -> Communications - Pilot Wires | Y81: =_xlfn.XLOOKUP(X81,'Control panel'!$L$7:$L$36,'Control panel'!$P$7:$P$36) -> 1 | Z81: 1.802763033 | AA81: =_xlfn.XLOOKUP(W81,'BBM Costs'!$Q$6:$U$6,_xlfn.XLOOKUP(X81,'BBM Costs'!$P$7:$P$36,'BBM Costs'!$Q$7:$U$36))*_xlfn.XLOOKUP(X81,'Control panel'!$L$7:$L$36,'Control panel'!$M$7:$M$36) -> 0 | AB81: =_xlfn.XLOOKUP(W81,'BBM Costs'!$X$6:$AB$6,_xlfn.XLOOKUP(X81,'BBM Costs'!$W$7:$W$36,'BBM Costs'!$X$7:$AB$36))*_xlfn.XLOOKUP(X81,'Control panel'!$S$7:$S$36,'Control panel'!$T$7:$T$36) -> 0 | AC81: 1.802763033
W82: 2027-28 | X82: ='PTRM Data'!B20 -> Streetlighting (Residual Rate 2 Assets) | Y82: =_xlfn.XLOOKUP(X82,'Control panel'!$L$7:$L$36,'Control panel'!$P$7:$P$36) -> 1 | Z82: 0 | AA82: =_xlfn.XLOOKUP(W82,'BBM Costs'!$Q$6:$U$6,_xlfn.XLOOKUP(X82,'BBM Costs'!$P$7:$P$36,'BBM Costs'!$Q$7:$U$36))*_xlfn.XLOOKUP(X82,'Control panel'!$L$7:$L$36,'Control panel'!$M$7:$M$36) -> 0 | AB82: =_xlfn.XLOOKUP(W82,'BBM Costs'!$X$6:$AB$6,_xlfn.XLOOKUP(X82,'BBM Costs'!$W$7:$W$36,'BBM Costs'!$X$7:$AB$36))*_xlfn.XLOOKUP(X82,'Control panel'!$S$7:$S$36,'Control panel'!$T$7:$T$36) -> 0 | AC82: 0
W83: 2027-28 | X83: ='PTRM Data'!B21 -> Systems Buildings | Y83: =_xlfn.XLOOKUP(X83,'Control panel'!$L$7:$L$36,'Control panel'!$P$7:$P$36) -> 1 | Z83: 1.110763686 | AA83: =_xlfn.XLOOKUP(W83,'BBM Costs'!$Q$6:$U$6,_xlfn.XLOOKUP(X83,'BBM Costs'!$P$7:$P$36,'BBM Costs'!$Q$7:$U$36))*_xlfn.XLOOKUP(X83,'Control panel'!$L$7:$L$36,'Control panel'!$M$7:$M$36) -> 0 | AB83: =_xlfn.XLOOKUP(W83,'BBM Costs'!$X$6:$AB$6,_xlfn.XLOOKUP(X83,'BBM Costs'!$W$7:$W$36,'BBM Costs'!$X$7:$AB$36))*_xlfn.XLOOKUP(X83,'Control panel'!$S$7:$S$36,'Control panel'!$T$7:$T$36) -> 0 | AC83: 1.110763686
W84: 2027-28 | X84: ='PTRM Data'!B22 -> Systems Easements | Y84: =_xlfn.XLOOKUP(X84,'Control panel'!$L$7:$L$36,'Control panel'!$P$7:$P$36) -> 1 | Z84: 0.6670225524 | AA84: =_xlfn.XLOOKUP(W84,'BBM Costs'!$Q$6:$U$6,_xlfn.XLOOKUP(X84,'BBM Costs'!$P$7:$P$36,'BBM Costs'!$Q$7:$U$36))*_xlfn.XLOOKUP(X84,'Control panel'!$L$7:$L$36,'Control panel'!$M$7:$M$36) -> 0 | AB84: =_xlfn.XLOOKUP(W84,'BBM Costs'!$X$6:$AB$6,_xlfn.XLOOKUP(X84,'BBM Costs'!$W$7:$W$36,'BBM Costs'!$X$7:$AB$36))*_xlfn.XLOOKUP(X84,'Control panel'!$S$7:$S$36,'Control panel'!$T$7:$T$36) -> 0 | AC84: 0.6670225524
W85: 2027-28 | X85: ='PTRM Data'!B23 -> System Land | Y85: =_xlfn.XLOOKUP(X85,'Control panel'!$L$7:$L$36,'Control panel'!$P$7:$P$36) -> 1 | Z85: 0 | AA85: =_xlfn.XLOOKUP(W85,'BBM Costs'!$Q$6:$U$6,_xlfn.XLOOKUP(X85,'BBM Costs'!$P$7:$P$36,'BBM Costs'!$Q$7:$U$36))*_xlfn.XLOOKUP(X85,'Control panel'!$L$7:$L$36,'Control panel'!$M$7:$M$36) -> 0 | AB85: =_xlfn.XLOOKUP(W85,'BBM Costs'!$X$6:$AB$6,_xlfn.XLOOKUP(X85,'BBM Costs'!$W$7:$W$36,'BBM Costs'!$X$7:$AB$36))*_xlfn.XLOOKUP(X85,'Control panel'!$S$7:$S$36,'Control panel'!$T$7:$T$36) -> 0 | AC85: 0
W86: 2027-28 | X86: ='PTRM Data'!B24 -> Control Centre - SCADA | Y86: =_xlfn.XLOOKUP(X86,'Control panel'!$L$7:$L$36,'Control panel'!$P$7:$P$36) -> 1 | Z86: 0.002621190038 | AA86: =_xlfn.XLOOKUP(W86,'BBM Costs'!$Q$6:$U$6,_xlfn.XLOOKUP(X86,'BBM Costs'!$P$7:$P$36,'BBM Costs'!$Q$7:$U$36))*_xlfn.XLOOKUP(X86,'Control panel'!$L$7:$L$36,'Control panel'!$M$7:$M$36) -> 0 | AB86: =_xlfn.XLOOKUP(W86,'BBM Costs'!$X$6:$AB$6,_xlfn.XLOOKUP(X86,'BBM Costs'!$W$7:$W$36,'BBM Costs'!$X$7:$AB$36))*_xlfn.XLOOKUP(X86,'Control panel'!$S$7:$S$36,'Control panel'!$T$7:$T$36) -> 0 | AC86: 0.002621190038
W87: 2027-28 | X87: ='PTRM Data'!B25 -> Motor Vehicles | Y87: =_xlfn.XLOOKUP(X87,'Control panel'!$L$7:$L$36,'Control panel'!$P$7:$P$36) -> 1 | Z87: 0 | AA87: =_xlfn.XLOOKUP(W87,'BBM Costs'!$Q$6:$U$6,_xlfn.XLOOKUP(X87,'BBM Costs'!$P$7:$P$36,'BBM Costs'!$Q$7:$U$36))*_xlfn.XLOOKUP(X87,'Control panel'!$L$7:$L$36,'Control panel'!$M$7:$M$36) -> 0 | AB87: =_xlfn.XLOOKUP(W87,'BBM Costs'!$X$6:$AB$6,_xlfn.XLOOKUP(X87,'BBM Costs'!$W$7:$W$36,'BBM Costs'!$X$7:$AB$36))*_xlfn.XLOOKUP(X87,'Control panel'!$S$7:$S$36,'Control panel'!$T$7:$T$36) -> 0 | AC87: 0
W88: 2027-28 | X88: ='PTRM Data'!B26 -> Plant & Equipment | Y88: =_xlfn.XLOOKUP(X88,'Control panel'!$L$7:$L$36,'Control panel'!$P$7:$P$36) -> 1 | Z88: 0 | AA88: =_xlfn.XLOOKUP(W88,'BBM Costs'!$Q$6:$U$6,_xlfn.XLOOKUP(X88,'BBM Costs'!$P$7:$P$36,'BBM Costs'!$Q$7:$U$36))*_xlfn.XLOOKUP(X88,'Control panel'!$L$7:$L$36,'Control panel'!$M$7:$M$36) -> 0 | AB88: =_xlfn.XLOOKUP(W88,'BBM Costs'!$X$6:$AB$6,_xlfn.XLOOKUP(X88,'BBM Costs'!$W$7:$W$36,'BBM Costs'!$X$7:$AB$36))*_xlfn.XLOOKUP(X88,'Control panel'!$S$7:$S$36,'Control panel'!$T$7:$T$36) -> 0 | AC88: 0
W89: 2027-28 | X89: ='PTRM Data'!B27 -> Buildings | Y89: =_xlfn.XLOOKUP(X89,'Control panel'!$L$7:$L$36,'Control panel'!$P$7:$P$36) -> 1 | Z89: 0 | AA89: =_xlfn.XLOOKUP(W89,'BBM Costs'!$Q$6:$U$6,_xlfn.XLOOKUP(X89,'BBM Costs'!$P$7:$P$36,'BBM Costs'!$Q$7:$U$36))*_xlfn.XLOOKUP(X89,'Control panel'!$L$7:$L$36,'Control panel'!$M$7:$M$36) -> 0 | AB89: =_xlfn.XLOOKUP(W89,'BBM Costs'!$X$6:$AB$6,_xlfn.XLOOKUP(X89,'BBM Costs'!$W$7:$W$36,'BBM Costs'!$X$7:$AB$36))*_xlfn.XLOOKUP(X89,'Control panel'!$S$7:$S$36,'Control panel'!$T$7:$T$36) -> 0 | AC89: 0
W90: 2027-28 | X90: ='PTRM Data'!B28 -> Office Equipment & Furniture | Y90: =_xlfn.XLOOKUP(X90,'Control panel'!$L$7:$L$36,'Control panel'!$P$7:$P$36) -> 1 | Z90: 0 | AA90: =_xlfn.XLOOKUP(W90,'BBM Costs'!$Q$6:$U$6,_xlfn.XLOOKUP(X90,'BBM Costs'!$P$7:$P$36,'BBM Costs'!$Q$7:$U$36))*_xlfn.XLOOKUP(X90,'Control panel'!$L$7:$L$36,'Control panel'!$M$7:$M$36) -> 0 | AB90: =_xlfn.XLOOKUP(W90,'BBM Costs'!$X$6:$AB$6,_xlfn.XLOOKUP(X90,'BBM Costs'!$W$7:$W$36,'BBM Costs'!$X$7:$AB$36))*_xlfn.XLOOKUP(X90,'Control panel'!$S$7:$S$36,'Control panel'!$T$7:$T$36) -> 0 | AC90: 0
W91: 2027-28 | X91: ='PTRM Data'!B29 -> Initial Leases (10 yr life) | Y91: =_xlfn.XLOOKUP(X91,'Control panel'!$L$7:$L$36,'Control panel'!$P$7:$P$36) -> 1 | Z91: 0 | AA91: =_xlfn.XLOOKUP(W91,'BBM Costs'!$Q$6:$U$6,_xlfn.XLOOKUP(X91,'BBM Costs'!$P$7:$P$36,'BBM Costs'!$Q$7:$U$36))*_xlfn.XLOOKUP(X91,'Control panel'!$L$7:$L$36,'Control panel'!$M$7:$M$36) -> 0 | AB91: =_xlfn.XLOOKUP(W91,'BBM Costs'!$X$6:$AB$6,_xlfn.XLOOKUP(X91,'BBM Costs'!$W$7:$W$36,'BBM Costs'!$X$7:$AB$36))*_xlfn.XLOOKUP(X91,'Control panel'!$S$7:$S$36,'Control panel'!$T$7:$T$36) -> 0 | AC91: 0
W92: 2027-28 | X92: ='PTRM Data'!B30 -> Lease Extensions (5yr Life) | Y92: =_xlfn.XLOOKUP(X92,'Control panel'!$L$7:$L$36,'Control panel'!$P$7:$P$36) -> 1 | Z92: 0 | AA92: =_xlfn.XLOOKUP(W92,'BBM Costs'!$Q$6:$U$6,_xlfn.XLOOKUP(X92,'BBM Costs'!$P$7:$P$36,'BBM Costs'!$Q$7:$U$36))*_xlfn.XLOOKUP(X92,'Control panel'!$L$7:$L$36,'Control panel'!$M$7:$M$36) -> 0 | AB92: =_xlfn.XLOOKUP(W92,'BBM Costs'!$X$6:$AB$6,_xlfn.XLOOKUP(X92,'BBM Costs'!$W$7:$W$36,'BBM Costs'!$X$7:$AB$36))*_xlfn.XLOOKUP(X92,'Control panel'!$S$7:$S$36,'Control panel'!$T$7:$T$36) -> 0 | AC92: 0
W93: 2027-28 | X93: ='PTRM Data'!B31 -> Land | Y93: =_xlfn.XLOOKUP(X93,'Control panel'!$L$7:$L$36,'Control panel'!$P$7:$P$36) -> 1 | Z93: 0 | AA93: =_xlfn.XLOOKUP(W93,'BBM Costs'!$Q$6:$U$6,_xlfn.XLOOKUP(X93,'BBM Costs'!$P$7:$P$36,'BBM Costs'!$Q$7:$U$36))*_xlfn.XLOOKUP(X93,'Control panel'!$L$7:$L$36,'Control panel'!$M$7:$M$36) -> 0 | AB93: =_xlfn.XLOOKUP(W93,'BBM Costs'!$X$6:$AB$6,_xlfn.XLOOKUP(X93,'BBM Costs'!$W$7:$W$36,'BBM Costs'!$X$7:$AB$36))*_xlfn.XLOOKUP(X93,'Control panel'!$S$7:$S$36,'Control panel'!$T$7:$T$36) -> 0 | AC93: 0
W94: 2027-28 | X94: ='PTRM Data'!B32 -> In-house software | Y94: =_xlfn.XLOOKUP(X94,'Control panel'!$L$7:$L$36,'Control panel'!$P$7:$P$36) -> 1 | Z94: 0 | AA94: =_xlfn.XLOOKUP(W94,'BBM Costs'!$Q$6:$U$6,_xlfn.XLOOKUP(X94,'BBM Costs'!$P$7:$P$36,'BBM Costs'!$Q$7:$U$36))*_xlfn.XLOOKUP(X94,'Control panel'!$L$7:$L$36,'Control panel'!$M$7:$M$36) -> 0 | AB94: =_xlfn.XLOOKUP(W94,'BBM Costs'!$X$6:$AB$6,_xlfn.XLOOKUP(X94,'BBM Costs'!$W$7:$W$36,'BBM Costs'!$X$7:$AB$36))*_xlfn.XLOOKUP(X94,'Control panel'!$S$7:$S$36,'Control panel'!$T$7:$T$36) -> 0 | AC94: 0
W95: 2027-28 | X95: ='PTRM Data'!B33 -> IT Systems | Y95: =_xlfn.XLOOKUP(X95,'Control panel'!$L$7:$L$36,'Control panel'!$P$7:$P$36) -> 1 | Z95: 0 | AA95: =_xlfn.XLOOKUP(W95,'BBM Costs'!$Q$6:$U$6,_xlfn.XLOOKUP(X95,'BBM Costs'!$P$7:$P$36,'BBM Costs'!$Q$7:$U$36))*_xlfn.XLOOKUP(X95,'Control panel'!$L$7:$L$36,'Control panel'!$M$7:$M$36) -> 0 | AB95: =_xlfn.XLOOKUP(W95,'BBM Costs'!$X$6:$AB$6,_xlfn.XLOOKUP(X95,'BBM Costs'!$W$7:$W$36,'BBM Costs'!$X$7:$AB$36))*_xlfn.XLOOKUP(X95,'Control panel'!$S$7:$S$36,'Control panel'!$T$7:$T$36) -> 0 | AC95: 0
W96: 2027-28 | X96: ='PTRM Data'!B34 -> Legacy ICT Assets | Y96: =_xlfn.XLOOKUP(X96,'Control panel'!$L$7:$L$36,'Control panel'!$P$7:$P$36) -> 1 | Z96: 0 | AA96: =_xlfn.XLOOKUP(W96,'BBM Costs'!$Q$6:$U$6,_xlfn.XLOOKUP(X96,'BBM Costs'!$P$7:$P$36,'BBM Costs'!$Q$7:$U$36))*_xlfn.XLOOKUP(X96,'Control panel'!$L$7:$L$36,'Control panel'!$M$7:$M$36) -> 0 | AB96: =_xlfn.XLOOKUP(W96,'BBM Costs'!$X$6:$AB$6,_xlfn.XLOOKUP(X96,'BBM Costs'!$W$7:$W$36,'BBM Costs'!$X$7:$AB$36))*_xlfn.XLOOKUP(X96,'Control panel'!$S$7:$S$36,'Control panel'!$T$7:$T$36) -> 0 | AC96: 0
W97: 2027-28 | X97: ='PTRM Data'!B35 -> Buildings - capital works | Y97: =_xlfn.XLOOKUP(X97,'Control panel'!$L$7:$L$36,'Control panel'!$P$7:$P$36) -> 1 | Z97: 0 | AA97: =_xlfn.XLOOKUP(W97,'BBM Costs'!$Q$6:$U$6,_xlfn.XLOOKUP(X97,'BBM Costs'!$P$7:$P$36,'BBM Costs'!$Q$7:$U$36))*_xlfn.XLOOKUP(X97,'Control panel'!$L$7:$L$36,'Control panel'!$M$7:$M$36) -> 0 | AB97: =_xlfn.XLOOKUP(W97,'BBM Costs'!$X$6:$AB$6,_xlfn.XLOOKUP(X97,'BBM Costs'!$W$7:$W$36,'BBM Costs'!$X$7:$AB$36))*_xlfn.XLOOKUP(X97,'Control panel'!$S$7:$S$36,'Control panel'!$T$7:$T$36) -> 0 | AC97: 0
W98: 2027-28 | X98: ='PTRM Data'!B36 -> Equity raising costs | Y98: =_xlfn.XLOOKUP(X98,'Control panel'!$L$7:$L$36,'Control panel'!$P$7:$P$36) -> 1 | Z98: 0 | AA98: =_xlfn.XLOOKUP(W98,'BBM Costs'!$Q$6:$U$6,_xlfn.XLOOKUP(X98,'BBM Costs'!$P$7:$P$36,'BBM Costs'!$Q$7:$U$36))*_xlfn.XLOOKUP(X98,'Control panel'!$L$7:$L$36,'Control panel'!$M$7:$M$36) -> 0 | AB98: =_xlfn.XLOOKUP(W98,'BBM Costs'!$X$6:$AB$6,_xlfn.XLOOKUP(X98,'BBM Costs'!$W$7:$W$36,'BBM Costs'!$X$7:$AB$36))*_xlfn.XLOOKUP(X98,'Control panel'!$S$7:$S$36,'Control panel'!$T$7:$T$36) -> 0 | AC98: 0
W99: 2028-29 | X99: ='PTRM Data'!B7 -> OH Sub-transmission lines | Y99: =_xlfn.XLOOKUP(X99,'Control panel'!$L$7:$L$36,'Control panel'!$P$7:$P$36) -> 1 | Z99: 2.892386647 | AA99: =_xlfn.XLOOKUP(W99,'BBM Costs'!$Q$6:$U$6,_xlfn.XLOOKUP(X99,'BBM Costs'!$P$7:$P$36,'BBM Costs'!$Q$7:$U$36))*_xlfn.XLOOKUP(X99,'Control panel'!$L$7:$L$36,'Control panel'!$M$7:$M$36) -> 0 | AB99: =_xlfn.XLOOKUP(W99,'BBM Costs'!$X$6:$AB$6,_xlfn.XLOOKUP(X99,'BBM Costs'!$W$7:$W$36,'BBM Costs'!$X$7:$AB$36))*_xlfn.XLOOKUP(X99,'Control panel'!$S$7:$S$36,'Control panel'!$T$7:$T$36) -> 0 | AC99: 2.892386647
W100: 2028-29 | X100: ='PTRM Data'!B8 -> UG Sub-transmission cables | Y100: =_xlfn.XLOOKUP(X100,'Control panel'!$L$7:$L$36,'Control panel'!$P$7:$P$36) -> 1 | Z100: 3.194857546 | AA100: =_xlfn.XLOOKUP(W100,'BBM Costs'!$Q$6:$U$6,_xlfn.XLOOKUP(X100,'BBM Costs'!$P$7:$P$36,'BBM Costs'!$Q$7:$U$36))*_xlfn.XLOOKUP(X100,'Control panel'!$L$7:$L$36,'Control panel'!$M$7:$M$36) -> 0 | AB100: =_xlfn.XLOOKUP(W100,'BBM Costs'!$X$6:$AB$6,_xlfn.XLOOKUP(X100,'BBM Costs'!$W$7:$W$36,'BBM Costs'!$X$7:$AB$36))*_xlfn.XLOOKUP(X100,'Control panel'!$S$7:$S$36,'Control panel'!$T$7:$T$36) -> 0 | AC100: 3.194857546
W101: 2028-29 | X101: ='PTRM Data'!B9 -> OH Distribution Lines | Y101: =_xlfn.XLOOKUP(X101,'Control panel'!$L$7:$L$36,'Control panel'!$P$7:$P$36) -> 0.75 | Z101: 11.5284172 | AA101: =_xlfn.XLOOKUP(W101,'BBM Costs'!$Q$6:$U$6,_xlfn.XLOOKUP(X101,'BBM Costs'!$P$7:$P$36,'BBM Costs'!$Q$7:$U$36))*_xlfn.XLOOKUP(X101,'Control panel'!$L$7:$L$36,'Control panel'!$M$7:$M$36) -> 7.773771501 | AB101: =_xlfn.XLOOKUP(W101,'BBM Costs'!$X$6:$AB$6,_xlfn.XLOOKUP(X101,'BBM Costs'!$W$7:$W$36,'BBM Costs'!$X$7:$AB$36))*_xlfn.XLOOKUP(X101,'Control panel'!$S$7:$S$36,'Control panel'!$T$7:$T$36) -> 59.29575228 | AC101: 78.59794098
W102: 2028-29 | X102: ='PTRM Data'!B10 -> UG Distribution Cables | Y102: =_xlfn.XLOOKUP(X102,'Control panel'!$L$7:$L$36,'Control panel'!$P$7:$P$36) -> 0.75 | Z102: 9.80637087 | AA102: =_xlfn.XLOOKUP(W102,'BBM Costs'!$Q$6:$U$6,_xlfn.XLOOKUP(X102,'BBM Costs'!$P$7:$P$36,'BBM Costs'!$Q$7:$U$36))*_xlfn.XLOOKUP(X102,'Control panel'!$L$7:$L$36,'Control panel'!$M$7:$M$36) -> 0.1339558359 | AB102: =_xlfn.XLOOKUP(W102,'BBM Costs'!$X$6:$AB$6,_xlfn.XLOOKUP(X102,'BBM Costs'!$W$7:$W$36,'BBM Costs'!$X$7:$AB$36))*_xlfn.XLOOKUP(X102,'Control panel'!$S$7:$S$36,'Control panel'!$T$7:$T$36) -> 44.44580579 | AC102: 54.38613249
W103: 2028-29 | X103: ='PTRM Data'!B11 -> Distribution Equipment | Y103: =_xlfn.XLOOKUP(X103,'Control panel'!$L$7:$L$36,'Control panel'!$P$7:$P$36) -> 0.75 | Z103: 1.846853868 | AA103: =_xlfn.XLOOKUP(W103,'BBM Costs'!$Q$6:$U$6,_xlfn.XLOOKUP(X103,'BBM Costs'!$P$7:$P$36,'BBM Costs'!$Q$7:$U$36))*_xlfn.XLOOKUP(X103,'Control panel'!$L$7:$L$36,'Control panel'!$M$7:$M$36) -> 2.479365165 | AB103: =_xlfn.XLOOKUP(W103,'BBM Costs'!$X$6:$AB$6,_xlfn.XLOOKUP(X103,'BBM Costs'!$W$7:$W$36,'BBM Costs'!$X$7:$AB$36))*_xlfn.XLOOKUP(X103,'Control panel'!$S$7:$S$36,'Control panel'!$T$7:$T$36) -> 9.298421845 | AC103: 13.62464088
W104: 2028-29 | X104: ='PTRM Data'!B12 -> Substation Bays | Y104: =_xlfn.XLOOKUP(X104,'Control panel'!$L$7:$L$36,'Control panel'!$P$7:$P$36) -> 1 | Z104: 3.044718659 | AA104: =_xlfn.XLOOKUP(W104,'BBM Costs'!$Q$6:$U$6,_xlfn.XLOOKUP(X104,'BBM Costs'!$P$7:$P$36,'BBM Costs'!$Q$7:$U$36))*_xlfn.XLOOKUP(X104,'Control panel'!$L$7:$L$36,'Control panel'!$M$7:$M$36) -> 0 | AB104: =_xlfn.XLOOKUP(W104,'BBM Costs'!$X$6:$AB$6,_xlfn.XLOOKUP(X104,'BBM Costs'!$W$7:$W$36,'BBM Costs'!$X$7:$AB$36))*_xlfn.XLOOKUP(X104,'Control panel'!$S$7:$S$36,'Control panel'!$T$7:$T$36) -> 0 | AC104: 3.044718659
W105: 2028-29 | X105: ='PTRM Data'!B13 -> Substation Establishment | Y105: =_xlfn.XLOOKUP(X105,'Control panel'!$L$7:$L$36,'Control panel'!$P$7:$P$36) -> 1 | Z105: 2.099892124 | AA105: =_xlfn.XLOOKUP(W105,'BBM Costs'!$Q$6:$U$6,_xlfn.XLOOKUP(X105,'BBM Costs'!$P$7:$P$36,'BBM Costs'!$Q$7:$U$36))*_xlfn.XLOOKUP(X105,'Control panel'!$L$7:$L$36,'Control panel'!$M$7:$M$36) -> 0 | AB105: =_xlfn.XLOOKUP(W105,'BBM Costs'!$X$6:$AB$6,_xlfn.XLOOKUP(X105,'BBM Costs'!$W$7:$W$36,'BBM Costs'!$X$7:$AB$36))*_xlfn.XLOOKUP(X105,'Control panel'!$S$7:$S$36,'Control panel'!$T$7:$T$36) -> 0 | AC105: 2.099892124
W106: 2028-29 | X106: ='PTRM Data'!B14 -> Distribution Substation Switchgear | Y106: =_xlfn.XLOOKUP(X106,'Control panel'!$L$7:$L$36,'Control panel'!$P$7:$P$36) -> 0.75 | Z106: 0.7220799089 | AA106: =_xlfn.XLOOKUP(W106,'BBM Costs'!$Q$6:$U$6,_xlfn.XLOOKUP(X106,'BBM Costs'!$P$7:$P$36,'BBM Costs'!$Q$7:$U$36))*_xlfn.XLOOKUP(X106,'Control panel'!$L$7:$L$36,'Control panel'!$M$7:$M$36) -> 0.4567681908 | AB106: =_xlfn.XLOOKUP(W106,'BBM Costs'!$X$6:$AB$6,_xlfn.XLOOKUP(X106,'BBM Costs'!$W$7:$W$36,'BBM Costs'!$X$7:$AB$36))*_xlfn.XLOOKUP(X106,'Control panel'!$S$7:$S$36,'Control panel'!$T$7:$T$36) -> 3.127566587 | AC106: 4.306414687
W107: 2028-29 | X107: ='PTRM Data'!B15 -> Zone Transformers | Y107: =_xlfn.XLOOKUP(X107,'Control panel'!$L$7:$L$36,'Control panel'!$P$7:$P$36) -> 1 | Z107: 4.057954368 | AA107: =_xlfn.XLOOKUP(W107,'BBM Costs'!$Q$6:$U$6,_xlfn.XLOOKUP(X107,'BBM Costs'!$P$7:$P$36,'BBM Costs'!$Q$7:$U$36))*_xlfn.XLOOKUP(X107,'Control panel'!$L$7:$L$36,'Control panel'!$M$7:$M$36) -> 0 | AB107: =_xlfn.XLOOKUP(W107,'BBM Costs'!$X$6:$AB$6,_xlfn.XLOOKUP(X107,'BBM Costs'!$W$7:$W$36,'BBM Costs'!$X$7:$AB$36))*_xlfn.XLOOKUP(X107,'Control panel'!$S$7:$S$36,'Control panel'!$T$7:$T$36) -> 0 | AC107: 4.057954368
W108: 2028-29 | X108: ='PTRM Data'!B16 -> Distribution Transformers | Y108: =_xlfn.XLOOKUP(X108,'Control panel'!$L$7:$L$36,'Control panel'!$P$7:$P$36) -> 0.2 | Z108: 6.543294953 | AA108: =_xlfn.XLOOKUP(W108,'BBM Costs'!$Q$6:$U$6,_xlfn.XLOOKUP(X108,'BBM Costs'!$P$7:$P$36,'BBM Costs'!$Q$7:$U$36))*_xlfn.XLOOKUP(X108,'Control panel'!$L$7:$L$36,'Control panel'!$M$7:$M$36) -> 8.838526272 | AB108: =_xlfn.XLOOKUP(W108,'BBM Costs'!$X$6:$AB$6,_xlfn.XLOOKUP(X108,'BBM Costs'!$W$7:$W$36,'BBM Costs'!$X$7:$AB$36))*_xlfn.XLOOKUP(X108,'Control panel'!$S$7:$S$36,'Control panel'!$T$7:$T$36) -> 30.79076107 | AC108: 46.1725823
W109: 2028-29 | X109: ='PTRM Data'!B17 -> Low Voltage Services | Y109: =_xlfn.XLOOKUP(X109,'Control panel'!$L$7:$L$36,'Control panel'!$P$7:$P$36) -> 0 | Z109: 3.017964282 | AA109: =_xlfn.XLOOKUP(W109,'BBM Costs'!$Q$6:$U$6,_xlfn.XLOOKUP(X109,'BBM Costs'!$P$7:$P$36,'BBM Costs'!$Q$7:$U$36))*_xlfn.XLOOKUP(X109,'Control panel'!$L$7:$L$36,'Control panel'!$M$7:$M$36) -> 0 | AB109: =_xlfn.XLOOKUP(W109,'BBM Costs'!$X$6:$AB$6,_xlfn.XLOOKUP(X109,'BBM Costs'!$W$7:$W$36,'BBM Costs'!$X$7:$AB$36))*_xlfn.XLOOKUP(X109,'Control panel'!$S$7:$S$36,'Control panel'!$T$7:$T$36) -> 0 | AC109: 3.017964282
W110: 2028-29 | X110: ='PTRM Data'!B18 -> Load Control & Network Metering Devices | Y110: =_xlfn.XLOOKUP(X110,'Control panel'!$L$7:$L$36,'Control panel'!$P$7:$P$36) -> 0 | Z110: 0.2970291542 | AA110: =_xlfn.XLOOKUP(W110,'BBM Costs'!$Q$6:$U$6,_xlfn.XLOOKUP(X110,'BBM Costs'!$P$7:$P$36,'BBM Costs'!$Q$7:$U$36))*_xlfn.XLOOKUP(X110,'Control panel'!$L$7:$L$36,'Control panel'!$M$7:$M$36) -> 0 | AB110: =_xlfn.XLOOKUP(W110,'BBM Costs'!$X$6:$AB$6,_xlfn.XLOOKUP(X110,'BBM Costs'!$W$7:$W$36,'BBM Costs'!$X$7:$AB$36))*_xlfn.XLOOKUP(X110,'Control panel'!$S$7:$S$36,'Control panel'!$T$7:$T$36) -> 0 | AC110: 0.2970291542
W111: 2028-29 | X111: ='PTRM Data'!B19 -> Communications - Pilot Wires | Y111: =_xlfn.XLOOKUP(X111,'Control panel'!$L$7:$L$36,'Control panel'!$P$7:$P$36) -> 1 | Z111: 1.889372884 | AA111: =_xlfn.XLOOKUP(W111,'BBM Costs'!$Q$6:$U$6,_xlfn.XLOOKUP(X111,'BBM Costs'!$P$7:$P$36,'BBM Costs'!$Q$7:$U$36))*_xlfn.XLOOKUP(X111,'Control panel'!$L$7:$L$36,'Control panel'!$M$7:$M$36) -> 0 | AB111: =_xlfn.XLOOKUP(W111,'BBM Costs'!$X$6:$AB$6,_xlfn.XLOOKUP(X111,'BBM Costs'!$W$7:$W$36,'BBM Costs'!$X$7:$AB$36))*_xlfn.XLOOKUP(X111,'Control panel'!$S$7:$S$36,'Control panel'!$T$7:$T$36) -> 0 | AC111: 1.889372884
W112: 2028-29 | X112: ='PTRM Data'!B20 -> Streetlighting (Residual Rate 2 Assets) | Y112: =_xlfn.XLOOKUP(X112,'Control panel'!$L$7:$L$36,'Control panel'!$P$7:$P$36) -> 1 | Z112: 0 | AA112: =_xlfn.XLOOKUP(W112,'BBM Costs'!$Q$6:$U$6,_xlfn.XLOOKUP(X112,'BBM Costs'!$P$7:$P$36,'BBM Costs'!$Q$7:$U$36))*_xlfn.XLOOKUP(X112,'Control panel'!$L$7:$L$36,'Control panel'!$M$7:$M$36) -> 0 | AB112: =_xlfn.XLOOKUP(W112,'BBM Costs'!$X$6:$AB$6,_xlfn.XLOOKUP(X112,'BBM Costs'!$W$7:$W$36,'BBM Costs'!$X$7:$AB$36))*_xlfn.XLOOKUP(X112,'Control panel'!$S$7:$S$36,'Control panel'!$T$7:$T$36) -> 0 | AC112: 0
W113: 2028-29 | X113: ='PTRM Data'!B21 -> Systems Buildings | Y113: =_xlfn.XLOOKUP(X113,'Control panel'!$L$7:$L$36,'Control panel'!$P$7:$P$36) -> 1 | Z113: 1.164127925 | AA113: =_xlfn.XLOOKUP(W113,'BBM Costs'!$Q$6:$U$6,_xlfn.XLOOKUP(X113,'BBM Costs'!$P$7:$P$36,'BBM Costs'!$Q$7:$U$36))*_xlfn.XLOOKUP(X113,'Control panel'!$L$7:$L$36,'Control panel'!$M$7:$M$36) -> 0 | AB113: =_xlfn.XLOOKUP(W113,'BBM Costs'!$X$6:$AB$6,_xlfn.XLOOKUP(X113,'BBM Costs'!$W$7:$W$36,'BBM Costs'!$X$7:$AB$36))*_xlfn.XLOOKUP(X113,'Control panel'!$S$7:$S$36,'Control panel'!$T$7:$T$36) -> 0 | AC113: 1.164127925
W114: 2028-29 | X114: ='PTRM Data'!B22 -> Systems Easements | Y114: =_xlfn.XLOOKUP(X114,'Control panel'!$L$7:$L$36,'Control panel'!$P$7:$P$36) -> 1 | Z114: 0.6990682084 | AA114: =_xlfn.XLOOKUP(W114,'BBM Costs'!$Q$6:$U$6,_xlfn.XLOOKUP(X114,'BBM Costs'!$P$7:$P$36,'BBM Costs'!$Q$7:$U$36))*_xlfn.XLOOKUP(X114,'Control panel'!$L$7:$L$36,'Control panel'!$M$7:$M$36) -> 0 | AB114: =_xlfn.XLOOKUP(W114,'BBM Costs'!$X$6:$AB$6,_xlfn.XLOOKUP(X114,'BBM Costs'!$W$7:$W$36,'BBM Costs'!$X$7:$AB$36))*_xlfn.XLOOKUP(X114,'Control panel'!$S$7:$S$36,'Control panel'!$T$7:$T$36) -> 0 | AC114: 0.6990682084
W115: 2028-29 | X115: ='PTRM Data'!B23 -> System Land | Y115: =_xlfn.XLOOKUP(X115,'Control panel'!$L$7:$L$36,'Control panel'!$P$7:$P$36) -> 1 | Z115: 0 | AA115: =_xlfn.XLOOKUP(W115,'BBM Costs'!$Q$6:$U$6,_xlfn.XLOOKUP(X115,'BBM Costs'!$P$7:$P$36,'BBM Costs'!$Q$7:$U$36))*_xlfn.XLOOKUP(X115,'Control panel'!$L$7:$L$36,'Control panel'!$M$7:$M$36) -> 0 | AB115: =_xlfn.XLOOKUP(W115,'BBM Costs'!$X$6:$AB$6,_xlfn.XLOOKUP(X115,'BBM Costs'!$W$7:$W$36,'BBM Costs'!$X$7:$AB$36))*_xlfn.XLOOKUP(X115,'Control panel'!$S$7:$S$36,'Control panel'!$T$7:$T$36) -> 0 | AC115: 0
W116: 2028-29 | X116: ='PTRM Data'!B24 -> Control Centre - SCADA | Y116: =_xlfn.XLOOKUP(X116,'Control panel'!$L$7:$L$36,'Control panel'!$P$7:$P$36) -> 1 | Z116: 0.002747119445 | AA116: =_xlfn.XLOOKUP(W116,'BBM Costs'!$Q$6:$U$6,_xlfn.XLOOKUP(X116,'BBM Costs'!$P$7:$P$36,'BBM Costs'!$Q$7:$U$36))*_xlfn.XLOOKUP(X116,'Control panel'!$L$7:$L$36,'Control panel'!$M$7:$M$36) -> 0 | AB116: =_xlfn.XLOOKUP(W116,'BBM Costs'!$X$6:$AB$6,_xlfn.XLOOKUP(X116,'BBM Costs'!$W$7:$W$36,'BBM Costs'!$X$7:$AB$36))*_xlfn.XLOOKUP(X116,'Control panel'!$S$7:$S$36,'Control panel'!$T$7:$T$36) -> 0 | AC116: 0.002747119445
W117: 2028-29 | X117: ='PTRM Data'!B25 -> Motor Vehicles | Y117: =_xlfn.XLOOKUP(X117,'Control panel'!$L$7:$L$36,'Control panel'!$P$7:$P$36) -> 1 | Z117: 0 | AA117: =_xlfn.XLOOKUP(W117,'BBM Costs'!$Q$6:$U$6,_xlfn.XLOOKUP(X117,'BBM Costs'!$P$7:$P$36,'BBM Costs'!$Q$7:$U$36))*_xlfn.XLOOKUP(X117,'Control panel'!$L$7:$L$36,'Control panel'!$M$7:$M$36) -> 0 | AB117: =_xlfn.XLOOKUP(W117,'BBM Costs'!$X$6:$AB$6,_xlfn.XLOOKUP(X117,'BBM Costs'!$W$7:$W$36,'BBM Costs'!$X$7:$AB$36))*_xlfn.XLOOKUP(X117,'Control panel'!$S$7:$S$36,'Control panel'!$T$7:$T$36) -> 0 | AC117: 0
W118: 2028-29 | X118: ='PTRM Data'!B26 -> Plant & Equipment | Y118: =_xlfn.XLOOKUP(X118,'Control panel'!$L$7:$L$36,'Control panel'!$P$7:$P$36) -> 1 | Z118: 0 | AA118: =_xlfn.XLOOKUP(W118,'BBM Costs'!$Q$6:$U$6,_xlfn.XLOOKUP(X118,'BBM Costs'!$P$7:$P$36,'BBM Costs'!$Q$7:$U$36))*_xlfn.XLOOKUP(X118,'Control panel'!$L$7:$L$36,'Control panel'!$M$7:$M$36) -> 0 | AB118: =_xlfn.XLOOKUP(W118,'BBM Costs'!$X$6:$AB$6,_xlfn.XLOOKUP(X118,'BBM Costs'!$W$7:$W$36,'BBM Costs'!$X$7:$AB$36))*_xlfn.XLOOKUP(X118,'Control panel'!$S$7:$S$36,'Control panel'!$T$7:$T$36) -> 0 | AC118: 0
W119: 2028-29 | X119: ='PTRM Data'!B27 -> Buildings | Y119: =_xlfn.XLOOKUP(X119,'Control panel'!$L$7:$L$36,'Control panel'!$P$7:$P$36) -> 1 | Z119: 0 | AA119: =_xlfn.XLOOKUP(W119,'BBM Costs'!$Q$6:$U$6,_xlfn.XLOOKUP(X119,'BBM Costs'!$P$7:$P$36,'BBM Costs'!$Q$7:$U$36))*_xlfn.XLOOKUP(X119,'Control panel'!$L$7:$L$36,'Control panel'!$M$7:$M$36) -> 0 | AB119: =_xlfn.XLOOKUP(W119,'BBM Costs'!$X$6:$AB$6,_xlfn.XLOOKUP(X119,'BBM Costs'!$W$7:$W$36,'BBM Costs'!$X$7:$AB$36))*_xlfn.XLOOKUP(X119,'Control panel'!$S$7:$S$36,'Control panel'!$T$7:$T$36) -> 0 | AC119: 0
W120: 2028-29 | X120: ='PTRM Data'!B28 -> Office Equipment & Furniture | Y120: =_xlfn.XLOOKUP(X120,'Control panel'!$L$7:$L$36,'Control panel'!$P$7:$P$36) -> 1 | Z120: 0 | AA120: =_xlfn.XLOOKUP(W120,'BBM Costs'!$Q$6:$U$6,_xlfn.XLOOKUP(X120,'BBM Costs'!$P$7:$P$36,'BBM Costs'!$Q$7:$U$36))*_xlfn.XLOOKUP(X120,'Control panel'!$L$7:$L$36,'Control panel'!$M$7:$M$36) -> 0 | AB120: =_xlfn.XLOOKUP(W120,'BBM Costs'!$X$6:$AB$6,_xlfn.XLOOKUP(X120,'BBM Costs'!$W$7:$W$36,'BBM Costs'!$X$7:$AB$36))*_xlfn.XLOOKUP(X120,'Control panel'!$S$7:$S$36,'Control panel'!$T$7:$T$36) -> 0 | AC120: 0
W121: 2028-29 | X121: ='PTRM Data'!B29 -> Initial Leases (10 yr life) | Y121: =_xlfn.XLOOKUP(X121,'Control panel'!$L$7:$L$36,'Control panel'!$P$7:$P$36) -> 1 | Z121: 0 | AA121: =_xlfn.XLOOKUP(W121,'BBM Costs'!$Q$6:$U$6,_xlfn.XLOOKUP(X121,'BBM Costs'!$P$7:$P$36,'BBM Costs'!$Q$7:$U$36))*_xlfn.XLOOKUP(X121,'Control panel'!$L$7:$L$36,'Control panel'!$M$7:$M$36) -> 0 | AB121: =_xlfn.XLOOKUP(W121,'BBM Costs'!$X$6:$AB$6,_xlfn.XLOOKUP(X121,'BBM Costs'!$W$7:$W$36,'BBM Costs'!$X$7:$AB$36))*_xlfn.XLOOKUP(X121,'Control panel'!$S$7:$S$36,'Control panel'!$T$7:$T$36) -> 0 | AC121: 0
W122: 2028-29 | X122: ='PTRM Data'!B30 -> Lease Extensions (5yr Life) | Y122: =_xlfn.XLOOKUP(X122,'Control panel'!$L$7:$L$36,'Control panel'!$P$7:$P$36) -> 1 | Z122: 0 | AA122: =_xlfn.XLOOKUP(W122,'BBM Costs'!$Q$6:$U$6,_xlfn.XLOOKUP(X122,'BBM Costs'!$P$7:$P$36,'BBM Costs'!$Q$7:$U$36))*_xlfn.XLOOKUP(X122,'Control panel'!$L$7:$L$36,'Control panel'!$M$7:$M$36) -> 0 | AB122: =_xlfn.XLOOKUP(W122,'BBM Costs'!$X$6:$AB$6,_xlfn.XLOOKUP(X122,'BBM Costs'!$W$7:$W$36,'BBM Costs'!$X$7:$AB$36))*_xlfn.XLOOKUP(X122,'Control panel'!$S$7:$S$36,'Control panel'!$T$7:$T$36) -> 0 | AC122: 0
W123: 2028-29 | X123: ='PTRM Data'!B31 -> Land | Y123: =_xlfn.XLOOKUP(X123,'Control panel'!$L$7:$L$36,'Control panel'!$P$7:$P$36) -> 1 | Z123: 0 | AA123: =_xlfn.XLOOKUP(W123,'BBM Costs'!$Q$6:$U$6,_xlfn.XLOOKUP(X123,'BBM Costs'!$P$7:$P$36,'BBM Costs'!$Q$7:$U$36))*_xlfn.XLOOKUP(X123,'Control panel'!$L$7:$L$36,'Control panel'!$M$7:$M$36) -> 0 | AB123: =_xlfn.XLOOKUP(W123,'BBM Costs'!$X$6:$AB$6,_xlfn.XLOOKUP(X123,'BBM Costs'!$W$7:$W$36,'BBM Costs'!$X$7:$AB$36))*_xlfn.XLOOKUP(X123,'Control panel'!$S$7:$S$36,'Control panel'!$T$7:$T$36) -> 0 | AC123: 0
W124: 2028-29 | X124: ='PTRM Data'!B32 -> In-house software | Y124: =_xlfn.XLOOKUP(X124,'Control panel'!$L$7:$L$36,'Control panel'!$P$7:$P$36) -> 1 | Z124: 0 | AA124: =_xlfn.XLOOKUP(W124,'BBM Costs'!$Q$6:$U$6,_xlfn.XLOOKUP(X124,'BBM Costs'!$P$7:$P$36,'BBM Costs'!$Q$7:$U$36))*_xlfn.XLOOKUP(X124,'Control panel'!$L$7:$L$36,'Control panel'!$M$7:$M$36) -> 0 | AB124: =_xlfn.XLOOKUP(W124,'BBM Costs'!$X$6:$AB$6,_xlfn.XLOOKUP(X124,'BBM Costs'!$W$7:$W$36,'BBM Costs'!$X$7:$AB$36))*_xlfn.XLOOKUP(X124,'Control panel'!$S$7:$S$36,'Control panel'!$T$7:$T$36) -> 0 | AC124: 0
W125: 2028-29 | X125: ='PTRM Data'!B33 -> IT Systems | Y125: =_xlfn.XLOOKUP(X125,'Control panel'!$L$7:$L$36,'Control panel'!$P$7:$P$36) -> 1 | Z125: 0 | AA125: =_xlfn.XLOOKUP(W125,'BBM Costs'!$Q$6:$U$6,_xlfn.XLOOKUP(X125,'BBM Costs'!$P$7:$P$36,'BBM Costs'!$Q$7:$U$36))*_xlfn.XLOOKUP(X125,'Control panel'!$L$7:$L$36,'Control panel'!$M$7:$M$36) -> 0 | AB125: =_xlfn.XLOOKUP(W125,'BBM Costs'!$X$6:$AB$6,_xlfn.XLOOKUP(X125,'BBM Costs'!$W$7:$W$36,'BBM Costs'!$X$7:$AB$36))*_xlfn.XLOOKUP(X125,'Control panel'!$S$7:$S$36,'Control panel'!$T$7:$T$36) -> 0 | AC125: 0
W126: 2028-29 | X126: ='PTRM Data'!B34 -> Legacy ICT Assets | Y126: =_xlfn.XLOOKUP(X126,'Control panel'!$L$7:$L$36,'Control panel'!$P$7:$P$36) -> 1 | Z126: 0 | AA126: =_xlfn.XLOOKUP(W126,'BBM Costs'!$Q$6:$U$6,_xlfn.XLOOKUP(X126,'BBM Costs'!$P$7:$P$36,'BBM Costs'!$Q$7:$U$36))*_xlfn.XLOOKUP(X126,'Control panel'!$L$7:$L$36,'Control panel'!$M$7:$M$36) -> 0 | AB126: =_xlfn.XLOOKUP(W126,'BBM Costs'!$X$6:$AB$6,_xlfn.XLOOKUP(X126,'BBM Costs'!$W$7:$W$36,'BBM Costs'!$X$7:$AB$36))*_xlfn.XLOOKUP(X126,'Control panel'!$S$7:$S$36,'Control panel'!$T$7:$T$36) -> 0 | AC126: 0
W127: 2028-29 | X127: ='PTRM Data'!B35 -> Buildings - capital works | Y127: =_xlfn.XLOOKUP(X127,'Control panel'!$L$7:$L$36,'Control panel'!$P$7:$P$36) -> 1 | Z127: 0 | AA127: =_xlfn.XLOOKUP(W127,'BBM Costs'!$Q$6:$U$6,_xlfn.XLOOKUP(X127,'BBM Costs'!$P$7:$P$36,'BBM Costs'!$Q$7:$U$36))*_xlfn.XLOOKUP(X127,'Control panel'!$L$7:$L$36,'Control panel'!$M$7:$M$36) -> 0 | AB127: =_xlfn.XLOOKUP(W127,'BBM Costs'!$X$6:$AB$6,_xlfn.XLOOKUP(X127,'BBM Costs'!$W$7:$W$36,'BBM Costs'!$X$7:$AB$36))*_xlfn.XLOOKUP(X127,'Control panel'!$S$7:$S$36,'Control panel'!$T$7:$T$36) -> 0 | AC127: 0
W128: 2028-29 | X128: ='PTRM Data'!B36 -> Equity raising costs | Y128: =_xlfn.XLOOKUP(X128,'Control panel'!$L$7:$L$36,'Control panel'!$P$7:$P$36) -> 1 | Z128: 0 | AA128: =_xlfn.XLOOKUP(W128,'BBM Costs'!$Q$6:$U$6,_xlfn.XLOOKUP(X128,'BBM Costs'!$P$7:$P$36,'BBM Costs'!$Q$7:$U$36))*_xlfn.XLOOKUP(X128,'Control panel'!$L$7:$L$36,'Control panel'!$M$7:$M$36) -> 0 | AB128: =_xlfn.XLOOKUP(W128,'BBM Costs'!$X$6:$AB$6,_xlfn.XLOOKUP(X128,'BBM Costs'!$W$7:$W$36,'BBM Costs'!$X$7:$AB$36))*_xlfn.XLOOKUP(X128,'Control panel'!$S$7:$S$36,'Control panel'!$T$7:$T$36) -> 0 | AC128: 0
W129: 2029-30 | X129: ='PTRM Data'!B7 -> OH Sub-transmission lines | Y129: =_xlfn.XLOOKUP(X129,'Control panel'!$L$7:$L$36,'Control panel'!$P$7:$P$36) -> 1 | Z129: 3.125003381 | AA129: =_xlfn.XLOOKUP(W129,'BBM Costs'!$Q$6:$U$6,_xlfn.XLOOKUP(X129,'BBM Costs'!$P$7:$P$36,'BBM Costs'!$Q$7:$U$36))*_xlfn.XLOOKUP(X129,'Control panel'!$L$7:$L$36,'Control panel'!$M$7:$M$36) -> 0 | AB129: =_xlfn.XLOOKUP(W129,'BBM Costs'!$X$6:$AB$6,_xlfn.XLOOKUP(X129,'BBM Costs'!$W$7:$W$36,'BBM Costs'!$X$7:$AB$36))*_xlfn.XLOOKUP(X129,'Control panel'!$S$7:$S$36,'Control panel'!$T$7:$T$36) -> 0 | AC129: 3.125003381
W130: 2029-30 | X130: ='PTRM Data'!B8 -> UG Sub-transmission cables | Y130: =_xlfn.XLOOKUP(X130,'Control panel'!$L$7:$L$36,'Control panel'!$P$7:$P$36) -> 1 | Z130: 3.45180014 | AA130: =_xlfn.XLOOKUP(W130,'BBM Costs'!$Q$6:$U$6,_xlfn.XLOOKUP(X130,'BBM Costs'!$P$7:$P$36,'BBM Costs'!$Q$7:$U$36))*_xlfn.XLOOKUP(X130,'Control panel'!$L$7:$L$36,'Control panel'!$M$7:$M$36) -> 0 | AB130: =_xlfn.XLOOKUP(W130,'BBM Costs'!$X$6:$AB$6,_xlfn.XLOOKUP(X130,'BBM Costs'!$W$7:$W$36,'BBM Costs'!$X$7:$AB$36))*_xlfn.XLOOKUP(X130,'Control panel'!$S$7:$S$36,'Control panel'!$T$7:$T$36) -> 0 | AC130: 3.45180014
W131: 2029-30 | X131: ='PTRM Data'!B9 -> OH Distribution Lines | Y131: =_xlfn.XLOOKUP(X131,'Control panel'!$L$7:$L$36,'Control panel'!$P$7:$P$36) -> 0.75 | Z131: 12.45557635 | AA131: =_xlfn.XLOOKUP(W131,'BBM Costs'!$Q$6:$U$6,_xlfn.XLOOKUP(X131,'BBM Costs'!$P$7:$P$36,'BBM Costs'!$Q$7:$U$36))*_xlfn.XLOOKUP(X131,'Control panel'!$L$7:$L$36,'Control panel'!$M$7:$M$36) -> 8.37070614 | AB131: =_xlfn.XLOOKUP(W131,'BBM Costs'!$X$6:$AB$6,_xlfn.XLOOKUP(X131,'BBM Costs'!$W$7:$W$36,'BBM Costs'!$X$7:$AB$36))*_xlfn.XLOOKUP(X131,'Control panel'!$S$7:$S$36,'Control panel'!$T$7:$T$36) -> 66.59085745 | AC131: 87.41713994
W132: 2029-30 | X132: ='PTRM Data'!B10 -> UG Distribution Cables | Y132: =_xlfn.XLOOKUP(X132,'Control panel'!$L$7:$L$36,'Control panel'!$P$7:$P$36) -> 0.75 | Z132: 10.59503651 | AA132: =_xlfn.XLOOKUP(W132,'BBM Costs'!$Q$6:$U$6,_xlfn.XLOOKUP(X132,'BBM Costs'!$P$7:$P$36,'BBM Costs'!$Q$7:$U$36))*_xlfn.XLOOKUP(X132,'Control panel'!$L$7:$L$36,'Control panel'!$M$7:$M$36) -> 0.5837714545 | AB132: =_xlfn.XLOOKUP(W132,'BBM Costs'!$X$6:$AB$6,_xlfn.XLOOKUP(X132,'BBM Costs'!$W$7:$W$36,'BBM Costs'!$X$7:$AB$36))*_xlfn.XLOOKUP(X132,'Control panel'!$S$7:$S$36,'Control panel'!$T$7:$T$36) -> 47.83079877 | AC132: 59.00960673
W133: 2029-30 | X133: ='PTRM Data'!B11 -> Distribution Equipment | Y133: =_xlfn.XLOOKUP(X133,'Control panel'!$L$7:$L$36,'Control panel'!$P$7:$P$36) -> 0.75 | Z133: 1.99538488 | AA133: =_xlfn.XLOOKUP(W133,'BBM Costs'!$Q$6:$U$6,_xlfn.XLOOKUP(X133,'BBM Costs'!$P$7:$P$36,'BBM Costs'!$Q$7:$U$36))*_xlfn.XLOOKUP(X133,'Control panel'!$L$7:$L$36,'Control panel'!$M$7:$M$36) -> 2.659999827 | AB133: =_xlfn.XLOOKUP(W133,'BBM Costs'!$X$6:$AB$6,_xlfn.XLOOKUP(X133,'BBM Costs'!$W$7:$W$36,'BBM Costs'!$X$7:$AB$36))*_xlfn.XLOOKUP(X133,'Control panel'!$S$7:$S$36,'Control panel'!$T$7:$T$36) -> 10.28315226 | AC133: 14.93853697
W134: 2029-30 | X134: ='PTRM Data'!B12 -> Substation Bays | Y134: =_xlfn.XLOOKUP(X134,'Control panel'!$L$7:$L$36,'Control panel'!$P$7:$P$36) -> 1 | Z134: 3.289586513 | AA134: =_xlfn.XLOOKUP(W134,'BBM Costs'!$Q$6:$U$6,_xlfn.XLOOKUP(X134,'BBM Costs'!$P$7:$P$36,'BBM Costs'!$Q$7:$U$36))*_xlfn.XLOOKUP(X134,'Control panel'!$L$7:$L$36,'Control panel'!$M$7:$M$36) -> 0 | AB134: =_xlfn.XLOOKUP(W134,'BBM Costs'!$X$6:$AB$6,_xlfn.XLOOKUP(X134,'BBM Costs'!$W$7:$W$36,'BBM Costs'!$X$7:$AB$36))*_xlfn.XLOOKUP(X134,'Control panel'!$S$7:$S$36,'Control panel'!$T$7:$T$36) -> 0 | AC134: 3.289586513
W135: 2029-30 | X135: ='PTRM Data'!B13 -> Substation Establishment | Y135: =_xlfn.XLOOKUP(X135,'Control panel'!$L$7:$L$36,'Control panel'!$P$7:$P$36) -> 1 | Z135: 2.268773435 | AA135: =_xlfn.XLOOKUP(W135,'BBM Costs'!$Q$6:$U$6,_xlfn.XLOOKUP(X135,'BBM Costs'!$P$7:$P$36,'BBM Costs'!$Q$7:$U$36))*_xlfn.XLOOKUP(X135,'Control panel'!$L$7:$L$36,'Control panel'!$M$7:$M$36) -> 0 | AB135: =_xlfn.XLOOKUP(W135,'BBM Costs'!$X$6:$AB$6,_xlfn.XLOOKUP(X135,'BBM Costs'!$W$7:$W$36,'BBM Costs'!$X$7:$AB$36))*_xlfn.XLOOKUP(X135,'Control panel'!$S$7:$S$36,'Control panel'!$T$7:$T$36) -> 0 | AC135: 2.268773435
W136: 2029-30 | X136: ='PTRM Data'!B14 -> Distribution Substation Switchgear | Y136: =_xlfn.XLOOKUP(X136,'Control panel'!$L$7:$L$36,'Control panel'!$P$7:$P$36) -> 0.75 | Z136: 0.7801523213 | AA136: =_xlfn.XLOOKUP(W136,'BBM Costs'!$Q$6:$U$6,_xlfn.XLOOKUP(X136,'BBM Costs'!$P$7:$P$36,'BBM Costs'!$Q$7:$U$36))*_xlfn.XLOOKUP(X136,'Control panel'!$L$7:$L$36,'Control panel'!$M$7:$M$36) -> 0.5049125683 | AB136: =_xlfn.XLOOKUP(W136,'BBM Costs'!$X$6:$AB$6,_xlfn.XLOOKUP(X136,'BBM Costs'!$W$7:$W$36,'BBM Costs'!$X$7:$AB$36))*_xlfn.XLOOKUP(X136,'Control panel'!$S$7:$S$36,'Control panel'!$T$7:$T$36) -> 3.310165249 | AC136: 4.595230138
W137: 2029-30 | X137: ='PTRM Data'!B15 -> Zone Transformers | Y137: =_xlfn.XLOOKUP(X137,'Control panel'!$L$7:$L$36,'Control panel'!$P$7:$P$36) -> 1 | Z137: 4.384310491 | AA137: =_xlfn.XLOOKUP(W137,'BBM Costs'!$Q$6:$U$6,_xlfn.XLOOKUP(X137,'BBM Costs'!$P$7:$P$36,'BBM Costs'!$Q$7:$U$36))*_xlfn.XLOOKUP(X137,'Control panel'!$L$7:$L$36,'Control panel'!$M$7:$M$36) -> 0 | AB137: =_xlfn.XLOOKUP(W137,'BBM Costs'!$X$6:$AB$6,_xlfn.XLOOKUP(X137,'BBM Costs'!$W$7:$W$36,'BBM Costs'!$X$7:$AB$36))*_xlfn.XLOOKUP(X137,'Control panel'!$S$7:$S$36,'Control panel'!$T$7:$T$36) -> 0 | AC137: 4.384310491
W138: 2029-30 | X138: ='PTRM Data'!B16 -> Distribution Transformers | Y138: =_xlfn.XLOOKUP(X138,'Control panel'!$L$7:$L$36,'Control panel'!$P$7:$P$36) -> 0.2 | Z138: =SUMPRODUCT(_xlfn.XLOOKUP(W138,$AZ$9:$AZ$13,$BA$9:$BS$13),_xlfn.XLOOKUP(X138,$AE$9:$AE$38,$AF$9:$AX$38)) -> 7.069531618 | AA138: =_xlfn.XLOOKUP(W138,'BBM Costs'!$Q$6:$U$6,_xlfn.XLOOKUP(X138,'BBM Costs'!$P$7:$P$36,'BBM Costs'!$Q$7:$U$36))*_xlfn.XLOOKUP(X138,'Control panel'!$L$7:$L$36,'Control panel'!$M$7:$M$36) -> 9.378537611 | AB138: =_xlfn.XLOOKUP(W138,'BBM Costs'!$X$6:$AB$6,_xlfn.XLOOKUP(X138,'BBM Costs'!$W$7:$W$36,'BBM Costs'!$X$7:$AB$36))*_xlfn.XLOOKUP(X138,'Control panel'!$S$7:$S$36,'Control panel'!$T$7:$T$36) -> 33.55925057 | AC138: =SUM(Z138:AB138) -> 50.0073198
W139: 2029-30 | X139: ='PTRM Data'!B17 -> Low Voltage Services | Y139: =_xlfn.XLOOKUP(X139,'Control panel'!$L$7:$L$36,'Control panel'!$P$7:$P$36) -> 0 | Z139: 3.260680447 | AA139: =_xlfn.XLOOKUP(W139,'BBM Costs'!$Q$6:$U$6,_xlfn.XLOOKUP(X139,'BBM Costs'!$P$7:$P$36,'BBM Costs'!$Q$7:$U$36))*_xlfn.XLOOKUP(X139,'Control panel'!$L$7:$L$36,'Control panel'!$M$7:$M$36) -> 0 | AB139: =_xlfn.XLOOKUP(W139,'BBM Costs'!$X$6:$AB$6,_xlfn.XLOOKUP(X139,'BBM Costs'!$W$7:$W$36,'BBM Costs'!$X$7:$AB$36))*_xlfn.XLOOKUP(X139,'Control panel'!$S$7:$S$36,'Control panel'!$T$7:$T$36) -> 0 | AC139: 3.260680447
W140: 2029-30 | X140: ='PTRM Data'!B18 -> Load Control & Network Metering Devices | Y140: =_xlfn.XLOOKUP(X140,'Control panel'!$L$7:$L$36,'Control panel'!$P$7:$P$36) -> 0 | Z140: 0.3209173684 | AA140: =_xlfn.XLOOKUP(W140,'BBM Costs'!$Q$6:$U$6,_xlfn.XLOOKUP(X140,'BBM Costs'!$P$7:$P$36,'BBM Costs'!$Q$7:$U$36))*_xlfn.XLOOKUP(X140,'Control panel'!$L$7:$L$36,'Control panel'!$M$7:$M$36) -> 0 | AB140: =_xlfn.XLOOKUP(W140,'BBM Costs'!$X$6:$AB$6,_xlfn.XLOOKUP(X140,'BBM Costs'!$W$7:$W$36,'BBM Costs'!$X$7:$AB$36))*_xlfn.XLOOKUP(X140,'Control panel'!$S$7:$S$36,'Control panel'!$T$7:$T$36) -> 0 | AC140: 0.3209173684
W141: 2029-30 | X141: ='PTRM Data'!B19 -> Communications - Pilot Wires | Y141: =_xlfn.XLOOKUP(X141,'Control panel'!$L$7:$L$36,'Control panel'!$P$7:$P$36) -> 1 | Z141: 2.041323437 | AA141: =_xlfn.XLOOKUP(W141,'BBM Costs'!$Q$6:$U$6,_xlfn.XLOOKUP(X141,'BBM Costs'!$P$7:$P$36,'BBM Costs'!$Q$7:$U$36))*_xlfn.XLOOKUP(X141,'Control panel'!$L$7:$L$36,'Control panel'!$M$7:$M$36) -> 0 | AB141: =_xlfn.XLOOKUP(W141,'BBM Costs'!$X$6:$AB$6,_xlfn.XLOOKUP(X141,'BBM Costs'!$W$7:$W$36,'BBM Costs'!$X$7:$AB$36))*_xlfn.XLOOKUP(X141,'Control panel'!$S$7:$S$36,'Control panel'!$T$7:$T$36) -> 0 | AC141: 2.041323437
W142: 2029-30 | X142: ='PTRM Data'!B20 -> Streetlighting (Residual Rate 2 Assets) | Y142: =_xlfn.XLOOKUP(X142,'Control panel'!$L$7:$L$36,'Control panel'!$P$7:$P$36) -> 1 | Z142: 0 | AA142: =_xlfn.XLOOKUP(W142,'BBM Costs'!$Q$6:$U$6,_xlfn.XLOOKUP(X142,'BBM Costs'!$P$7:$P$36,'BBM Costs'!$Q$7:$U$36))*_xlfn.XLOOKUP(X142,'Control panel'!$L$7:$L$36,'Control panel'!$M$7:$M$36) -> 0 | AB142: =_xlfn.XLOOKUP(W142,'BBM Costs'!$X$6:$AB$6,_xlfn.XLOOKUP(X142,'BBM Costs'!$W$7:$W$36,'BBM Costs'!$X$7:$AB$36))*_xlfn.XLOOKUP(X142,'Control panel'!$S$7:$S$36,'Control panel'!$T$7:$T$36) -> 0 | AC142: 0
W143: 2029-30 | X143: ='PTRM Data'!B21 -> Systems Buildings | Y143: =_xlfn.XLOOKUP(X143,'Control panel'!$L$7:$L$36,'Control panel'!$P$7:$P$36) -> 1 | Z143: 1.25775152 | AA143: =_xlfn.XLOOKUP(W143,'BBM Costs'!$Q$6:$U$6,_xlfn.XLOOKUP(X143,'BBM Costs'!$P$7:$P$36,'BBM Costs'!$Q$7:$U$36))*_xlfn.XLOOKUP(X143,'Control panel'!$L$7:$L$36,'Control panel'!$M$7:$M$36) -> 0 | AB143: =_xlfn.XLOOKUP(W143,'BBM Costs'!$X$6:$AB$6,_xlfn.XLOOKUP(X143,'BBM Costs'!$W$7:$W$36,'BBM Costs'!$X$7:$AB$36))*_xlfn.XLOOKUP(X143,'Control panel'!$S$7:$S$36,'Control panel'!$T$7:$T$36) -> 0 | AC143: 1.25775152
W144: 2029-30 | X144: ='PTRM Data'!B22 -> Systems Easements | Y144: =_xlfn.XLOOKUP(X144,'Control panel'!$L$7:$L$36,'Control panel'!$P$7:$P$36) -> 1 | Z144: 0.7552899323 | AA144: =_xlfn.XLOOKUP(W144,'BBM Costs'!$Q$6:$U$6,_xlfn.XLOOKUP(X144,'BBM Costs'!$P$7:$P$36,'BBM Costs'!$Q$7:$U$36))*_xlfn.XLOOKUP(X144,'Control panel'!$L$7:$L$36,'Control panel'!$M$7:$M$36) -> 0 | AB144: =_xlfn.XLOOKUP(W144,'BBM Costs'!$X$6:$AB$6,_xlfn.XLOOKUP(X144,'BBM Costs'!$W$7:$W$36,'BBM Costs'!$X$7:$AB$36))*_xlfn.XLOOKUP(X144,'Control panel'!$S$7:$S$36,'Control panel'!$T$7:$T$36) -> 0 | AC144: 0.7552899323
W145: 2029-30 | X145: ='PTRM Data'!B23 -> System Land | Y145: =_xlfn.XLOOKUP(X145,'Control panel'!$L$7:$L$36,'Control panel'!$P$7:$P$36) -> 1 | Z145: 0 | AA145: =_xlfn.XLOOKUP(W145,'BBM Costs'!$Q$6:$U$6,_xlfn.XLOOKUP(X145,'BBM Costs'!$P$7:$P$36,'BBM Costs'!$Q$7:$U$36))*_xlfn.XLOOKUP(X145,'Control panel'!$L$7:$L$36,'Control panel'!$M$7:$M$36) -> 0 | AB145: =_xlfn.XLOOKUP(W145,'BBM Costs'!$X$6:$AB$6,_xlfn.XLOOKUP(X145,'BBM Costs'!$W$7:$W$36,'BBM Costs'!$X$7:$AB$36))*_xlfn.XLOOKUP(X145,'Control panel'!$S$7:$S$36,'Control panel'!$T$7:$T$36) -> 0 | AC145: 0
W146: 2029-30 | X146: ='PTRM Data'!B24 -> Control Centre - SCADA | Y146: =_xlfn.XLOOKUP(X146,'Control panel'!$L$7:$L$36,'Control panel'!$P$7:$P$36) -> 1 | Z146: 0.002968053238 | AA146: =_xlfn.XLOOKUP(W146,'BBM Costs'!$Q$6:$U$6,_xlfn.XLOOKUP(X146,'BBM Costs'!$P$7:$P$36,'BBM Costs'!$Q$7:$U$36))*_xlfn.XLOOKUP(X146,'Control panel'!$L$7:$L$36,'Control panel'!$M$7:$M$36) -> 0 | AB146: =_xlfn.XLOOKUP(W146,'BBM Costs'!$X$6:$AB$6,_xlfn.XLOOKUP(X146,'BBM Costs'!$W$7:$W$36,'BBM Costs'!$X$7:$AB$36))*_xlfn.XLOOKUP(X146,'Control panel'!$S$7:$S$36,'Control panel'!$T$7:$T$36) -> 0 | AC146: 0.002968053238
W147: 2029-30 | X147: ='PTRM Data'!B25 -> Motor Vehicles | Y147: =_xlfn.XLOOKUP(X147,'Control panel'!$L$7:$L$36,'Control panel'!$P$7:$P$36) -> 1 | Z147: 0 | AA147: =_xlfn.XLOOKUP(W147,'BBM Costs'!$Q$6:$U$6,_xlfn.XLOOKUP(X147,'BBM Costs'!$P$7:$P$36,'BBM Costs'!$Q$7:$U$36))*_xlfn.XLOOKUP(X147,'Control panel'!$L$7:$L$36,'Control panel'!$M$7:$M$36) -> 0 | AB147: =_xlfn.XLOOKUP(W147,'BBM Costs'!$X$6:$AB$6,_xlfn.XLOOKUP(X147,'BBM Costs'!$W$7:$W$36,'BBM Costs'!$X$7:$AB$36))*_xlfn.XLOOKUP(X147,'Control panel'!$S$7:$S$36,'Control panel'!$T$7:$T$36) -> 0 | AC147: 0
W148: 2029-30 | X148: ='PTRM Data'!B26 -> Plant & Equipment | Y148: =_xlfn.XLOOKUP(X148,'Control panel'!$L$7:$L$36,'Control panel'!$P$7:$P$36) -> 1 | Z148: 0 | AA148: =_xlfn.XLOOKUP(W148,'BBM Costs'!$Q$6:$U$6,_xlfn.XLOOKUP(X148,'BBM Costs'!$P$7:$P$36,'BBM Costs'!$Q$7:$U$36))*_xlfn.XLOOKUP(X148,'Control panel'!$L$7:$L$36,'Control panel'!$M$7:$M$36) -> 0 | AB148: =_xlfn.XLOOKUP(W148,'BBM Costs'!$X$6:$AB$6,_xlfn.XLOOKUP(X148,'BBM Costs'!$W$7:$W$36,'BBM Costs'!$X$7:$AB$36))*_xlfn.XLOOKUP(X148,'Control panel'!$S$7:$S$36,'Control panel'!$T$7:$T$36) -> 0 | AC148: 0
W149: 2029-30 | X149: ='PTRM Data'!B27 -> Buildings | Y149: =_xlfn.XLOOKUP(X149,'Control panel'!$L$7:$L$36,'Control panel'!$P$7:$P$36) -> 1 | Z149: 0 | AA149: =_xlfn.XLOOKUP(W149,'BBM Costs'!$Q$6:$U$6,_xlfn.XLOOKUP(X149,'BBM Costs'!$P$7:$P$36,'BBM Costs'!$Q$7:$U$36))*_xlfn.XLOOKUP(X149,'Control panel'!$L$7:$L$36,'Control panel'!$M$7:$M$36) -> 0 | AB149: =_xlfn.XLOOKUP(W149,'BBM Costs'!$X$6:$AB$6,_xlfn.XLOOKUP(X149,'BBM Costs'!$W$7:$W$36,'BBM Costs'!$X$7:$AB$36))*_xlfn.XLOOKUP(X149,'Control panel'!$S$7:$S$36,'Control panel'!$T$7:$T$36) -> 0 | AC149: 0
W150: 2029-30 | X150: ='PTRM Data'!B28 -> Office Equipment & Furniture | Y150: =_xlfn.XLOOKUP(X150,'Control panel'!$L$7:$L$36,'Control panel'!$P$7:$P$36) -> 1 | Z150: 0 | AA150: =_xlfn.XLOOKUP(W150,'BBM Costs'!$Q$6:$U$6,_xlfn.XLOOKUP(X150,'BBM Costs'!$P$7:$P$36,'BBM Costs'!$Q$7:$U$36))*_xlfn.XLOOKUP(X150,'Control panel'!$L$7:$L$36,'Control panel'!$M$7:$M$36) -> 0 | AB150: =_xlfn.XLOOKUP(W150,'BBM Costs'!$X$6:$AB$6,_xlfn.XLOOKUP(X150,'BBM Costs'!$W$7:$W$36,'BBM Costs'!$X$7:$AB$36))*_xlfn.XLOOKUP(X150,'Control panel'!$S$7:$S$36,'Control panel'!$T$7:$T$36) -> 0 | AC150: 0
W151: 2029-30 | X151: ='PTRM Data'!B29 -> Initial Leases (10 yr life) | Y151: =_xlfn.XLOOKUP(X151,'Control panel'!$L$7:$L$36,'Control panel'!$P$7:$P$36) -> 1 | Z151: 0 | AA151: =_xlfn.XLOOKUP(W151,'BBM Costs'!$Q$6:$U$6,_xlfn.XLOOKUP(X151,'BBM Costs'!$P$7:$P$36,'BBM Costs'!$Q$7:$U$36))*_xlfn.XLOOKUP(X151,'Control panel'!$L$7:$L$36,'Control panel'!$M$7:$M$36) -> 0 | AB151: =_xlfn.XLOOKUP(W151,'BBM Costs'!$X$6:$AB$6,_xlfn.XLOOKUP(X151,'BBM Costs'!$W$7:$W$36,'BBM Costs'!$X$7:$AB$36))*_xlfn.XLOOKUP(X151,'Control panel'!$S$7:$S$36,'Control panel'!$T$7:$T$36) -> 0 | AC151: 0
W152: 2029-30 | X152: ='PTRM Data'!B30 -> Lease Extensions (5yr Life) | Y152: =_xlfn.XLOOKUP(X152,'Control panel'!$L$7:$L$36,'Control panel'!$P$7:$P$36) -> 1 | Z152: 0 | AA152: =_xlfn.XLOOKUP(W152,'BBM Costs'!$Q$6:$U$6,_xlfn.XLOOKUP(X152,'BBM Costs'!$P$7:$P$36,'BBM Costs'!$Q$7:$U$36))*_xlfn.XLOOKUP(X152,'Control panel'!$L$7:$L$36,'Control panel'!$M$7:$M$36) -> 0 | AB152: =_xlfn.XLOOKUP(W152,'BBM Costs'!$X$6:$AB$6,_xlfn.XLOOKUP(X152,'BBM Costs'!$W$7:$W$36,'BBM Costs'!$X$7:$AB$36))*_xlfn.XLOOKUP(X152,'Control panel'!$S$7:$S$36,'Control panel'!$T$7:$T$36) -> 0 | AC152: 0
W153: 2029-30 | X153: ='PTRM Data'!B31 -> Land | Y153: =_xlfn.XLOOKUP(X153,'Control panel'!$L$7:$L$36,'Control panel'!$P$7:$P$36) -> 1 | Z153: 0 | AA153: =_xlfn.XLOOKUP(W153,'BBM Costs'!$Q$6:$U$6,_xlfn.XLOOKUP(X153,'BBM Costs'!$P$7:$P$36,'BBM Costs'!$Q$7:$U$36))*_xlfn.XLOOKUP(X153,'Control panel'!$L$7:$L$36,'Control panel'!$M$7:$M$36) -> 0 | AB153: =_xlfn.XLOOKUP(W153,'BBM Costs'!$X$6:$AB$6,_xlfn.XLOOKUP(X153,'BBM Costs'!$W$7:$W$36,'BBM Costs'!$X$7:$AB$36))*_xlfn.XLOOKUP(X153,'Control panel'!$S$7:$S$36,'Control panel'!$T$7:$T$36) -> 0 | AC153: 0
W154: 2029-30 | X154: ='PTRM Data'!B32 -> In-house software | Y154: =_xlfn.XLOOKUP(X154,'Control panel'!$L$7:$L$36,'Control panel'!$P$7:$P$36) -> 1 | Z154: 0 | AA154: =_xlfn.XLOOKUP(W154,'BBM Costs'!$Q$6:$U$6,_xlfn.XLOOKUP(X154,'BBM Costs'!$P$7:$P$36,'BBM Costs'!$Q$7:$U$36))*_xlfn.XLOOKUP(X154,'Control panel'!$L$7:$L$36,'Control panel'!$M$7:$M$36) -> 0 | AB154: =_xlfn.XLOOKUP(W154,'BBM Costs'!$X$6:$AB$6,_xlfn.XLOOKUP(X154,'BBM Costs'!$W$7:$W$36,'BBM Costs'!$X$7:$AB$36))*_xlfn.XLOOKUP(X154,'Control panel'!$S$7:$S$36,'Control panel'!$T$7:$T$36) -> 0 | AC154: 0
W155: 2029-30 | X155: ='PTRM Data'!B33 -> IT Systems | Y155: =_xlfn.XLOOKUP(X155,'Control panel'!$L$7:$L$36,'Control panel'!$P$7:$P$36) -> 1 | Z155: 0 | AA155: =_xlfn.XLOOKUP(W155,'BBM Costs'!$Q$6:$U$6,_xlfn.XLOOKUP(X155,'BBM Costs'!$P$7:$P$36,'BBM Costs'!$Q$7:$U$36))*_xlfn.XLOOKUP(X155,'Control panel'!$L$7:$L$36,'Control panel'!$M$7:$M$36) -> 0 | AB155: =_xlfn.XLOOKUP(W155,'BBM Costs'!$X$6:$AB$6,_xlfn.XLOOKUP(X155,'BBM Costs'!$W$7:$W$36,'BBM Costs'!$X$7:$AB$36))*_xlfn.XLOOKUP(X155,'Control panel'!$S$7:$S$36,'Control panel'!$T$7:$T$36) -> 0 | AC155: 0
W156: 2029-30 | X156: ='PTRM Data'!B34 -> Legacy ICT Assets | Y156: =_xlfn.XLOOKUP(X156,'Control panel'!$L$7:$L$36,'Control panel'!$P$7:$P$36) -> 1 | Z156: 0 | AA156: =_xlfn.XLOOKUP(W156,'BBM Costs'!$Q$6:$U$6,_xlfn.XLOOKUP(X156,'BBM Costs'!$P$7:$P$36,'BBM Costs'!$Q$7:$U$36))*_xlfn.XLOOKUP(X156,'Control panel'!$L$7:$L$36,'Control panel'!$M$7:$M$36) -> 0 | AB156: =_xlfn.XLOOKUP(W156,'BBM Costs'!$X$6:$AB$6,_xlfn.XLOOKUP(X156,'BBM Costs'!$W$7:$W$36,'BBM Costs'!$X$7:$AB$36))*_xlfn.XLOOKUP(X156,'Control panel'!$S$7:$S$36,'Control panel'!$T$7:$T$36) -> 0 | AC156: 0
W157: 2029-30 | X157: ='PTRM Data'!B35 -> Buildings - capital works | Y157: =_xlfn.XLOOKUP(X157,'Control panel'!$L$7:$L$36,'Control panel'!$P$7:$P$36) -> 1 | Z157: 0 | AA157: =_xlfn.XLOOKUP(W157,'BBM Costs'!$Q$6:$U$6,_xlfn.XLOOKUP(X157,'BBM Costs'!$P$7:$P$36,'BBM Costs'!$Q$7:$U$36))*_xlfn.XLOOKUP(X157,'Control panel'!$L$7:$L$36,'Control panel'!$M$7:$M$36) -> 0 | AB157: =_xlfn.XLOOKUP(W157,'BBM Costs'!$X$6:$AB$6,_xlfn.XLOOKUP(X157,'BBM Costs'!$W$7:$W$36,'BBM Costs'!$X$7:$AB$36))*_xlfn.XLOOKUP(X157,'Control panel'!$S$7:$S$36,'Control panel'!$T$7:$T$36) -> 0 | AC157: 0
W158: 2029-30 | X158: ='PTRM Data'!B36 -> Equity raising costs | Y158: =_xlfn.XLOOKUP(X158,'Control panel'!$L$7:$L$36,'Control panel'!$P$7:$P$36) -> 1 | Z158: 0 | AA158: =_xlfn.XLOOKUP(W158,'BBM Costs'!$Q$6:$U$6,_xlfn.XLOOKUP(X158,'BBM Costs'!$P$7:$P$36,'BBM Costs'!$Q$7:$U$36))*_xlfn.XLOOKUP(X158,'Control panel'!$L$7:$L$36,'Control panel'!$M$7:$M$36) -> 0 | AB158: =_xlfn.XLOOKUP(W158,'BBM Costs'!$X$6:$AB$6,_xlfn.XLOOKUP(X158,'BBM Costs'!$W$7:$W$36,'BBM Costs'!$X$7:$AB$36))*_xlfn.XLOOKUP(X158,'Control panel'!$S$7:$S$36,'Control panel'!$T$7:$T$36) -> 0 | AC158: 0

Sheet PTRM Revenue data
B2: PTRM Revenue Data
B4: Smoothed building Block Components | I4: Forecast inflation | P4: Other PTRM Components
B6: Asset class | C6: 2025-26 | D6: 2026-27 | E6: 2027-28 | F6: 2028-29 | G6: 2029-30 | I6: Asset class | J6: 2025-26 | K6: 2026-27 | L6: 2027-28 | M6: 2028-29 | N6: 2029-30 | P6: Asset class | Q6: 2025-26 | R6: 2026-27 | S6: 2027-28 | T6: 2028-29 | U6: 2029-30
B7: Return on Capital | C7: =C17*C$24 -> 915.5813 | D7: =D17*D$24 -> 957.018339 | E7: 1021.88662 | F7: 1080.218987 | G7: 1181.739196 | I7: Forecast inflation | J7: ='X-factors'!G10 -> 0.02799781128 | K7: ='X-factors'!H10 -> 0.02799781128 | L7: ='X-factors'!I10 -> 0.02799781128 | M7: ='X-factors'!J10 -> 0.02799781128 | N7: ='X-factors'!K10 -> 0.02799781128 | P7: EBSS | Q7: ='PTRM Input'!G345 -> -62.33189977 | R7: ='PTRM Input'!H345 -> -25.58009864 | S7: ='PTRM Input'!I345 -> -17.47982524 | T7: ='PTRM Input'!J345 -> 9.570617508 | U7: ='PTRM Input'!K345 -> 0
B8: Return of Capital (regulatory depreciation) | C8: =C18*C$24 -> 202.8940829 | D8: 233.7027953 | E8: 267.2463701 | F8: 295.8325366 | G8: 316.7378495 | I8: Inflation index | J8: =1+J7 -> 1.027997811 | K8: =1+K7 -> 1.027997811 | L8: 1.027997811 | M8: 1.027997811 | N8: 1.027997811 | P8: CESS | Q8: ='PTRM Input'!G346 -> -12.83986341 | R8: ='PTRM Input'!H346 -> -12.83986341 | S8: ='PTRM Input'!I346 -> -12.83986341 | T8: ='PTRM Input'!J346 -> -12.83986341 | U8: ='PTRM Input'!K346 -> -12.83986341
B9: Operating Expenditure | C9: 449.600256 | D9: 467.3391285 | E9: 493.8537847 | F9: 516.1456202 | G9: 559.5474752 | P9: Control period carryover | Q9: ='PTRM Input'!G347 -> 0 | R9: ='PTRM Input'!H347 -> 0 | S9: ='PTRM Input'!I347 -> 0 | T9: ='PTRM Input'!J347 -> 0 | U9: ='PTRM Input'!K347 -> 0
B10: Revenue Adjustments | C10: -70.29838496 | D10: -34.73503107 | E10: -27.7051802 | F10: 1.661460533 | G10: -9.777614449 | P10: Shared asset decrements | Q10: ='PTRM Input'!G348 -> 0 | R10: ='PTRM Input'!H348 -> 0 | S10: ='PTRM Input'!I348 -> 0 | T10: ='PTRM Input'!J348 -> 0 | U10: ='PTRM Input'!K348 -> 0
B11: Net Tax Allowance | C11: 13.73952627 | D11: 12.81175695 | E11: 15.75018056 | F11: 23.18964385 | G11: 26.85645213 | P11: DMIA | Q11: ='PTRM Input'!G349 -> 1.447685097 | R11: ='PTRM Input'!H349 -> 1.474673748 | S11: ='PTRM Input'!I349 -> 1.504369891 | T11: ='PTRM Input'!J349 -> 1.535935842 | U11: ='PTRM Input'!K349 -> 1.549590404
B12: Total validation | C12: =SUM(C7:C11) -> 1511.51678 | D12: =SUM(D7:D11) -> 1636.136989 | E12: 1771.031775 | F12: 1917.048248 | G12: 2075.103359
B14: Unsmoothed building block components
B16: Asset class | C16: 2025-26 | D16: 2026-27 | E16: 2027-28 | F16: 2028-29 | G16: 2029-30
B17: Return on Capital | C17: ='X-factors'!G30 -> 944.0801948 | D17: ='X-factors'!H30 -> 982.197909 | E17: ='X-factors'!I30 -> 1025.933044 | F17: ='X-factors'!J30 -> 1073.471622 | G17: ='X-factors'!K30 -> 1120.939873
B18: Return of Capital (regulatory depreciation) | C18: ='X-factors'!G31 -> 209.2094774 | D18: ='X-factors'!H31 -> 239.8516178 | E18: ='X-factors'!I31 -> 268.3046013 | F18: ='X-factors'!J31 -> 293.9846798 | G18: ='X-factors'!K31 -> 300.4419974
B19: Operating Expenditure | C19: ='X-factors'!G32 -> 463.5947645 | D19: ='X-factors'!H32 -> 479.6350249 | E19: ='X-factors'!I32 -> 495.8093266 | F19: ='X-factors'!J32 -> 512.9216233 | G19: ='X-factors'!K32 -> 530.7593058
B20: Revenue Adjustments | C20: ='X-factors'!G33 -> -72.48653173 | D20: ='X-factors'!H33 -> -35.64892489 | E20: ='X-factors'!I33 -> -27.81488604 | F20: ='X-factors'!J33 -> 1.651082563 | G20: ='X-factors'!K33 -> -9.274565765
B21: Net Tax Allowance | C21: ='X-factors'!G34 -> 14.16719044 | D21: ='X-factors'!H34 -> 13.14883987 | E21: ='X-factors'!I34 -> 15.81254747 | F21: ='X-factors'!J34 -> 23.04479453 | G21: ='X-factors'!K34 -> 25.47471398
B22: Total unsmoothed | C22: =SUM(C17:C21) -> 1558.565095 | D22: =SUM(D17:D21) -> 1679.184467 | E22: 1778.044634 | F22: 1905.073802 | G22: 1968.341324
B23: Total smoothed | C23: ='X-factors'!G60 -> 1511.51678 | D23: ='X-factors'!H60 -> 1636.136989 | E23: ='X-factors'!I60 -> 1771.031775 | F23: ='X-factors'!J60 -> 1917.048248 | G23: ='X-factors'!K60 -> 2075.103359
B24: Percentage difference | C24: =C23/C22 -> 0.9698130573 | D24: =D23/D22 -> 0.9743640566 | E24: 0.9960558589 | F24: 1.006285555 | G24: 1.054239594

Sheet PTRM Data
B2: PTRM Data
B4: Opening RAB | E4: Capital expenditure | L4: Depreciation | S4: ORAB | Z4: ORAB Split | AG4: Indexation split | AN4: Depreciation split | AU4: Regulatory depreciation Split ($m, nominal)
B6: Asset class | C6: RAB 2025-2026 | E6: Asset class | F6: 2025-26 | G6: 2026-27 | H6: 2027-28 | I6: 2028-29 | J6: 2029-30 | L6: Asset class | M6: 2025-26 | N6: 2026-27 | O6: 2027-28 | P6: 2028-29 | Q6: 2029-30 | S6: Asset class | T6: 2025-26 | U6: 2026-27 | V6: 2027-28 | W6: 2028-29 | X6: 2029-30 | Z6: Asset class | AA6: 2025-26 | AB6: 2026-27 | AC6: 2027-28 | AD6: 2028-29 | AE6: 2029-30 | AG6: Asset class | AH6: 2025-26 | AI6: 2026-27 | AJ6: 2027-28 | AK6: 2028-29 | AL6: 2029-30 | AN6: Asset class | AO6: 2025-26 | AP6: 2026-27 | AQ6: 2027-28 | AR6: 2028-29 | AS6: 2029-30 | AU6: Asset class | AV6: 2025-26 | AW6: 2026-27 | AX6: 2027-28 | AY6: 2028-29 | AZ6: 2029-30
B7: OH Sub-transmission lines | C7: =_xlfn.XLOOKUP(B7,'PTRM Input'!$G$6:$G$58,'PTRM Input'!$J$6:$J$58) -> 791.4885062 | E7: =B7 -> OH Sub-transmission lines | F7: =_xlfn.XLOOKUP($E7,Assets!$C$11:$C$60,Assets!G$11:G$60) -> 38.42439137 | G7: =_xlfn.XLOOKUP($E7,Assets!$C$11:$C$60,Assets!H$11:H$60) -> 40.05253262 | H7: =_xlfn.XLOOKUP($E7,Assets!$C$11:$C$60,Assets!I$11:I$60) -> 39.67185969 | I7: =_xlfn.XLOOKUP($E7,Assets!$C$11:$C$60,Assets!J$11:J$60) -> 39.32949636 | J7: =_xlfn.XLOOKUP($E7,Assets!$C$11:$C$60,Assets!K$11:K$60) -> 40.54664745 | L7: =B7 -> OH Sub-transmission lines | M7: =_xlfn.XLOOKUP($L7,Assets!$C$128:$C$765,Assets!G$128:G$765) -> 25.01393086 | N7: =_xlfn.XLOOKUP($L7,Assets!$C$128:$C$765,Assets!H$128:H$765) -> 25.7742077 | O7: =_xlfn.XLOOKUP($L7,Assets!$C$128:$C$765,Assets!I$128:I$765) -> 26.56669944 | P7: =_xlfn.XLOOKUP($L7,Assets!$C$128:$C$765,Assets!J$128:J$765) -> 27.35165907 | Q7: =_xlfn.XLOOKUP($L7,Assets!$C$128:$C$765,Assets!K$128:K$765) -> 28.12984459 | S7: =B7 -> OH Sub-transmission lines | T7: =_xlfn.XLOOKUP(S7,$B$7:$B$36,C$7:C$36) -> 791.4885062 | U7: =T7+F7-M7 -> 804.8989667 | V7: =U7+G7-N7 -> 819.1772917 | W7: 832.2824519 | X7: =W7+I7-P7 -> 844.2602892 | Z7: =B7 -> OH Sub-transmission lines | AA7: =T7/T$39 -> 0.0506543199 | AB7: =U7/U$39 -> 0.05130183415 | AC7: 0.05200001803 | AD7: 0.05282155972 | AE7: 0.05368334937 | AG7: =B7 -> OH Sub-transmission lines | AH7: =T7*'PTRM Revenue data'!J$7 -> 22.15994583 | AI7: =U7*'PTRM Revenue data'!K$7*'PTRM Revenue data'!J$8 -> 23.16635151 | AJ7: =V7*'PTRM Revenue data'!L$7*'PTRM Revenue data'!K$8 -> 23.57730581 | AK7: =W7*'PTRM Revenue data'!M$7*'PTRM Revenue data'!L$8 -> 23.95449445 | AL7: =X7*'PTRM Revenue data'!N$7*'PTRM Revenue data'!M$8 -> 24.29923684 | AN7: =B7 -> OH Sub-transmission lines | AO7: =M7*'PTRM Revenue data'!J$8 -> 25.71426618 | AP7: =N7*'PTRM Revenue data'!K$8 -> 26.4958291 | AQ7: =O7*'PTRM Revenue data'!L$8 -> 27.31050888 | AR7: =P7*'PTRM Revenue data'!M$8 -> 28.11744566 | AS7: =Q7*'PTRM Revenue data'!N$8 -> 28.91741867 | AU7: =B7 -> OH Sub-transmission lines | AV7: =AO7-AH7 -> 3.554320349 | AW7: =AP7-AI7 -> 3.329477593 | AX7: 3.733203066 | AY7: 4.162951204 | AZ7: 4.618181835
B8: UG Sub-transmission cables | C8: =_xlfn.XLOOKUP(B8,'PTRM Input'!$G$6:$G$58,'PTRM Input'!$J$6:$J$58) -> 874.2582978 | E8: =B8 -> UG Sub-transmission cables | F8: =_xlfn.XLOOKUP($E8,Assets!$C$11:$C$60,Assets!G$11:G$60) -> 9.909207988 | G8: =_xlfn.XLOOKUP($E8,Assets!$C$11:$C$60,Assets!H$11:H$60) -> 9.786813249 | H8: =_xlfn.XLOOKUP($E8,Assets!$C$11:$C$60,Assets!I$11:I$60) -> 9.329791727 | I8: =_xlfn.XLOOKUP($E8,Assets!$C$11:$C$60,Assets!J$11:J$60) -> 8.847693094 | J8: =_xlfn.XLOOKUP($E8,Assets!$C$11:$C$60,Assets!K$11:K$60) -> 10.04290299 | L8: =B8 -> UG Sub-transmission cables | M8: =_xlfn.XLOOKUP($L8,Assets!$C$128:$C$765,Assets!G$128:G$765) -> 36.91501168 | N8: =_xlfn.XLOOKUP($L8,Assets!$C$128:$C$765,Assets!H$128:H$765) -> 37.1352163 | O8: =_xlfn.XLOOKUP($L8,Assets!$C$128:$C$765,Assets!I$128:I$765) -> 37.35270104 | P8: =_xlfn.XLOOKUP($L8,Assets!$C$128:$C$765,Assets!J$128:J$765) -> 37.56002975 | Q8: =_xlfn.XLOOKUP($L8,Assets!$C$128:$C$765,Assets!K$128:K$765) -> 37.75664515 | S8: =B8 -> UG Sub-transmission cables | T8: =_xlfn.XLOOKUP(S8,$B$7:$B$36,C$7:C$36) -> 874.2582978 | U8: =T8+F8-M8 -> 847.2524942 | V8: 819.9040911 | W8: 791.8811818 | X8: =W8+I8-P8 -> 763.1688451 | Z8: =B8 -> UG Sub-transmission cables | AA8: =T8/T$39 -> 0.0559514878 | AB8: =U8/U$39 -> 0.05400132033 | AC8: =V8/V$39 -> 0.05204615405 | AD8: =W8/W$39 -> 0.05025745651 | AE8: =X8/X$39 -> 0.04852704819 | AG8: =B8 -> UG Sub-transmission cables | AH8: =T8*'PTRM Revenue data'!J$7 -> 24.47731883 | AI8: =U8*'PTRM Revenue data'!K$7*'PTRM Revenue data'!J$8 -> 24.38535755 | AJ8: =V8*'PTRM Revenue data'!L$7*'PTRM Revenue data'!K$8 -> 23.59822433 | AK8: =W8*'PTRM Revenue data'!M$7*'PTRM Revenue data'!L$8 -> 22.79167767 | AL8: =X8*'PTRM Revenue data'!N$7*'PTRM Revenue data'!M$8 -> 21.96528814 | AN8: =B8 -> UG Sub-transmission cables | AO8: =M8*'PTRM Revenue data'!J$8 -> 37.94855121 | AP8: =N8*'PTRM Revenue data'!K$8 -> 38.17492108 | AQ8: =O8*'PTRM Revenue data'!L$8 -> 38.39849492 | AR8: =P8*'PTRM Revenue data'!M$8 -> 38.61162837 | AS8: =Q8*'PTRM Revenue data'!N$8 -> 38.81374857 | AU8: =B8 -> UG Sub-transmission cables | AV8: =AO8-AH8 -> 13.47123238 | AW8: =AP8-AI8 -> 13.78956353 | AX8: =AQ8-AJ8 -> 14.80027059 | AY8: =AR8-AK8 -> 15.8199507 | AZ8: =AS8-AL8 -> 16.84846044
B9: OH Distribution Lines | C9: =_xlfn.XLOOKUP(B9,'PTRM Input'!$G$6:$G$58,'PTRM Input'!$J$6:$J$58) -> 3154.699153 | E9: OH Distribution Lines | F9: =_xlfn.XLOOKUP($E9,Assets!$C$11:$C$60,Assets!G$11:G$60) -> 183.2732439 | G9: =_xlfn.XLOOKUP($E9,Assets!$C$11:$C$60,Assets!H$11:H$60) -> 197.4609321 | H9: =_xlfn.XLOOKUP($E9,Assets!$C$11:$C$60,Assets!I$11:I$60) -> 200.5092723 | I9: =_xlfn.XLOOKUP($E9,Assets!$C$11:$C$60,Assets!J$11:J$60) -> 204.1552231 | J9: =_xlfn.XLOOKUP($E9,Assets!$C$11:$C$60,Assets!K$11:K$60) -> 199.2872994 | L9: OH Distribution Lines | M9: =_xlfn.XLOOKUP($L9,Assets!$C$128:$C$765,Assets!G$128:G$765) -> 112.1584163 | N9: =_xlfn.XLOOKUP($L9,Assets!$C$128:$C$765,Assets!H$128:H$765) -> 116.2311551 | O9: =_xlfn.XLOOKUP($L9,Assets!$C$128:$C$765,Assets!I$128:I$765) -> 120.6191758 | P9: =_xlfn.XLOOKUP($L9,Assets!$C$128:$C$765,Assets!J$128:J$765) -> 125.0749374 | Q9: =_xlfn.XLOOKUP($L9,Assets!$C$128:$C$765,Assets!K$128:K$765) -> 129.6117201 | S9: OH Distribution Lines | T9: 3154.699153 | U9: 3225.813981 | V9: 3307.043758 | W9: 3386.933854 | X9: 3466.01414 | Z9: OH Distribution Lines | AA9: 0.2018969812 | AB9: 0.2056036604 | AC9: 0.2099256617 | AD9: 0.2149548251 | AE9: 0.2203908562 | AG9: OH Distribution Lines | AH9: =T9*'PTRM Revenue data'!J$7 -> 88.32467153 | AI9: =U9*'PTRM Revenue data'!K$7*'PTRM Revenue data'!J$8 -> 92.84437384 | AJ9: =V9*'PTRM Revenue data'!L$7*'PTRM Revenue data'!K$8 -> 95.182304 | AK9: =W9*'PTRM Revenue data'!M$7*'PTRM Revenue data'!L$8 -> 97.48167589 | AL9: =X9*'PTRM Revenue data'!N$7*'PTRM Revenue data'!M$8 -> 99.75774006 | AN9: OH Distribution Lines | AO9: =M9*'PTRM Revenue data'!J$8 -> 115.2986065 | AP9: =N9*'PTRM Revenue data'!K$8 -> 119.485373 | AQ9: =O9*'PTRM Revenue data'!L$8 -> 123.9962487 | AR9: =P9*'PTRM Revenue data'!M$8 -> 128.5767619 | AS9: =Q9*'PTRM Revenue data'!N$8 -> 133.2405646 | AU9: OH Distribution Lines | AV9: 26.97393497 | AW9: 26.64099918 | AX9: 28.81394471 | AY9: 31.095086 | AZ9: 33.48282456
B10: UG Distribution Cables | C10: =_xlfn.XLOOKUP(B10,'PTRM Input'!$G$6:$G$58,'PTRM Input'!$J$6:$J$58) -> 2683.468975 | E10: UG Distribution Cables | F10: =_xlfn.XLOOKUP($E10,Assets!$C$11:$C$60,Assets!G$11:G$60) -> 22.31456646 | G10: =_xlfn.XLOOKUP($E10,Assets!$C$11:$C$60,Assets!H$11:H$60) -> 22.82553797 | H10: =_xlfn.XLOOKUP($E10,Assets!$C$11:$C$60,Assets!I$11:I$60) -> 22.64002933 | I10: =_xlfn.XLOOKUP($E10,Assets!$C$11:$C$60,Assets!J$11:J$60) -> 22.44923281 | J10: =_xlfn.XLOOKUP($E10,Assets!$C$11:$C$60,Assets!K$11:K$60) -> 23.73806007 | L10: UG Distribution Cables | M10: =_xlfn.XLOOKUP($L10,Assets!$C$128:$C$765,Assets!G$128:G$765) -> 70.4700192 | N10: =_xlfn.XLOOKUP($L10,Assets!$C$128:$C$765,Assets!H$128:H$765) -> 70.84192864 | O10: =_xlfn.XLOOKUP($L10,Assets!$C$128:$C$765,Assets!I$128:I$765) -> 71.22235428 | P10: =_xlfn.XLOOKUP($L10,Assets!$C$128:$C$765,Assets!J$128:J$765) -> 71.5996881 | Q10: =_xlfn.XLOOKUP($L10,Assets!$C$128:$C$765,Assets!K$128:K$765) -> 71.97384198 | S10: UG Distribution Cables | T10: 2683.468975 | U10: 2635.313523 | V10: 2587.297132 | W10: 2538.714807 | X10: 2489.564352 | Z10: UG Distribution Cables | AA10: 0.1717388122 | AB10: 0.167966941 | AC10: 0.1642373377 | AD10: 0.1611218349 | AE10: 0.1583020717 | AG10: UG Distribution Cables | AH10: =T10*'PTRM Revenue data'!J$7 -> 75.13125794 | AI10: =U10*'PTRM Revenue data'!K$7*'PTRM Revenue data'!J$8 -> 75.84877347 | AJ10: =V10*'PTRM Revenue data'!L$7*'PTRM Revenue data'!K$8 -> 74.46678066 | AK10: =W10*'PTRM Revenue data'!M$7*'PTRM Revenue data'!L$8 -> 73.06849931 | AL10: =X10*'PTRM Revenue data'!N$7*'PTRM Revenue data'!M$8 -> 71.65386621 | AN10: UG Distribution Cables | AO10: =M10*'PTRM Revenue data'!J$8 -> 72.4430255 | AP10: =N10*'PTRM Revenue data'!K$8 -> 72.82534759 | AQ10: =O10*'PTRM Revenue data'!L$8 -> 73.21642431 | AR10: =P10*'PTRM Revenue data'!M$8 -> 73.60432265 | AS10: =Q10*'PTRM Revenue data'!N$8 -> 73.98895202 | AU10: UG Distribution Cables | AV10: -2.688232442 | AW10: -3.023425881 | AX10: -1.250356353 | AY10: 0.5358233437 | AZ10: 2.335085818
B11: Distribution Equipment | C11: =_xlfn.XLOOKUP(B11,'PTRM Input'!$G$6:$G$58,'PTRM Input'!$J$6:$J$58) -> 505.3831966 | E11: Distribution Equipment | F11: =_xlfn.XLOOKUP($E11,Assets!$C$11:$C$60,Assets!G$11:G$60) -> 32.11626414 | G11: =_xlfn.XLOOKUP($E11,Assets!$C$11:$C$60,Assets!H$11:H$60) -> 31.66713391 | H11: =_xlfn.XLOOKUP($E11,Assets!$C$11:$C$60,Assets!I$11:I$60) -> 30.19075846 | I11: =_xlfn.XLOOKUP($E11,Assets!$C$11:$C$60,Assets!J$11:J$60) -> 28.62978457 | J11: =_xlfn.XLOOKUP($E11,Assets!$C$11:$C$60,Assets!K$11:K$60) -> 32.57353976 | L11: Distribution Equipment | M11: =_xlfn.XLOOKUP($L11,Assets!$C$128:$C$765,Assets!G$128:G$765) -> 21.83256789 | N11: =_xlfn.XLOOKUP($L11,Assets!$C$128:$C$765,Assets!H$128:H$765) -> 22.75017544 | O11: =_xlfn.XLOOKUP($L11,Assets!$C$128:$C$765,Assets!I$128:I$765) -> 23.6549507 | P11: =_xlfn.XLOOKUP($L11,Assets!$C$128:$C$765,Assets!J$128:J$765) -> 24.51754379 | Q11: =_xlfn.XLOOKUP($L11,Assets!$C$128:$C$765,Assets!K$128:K$765) -> 25.33553764 | S11: Distribution Equipment | T11: 505.3831966 | U11: 515.6668929 | V11: 524.5838514 | W11: 531.1196591 | X11: 535.2318999 | Z11: Distribution Equipment | AA11: 0.0323439215 | AB11: 0.03286705352 | AC11: 0.03329971424 | AD11: 0.03370799027 | AE11: 0.03403339165 | AG11: Distribution Equipment | AH11: =T11*'PTRM Revenue data'!J$7 -> 14.14962336 | AI11: =U11*'PTRM Revenue data'!K$7*'PTRM Revenue data'!J$8 -> 14.84176399 | AJ11: =V11*'PTRM Revenue data'!L$7*'PTRM Revenue data'!K$8 -> 15.09840911 | AK11: =W11*'PTRM Revenue data'!M$7*'PTRM Revenue data'!L$8 -> 15.2865207 | AL11: =X11*'PTRM Revenue data'!N$7*'PTRM Revenue data'!M$8 -> 15.40487793 | AN11: Distribution Equipment | AO11: =M11*'PTRM Revenue data'!J$8 -> 22.44383201 | AP11: =N11*'PTRM Revenue data'!K$8 -> 23.38713056 | AQ11: =O11*'PTRM Revenue data'!L$8 -> 24.31723754 | AR11: =P11*'PTRM Revenue data'!M$8 -> 25.20398136 | AS11: =Q11*'PTRM Revenue data'!N$8 -> 26.04487724 | AU11: Distribution Equipment | AV11: 8.294208647 | AW11: 8.545366568 | AX11: 9.218828426 | AY11: 9.917460659 | AZ11: 10.63999931
B12: Substation Bays | C12: =_xlfn.XLOOKUP(B12,'PTRM Input'!$G$6:$G$58,'PTRM Input'!$J$6:$J$58) -> 833.1734714 | E12: Substation Bays | F12: =_xlfn.XLOOKUP($E12,Assets!$C$11:$C$60,Assets!G$11:G$60) -> 18.82058301 | G12: =_xlfn.XLOOKUP($E12,Assets!$C$11:$C$60,Assets!H$11:H$60) -> 19.66455288 | H12: =_xlfn.XLOOKUP($E12,Assets!$C$11:$C$60,Assets!I$11:I$60) -> 19.49239232 | I12: =_xlfn.XLOOKUP($E12,Assets!$C$11:$C$60,Assets!J$11:J$60) -> 19.34196888 | J12: =_xlfn.XLOOKUP($E12,Assets!$C$11:$C$60,Assets!K$11:K$60) -> 19.86891217 | L12: Substation Bays | M12: =_xlfn.XLOOKUP($L12,Assets!$C$128:$C$765,Assets!G$128:G$765) -> 37.31534166 | N12: =_xlfn.XLOOKUP($L12,Assets!$C$128:$C$765,Assets!H$128:H$765) -> 37.73357684 | O12: =_xlfn.XLOOKUP($L12,Assets!$C$128:$C$765,Assets!I$128:I$765) -> 38.17056691 | P12: =_xlfn.XLOOKUP($L12,Assets!$C$128:$C$765,Assets!J$128:J$765) -> 38.60373118 | Q12: =_xlfn.XLOOKUP($L12,Assets!$C$128:$C$765,Assets!K$128:K$765) -> 39.03355271 | S12: Substation Bays | T12: 833.1734714 | U12: 814.6787128 | V12: 796.6096888 | W12: 777.9315142 | X12: 758.6697519 | Z12: Substation Bays | AA12: 0.05332210793 | AB12: 0.05192516569 | AC12: 0.05056746397 | AD12: 0.04937212822 | AE12: 0.04824096771 | AG12: Substation Bays | AH12: =T12*'PTRM Revenue data'!J$7 -> 23.32703361 | AI12: =U12*'PTRM Revenue data'!K$7*'PTRM Revenue data'!J$8 -> 23.44782911 | AJ12: =V12*'PTRM Revenue data'!L$7*'PTRM Revenue data'!K$8 -> 22.92777209 | AK12: =W12*'PTRM Revenue data'!M$7*'PTRM Revenue data'!L$8 -> 22.39018268 | AL12: =X12*'PTRM Revenue data'!N$7*'PTRM Revenue data'!M$8 -> 21.83579664 | AN12: Substation Bays | AO12: =M12*'PTRM Revenue data'!J$8 -> 38.36008956 | AP12: =N12*'PTRM Revenue data'!K$8 -> 38.79003441 | AQ12: =O12*'PTRM Revenue data'!L$8 -> 39.23925923 | AR12: =P12*'PTRM Revenue data'!M$8 -> 39.68455116 | AS12: =Q12*'PTRM Revenue data'!N$8 -> 40.12640675 | AU12: Substation Bays | AV12: 15.03305594 | AW12: 15.34220529 | AX12: 16.31148714 | AY12: 17.29436848 | AZ12: 18.29061012
B13: Substation Establishment | C13: =_xlfn.XLOOKUP(B13,'PTRM Input'!$G$6:$G$58,'PTRM Input'!$J$6:$J$58) -> 574.6259694 | E13: Substation Establishment | F13: =_xlfn.XLOOKUP($E13,Assets!$C$11:$C$60,Assets!G$11:G$60) -> 23.33714921 | G13: =_xlfn.XLOOKUP($E13,Assets!$C$11:$C$60,Assets!H$11:H$60) -> 23.3398438 | H13: =_xlfn.XLOOKUP($E13,Assets!$C$11:$C$60,Assets!I$11:I$60) -> 22.43713947 | I13: =_xlfn.XLOOKUP($E13,Assets!$C$11:$C$60,Assets!J$11:J$60) -> 21.49410353 | J13: =_xlfn.XLOOKUP($E13,Assets!$C$11:$C$60,Assets!K$11:K$60) -> 23.84335601 | L13: Substation Establishment | M13: =_xlfn.XLOOKUP($L13,Assets!$C$128:$C$765,Assets!G$128:G$765) -> 18.36289464 | N13: =_xlfn.XLOOKUP($L13,Assets!$C$128:$C$765,Assets!H$128:H$765) -> 18.76826461 | O13: =_xlfn.XLOOKUP($L13,Assets!$C$128:$C$765,Assets!I$128:I$765) -> 19.17368138 | P13: =_xlfn.XLOOKUP($L13,Assets!$C$128:$C$765,Assets!J$128:J$765) -> 19.56341804 | Q13: =_xlfn.XLOOKUP($L13,Assets!$C$128:$C$765,Assets!K$128:K$765) -> 19.93677402 | S13: Substation Establishment | T13: 574.6259694 | U13: 579.600224 | V13: 584.1718031 | W13: 587.4352612 | X13: 589.3659467 | Z13: Substation Establishment | AA13: 0.03677537633 | AB13: 0.03694197134 | AC13: 0.03708225875 | AD13: 0.03728211097 | AE13: 0.03747557291 | AG13: Substation Establishment | AH13: =T13*'PTRM Revenue data'!J$7 -> 16.08826945 | AI13: =U13*'PTRM Revenue data'!K$7*'PTRM Revenue data'!J$8 -> 16.68187322 | AJ13: =V13*'PTRM Revenue data'!L$7*'PTRM Revenue data'!K$8 -> 16.81345099 | AK13: =W13*'PTRM Revenue data'!M$7*'PTRM Revenue data'!L$8 -> 16.90737883 | AL13: =X13*'PTRM Revenue data'!N$7*'PTRM Revenue data'!M$8 -> 16.96294722 | AN13: Substation Establishment | AO13: =M13*'PTRM Revenue data'!J$8 -> 18.8770155 | AP13: =N13*'PTRM Revenue data'!K$8 -> 19.29373494 | AQ13: =O13*'PTRM Revenue data'!L$8 -> 19.7105025 | AR13: =P13*'PTRM Revenue data'!M$8 -> 20.11115093 | AS13: =Q13*'PTRM Revenue data'!N$8 -> 20.49496006 | AU13: Substation Establishment | AV13: 2.78874605 | AW13: 2.611861714 | AX13: 2.897051503 | AY13: 3.203772101 | AZ13: 3.532012838
B14: Distribution Substation Switchgear | C14: =_xlfn.XLOOKUP(B14,'PTRM Input'!$G$6:$G$58,'PTRM Input'!$J$6:$J$58) -> 197.5938968 | E14: Distribution Substation Switchgear | F14: =_xlfn.XLOOKUP($E14,Assets!$C$11:$C$60,Assets!G$11:G$60) -> 0.4421328039 | G14: =_xlfn.XLOOKUP($E14,Assets!$C$11:$C$60,Assets!H$11:H$60) -> 0.4486588035 | H14: =_xlfn.XLOOKUP($E14,Assets!$C$11:$C$60,Assets!I$11:I$60) -> 0.4377821266 | I14: =_xlfn.XLOOKUP($E14,Assets!$C$11:$C$60,Assets!J$11:J$60) -> 0.4265616101 | J14: =_xlfn.XLOOKUP($E14,Assets!$C$11:$C$60,Assets!K$11:K$60) -> 0.4597996013 | L14: Distribution Substation Switchgear | M14: =_xlfn.XLOOKUP($L14,Assets!$C$128:$C$765,Assets!G$128:G$765) -> 6.749443592 | N14: =_xlfn.XLOOKUP($L14,Assets!$C$128:$C$765,Assets!H$128:H$765) -> 6.759268766 | O14: =_xlfn.XLOOKUP($L14,Assets!$C$128:$C$765,Assets!I$128:I$765) -> 6.769238961 | P14: =_xlfn.XLOOKUP($L14,Assets!$C$128:$C$765,Assets!J$128:J$765) -> 6.778967453 | Q14: =_xlfn.XLOOKUP($L14,Assets!$C$128:$C$765,Assets!K$128:K$765) -> 6.7884466 | S14: Distribution Substation Switchgear | T14: 197.5938968 | U14: 191.286586 | V14: 184.975976 | W14: 178.6445192 | X14: 172.2921133 | Z14: Distribution Substation Switchgear | AA14: 0.0126457736 | AB14: 0.01219203045 | AC14: 0.01174196866 | AD14: 0.01133783623 | AE14: 0.01095541012 | AG14: Distribution Substation Switchgear | AH14: =T14*'PTRM Revenue data'!J$7 -> 5.532196631 | AI14: =U14*'PTRM Revenue data'!K$7*'PTRM Revenue data'!J$8 -> 5.505550972 | AJ14: =V14*'PTRM Revenue data'!L$7*'PTRM Revenue data'!K$8 -> 5.323920961 | AK14: =W14*'PTRM Revenue data'!M$7*'PTRM Revenue data'!L$8 -> 5.141690941 | AL14: =X14*'PTRM Revenue data'!N$7*'PTRM Revenue data'!M$8 -> 4.958857974 | AN14: Distribution Substation Switchgear | AO14: =M14*'PTRM Revenue data'!J$8 -> 6.93841324 | AP14: =N14*'PTRM Revenue data'!K$8 -> 6.948513497 | AQ14: =O14*'PTRM Revenue data'!L$8 -> 6.958762836 | AR14: =P14*'PTRM Revenue data'!M$8 -> 6.968763705 | AS14: =Q14*'PTRM Revenue data'!N$8 -> 6.978508247 | AU14: Distribution Substation Switchgear | AV14: 1.406216609 | AW14: 1.442962525 | AX14: 1.634841875 | AY14: 1.827072763 | AZ14: 2.019650273
B15: Zone Transformers | C15: =_xlfn.XLOOKUP(B15,'PTRM Input'!$G$6:$G$58,'PTRM Input'!$J$6:$J$58) -> 1110.440834 | E15: Zone Transformers | F15: =_xlfn.XLOOKUP($E15,Assets!$C$11:$C$60,Assets!G$11:G$60) -> 26.93615798 | G15: =_xlfn.XLOOKUP($E15,Assets!$C$11:$C$60,Assets!H$11:H$60) -> 27.80989689 | H15: =_xlfn.XLOOKUP($E15,Assets!$C$11:$C$60,Assets!I$11:I$60) -> 27.31537406 | I15: =_xlfn.XLOOKUP($E15,Assets!$C$11:$C$60,Assets!J$11:J$60) -> 26.83038086 | J15: =_xlfn.XLOOKUP($E15,Assets!$C$11:$C$60,Assets!K$11:K$60) -> 28.13801141 | L15: Zone Transformers | M15: =_xlfn.XLOOKUP($L15,Assets!$C$128:$C$765,Assets!G$128:G$765) -> 34.21360802 | N15: =_xlfn.XLOOKUP($L15,Assets!$C$128:$C$765,Assets!H$128:H$765) -> 34.75233118 | O15: =_xlfn.XLOOKUP($L15,Assets!$C$128:$C$765,Assets!I$128:I$765) -> 35.30852912 | P15: =_xlfn.XLOOKUP($L15,Assets!$C$128:$C$765,Assets!J$128:J$765) -> 35.8548366 | Q15: =_xlfn.XLOOKUP($L15,Assets!$C$128:$C$765,Assets!K$128:K$765) -> 36.39144422 | S15: Zone Transformers | T15: 1110.440834 | U15: 1103.163384 | V15: 1096.22095 | W15: 1088.227795 | X15: 1079.203339 | Z15: Zone Transformers | AA15: 0.07106688828 | AB15: 0.07031230914 | AC15: 0.0695862907 | AD15: 0.06906536275 | AE15: 0.06862249786 | AG15: Zone Transformers | AH15: =T15*'PTRM Revenue data'!J$7 -> 31.08991291 | AI15: =U15*'PTRM Revenue data'!K$7*'PTRM Revenue data'!J$8 -> 31.75090512 | AJ15: =V15*'PTRM Revenue data'!L$7*'PTRM Revenue data'!K$8 -> 31.55109014 | AK15: =W15*'PTRM Revenue data'!M$7*'PTRM Revenue data'!L$8 -> 31.32103364 | AL15: =X15*'PTRM Revenue data'!N$7*'PTRM Revenue data'!M$8 -> 31.06129457 | AN15: Zone Transformers | AO15: =M15*'PTRM Revenue data'!J$8 -> 35.17151416 | AP15: =N15*'PTRM Revenue data'!K$8 -> 35.72532039 | AQ15: =O15*'PTRM Revenue data'!L$8 -> 36.29709065 | AR15: =P15*'PTRM Revenue data'!M$8 -> 36.85869355 | AS15: =Q15*'PTRM Revenue data'!N$8 -> 37.41032501 | AU15: Zone Transformers | AV15: 4.08160125 | AW15: 3.974415266 | AX15: 4.746000512 | AY15: 5.537659908 | AZ15: 6.349030439
B16: Distribution Transformers | C16: =_xlfn.XLOOKUP(B16,'PTRM Input'!$G$6:$G$58,'PTRM Input'!$J$6:$J$58) -> 1790.543029 | E16: Distribution Transformers | F16: =_xlfn.XLOOKUP($E16,Assets!$C$11:$C$60,Assets!G$11:G$60) -> 67.35120175 | G16: =_xlfn.XLOOKUP($E16,Assets!$C$11:$C$60,Assets!H$11:H$60) -> 70.40211752 | H16: =_xlfn.XLOOKUP($E16,Assets!$C$11:$C$60,Assets!I$11:I$60) -> 70.97201485 | I16: =_xlfn.XLOOKUP($E16,Assets!$C$11:$C$60,Assets!J$11:J$60) -> 71.62339983 | J16: =_xlfn.XLOOKUP($E16,Assets!$C$11:$C$60,Assets!K$11:K$60) -> 73.01092541 | L16: Distribution Transformers | M16: =_xlfn.XLOOKUP($L16,Assets!$C$128:$C$765,Assets!G$128:G$765) -> 78.48876185 | N16: =_xlfn.XLOOKUP($L16,Assets!$C$128:$C$765,Assets!H$128:H$765) -> 80.14847603 | O16: =_xlfn.XLOOKUP($L16,Assets!$C$128:$C$765,Assets!I$128:I$765) -> 81.88337297 | P16: =_xlfn.XLOOKUP($L16,Assets!$C$128:$C$765,Assets!J$128:J$765) -> 83.6323137 | Q16: =_xlfn.XLOOKUP($L16,Assets!$C$128:$C$765,Assets!K$128:K$765) -> 85.3973063 | S16: Distribution Transformers | T16: 1790.543029 | U16: 1779.405469 | V16: 1769.659111 | W16: 1758.747753 | X16: 1746.738839 | Z16: Distribution Transformers | AA16: 0.1145926172 | AB16: 0.1134139414 | AC16: 0.11233503 | AD16: 0.1116205192 | AE16: 0.1110685798 | AG16: Distribution Transformers | AH16: =T16*'PTRM Revenue data'!J$7 -> 50.13128582 | AI16: =U16*'PTRM Revenue data'!K$7*'PTRM Revenue data'!J$8 -> 51.21429431 | AJ16: =V16*'PTRM Revenue data'!L$7*'PTRM Revenue data'!K$8 -> 50.93377766 | AK16: =W16*'PTRM Revenue data'!M$7*'PTRM Revenue data'!L$8 -> 50.61973034 | AL16: =X16*'PTRM Revenue data'!N$7*'PTRM Revenue data'!M$8 -> 50.27409352 | AN16: Distribution Transformers | AO16: =M16*'PTRM Revenue data'!J$8 -> 80.68627539 | AP16: =N16*'PTRM Revenue data'!K$8 -> 82.39245794 | AQ16: =O16*'PTRM Revenue data'!L$8 -> 84.17592819 | AR16: =P16*'PTRM Revenue data'!M$8 -> 85.97383543 | AS16: =Q16*'PTRM Revenue data'!N$8 -> 87.78824397 | AU16: Distribution Transformers | AV16: 30.55498957 | AW16: 31.17816363 | AX16: 33.24215053 | AY16: 35.35410509 | AZ16: 37.51415044
B17: Low Voltage Services | C17: =_xlfn.XLOOKUP(B17,'PTRM Input'!$G$6:$G$58,'PTRM Input'!$J$6:$J$58) -> 561.8245944 | E17: Low Voltage Services | F17: =_xlfn.XLOOKUP($E17,Assets!$C$11:$C$60,Assets!G$11:G$60) -> 32.24243264 | G17: =_xlfn.XLOOKUP($E17,Assets!$C$11:$C$60,Assets!H$11:H$60) -> 34.69931801 | H17: =_xlfn.XLOOKUP($E17,Assets!$C$11:$C$60,Assets!I$11:I$60) -> 35.5367372 | I17: =_xlfn.XLOOKUP($E17,Assets!$C$11:$C$60,Assets!J$11:J$60) -> 36.4772542 | J17: =_xlfn.XLOOKUP($E17,Assets!$C$11:$C$60,Assets!K$11:K$60) -> 35.55862981 | L17: Low Voltage Services | M17: =_xlfn.XLOOKUP($L17,Assets!$C$128:$C$765,Assets!G$128:G$765) -> 23.42302223 | N17: =_xlfn.XLOOKUP($L17,Assets!$C$128:$C$765,Assets!H$128:H$765) -> 24.34423459 | O17: =_xlfn.XLOOKUP($L17,Assets!$C$128:$C$765,Assets!I$128:I$765) -> 25.33564368 | P17: =_xlfn.XLOOKUP($L17,Assets!$C$128:$C$765,Assets!J$128:J$765) -> 26.35097903 | Q17: =_xlfn.XLOOKUP($L17,Assets!$C$128:$C$765,Assets!K$128:K$765) -> 27.39318629 | S17: Low Voltage Services | T17: 561.8245944 | U17: 570.6440048 | V17: 580.9990882 | W17: 591.2001817 | X17: 601.3264569 | Z17: Low Voltage Services | AA17: 0.0359561036 | AB17: 0.03637112893 | AC17: 0.03688086006 | AD17: 0.03752105506 | AE17: 0.03823609695 | AG17: Low Voltage Services | AH17: =T17*'PTRM Revenue data'!J$7 -> 15.72985896 | AI17: =U17*'PTRM Revenue data'!K$7*'PTRM Revenue data'!J$8 -> 16.42409811 | AJ17: =V17*'PTRM Revenue data'!L$7*'PTRM Revenue data'!K$8 -> 16.7221349 | AK17: =W17*'PTRM Revenue data'!M$7*'PTRM Revenue data'!L$8 -> 17.0157396 | AL17: =X17*'PTRM Revenue data'!N$7*'PTRM Revenue data'!M$8 -> 17.3071909 | AN17: Low Voltage Services | AO17: =M17*'PTRM Revenue data'!J$8 -> 24.07881559 | AP17: =N17*'PTRM Revenue data'!K$8 -> 25.02581988 | AQ17: =O17*'PTRM Revenue data'!L$8 -> 26.04498625 | AR17: =P17*'PTRM Revenue data'!M$8 -> 27.08874876 | AS17: =Q17*'PTRM Revenue data'!N$8 -> 28.16013555 | AU17: Low Voltage Services | AV17: 8.348956622 | AW17: 8.601721765 | AX17: 9.322851348 | AY17: 10.07300917 | AZ17: 10.85294465
B18: Load Control & Network Metering Devices | C18: =_xlfn.XLOOKUP(B18,'PTRM Input'!$G$6:$G$58,'PTRM Input'!$J$6:$J$58) -> 55.29498313 | E18: Load Control & Network Metering Devices | F18: =_xlfn.XLOOKUP($E18,Assets!$C$11:$C$60,Assets!G$11:G$60) -> 6.31775992 | G18: =_xlfn.XLOOKUP($E18,Assets!$C$11:$C$60,Assets!H$11:H$60) -> 6.208541273 | H18: =_xlfn.XLOOKUP($E18,Assets!$C$11:$C$60,Assets!I$11:I$60) -> 5.895035759 | I18: =_xlfn.XLOOKUP($E18,Assets!$C$11:$C$60,Assets!J$11:J$60) -> 5.563529541 | J18: =_xlfn.XLOOKUP($E18,Assets!$C$11:$C$60,Assets!K$11:K$60) -> 6.376806955 | L18: Load Control & Network Metering Devices | M18: =_xlfn.XLOOKUP($L18,Assets!$C$128:$C$765,Assets!G$128:G$765) -> 9.307725104 | N18: =_xlfn.XLOOKUP($L18,Assets!$C$128:$C$765,Assets!H$128:H$765) -> 9.728909099 | O18: =_xlfn.XLOOKUP($L18,Assets!$C$128:$C$765,Assets!I$128:I$765) -> 7.427253828 | P18: =_xlfn.XLOOKUP($L18,Assets!$C$128:$C$765,Assets!J$128:J$765) -> 5.828029995 | Q18: =_xlfn.XLOOKUP($L18,Assets!$C$128:$C$765,Assets!K$128:K$765) -> 6.198931965 | S18: Load Control & Network Metering Devices | T18: 55.29498313 | U18: 52.30501795 | V18: 48.78465012 | W18: 47.25243205 | X18: 46.9879316 | Z18: Load Control & Network Metering Devices | AA18: 0.003538812936 | AB18: 0.003333764195 | AC18: 0.003096768809 | AD18: 0.002998918403 | AE18: 0.002987786563 | AG18: Load Control & Network Metering Devices | AH18: =T18*'PTRM Revenue data'!J$7 -> 1.548138502 | AI18: =U18*'PTRM Revenue data'!K$7*'PTRM Revenue data'!J$8 -> 1.505426745 | AJ18: =V18*'PTRM Revenue data'!L$7*'PTRM Revenue data'!K$8 -> 1.404104614 | AK18: =W18*'PTRM Revenue data'!M$7*'PTRM Revenue data'!L$8 -> 1.36000479 | AL18: =X18*'PTRM Revenue data'!N$7*'PTRM Revenue data'!M$8 -> 1.352392021 | AN18: Load Control & Network Metering Devices | AO18: =M18*'PTRM Revenue data'!J$8 -> 9.568321035 | AP18: =N18*'PTRM Revenue data'!K$8 -> 10.00129726 | AQ18: =O18*'PTRM Revenue data'!L$8 -> 7.635200679 | AR18: =P18*'PTRM Revenue data'!M$8 -> 5.991202079 | AS18: =Q18*'PTRM Revenue data'!N$8 -> 6.372488492 | AU18: Load Control & Network Metering Devices | AV18: 8.020182533 | AW18: 8.495870515 | AX18: 6.231096065 | AY18: 4.631197289 | AZ18: 5.020096471
B19: Communications - Pilot Wires | C19: =_xlfn.XLOOKUP(B19,'PTRM Input'!$G$6:$G$58,'PTRM Input'!$J$6:$J$58) -> 517.0183327 | E19: Communications - Pilot Wires | F19: =_xlfn.XLOOKUP($E19,Assets!$C$11:$C$60,Assets!G$11:G$60) -> 64.08228083 | G19: =_xlfn.XLOOKUP($E19,Assets!$C$11:$C$60,Assets!H$11:H$60) -> 68.15981665 | H19: =_xlfn.XLOOKUP($E19,Assets!$C$11:$C$60,Assets!I$11:I$60) -> 68.26163141 | I19: =_xlfn.XLOOKUP($E19,Assets!$C$11:$C$60,Assets!J$11:J$60) -> 68.51490581 | J19: =_xlfn.XLOOKUP($E19,Assets!$C$11:$C$60,Assets!K$11:K$60) -> 68.39427724 | L19: Communications - Pilot Wires | M19: =_xlfn.XLOOKUP($L19,Assets!$C$128:$C$765,Assets!G$128:G$765) -> 23.66235423 | N19: =_xlfn.XLOOKUP($L19,Assets!$C$128:$C$765,Assets!H$128:H$765) -> 25.85095672 | O19: =_xlfn.XLOOKUP($L19,Assets!$C$128:$C$765,Assets!I$128:I$765) -> 28.17881931 | P19: =_xlfn.XLOOKUP($L19,Assets!$C$128:$C$765,Assets!J$128:J$765) -> 30.51015918 | Q19: =_xlfn.XLOOKUP($L19,Assets!$C$128:$C$765,Assets!K$128:K$765) -> 32.85014913 | S19: Communications - Pilot Wires | T19: 517.0183327 | U19: 557.4382593 | V19: 599.7471192 | W19: 639.8299313 | X19: 677.834678 | Z19: Communications - Pilot Wires | AA19: 0.03308855633 | AB19: 0.03552943451 | AC19: 0.03807095403 | AD19: 0.04060738617 | AE19: 0.04310096815 | AG19: Communications - Pilot Wires | AH19: =T19*'PTRM Revenue data'!J$7 -> 14.47538171 | AI19: =U19*'PTRM Revenue data'!K$7*'PTRM Revenue data'!J$8 -> 16.04401446 | AJ19: =V19*'PTRM Revenue data'!L$7*'PTRM Revenue data'!K$8 -> 17.26173489 | AK19: =W19*'PTRM Revenue data'!M$7*'PTRM Revenue data'!L$8 -> 18.41538591 | AL19: =X19*'PTRM Revenue data'!N$7*'PTRM Revenue data'!M$8 -> 19.5092267 | AN19: Communications - Pilot Wires | AO19: =M19*'PTRM Revenue data'!J$8 -> 24.32484836 | AP19: =N19*'PTRM Revenue data'!K$8 -> 26.57472693 | AQ19: =O19*'PTRM Revenue data'!L$8 -> 28.96776457 | AR19: =P19*'PTRM Revenue data'!M$8 -> 31.36437686 | AS19: =Q19*'PTRM Revenue data'!N$8 -> 33.76988141 | AU19: Communications - Pilot Wires | AV19: 9.849466652 | AW19: 10.53071247 | AX19: 11.70602968 | AY19: 12.94899094 | AZ19: 14.26065471
B20: Streetlighting (Residual Rate 2 Assets) | C20: =_xlfn.XLOOKUP(B20,'PTRM Input'!$G$6:$G$58,'PTRM Input'!$J$6:$J$58) -> -0.2081242915 | E20: Streetlighting (Residual Rate 2 Assets) | F20: =_xlfn.XLOOKUP($E20,Assets!$C$11:$C$60,Assets!G$11:G$60) -> 0 | G20: =_xlfn.XLOOKUP($E20,Assets!$C$11:$C$60,Assets!H$11:H$60) -> 0 | H20: =_xlfn.XLOOKUP($E20,Assets!$C$11:$C$60,Assets!I$11:I$60) -> 0 | I20: =_xlfn.XLOOKUP($E20,Assets!$C$11:$C$60,Assets!J$11:J$60) -> 0 | J20: =_xlfn.XLOOKUP($E20,Assets!$C$11:$C$60,Assets!K$11:K$60) -> 0 | L20: Streetlighting (Residual Rate 2 Assets) | M20: =_xlfn.XLOOKUP($L20,Assets!$C$128:$C$765,Assets!G$128:G$765) -> -0.2081242915 | N20: =_xlfn.XLOOKUP($L20,Assets!$C$128:$C$765,Assets!H$128:H$765) -> 0 | O20: =_xlfn.XLOOKUP($L20,Assets!$C$128:$C$765,Assets!I$128:I$765) -> 0 | P20: =_xlfn.XLOOKUP($L20,Assets!$C$128:$C$765,Assets!J$128:J$765) -> 0 | Q20: =_xlfn.XLOOKUP($L20,Assets!$C$128:$C$765,Assets!K$128:K$765) -> 0 | S20: Streetlighting (Residual Rate 2 Assets) | T20: -0.2081242915 | U20: 0 | V20: 0 | W20: 0 | X20: 0 | Z20: Streetlighting (Residual Rate 2 Assets) | AA20: -1.33197063e-05 | AB20: 0 | AC20: 0 | AD20: 0 | AE20: 0 | AG20: Streetlighting (Residual Rate 2 Assets) | AH20: =T20*'PTRM Revenue data'!J$7 -> -0.005827024636 | AI20: =U20*'PTRM Revenue data'!K$7*'PTRM Revenue data'!J$8 -> 0 | AJ20: =V20*'PTRM Revenue data'!L$7*'PTRM Revenue data'!K$8 -> 0 | AK20: =W20*'PTRM Revenue data'!M$7*'PTRM Revenue data'!L$8 -> 0 | AL20: =X20*'PTRM Revenue data'!N$7*'PTRM Revenue data'!M$8 -> 0 | AN20: Streetlighting (Residual Rate 2 Assets) | AO20: =M20*'PTRM Revenue data'!J$8 -> -0.2139513161 | AP20: =N20*'PTRM Revenue data'!K$8 -> 0 | AQ20: =O20*'PTRM Revenue data'!L$8 -> 0 | AR20: =P20*'PTRM Revenue data'!M$8 -> 0 | AS20: =Q20*'PTRM Revenue data'!N$8 -> 0 | AU20: Streetlighting (Residual Rate 2 Assets) | AV20: -0.2081242915 | AW20: 0 | AX20: 0 | AY20: 0 | AZ20: 0
B21: Systems Buildings | C21: =_xlfn.XLOOKUP(B21,'PTRM Input'!$G$6:$G$58,'PTRM Input'!$J$6:$J$58) -> 318.5583343 | E21: Systems Buildings | F21: =_xlfn.XLOOKUP($E21,Assets!$C$11:$C$60,Assets!G$11:G$60) -> 5.840010109 | G21: =_xlfn.XLOOKUP($E21,Assets!$C$11:$C$60,Assets!H$11:H$60) -> 5.715220806 | H21: =_xlfn.XLOOKUP($E21,Assets!$C$11:$C$60,Assets!I$11:I$60) -> 5.419057744 | I21: =_xlfn.XLOOKUP($E21,Assets!$C$11:$C$60,Assets!J$11:J$60) -> 5.104732932 | J21: =_xlfn.XLOOKUP($E21,Assets!$C$11:$C$60,Assets!K$11:K$60) -> 5.891622252 | L21: Systems Buildings | M21: =_xlfn.XLOOKUP($L21,Assets!$C$128:$C$765,Assets!G$128:G$765) -> 6.680627066 | N21: =_xlfn.XLOOKUP($L21,Assets!$C$128:$C$765,Assets!H$128:H$765) -> 6.777960567 | O21: =_xlfn.XLOOKUP($L21,Assets!$C$128:$C$765,Assets!I$128:I$765) -> 6.873214248 | P21: =_xlfn.XLOOKUP($L21,Assets!$C$128:$C$765,Assets!J$128:J$765) -> 6.963531877 | Q21: =_xlfn.XLOOKUP($L21,Assets!$C$128:$C$765,Assets!K$128:K$765) -> 7.048610759 | S21: Systems Buildings | T21: 318.5583343 | U21: 317.7177173 | V21: 316.6549775 | W21: 315.200821 | X21: 313.3420221 | Z21: Systems Buildings | AA21: 0.02038735325 | AB21: 0.02025036969 | AC21: 0.02010073364 | AD21: 0.02000450563 | AE21: 0.01992424547 | AG21: Systems Buildings | AH21: =T21*'PTRM Revenue data'!J$7 -> 8.918936124 | AI21: =U21*'PTRM Revenue data'!K$7*'PTRM Revenue data'!J$8 -> 9.144452439 | AJ21: =V21*'PTRM Revenue data'!L$7*'PTRM Revenue data'!K$8 -> 9.113864994 | AK21: =W21*'PTRM Revenue data'!M$7*'PTRM Revenue data'!L$8 -> 9.072011914 | AL21: =X21*'PTRM Revenue data'!N$7*'PTRM Revenue data'!M$8 -> 9.018512541 | AN21: Systems Buildings | AO21: =M21*'PTRM Revenue data'!J$8 -> 6.867670001 | AP21: =N21*'PTRM Revenue data'!K$8 -> 6.967728628 | AQ21: =O21*'PTRM Revenue data'!L$8 -> 7.065649203 | AR21: =P21*'PTRM Revenue data'!M$8 -> 7.158495528 | AS21: =Q21*'PTRM Revenue data'!N$8 -> 7.245956433 | AU21: Systems Buildings | AV21: -2.051266122 | AW21: -2.17672381 | AX21: -2.048215791 | AY21: -1.913516386 | AZ21: -1.772556109
B22: Systems Easements | C22: =_xlfn.XLOOKUP(B22,'PTRM Input'!$G$6:$G$58,'PTRM Input'!$J$6:$J$58) -> 219.5717677 | E22: Systems Easements | F22: =_xlfn.XLOOKUP($E22,Assets!$C$11:$C$60,Assets!G$11:G$60) -> 3.708430385 | G22: =_xlfn.XLOOKUP($E22,Assets!$C$11:$C$60,Assets!H$11:H$60) -> 3.619120089 | H22: =_xlfn.XLOOKUP($E22,Assets!$C$11:$C$60,Assets!I$11:I$60) -> 3.41925256 | I22: =_xlfn.XLOOKUP($E22,Assets!$C$11:$C$60,Assets!J$11:J$60) -> 3.207195604 | J22: =_xlfn.XLOOKUP($E22,Assets!$C$11:$C$60,Assets!K$11:K$60) -> 3.725214075 | L22: Systems Easements | M22: =_xlfn.XLOOKUP($L22,Assets!$C$128:$C$765,Assets!G$128:G$765) -> 0 | N22: =_xlfn.XLOOKUP($L22,Assets!$C$128:$C$765,Assets!H$128:H$765) -> 0 | O22: =_xlfn.XLOOKUP($L22,Assets!$C$128:$C$765,Assets!I$128:I$765) -> 0 | P22: =_xlfn.XLOOKUP($L22,Assets!$C$128:$C$765,Assets!J$128:J$765) -> 0 | Q22: =_xlfn.XLOOKUP($L22,Assets!$C$128:$C$765,Assets!K$128:K$765) -> 0 | S22: Systems Easements | T22: 219.5717677 | U22: 223.2801981 | V22: 226.8993182 | W22: 230.3185708 | X22: 233.5257664 | Z22: Systems Easements | AA22: 0.01405233112 | AB22: 0.01423120686 | AC22: 0.01440319301 | AD22: 0.01461737672 | AE22: 0.01484902875 | AG22: Systems Easements | AH22: =T22*'PTRM Revenue data'!J$7 -> 6.147528915 | AI22: =U22*'PTRM Revenue data'!K$7*'PTRM Revenue data'!J$8 -> 6.426381159 | AJ22: =V22*'PTRM Revenue data'!L$7*'PTRM Revenue data'!K$8 -> 6.530545547 | AK22: =W22*'PTRM Revenue data'!M$7*'PTRM Revenue data'!L$8 -> 6.628957409 | AL22: =X22*'PTRM Revenue data'!N$7*'PTRM Revenue data'!M$8 -> 6.721265915 | AN22: Systems Easements | AO22: =M22*'PTRM Revenue data'!J$8 -> 0 | AP22: =N22*'PTRM Revenue data'!K$8 -> 0 | AQ22: =O22*'PTRM Revenue data'!L$8 -> 0 | AR22: =P22*'PTRM Revenue data'!M$8 -> 0 | AS22: =Q22*'PTRM Revenue data'!N$8 -> 0 | AU22: Systems Easements | AV22: -6.147528915 | AW22: -6.426381159 | AX22: -6.530545547 | AY22: -6.628957409 | AZ22: -6.721265915
B23: System Land | C23: =_xlfn.XLOOKUP(B23,'PTRM Input'!$G$6:$G$58,'PTRM Input'!$J$6:$J$58) -> 350.6704283 | E23: System Land | F23: =_xlfn.XLOOKUP($E23,Assets!$C$11:$C$60,Assets!G$11:G$60) -> -0.5415740074 | G23: =_xlfn.XLOOKUP($E23,Assets!$C$11:$C$60,Assets!H$11:H$60) -> -0.5414335588 | H23: =_xlfn.XLOOKUP($E23,Assets!$C$11:$C$60,Assets!I$11:I$60) -> -0.5413570508 | I23: =_xlfn.XLOOKUP($E23,Assets!$C$11:$C$60,Assets!J$11:J$60) -> -0.5416341498 | J23: =_xlfn.XLOOKUP($E23,Assets!$C$11:$C$60,Assets!K$11:K$60) -> -0.5419170419 | L23: System Land | M23: =_xlfn.XLOOKUP($L23,Assets!$C$128:$C$765,Assets!G$128:G$765) -> 0 | N23: =_xlfn.XLOOKUP($L23,Assets!$C$128:$C$765,Assets!H$128:H$765) -> 0 | O23: =_xlfn.XLOOKUP($L23,Assets!$C$128:$C$765,Assets!I$128:I$765) -> 0 | P23: =_xlfn.XLOOKUP($L23,Assets!$C$128:$C$765,Assets!J$128:J$765) -> 0 | Q23: =_xlfn.XLOOKUP($L23,Assets!$C$128:$C$765,Assets!K$128:K$765) -> 0 | S23: System Land | T23: 350.6704283 | U23: 350.1288543 | V23: 349.5874207 | W23: 349.0460637 | X23: 348.5044295 | Z23: System Land | AA23: 0.02244248895 | AB23: 0.02231615787 | AC23: 0.0221912306 | AD23: 0.02215252461 | AE23: 0.02216009125 | AG23: System Land | AH23: =T23*'PTRM Revenue data'!J$7 -> 9.818004472 | AI23: =U23*'PTRM Revenue data'!K$7*'PTRM Revenue data'!J$8 -> 10.07729969 | AJ23: =V23*'PTRM Revenue data'!L$7*'PTRM Revenue data'!K$8 -> 10.06171632 | AK23: =W23*'PTRM Revenue data'!M$7*'PTRM Revenue data'!L$8 -> 10.04613515 | AL23: =X23*'PTRM Revenue data'!N$7*'PTRM Revenue data'!M$8 -> 10.03054601 | AN23: System Land | AO23: =M23*'PTRM Revenue data'!J$8 -> 0 | AP23: =N23*'PTRM Revenue data'!K$8 -> 0 | AQ23: =O23*'PTRM Revenue data'!L$8 -> 0 | AR23: =P23*'PTRM Revenue data'!M$8 -> 0 | AS23: =Q23*'PTRM Revenue data'!N$8 -> 0 | AU23: System Land | AV23: -9.818004472 | AW23: -10.07729969 | AX23: -10.06171632 | AY23: -10.04613515 | AZ23: -10.03054601
B24: Control Centre - SCADA | C24: =_xlfn.XLOOKUP(B24,'PTRM Input'!$G$6:$G$58,'PTRM Input'!$J$6:$J$58) -> 0.7517367944 | E24: Control Centre - SCADA | F24: =_xlfn.XLOOKUP($E24,Assets!$C$11:$C$60,Assets!G$11:G$60) -> 0 | G24: =_xlfn.XLOOKUP($E24,Assets!$C$11:$C$60,Assets!H$11:H$60) -> 0 | H24: =_xlfn.XLOOKUP($E24,Assets!$C$11:$C$60,Assets!I$11:I$60) -> 0 | I24: =_xlfn.XLOOKUP($E24,Assets!$C$11:$C$60,Assets!J$11:J$60) -> 0 | J24: =_xlfn.XLOOKUP($E24,Assets!$C$11:$C$60,Assets!K$11:K$60) -> 0 | L24: Control Centre - SCADA | M24: =_xlfn.XLOOKUP($L24,Assets!$C$128:$C$765,Assets!G$128:G$765) -> 0.08203943109 | N24: =_xlfn.XLOOKUP($L24,Assets!$C$128:$C$765,Assets!H$128:H$765) -> 0.08203943109 | O24: =_xlfn.XLOOKUP($L24,Assets!$C$128:$C$765,Assets!I$128:I$765) -> 0.08203943312 | P24: =_xlfn.XLOOKUP($L24,Assets!$C$128:$C$765,Assets!J$128:J$765) -> 0.08203943312 | Q24: =_xlfn.XLOOKUP($L24,Assets!$C$128:$C$765,Assets!K$128:K$765) -> 0.08203943312 | S24: Control Centre - SCADA | T24: 0.7517367944 | U24: 0.6696973633 | V24: 0.5876579322 | W24: 0.5056184991 | X24: 0.423579066 | Z24: Control Centre - SCADA | AA24: 4.811025778e-05 | AB24: 4.268449145e-05 | AC24: 3.730355245e-05 | AD24: 3.208953605e-05 | AE24: 2.693380617e-05 | AG24: Control Centre - SCADA | AH24: =T24*'PTRM Revenue data'!J$7 -> 0.0210469849 | AI24: =U24*'PTRM Revenue data'!K$7*'PTRM Revenue data'!J$8 -> 0.01927502104 | AJ24: =V24*'PTRM Revenue data'!L$7*'PTRM Revenue data'!K$8 -> 0.01691378768 | AK24: =W24*'PTRM Revenue data'!M$7*'PTRM Revenue data'!L$8 -> 0.01455255425 | AL24: =X24*'PTRM Revenue data'!N$7*'PTRM Revenue data'!M$8 -> 0.01219132082 | AN24: Control Centre - SCADA | AO24: =M24*'PTRM Revenue data'!J$8 -> 0.0843363556 | AP24: =N24*'PTRM Revenue data'!K$8 -> 0.0843363556 | AQ24: =O24*'PTRM Revenue data'!L$8 -> 0.08433635768 | AR24: =P24*'PTRM Revenue data'!M$8 -> 0.08433635768 | AS24: =Q24*'PTRM Revenue data'!N$8 -> 0.08433635768 | AU24: Control Centre - SCADA | AV24: 0.0632893707 | AW24: 0.06506133456 | AX24: 0.06742257001 | AY24: 0.06978380344 | AZ24: 0.07214503686
B25: Motor Vehicles | C25: =_xlfn.XLOOKUP(B25,'PTRM Input'!$G$6:$G$58,'PTRM Input'!$J$6:$J$58) -> 141.4450558 | E25: Motor Vehicles | F25: =_xlfn.XLOOKUP($E25,Assets!$C$11:$C$60,Assets!G$11:G$60) -> 47.15707743 | G25: =_xlfn.XLOOKUP($E25,Assets!$C$11:$C$60,Assets!H$11:H$60) -> 46.40632479 | H25: =_xlfn.XLOOKUP($E25,Assets!$C$11:$C$60,Assets!I$11:I$60) -> 35.96571498 | I25: =_xlfn.XLOOKUP($E25,Assets!$C$11:$C$60,Assets!J$11:J$60) -> 29.23799997 | J25: =_xlfn.XLOOKUP($E25,Assets!$C$11:$C$60,Assets!K$11:K$60) -> 39.5745551 | L25: Motor Vehicles | M25: =_xlfn.XLOOKUP($L25,Assets!$C$128:$C$765,Assets!G$128:G$765) -> 25.24626383 | N25: =_xlfn.XLOOKUP($L25,Assets!$C$128:$C$765,Assets!H$128:H$765) -> 27.55267576 | O25: =_xlfn.XLOOKUP($L25,Assets!$C$128:$C$765,Assets!I$128:I$765) -> 30.72596784 | P25: =_xlfn.XLOOKUP($L25,Assets!$C$128:$C$765,Assets!J$128:J$765) -> 32.82001035 | Q25: =_xlfn.XLOOKUP($L25,Assets!$C$128:$C$765,Assets!K$128:K$765) -> 31.39724563 | S25: Motor Vehicles | T25: 141.4450558 | U25: 163.3558694 | V25: 182.2095185 | W25: 187.4492656 | X25: 183.8672552 | Z25: Motor Vehicles | AA25: 0.009052314784 | AB25: 0.01041181076 | AC25: 0.01156635852 | AD25: 0.01189663744 | AE25: 0.01169143003 | AG25: Motor Vehicles | AH25: =T25*'PTRM Revenue data'!J$7 -> 3.960151979 | AI25: =U25*'PTRM Revenue data'!K$7*'PTRM Revenue data'!J$8 -> 4.701657784 | AJ25: =V25*'PTRM Revenue data'!L$7*'PTRM Revenue data'!K$8 -> 5.244297641 | AK25: =W25*'PTRM Revenue data'!M$7*'PTRM Revenue data'!L$8 -> 5.395106413 | AL25: =X25*'PTRM Revenue data'!N$7*'PTRM Revenue data'!M$8 -> 5.292010105 | AN25: Motor Vehicles | AO25: =M25*'PTRM Revenue data'!J$8 -> 25.95310397 | AP25: =N25*'PTRM Revenue data'!K$8 -> 28.32409037 | AQ25: =O25*'PTRM Revenue data'!L$8 -> 31.58622769 | AR25: =P25*'PTRM Revenue data'!M$8 -> 33.7388988 | AS25: =Q25*'PTRM Revenue data'!N$8 -> 32.27629979 | AU25: Motor Vehicles | AV25: 21.99295199 | AW25: 23.62243259 | AX25: 26.34193005 | AY25: 28.34379239 | AZ25: 26.98428968
B26: Plant & Equipment | C26: =_xlfn.XLOOKUP(B26,'PTRM Input'!$G$6:$G$58,'PTRM Input'!$J$6:$J$58) -> 20.45866156 | E26: Plant & Equipment | F26: =_xlfn.XLOOKUP($E26,Assets!$C$11:$C$60,Assets!G$11:G$60) -> 5.431630921 | G26: =_xlfn.XLOOKUP($E26,Assets!$C$11:$C$60,Assets!H$11:H$60) -> 5.125458134 | H26: =_xlfn.XLOOKUP($E26,Assets!$C$11:$C$60,Assets!I$11:I$60) -> 5.22735688 | I26: =_xlfn.XLOOKUP($E26,Assets!$C$11:$C$60,Assets!J$11:J$60) -> 5.014285488 | J26: =_xlfn.XLOOKUP($E26,Assets!$C$11:$C$60,Assets!K$11:K$60) -> 4.861316607 | L26: Plant & Equipment | M26: =_xlfn.XLOOKUP($L26,Assets!$C$128:$C$765,Assets!G$128:G$765) -> 5.351139332 | N26: =_xlfn.XLOOKUP($L26,Assets!$C$128:$C$765,Assets!H$128:H$765) -> 5.107880204 | O26: =_xlfn.XLOOKUP($L26,Assets!$C$128:$C$765,Assets!I$128:I$765) -> 4.959119594 | P26: =_xlfn.XLOOKUP($L26,Assets!$C$128:$C$765,Assets!J$128:J$765) -> 5.330981917 | Q26: =_xlfn.XLOOKUP($L26,Assets!$C$128:$C$765,Assets!K$128:K$765) -> 5.328936413 | S26: Plant & Equipment | T26: 20.45866156 | U26: 20.53915315 | V26: 20.55673108 | W26: 20.82496836 | X26: 20.50827193 | Z26: Plant & Equipment | AA26: 0.001309329926 | AB26: 0.001309103716 | AC26: 0.00130490725 | AD26: 0.001321675481 | AE26: 0.001304044193 | AG26: Plant & Equipment | AH26: =T26*'PTRM Revenue data'!J$7 -> 0.5727977453 | AI26: =U26*'PTRM Revenue data'!K$7*'PTRM Revenue data'!J$8 -> 0.5911515124 | AJ26: =V26*'PTRM Revenue data'!L$7*'PTRM Revenue data'!K$8 -> 0.5916574349 | AK26: =W26*'PTRM Revenue data'!M$7*'PTRM Revenue data'!L$8 -> 0.5993777569 | AL26: =X26*'PTRM Revenue data'!N$7*'PTRM Revenue data'!M$8 -> 0.5902626989 | AN26: Plant & Equipment | AO26: =M26*'PTRM Revenue data'!J$8 -> 5.500959521 | AP26: =N26*'PTRM Revenue data'!K$8 -> 5.25088967 | AQ26: =O26*'PTRM Revenue data'!L$8 -> 5.097964089 | AR26: =P26*'PTRM Revenue data'!M$8 -> 5.480237743 | AS26: =Q26*'PTRM Revenue data'!N$8 -> 5.478134969 | AU26: Plant & Equipment | AV26: 4.928161776 | AW26: 4.659738158 | AX26: 4.506306654 | AY26: 4.880859986 | AZ26: 4.88787227
B27: Buildings | C27: =_xlfn.XLOOKUP(B27,'PTRM Input'!$G$6:$G$58,'PTRM Input'!$J$6:$J$58) -> 352.6281204 | E27: Buildings | F27: =_xlfn.XLOOKUP($E27,Assets!$C$11:$C$60,Assets!G$11:G$60) -> 28.65846086 | G27: =_xlfn.XLOOKUP($E27,Assets!$C$11:$C$60,Assets!H$11:H$60) -> 39.39056332 | H27: =_xlfn.XLOOKUP($E27,Assets!$C$11:$C$60,Assets!I$11:I$60) -> 27.55527078 | I27: =_xlfn.XLOOKUP($E27,Assets!$C$11:$C$60,Assets!J$11:J$60) -> 15.93184231 | J27: =_xlfn.XLOOKUP($E27,Assets!$C$11:$C$60,Assets!K$11:K$60) -> 13.88249777 | L27: Buildings | M27: =_xlfn.XLOOKUP($L27,Assets!$C$128:$C$765,Assets!G$128:G$765) -> 12.68824304 | N27: =_xlfn.XLOOKUP($L27,Assets!$C$128:$C$765,Assets!H$128:H$765) -> 13.40470456 | O27: =_xlfn.XLOOKUP($L27,Assets!$C$128:$C$765,Assets!I$128:I$765) -> 14.38946865 | P27: =_xlfn.XLOOKUP($L27,Assets!$C$128:$C$765,Assets!J$128:J$765) -> 15.07835042 | Q27: =_xlfn.XLOOKUP($L27,Assets!$C$128:$C$765,Assets!K$128:K$765) -> 15.47664647 | S27: Buildings | T27: 352.6281204 | U27: 368.5983382 | V27: 394.5841969 | W27: 407.7499991 | X27: 408.603491 | Z27: Buildings | AA27: 0.02256777891 | AB27: 0.02349334711 | AC27: 0.02504755144 | AD27: 0.02587822304 | AE27: 0.02598156545 | AG27: Buildings | AH27: =T27*'PTRM Revenue data'!J$7 -> 9.872815566 | AI27: =U27*'PTRM Revenue data'!K$7*'PTRM Revenue data'!J$8 -> 10.60888263 | AJ27: =V27*'PTRM Revenue data'!L$7*'PTRM Revenue data'!K$8 -> 11.35679953 | AK27: =W27*'PTRM Revenue data'!M$7*'PTRM Revenue data'!L$8 -> 11.73573355 | AL27: =X27*'PTRM Revenue data'!N$7*'PTRM Revenue data'!M$8 -> 11.76029849 | AN27: Buildings | AO27: =M27*'PTRM Revenue data'!J$8 -> 13.04348608 | AP27: =N27*'PTRM Revenue data'!K$8 -> 13.78000695 | AQ27: =O27*'PTRM Revenue data'!L$8 -> 14.79234227 | AR27: =P27*'PTRM Revenue data'!M$8 -> 15.50051122 | AS27: =Q27*'PTRM Revenue data'!N$8 -> 15.9099587 | AU27: Buildings | AV27: 3.17067051 | AW27: 3.171124321 | AX27: 3.435542745 | AY27: 3.764777677 | AZ27: 4.149660215
B28: Office Equipment & Furniture | C28: =_xlfn.XLOOKUP(B28,'PTRM Input'!$G$6:$G$58,'PTRM Input'!$J$6:$J$58) -> -10.36988076 | E28: Office Equipment & Furniture | F28: =_xlfn.XLOOKUP($E28,Assets!$C$11:$C$60,Assets!G$11:G$60) -> 1.764533684 | G28: =_xlfn.XLOOKUP($E28,Assets!$C$11:$C$60,Assets!H$11:H$60) -> 2.425321308 | H28: =_xlfn.XLOOKUP($E28,Assets!$C$11:$C$60,Assets!I$11:I$60) -> 1.696609029 | I28: =_xlfn.XLOOKUP($E28,Assets!$C$11:$C$60,Assets!J$11:J$60) -> 1.390649365 | J28: =_xlfn.XLOOKUP($E28,Assets!$C$11:$C$60,Assets!K$11:K$60) -> 0.8547610092 | L28: Office Equipment & Furniture | M28: =_xlfn.XLOOKUP($L28,Assets!$C$128:$C$765,Assets!G$128:G$765) -> -2.169888542 | N28: =_xlfn.XLOOKUP($L28,Assets!$C$128:$C$765,Assets!H$128:H$765) -> -1.607235351 | O28: =_xlfn.XLOOKUP($L28,Assets!$C$128:$C$765,Assets!I$128:I$765) -> -0.7258244371 | P28: =_xlfn.XLOOKUP($L28,Assets!$C$128:$C$765,Assets!J$128:J$765) -> -0.4834517187 | Q28: =_xlfn.XLOOKUP($L28,Assets!$C$128:$C$765,Assets!K$128:K$765) -> -0.2847875237 | S28: Office Equipment & Furniture | T28: -10.36988076 | U28: -6.435458534 | V28: -2.402901874 | W28: 0.01953159262 | X28: 1.893632676 | Z28: Office Equipment & Furniture | AA28: -0.000663659994 | AB28: -0.0004101767303 | AC28: -0.0001525322321 | AD28: 1.239590218e-06 | AE28: 0.0001204090087 | AG28: Office Equipment & Furniture | AH28: =T28*'PTRM Revenue data'!J$7 -> -0.2903339645 | AI28: =U28*'PTRM Revenue data'!K$7*'PTRM Revenue data'!J$8 -> -0.1852233643 | AJ28: =V28*'PTRM Revenue data'!L$7*'PTRM Revenue data'!K$8 -> -0.06915957374 | AK28: =W28*'PTRM Revenue data'!M$7*'PTRM Revenue data'!L$8 -> 0.0005621522189 | AL28: =X28*'PTRM Revenue data'!N$7*'PTRM Revenue data'!M$8 -> 0.05450194622 | AN28: Office Equipment & Furniture | AO28: =M28*'PTRM Revenue data'!J$8 -> -2.230640672 | AP28: =N28*'PTRM Revenue data'!K$8 -> -1.652234424 | AQ28: =O28*'PTRM Revenue data'!L$8 -> -0.7461459328 | AR28: =P28*'PTRM Revenue data'!M$8 -> -0.4969873087 | AS28: =Q28*'PTRM Revenue data'!N$8 -> -0.2927609511 | AU28: Office Equipment & Furniture | AV28: -1.940306707 | AW28: -1.467011059 | AX28: -0.676986359 | AY28: -0.4975494609 | AZ28: -0.3472628973
B29: Initial Leases (10 yr life) | C29: =_xlfn.XLOOKUP(B29,'PTRM Input'!$G$6:$G$58,'PTRM Input'!$J$6:$J$58) -> 44.65095865 | E29: Initial Leases (10 yr life) | F29: =_xlfn.XLOOKUP($E29,Assets!$C$11:$C$60,Assets!G$11:G$60) -> 0 | G29: =_xlfn.XLOOKUP($E29,Assets!$C$11:$C$60,Assets!H$11:H$60) -> 0 | H29: =_xlfn.XLOOKUP($E29,Assets!$C$11:$C$60,Assets!I$11:I$60) -> 0 | I29: =_xlfn.XLOOKUP($E29,Assets!$C$11:$C$60,Assets!J$11:J$60) -> 0 | J29: =_xlfn.XLOOKUP($E29,Assets!$C$11:$C$60,Assets!K$11:K$60) -> 0 | L29: Initial Leases (10 yr life) | M29: =_xlfn.XLOOKUP($L29,Assets!$C$128:$C$765,Assets!G$128:G$765) -> 10.30518729 | N29: =_xlfn.XLOOKUP($L29,Assets!$C$128:$C$765,Assets!H$128:H$765) -> 10.30518729 | O29: =_xlfn.XLOOKUP($L29,Assets!$C$128:$C$765,Assets!I$128:I$765) -> 10.30518729 | P29: =_xlfn.XLOOKUP($L29,Assets!$C$128:$C$765,Assets!J$128:J$765) -> 10.30518729 | Q29: =_xlfn.XLOOKUP($L29,Assets!$C$128:$C$765,Assets!K$128:K$765) -> 3.430209485 | S29: Initial Leases (10 yr life) | T29: 44.65095865 | U29: 34.34577136 | V29: 24.04058407 | W29: 13.73539678 | X29: 3.430209485 | Z29: Initial Leases (10 yr life) | AA29: 0.002857608071 | AB29: 0.002189095947 | AC29: 0.001526056469 | AD29: 0.0008717293983 | AE29: 0.0002181141723 | AG29: Initial Leases (10 yr life) | AH29: =T29*'PTRM Revenue data'!J$7 -> 1.250129114 | AI29: =U29*'PTRM Revenue data'!K$7*'PTRM Revenue data'!J$8 -> 0.9885292999 | AJ29: =V29*'PTRM Revenue data'!L$7*'PTRM Revenue data'!K$8 -> 0.6919286071 | AK29: =W29*'PTRM Revenue data'!M$7*'PTRM Revenue data'!L$8 -> 0.3953279144 | AL29: =X29*'PTRM Revenue data'!N$7*'PTRM Revenue data'!M$8 -> 0.09872722163 | AN29: Initial Leases (10 yr life) | AO29: =M29*'PTRM Revenue data'!J$8 -> 10.59370998 | AP29: =N29*'PTRM Revenue data'!K$8 -> 10.59370998 | AQ29: =O29*'PTRM Revenue data'!L$8 -> 10.59370998 | AR29: =P29*'PTRM Revenue data'!M$8 -> 10.59370998 | AS29: =Q29*'PTRM Revenue data'!N$8 -> 3.526247843 | AU29: Initial Leases (10 yr life) | AV29: 9.343580866 | AW29: 9.60518068 | AX29: 9.901781373 | AY29: 10.19838207 | AZ29: 3.427520621
B30: Lease Extensions (5yr Life) | C30: =_xlfn.XLOOKUP(B30,'PTRM Input'!$G$6:$G$58,'PTRM Input'!$J$6:$J$58) -> 0 | E30: Lease Extensions (5yr Life) | F30: =_xlfn.XLOOKUP($E30,Assets!$C$11:$C$60,Assets!G$11:G$60) -> 0 | G30: =_xlfn.XLOOKUP($E30,Assets!$C$11:$C$60,Assets!H$11:H$60) -> 0 | H30: =_xlfn.XLOOKUP($E30,Assets!$C$11:$C$60,Assets!I$11:I$60) -> 0 | I30: =_xlfn.XLOOKUP($E30,Assets!$C$11:$C$60,Assets!J$11:J$60) -> 12.12248731 | J30: =_xlfn.XLOOKUP($E30,Assets!$C$11:$C$60,Assets!K$11:K$60) -> 1.999189015 | L30: Lease Extensions (5yr Life) | M30: =_xlfn.XLOOKUP($L30,Assets!$C$128:$C$765,Assets!G$128:G$765) -> 0 | N30: =_xlfn.XLOOKUP($L30,Assets!$C$128:$C$765,Assets!H$128:H$765) -> 0 | O30: =_xlfn.XLOOKUP($L30,Assets!$C$128:$C$765,Assets!I$128:I$765) -> 0 | P30: =_xlfn.XLOOKUP($L30,Assets!$C$128:$C$765,Assets!J$128:J$765) -> 0 | Q30: =_xlfn.XLOOKUP($L30,Assets!$C$128:$C$765,Assets!K$128:K$765) -> 2.424497461 | S30: Lease Extensions (5yr Life) | T30: 0 | U30: 0 | V30: 0 | W30: 0 | X30: 12.12248731 | Z30: Lease Extensions (5yr Life) | AA30: 0 | AB30: 0 | AC30: 0 | AD30: 0 | AE30: 0.0007708235596 | AG30: Lease Extensions (5yr Life) | AH30: =T30*'PTRM Revenue data'!J$7 -> 0 | AI30: =U30*'PTRM Revenue data'!K$7*'PTRM Revenue data'!J$8 -> 0 | AJ30: =V30*'PTRM Revenue data'!L$7*'PTRM Revenue data'!K$8 -> 0 | AK30: =W30*'PTRM Revenue data'!M$7*'PTRM Revenue data'!L$8 -> 0 | AL30: =X30*'PTRM Revenue data'!N$7*'PTRM Revenue data'!M$8 -> 0.3489056561 | AN30: Lease Extensions (5yr Life) | AO30: =M30*'PTRM Revenue data'!J$8 -> 0 | AP30: =N30*'PTRM Revenue data'!K$8 -> 0 | AQ30: =O30*'PTRM Revenue data'!L$8 -> 0 | AR30: =P30*'PTRM Revenue data'!M$8 -> 0 | AS30: =Q30*'PTRM Revenue data'!N$8 -> 2.492378084 | AU30: Lease Extensions (5yr Life) | AV30: 0 | AW30: 0 | AX30: 0 | AY30: 0 | AZ30: 2.143472428
B31: Land | C31: =_xlfn.XLOOKUP(B31,'PTRM Input'!$G$6:$G$58,'PTRM Input'!$J$6:$J$58) -> 194.6934773 | E31: Land | F31: =_xlfn.XLOOKUP($E31,Assets!$C$11:$C$60,Assets!G$11:G$60) -> 0 | G31: =_xlfn.XLOOKUP($E31,Assets!$C$11:$C$60,Assets!H$11:H$60) -> 0 | H31: =_xlfn.XLOOKUP($E31,Assets!$C$11:$C$60,Assets!I$11:I$60) -> 0 | I31: =_xlfn.XLOOKUP($E31,Assets!$C$11:$C$60,Assets!J$11:J$60) -> 0 | J31: =_xlfn.XLOOKUP($E31,Assets!$C$11:$C$60,Assets!K$11:K$60) -> 0 | L31: Land | M31: =_xlfn.XLOOKUP($L31,Assets!$C$128:$C$765,Assets!G$128:G$765) -> 0 | N31: =_xlfn.XLOOKUP($L31,Assets!$C$128:$C$765,Assets!H$128:H$765) -> 0 | O31: =_xlfn.XLOOKUP($L31,Assets!$C$128:$C$765,Assets!I$128:I$765) -> 0 | P31: =_xlfn.XLOOKUP($L31,Assets!$C$128:$C$765,Assets!J$128:J$765) -> 0 | Q31: =_xlfn.XLOOKUP($L31,Assets!$C$128:$C$765,Assets!K$128:K$765) -> 0 | S31: Land | T31: 194.6934773 | U31: 194.6934773 | V31: 194.6934773 | W31: 194.6934773 | X31: 194.6934773 | Z31: Land | AA31: 0.01246015022 | AB31: 0.01240917543 | AC31: 0.01235881955 | AD31: 0.0123563979 | AE31: 0.01237982894 | AG31: Land | AH31: =T31*'PTRM Revenue data'!J$7 -> 5.450991234 | AI31: =U31*'PTRM Revenue data'!K$7*'PTRM Revenue data'!J$8 -> 5.603607058 | AJ31: =V31*'PTRM Revenue data'!L$7*'PTRM Revenue data'!K$8 -> 5.603607058 | AK31: =W31*'PTRM Revenue data'!M$7*'PTRM Revenue data'!L$8 -> 5.603607058 | AL31: =X31*'PTRM Revenue data'!N$7*'PTRM Revenue data'!M$8 -> 5.603607058 | AN31: Land | AO31: =M31*'PTRM Revenue data'!J$8 -> 0 | AP31: =N31*'PTRM Revenue data'!K$8 -> 0 | AQ31: =O31*'PTRM Revenue data'!L$8 -> 0 | AR31: =P31*'PTRM Revenue data'!M$8 -> 0 | AS31: =Q31*'PTRM Revenue data'!N$8 -> 0 | AU31: Land | AV31: -5.450991234 | AW31: -5.603607058 | AX31: -5.603607058 | AY31: -5.603607058 | AZ31: -5.603607058
B32: In-house software | C32: =_xlfn.XLOOKUP(B32,'PTRM Input'!$G$6:$G$58,'PTRM Input'!$J$6:$J$58) -> 194.3325994 | E32: In-house software | F32: =_xlfn.XLOOKUP($E32,Assets!$C$11:$C$60,Assets!G$11:G$60) -> 72.95503592 | G32: =_xlfn.XLOOKUP($E32,Assets!$C$11:$C$60,Assets!H$11:H$60) -> 60.87017948 | H32: =_xlfn.XLOOKUP($E32,Assets!$C$11:$C$60,Assets!I$11:I$60) -> 45.65437981 | I32: =_xlfn.XLOOKUP($E32,Assets!$C$11:$C$60,Assets!J$11:J$60) -> 35.90292966 | J32: =_xlfn.XLOOKUP($E32,Assets!$C$11:$C$60,Assets!K$11:K$60) -> 43.04393533 | L32: In-house software | M32: =_xlfn.XLOOKUP($L32,Assets!$C$128:$C$765,Assets!G$128:G$765) -> 54.17757752 | N32: =_xlfn.XLOOKUP($L32,Assets!$C$128:$C$765,Assets!H$128:H$765) -> 62.66543115 | O32: =_xlfn.XLOOKUP($L32,Assets!$C$128:$C$765,Assets!I$128:I$765) -> 68.78161855 | P32: =_xlfn.XLOOKUP($L32,Assets!$C$128:$C$765,Assets!J$128:J$765) -> 70.40794628 | Q32: =_xlfn.XLOOKUP($L32,Assets!$C$128:$C$765,Assets!K$128:K$765) -> 59.59889115 | S32: In-house software | T32: 194.3325994 | U32: 213.1100578 | V32: 211.3148062 | W32: 188.1875674 | X32: 153.6825508 | Z32: In-house software | AA32: 0.01243705446 | AB32: 0.01358299277 | AC32: 0.01341391399 | AD32: 0.01194349443 | AE32: 0.009772097744 | AG32: In-house software | AH32: =T32*'PTRM Revenue data'!J$7 -> 5.440887444 | AI32: =U32*'PTRM Revenue data'!K$7*'PTRM Revenue data'!J$8 -> 6.133667347 | AJ32: =V32*'PTRM Revenue data'!L$7*'PTRM Revenue data'!K$8 -> 6.081996972 | AK32: =W32*'PTRM Revenue data'!M$7*'PTRM Revenue data'!L$8 -> 5.416355986 | AL32: =X32*'PTRM Revenue data'!N$7*'PTRM Revenue data'!M$8 -> 4.423243339 | AN32: In-house software | AO32: =M32*'PTRM Revenue data'!J$8 -> 55.69443111 | AP32: =N32*'PTRM Revenue data'!K$8 -> 64.41992606 | AQ32: =O32*'PTRM Revenue data'!L$8 -> 70.70735332 | AR32: =P32*'PTRM Revenue data'!M$8 -> 72.37921467 | AS32: =Q32*'PTRM Revenue data'!N$8 -> 61.26752966 | AU32: In-house software | AV32: 50.25354366 | AW32: 58.28625872 | AX32: 64.62535635 | AY32: 66.96285868 | AZ32: 56.84428632
B33: IT Systems | C33: =_xlfn.XLOOKUP(B33,'PTRM Input'!$G$6:$G$58,'PTRM Input'!$J$6:$J$58) -> 5.209157556 | E33: IT Systems | F33: =_xlfn.XLOOKUP($E33,Assets!$C$11:$C$60,Assets!G$11:G$60) -> 2.715894619 | G33: =_xlfn.XLOOKUP($E33,Assets!$C$11:$C$60,Assets!H$11:H$60) -> 2.662191746 | H33: =_xlfn.XLOOKUP($E33,Assets!$C$11:$C$60,Assets!I$11:I$60) -> 2.023906367 | I33: =_xlfn.XLOOKUP($E33,Assets!$C$11:$C$60,Assets!J$11:J$60) -> 1.498955235 | J33: =_xlfn.XLOOKUP($E33,Assets!$C$11:$C$60,Assets!K$11:K$60) -> 1.799697709 | L33: IT Systems | M33: =_xlfn.XLOOKUP($L33,Assets!$C$128:$C$765,Assets!G$128:G$765) -> 2.130158418 | N33: =_xlfn.XLOOKUP($L33,Assets!$C$128:$C$765,Assets!H$128:H$765) -> 2.290179639 | O33: =_xlfn.XLOOKUP($L33,Assets!$C$128:$C$765,Assets!I$128:I$765) -> 2.094307206 | P33: =_xlfn.XLOOKUP($L33,Assets!$C$128:$C$765,Assets!J$128:J$765) -> 1.769563088 | Q33: =_xlfn.XLOOKUP($L33,Assets!$C$128:$C$765,Assets!K$128:K$765) -> 1.843683416 | S33: IT Systems | T33: 5.209157556 | U33: 5.794893757 | V33: 6.166905865 | W33: 6.096505025 | X33: 5.825897172 | Z33: IT Systems | AA33: 0.0003333798674 | AB33: 0.0003693490621 | AC33: 0.0003914649727 | AD33: 0.0003869202138 | AE33: 0.0003704469786 | AG33: IT Systems | AH33: =T33*'PTRM Revenue data'!J$7 -> 0.1458450102 | AI33: =U33*'PTRM Revenue data'!K$7*'PTRM Revenue data'!J$8 -> 0.1667868283 | AJ33: =V33*'PTRM Revenue data'!L$7*'PTRM Revenue data'!K$8 -> 0.1774939649 | AK33: =W33*'PTRM Revenue data'!M$7*'PTRM Revenue data'!L$8 -> 0.1754677099 | AL33: =X33*'PTRM Revenue data'!N$7*'PTRM Revenue data'!M$8 -> 0.1676791589 | AN33: IT Systems | AO33: =M33*'PTRM Revenue data'!J$8 -> 2.189798191 | AP33: =N33*'PTRM Revenue data'!K$8 -> 2.354299656 | AQ33: =O33*'PTRM Revenue data'!L$8 -> 2.152943224 | AR33: =P33*'PTRM Revenue data'!M$8 -> 1.819106981 | AS33: =Q33*'PTRM Revenue data'!N$8 -> 1.895302516 | AU33: IT Systems | AV33: 2.043953181 | AW33: 2.187512828 | AX33: 1.975449259 | AY33: 1.643639272 | AZ33: 1.727623357
B34: Legacy ICT Assets | C34: =_xlfn.XLOOKUP(B34,'PTRM Input'!$G$6:$G$58,'PTRM Input'!$J$6:$J$58) -> 74.63087595 | E34: Legacy ICT Assets | F34: =_xlfn.XLOOKUP($E34,Assets!$C$11:$C$60,Assets!G$11:G$60) -> 0 | G34: =_xlfn.XLOOKUP($E34,Assets!$C$11:$C$60,Assets!H$11:H$60) -> 0 | H34: =_xlfn.XLOOKUP($E34,Assets!$C$11:$C$60,Assets!I$11:I$60) -> 0 | I34: =_xlfn.XLOOKUP($E34,Assets!$C$11:$C$60,Assets!J$11:J$60) -> 0 | J34: =_xlfn.XLOOKUP($E34,Assets!$C$11:$C$60,Assets!K$11:K$60) -> 0 | L34: Legacy ICT Assets | M34: =_xlfn.XLOOKUP($L34,Assets!$C$128:$C$765,Assets!G$128:G$765) -> 14.92617519 | N34: =_xlfn.XLOOKUP($L34,Assets!$C$128:$C$765,Assets!H$128:H$765) -> 14.92617519 | O34: =_xlfn.XLOOKUP($L34,Assets!$C$128:$C$765,Assets!I$128:I$765) -> 14.92617519 | P34: =_xlfn.XLOOKUP($L34,Assets!$C$128:$C$765,Assets!J$128:J$765) -> 14.92617519 | Q34: =_xlfn.XLOOKUP($L34,Assets!$C$128:$C$765,Assets!K$128:K$765) -> 14.92617519 | S34: Legacy ICT Assets | T34: 74.63087595 | U34: 59.70470076 | V34: 44.77852557 | W34: 29.85235038 | X34: 14.92617519 | Z34: Legacy ICT Assets | AA34: 0.004776287003 | AB34: 0.003805397675 | AC34: 0.002842466656 | AD34: 0.001894606458 | AE34: 0.00094909957 | AG34: Legacy ICT Assets | AH34: =T34*'PTRM Revenue data'!J$7 -> 2.08950118 | AI34: =U34*'PTRM Revenue data'!K$7*'PTRM Revenue data'!J$8 -> 1.718402112 | AJ34: =V34*'PTRM Revenue data'!L$7*'PTRM Revenue data'!K$8 -> 1.288801584 | AK34: =W34*'PTRM Revenue data'!M$7*'PTRM Revenue data'!L$8 -> 0.859201056 | AL34: =X34*'PTRM Revenue data'!N$7*'PTRM Revenue data'!M$8 -> 0.429600528 | AN34: Legacy ICT Assets | AO34: =M34*'PTRM Revenue data'!J$8 -> 15.34407543 | AP34: =N34*'PTRM Revenue data'!K$8 -> 15.34407543 | AQ34: =O34*'PTRM Revenue data'!L$8 -> 15.34407543 | AR34: =P34*'PTRM Revenue data'!M$8 -> 15.34407543 | AS34: =Q34*'PTRM Revenue data'!N$8 -> 15.34407543 | AU34: Legacy ICT Assets | AV34: 13.25457425 | AW34: 13.62567331 | AX34: 14.05527384 | AY34: 14.48487437 | AZ34: 14.9144749
B35: Buildings - capital works | C35: =_xlfn.XLOOKUP(B35,'PTRM Input'!$G$6:$G$58,'PTRM Input'!$J$6:$J$58) -> 45.76697642 | E35: Buildings - capital works | F35: =_xlfn.XLOOKUP($E35,Assets!$C$11:$C$60,Assets!G$11:G$60) -> 0 | G35: =_xlfn.XLOOKUP($E35,Assets!$C$11:$C$60,Assets!H$11:H$60) -> 0 | H35: =_xlfn.XLOOKUP($E35,Assets!$C$11:$C$60,Assets!I$11:I$60) -> 0 | I35: =_xlfn.XLOOKUP($E35,Assets!$C$11:$C$60,Assets!J$11:J$60) -> 0 | J35: =_xlfn.XLOOKUP($E35,Assets!$C$11:$C$60,Assets!K$11:K$60) -> 0 | L35: Buildings - capital works | M35: =_xlfn.XLOOKUP($L35,Assets!$C$128:$C$765,Assets!G$128:G$765) -> 1.241543751 | N35: =_xlfn.XLOOKUP($L35,Assets!$C$128:$C$765,Assets!H$128:H$765) -> 1.241543751 | O35: =_xlfn.XLOOKUP($L35,Assets!$C$128:$C$765,Assets!I$128:I$765) -> 1.241543751 | P35: =_xlfn.XLOOKUP($L35,Assets!$C$128:$C$765,Assets!J$128:J$765) -> 1.241543751 | Q35: =_xlfn.XLOOKUP($L35,Assets!$C$128:$C$765,Assets!K$128:K$765) -> 1.241543751 | S35: Buildings - capital works | T35: 45.76697642 | U35: 44.52543267 | V35: 43.28388892 | W35: 42.04234517 | X35: 40.80080142 | Z35: Buildings - capital works | AA35: 0.002929031876 | AB35: 0.002837916877 | AC35: 0.002747589596 | AD35: 0.002668255519 | AE35: 0.002594370131 | AG35: Buildings - capital works | AH35: =T35*'PTRM Revenue data'!J$7 -> 1.281375169 | AI35: =U35*'PTRM Revenue data'!K$7*'PTRM Revenue data'!J$8 -> 1.281517143 | AJ35: =V35*'PTRM Revenue data'!L$7*'PTRM Revenue data'!K$8 -> 1.245783417 | AK35: =W35*'PTRM Revenue data'!M$7*'PTRM Revenue data'!L$8 -> 1.210049691 | AL35: =X35*'PTRM Revenue data'!N$7*'PTRM Revenue data'!M$8 -> 1.174315966 | AN35: Buildings - capital works | AO35: =M35*'PTRM Revenue data'!J$8 -> 1.276304259 | AP35: =N35*'PTRM Revenue data'!K$8 -> 1.276304259 | AQ35: =O35*'PTRM Revenue data'!L$8 -> 1.276304259 | AR35: =P35*'PTRM Revenue data'!M$8 -> 1.276304259 | AS35: =Q35*'PTRM Revenue data'!N$8 -> 1.276304259 | AU35: Buildings - capital works | AV35: -0.005070910016 | AW35: -0.005212884397 | AX35: 0.03052084137 | AY35: 0.06625456714 | AZ35: 0.1019882929
B36: Equity raising costs | C36: =_xlfn.XLOOKUP(B36,'PTRM Input'!$G$6:$G$58,'PTRM Input'!$J$6:$J$58) -> 22.6879569 | E36: Equity raising costs | F36: =_xlfn.XLOOKUP($E36,Assets!$C$11:$C$60,Assets!G$11:G$60) -> 0 | G36: =_xlfn.XLOOKUP($E36,Assets!$C$11:$C$60,Assets!H$11:H$60) -> 0 | H36: =_xlfn.XLOOKUP($E36,Assets!$C$11:$C$60,Assets!I$11:I$60) -> 0 | I36: =_xlfn.XLOOKUP($E36,Assets!$C$11:$C$60,Assets!J$11:J$60) -> 0 | J36: =_xlfn.XLOOKUP($E36,Assets!$C$11:$C$60,Assets!K$11:K$60) -> 0 | L36: Equity raising costs | M36: =_xlfn.XLOOKUP($L36,Assets!$C$128:$C$765,Assets!G$128:G$765) -> 0.7067899345 | N36: =_xlfn.XLOOKUP($L36,Assets!$C$128:$C$765,Assets!H$128:H$765) -> 0.7067899345 | O36: =_xlfn.XLOOKUP($L36,Assets!$C$128:$C$765,Assets!I$128:I$765) -> 0.7067899345 | P36: =_xlfn.XLOOKUP($L36,Assets!$C$128:$C$765,Assets!J$128:J$765) -> 0.7067899345 | Q36: =_xlfn.XLOOKUP($L36,Assets!$C$128:$C$765,Assets!K$128:K$765) -> 0.7067899345 | S36: Equity raising costs | T36: 22.6879569 | U36: 21.98116696 | V36: 21.27437703 | W36: 20.56758709 | X36: 19.86079716 | Z36: Equity raising costs | AA36: 0.001452002167 | AB36: 0.00140101333 | AC36: 0.001350462226 | AD36: 0.001305340546 | AE36: 0.001262873697 | AG36: Equity raising costs | AH36: =T36*'PTRM Revenue data'!J$7 -> 0.6352131355 | AI36: =U36*'PTRM Revenue data'!K$7*'PTRM Revenue data'!J$8 -> 0.6326551051 | AJ36: =V36*'PTRM Revenue data'!L$7*'PTRM Revenue data'!K$8 -> 0.6123124972 | AK36: =W36*'PTRM Revenue data'!M$7*'PTRM Revenue data'!L$8 -> 0.5919698893 | AL36: =X36*'PTRM Revenue data'!N$7*'PTRM Revenue data'!M$8 -> 0.5716272814 | AN36: Equity raising costs | AO36: =M36*'PTRM Revenue data'!J$8 -> 0.7265785057 | AP36: =N36*'PTRM Revenue data'!K$8 -> 0.7265785057 | AQ36: =O36*'PTRM Revenue data'!L$8 -> 0.7265785057 | AR36: =P36*'PTRM Revenue data'!M$8 -> 0.7265785057 | AS36: =Q36*'PTRM Revenue data'!N$8 -> 0.7265785057 | AU36: Equity raising costs | AV36: 0.09136537019 | AW36: 0.09392340058 | AX36: 0.1142660085 | AY36: 0.1346086163 | AZ36: 0.1549512242
B39: Total | C39: =SUM(C7:C36) -> 15625.29134 | S39: Total | T39: =SUM(T7:T36) -> 15625.29134 | U39: =SUM(U7:U36) -> 15689.47739 | V39: =SUM(V7:V36) -> 15753.40399 | W39: 15756.49141 | X39: 15726.66943 | Z39: Total | AA39: =SUM(AA7:AA36) -> 1 | AB39: =SUM(AB7:AB36) -> 1 | AC39: 1 | AD39: 1 | AE39: 1

Sheet BBM Costs
B2: BBM Costs
B4: Building block costs by year (000s) | I4: Operational costs | P4: Return of capex (Regulatory depreciation split) | W4: Return on capex | AD4: Replacement cost (ORAB)
C6: 2025-26 | D6: 2026-27 | E6: 2027-28 | F6: 2028-29 | G6: 2029-30 | I6: Category | J6: 2025-26 | K6: 2026-27 | L6: 2027-28 | M6: 2028-29 | N6: 2029-30 | P6: Category | Q6: 2025-26 | R6: 2026-27 | S6: 2027-28 | T6: 2028-29 | U6: 2029-30 | W6: Category | X6: 2025-26 | Y6: 2026-27 | Z6: 2027-28 | AA6: 2028-29 | AB6: 2029-30 | AD6: Category | AE6: 2025-26
B7: Return on Capital | C7: =_xlfn.XLOOKUP($B7,'PTRM Revenue data'!$B$7:$B$11,'PTRM Revenue data'!C$7:C$11) -> 915.5813 | D7: =_xlfn.XLOOKUP($B7,'PTRM Revenue data'!$B$7:$B$11,'PTRM Revenue data'!D$7:D$11) -> 957.018339 | E7: =_xlfn.XLOOKUP($B7,'PTRM Revenue data'!$B$7:$B$11,'PTRM Revenue data'!E$7:E$11) -> 1021.88662 | F7: =_xlfn.XLOOKUP($B7,'PTRM Revenue data'!$B$7:$B$11,'PTRM Revenue data'!F$7:F$11) -> 1080.218987 | G7: =_xlfn.XLOOKUP($B7,'PTRM Revenue data'!$B$7:$B$11,'PTRM Revenue data'!G$7:G$11) -> 1181.739196 | I7: ='Opex costs'!B7 -> Preventative maintenance | J7: =_xlfn.XLOOKUP($I7,'Opex costs'!$B$7:$B$20,'Opex costs'!C$7:C$20) -> 127.0781962 | K7: =_xlfn.XLOOKUP($I7,'Opex costs'!$B$7:$B$20,'Opex costs'!D$7:D$20) -> 131.4046209 | L7: =_xlfn.XLOOKUP($I7,'Opex costs'!$B$7:$B$20,'Opex costs'!E$7:E$20) -> 138.4377515 | M7: =_xlfn.XLOOKUP($I7,'Opex costs'!$B$7:$B$20,'Opex costs'!F$7:F$20) -> 145.0886939 | N7: =_xlfn.XLOOKUP($I7,'Opex costs'!$B$7:$B$20,'Opex costs'!G$7:G$20) -> 156.7572785 | P7: ='PTRM Data'!B7 -> OH Sub-transmission lines | Q7: =_xlfn.XLOOKUP($P7,'PTRM Data'!$AU$7:$AU$36,'PTRM Data'!AV$7:AV$36) -> 3.554320349 | R7: =_xlfn.XLOOKUP($P7,'PTRM Data'!$AU$7:$AU$36,'PTRM Data'!AW$7:AW$36) -> 3.329477593 | S7: =_xlfn.XLOOKUP($P7,'PTRM Data'!$AU$7:$AU$36,'PTRM Data'!AX$7:AX$36) -> 3.733203066 | T7: =_xlfn.XLOOKUP($P7,'PTRM Data'!$AU$7:$AU$36,'PTRM Data'!AY$7:AY$36) -> 4.162951204 | U7: =_xlfn.XLOOKUP($P7,'PTRM Data'!$AU$7:$AU$36,'PTRM Data'!AZ$7:AZ$36) -> 4.618181835 | W7: ='PTRM Data'!B7 -> OH Sub-transmission lines | X7: =_xlfn.XLOOKUP($W7,'PTRM Data'!$Z$7:$Z$36,'PTRM Data'!AA$7:AA$36)*('BBM Costs'!C$7+'BBM Costs'!C$11) -> 47.07411443 | Y7: =_xlfn.XLOOKUP($W7,'PTRM Data'!$Z$7:$Z$36,'PTRM Data'!AB$7:AB$36)*('BBM Costs'!D$7+'BBM Costs'!D$11) -> 49.75406274 | Z7: =_xlfn.XLOOKUP($W7,'PTRM Data'!$Z$7:$Z$36,'PTRM Data'!AC$7:AC$36)*('BBM Costs'!E$7+'BBM Costs'!E$11) -> 53.95713232 | AA7: =_xlfn.XLOOKUP($W7,'PTRM Data'!$Z$7:$Z$36,'PTRM Data'!AD$7:AD$36)*('BBM Costs'!F$7+'BBM Costs'!F$11) -> 58.28376487 | AB7: =_xlfn.XLOOKUP($W7,'PTRM Data'!$Z$7:$Z$36,'PTRM Data'!AE$7:AE$36)*('BBM Costs'!G$7+'BBM Costs'!G$11) -> 64.88146245 | AD7: ='PTRM Data'!B7 -> OH Sub-transmission lines | AE7: =_xlfn.XLOOKUP(AD7,'PTRM Data'!$B$7:$B$36,'PTRM Data'!$C$7:$C$36) -> 791.4885062
B8: Return of Capital (regulatory depreciation) | C8: =_xlfn.XLOOKUP($B8,'PTRM Revenue data'!$B$7:$B$11,'PTRM Revenue data'!C$7:C$11) -> 202.8940829 | D8: =_xlfn.XLOOKUP($B8,'PTRM Revenue data'!$B$7:$B$11,'PTRM Revenue data'!D$7:D$11) -> 233.7027953 | E8: =_xlfn.XLOOKUP($B8,'PTRM Revenue data'!$B$7:$B$11,'PTRM Revenue data'!E$7:E$11) -> 267.2463701 | F8: =_xlfn.XLOOKUP($B8,'PTRM Revenue data'!$B$7:$B$11,'PTRM Revenue data'!F$7:F$11) -> 295.8325366 | G8: =_xlfn.XLOOKUP($B8,'PTRM Revenue data'!$B$7:$B$11,'PTRM Revenue data'!G$7:G$11) -> 316.7378495 | I8: ='Opex costs'!B8 -> Corrective maintenance | J8: =_xlfn.XLOOKUP($I8,'Opex costs'!$B$7:$B$20,'Opex costs'!C$7:C$20) -> 83.94087532 | K8: =_xlfn.XLOOKUP($I8,'Opex costs'!$B$7:$B$20,'Opex costs'!D$7:D$20) -> 86.79867377 | L8: =_xlfn.XLOOKUP($I8,'Opex costs'!$B$7:$B$20,'Opex costs'!E$7:E$20) -> 91.44437352 | M8: =_xlfn.XLOOKUP($I8,'Opex costs'!$B$7:$B$20,'Opex costs'!F$7:F$20) -> 95.83762068 | N8: =_xlfn.XLOOKUP($I8,'Opex costs'!$B$7:$B$20,'Opex costs'!G$7:G$20) -> 103.5452466 | P8: ='PTRM Data'!B8 -> UG Sub-transmission cables | Q8: =_xlfn.XLOOKUP($P8,'PTRM Data'!$AU$7:$AU$36,'PTRM Data'!AV$7:AV$36) -> 13.47123238 | R8: =_xlfn.XLOOKUP($P8,'PTRM Data'!$AU$7:$AU$36,'PTRM Data'!AW$7:AW$36) -> 13.78956353 | S8: =_xlfn.XLOOKUP($P8,'PTRM Data'!$AU$7:$AU$36,'PTRM Data'!AX$7:AX$36) -> 14.80027059 | T8: =_xlfn.XLOOKUP($P8,'PTRM Data'!$AU$7:$AU$36,'PTRM Data'!AY$7:AY$36) -> 15.8199507 | U8: =_xlfn.XLOOKUP($P8,'PTRM Data'!$AU$7:$AU$36,'PTRM Data'!AZ$7:AZ$36) -> 16.84846044 | W8: ='PTRM Data'!B8 -> UG Sub-transmission cables | X8: =_xlfn.XLOOKUP($W8,'PTRM Data'!$Z$7:$Z$36,'PTRM Data'!AA$7:AA$36)*('BBM Costs'!C$7+'BBM Costs'!C$11) -> 51.99688287 | Y8: =_xlfn.XLOOKUP($W8,'PTRM Data'!$Z$7:$Z$36,'PTRM Data'!AB$7:AB$36)*('BBM Costs'!D$7+'BBM Costs'!D$11) -> 52.37210568 | Z8: =_xlfn.XLOOKUP($W8,'PTRM Data'!$Z$7:$Z$36,'PTRM Data'!AC$7:AC$36)*('BBM Costs'!E$7+'BBM Costs'!E$11) -> 54.00500475 | AA8: =_xlfn.XLOOKUP($W8,'PTRM Data'!$Z$7:$Z$36,'PTRM Data'!AD$7:AD$36)*('BBM Costs'!F$7+'BBM Costs'!F$11) -> 55.45451126 | AB8: =_xlfn.XLOOKUP($W8,'PTRM Data'!$Z$7:$Z$36,'PTRM Data'!AE$7:AE$36)*('BBM Costs'!G$7+'BBM Costs'!G$11) -> 58.64957929 | AD8: ='PTRM Data'!B8 -> UG Sub-transmission cables | AE8: =_xlfn.XLOOKUP(AD8,'PTRM Data'!$B$7:$B$36,'PTRM Data'!$C$7:$C$36) -> 874.2582978
B9: Operating Expenditure | C9: =_xlfn.XLOOKUP($B9,'PTRM Revenue data'!$B$7:$B$11,'PTRM Revenue data'!C$7:C$11) -> 449.600256 | D9: =_xlfn.XLOOKUP($B9,'PTRM Revenue data'!$B$7:$B$11,'PTRM Revenue data'!D$7:D$11) -> 467.3391285 | E9: =_xlfn.XLOOKUP($B9,'PTRM Revenue data'!$B$7:$B$11,'PTRM Revenue data'!E$7:E$11) -> 493.8537847 | F9: =_xlfn.XLOOKUP($B9,'PTRM Revenue data'!$B$7:$B$11,'PTRM Revenue data'!F$7:F$11) -> 516.1456202 | G9: =_xlfn.XLOOKUP($B9,'PTRM Revenue data'!$B$7:$B$11,'PTRM Revenue data'!G$7:G$11) -> 559.5474752 | I9: ='Opex costs'!B9 -> Vegetation management | J9: =_xlfn.XLOOKUP($I9,'Opex costs'!$B$7:$B$20,'Opex costs'!C$7:C$20) -> 46.89206114 | K9: =_xlfn.XLOOKUP($I9,'Opex costs'!$B$7:$B$20,'Opex costs'!D$7:D$20) -> 48.48851887 | L9: =_xlfn.XLOOKUP($I9,'Opex costs'!$B$7:$B$20,'Opex costs'!E$7:E$20) -> 51.08375553 | M9: =_xlfn.XLOOKUP($I9,'Opex costs'!$B$7:$B$20,'Opex costs'!F$7:F$20) -> 53.53796408 | N9: =_xlfn.XLOOKUP($I9,'Opex costs'!$B$7:$B$20,'Opex costs'!G$7:G$20) -> 57.84369077 | P9: ='PTRM Data'!B9 -> OH Distribution Lines | Q9: =_xlfn.XLOOKUP($P9,'PTRM Data'!$AU$7:$AU$36,'PTRM Data'!AV$7:AV$36) -> 26.97393497 | R9: =_xlfn.XLOOKUP($P9,'PTRM Data'!$AU$7:$AU$36,'PTRM Data'!AW$7:AW$36) -> 26.64099918 | S9: =_xlfn.XLOOKUP($P9,'PTRM Data'!$AU$7:$AU$36,'PTRM Data'!AX$7:AX$36) -> 28.81394471 | T9: =_xlfn.XLOOKUP($P9,'PTRM Data'!$AU$7:$AU$36,'PTRM Data'!AY$7:AY$36) -> 31.095086 | U9: =_xlfn.XLOOKUP($P9,'PTRM Data'!$AU$7:$AU$36,'PTRM Data'!AZ$7:AZ$36) -> 33.48282456 | W9: ='PTRM Data'!B9 -> OH Distribution Lines | X9: =_xlfn.XLOOKUP($W9,'PTRM Data'!$Z$7:$Z$36,'PTRM Data'!AA$7:AA$36)*('BBM Costs'!C$7+'BBM Costs'!C$11) -> 187.6270694 | Y9: =_xlfn.XLOOKUP($W9,'PTRM Data'!$Z$7:$Z$36,'PTRM Data'!AB$7:AB$36)*('BBM Costs'!D$7+'BBM Costs'!D$11) -> 199.4006177 | Z9: =_xlfn.XLOOKUP($W9,'PTRM Data'!$Z$7:$Z$36,'PTRM Data'!AC$7:AC$36)*('BBM Costs'!E$7+'BBM Costs'!E$11) -> 217.8265919 | AA9: =_xlfn.XLOOKUP($W9,'PTRM Data'!$Z$7:$Z$36,'PTRM Data'!AD$7:AD$36)*('BBM Costs'!F$7+'BBM Costs'!F$11) -> 237.1830091 | AB9: =_xlfn.XLOOKUP($W9,'PTRM Data'!$Z$7:$Z$36,'PTRM Data'!AE$7:AE$36)*('BBM Costs'!G$7+'BBM Costs'!G$11) -> 266.3634298 | AD9: ='PTRM Data'!B9 -> OH Distribution Lines | AE9: =_xlfn.XLOOKUP(AD9,'PTRM Data'!$B$7:$B$36,'PTRM Data'!$C$7:$C$36) -> 3154.699153
B10: Revenue Adjustments | C10: =_xlfn.XLOOKUP($B10,'PTRM Revenue data'!$B$7:$B$11,'PTRM Revenue data'!C$7:C$11) -> -70.29838496 | D10: =_xlfn.XLOOKUP($B10,'PTRM Revenue data'!$B$7:$B$11,'PTRM Revenue data'!D$7:D$11) -> -34.73503107 | E10: =_xlfn.XLOOKUP($B10,'PTRM Revenue data'!$B$7:$B$11,'PTRM Revenue data'!E$7:E$11) -> -27.7051802 | F10: =_xlfn.XLOOKUP($B10,'PTRM Revenue data'!$B$7:$B$11,'PTRM Revenue data'!F$7:F$11) -> 1.661460533 | G10: =_xlfn.XLOOKUP($B10,'PTRM Revenue data'!$B$7:$B$11,'PTRM Revenue data'!G$7:G$11) -> -9.777614449 | I10: ='Opex costs'!B10 -> Emergency response | J10: =_xlfn.XLOOKUP($I10,'Opex costs'!$B$7:$B$20,'Opex costs'!C$7:C$20) -> 2.260192177 | K10: =_xlfn.XLOOKUP($I10,'Opex costs'!$B$7:$B$20,'Opex costs'!D$7:D$20) -> 2.337141263 | L10: =_xlfn.XLOOKUP($I10,'Opex costs'!$B$7:$B$20,'Opex costs'!E$7:E$20) -> 2.462231384 | M10: =_xlfn.XLOOKUP($I10,'Opex costs'!$B$7:$B$20,'Opex costs'!F$7:F$20) -> 2.580523966 | N10: =_xlfn.XLOOKUP($I10,'Opex costs'!$B$7:$B$20,'Opex costs'!G$7:G$20) -> 2.788059517 | P10: ='PTRM Data'!B10 -> UG Distribution Cables | Q10: =_xlfn.XLOOKUP($P10,'PTRM Data'!$AU$7:$AU$36,'PTRM Data'!AV$7:AV$36) -> -2.688232442 | R10: =_xlfn.XLOOKUP($P10,'PTRM Data'!$AU$7:$AU$36,'PTRM Data'!AW$7:AW$36) -> -3.023425881 | S10: =_xlfn.XLOOKUP($P10,'PTRM Data'!$AU$7:$AU$36,'PTRM Data'!AX$7:AX$36) -> -1.250356353 | T10: =_xlfn.XLOOKUP($P10,'PTRM Data'!$AU$7:$AU$36,'PTRM Data'!AY$7:AY$36) -> 0.5358233437 | U10: =_xlfn.XLOOKUP($P10,'PTRM Data'!$AU$7:$AU$36,'PTRM Data'!AZ$7:AZ$36) -> 2.335085818 | W10: ='PTRM Data'!B10 -> UG Distribution Cables | X10: =_xlfn.XLOOKUP($W10,'PTRM Data'!$Z$7:$Z$36,'PTRM Data'!AA$7:AA$36)*('BBM Costs'!C$7+'BBM Costs'!C$11) -> 159.6004549 | Y10: =_xlfn.XLOOKUP($W10,'PTRM Data'!$Z$7:$Z$36,'PTRM Data'!AB$7:AB$36)*('BBM Costs'!D$7+'BBM Costs'!D$11) -> 162.8993945 | Z10: =_xlfn.XLOOKUP($W10,'PTRM Data'!$Z$7:$Z$36,'PTRM Data'!AC$7:AC$36)*('BBM Costs'!E$7+'BBM Costs'!E$11) -> 170.4187056 | AA10: =_xlfn.XLOOKUP($W10,'PTRM Data'!$Z$7:$Z$36,'PTRM Data'!AD$7:AD$36)*('BBM Costs'!F$7+'BBM Costs'!F$11) -> 177.7832232 | AB10: =_xlfn.XLOOKUP($W10,'PTRM Data'!$Z$7:$Z$36,'PTRM Data'!AE$7:AE$36)*('BBM Costs'!G$7+'BBM Costs'!G$11) -> 191.3231951 | AD10: ='PTRM Data'!B10 -> UG Distribution Cables | AE10: =_xlfn.XLOOKUP(AD10,'PTRM Data'!$B$7:$B$36,'PTRM Data'!$C$7:$C$36) -> 2683.468975
B11: Net Tax Allowance | C11: =_xlfn.XLOOKUP($B11,'PTRM Revenue data'!$B$7:$B$11,'PTRM Revenue data'!C$7:C$11) -> 13.73952627 | D11: =_xlfn.XLOOKUP($B11,'PTRM Revenue data'!$B$7:$B$11,'PTRM Revenue data'!D$7:D$11) -> 12.81175695 | E11: =_xlfn.XLOOKUP($B11,'PTRM Revenue data'!$B$7:$B$11,'PTRM Revenue data'!E$7:E$11) -> 15.75018056 | F11: =_xlfn.XLOOKUP($B11,'PTRM Revenue data'!$B$7:$B$11,'PTRM Revenue data'!F$7:F$11) -> 23.18964385 | G11: =_xlfn.XLOOKUP($B11,'PTRM Revenue data'!$B$7:$B$11,'PTRM Revenue data'!G$7:G$11) -> 26.85645213 | I11: ='Opex costs'!B11 -> Other network maintenance costs | J11: =_xlfn.XLOOKUP($I11,'Opex costs'!$B$7:$B$20,'Opex costs'!C$7:C$20) -> 0 | K11: =_xlfn.XLOOKUP($I11,'Opex costs'!$B$7:$B$20,'Opex costs'!D$7:D$20) -> 0 | L11: =_xlfn.XLOOKUP($I11,'Opex costs'!$B$7:$B$20,'Opex costs'!E$7:E$20) -> 0 | M11: =_xlfn.XLOOKUP($I11,'Opex costs'!$B$7:$B$20,'Opex costs'!F$7:F$20) -> 0 | N11: =_xlfn.XLOOKUP($I11,'Opex costs'!$B$7:$B$20,'Opex costs'!G$7:G$20) -> 0 | P11: ='PTRM Data'!B11 -> Distribution Equipment | Q11: =_xlfn.XLOOKUP($P11,'PTRM Data'!$AU$7:$AU$36,'PTRM Data'!AV$7:AV$36) -> 8.294208647 | R11: =_xlfn.XLOOKUP($P11,'PTRM Data'!$AU$7:$AU$36,'PTRM Data'!AW$7:AW$36) -> 8.545366568 | S11: =_xlfn.XLOOKUP($P11,'PTRM Data'!$AU$7:$AU$36,'PTRM Data'!AX$7:AX$36) -> 9.218828426 | T11: =_xlfn.XLOOKUP($P11,'PTRM Data'!$AU$7:$AU$36,'PTRM Data'!AY$7:AY$36) -> 9.917460659 | U11: =_xlfn.XLOOKUP($P11,'PTRM Data'!$AU$7:$AU$36,'PTRM Data'!AZ$7:AZ$36) -> 10.63999931 | W11: ='PTRM Data'!B11 -> Distribution Equipment | X11: =_xlfn.XLOOKUP($W11,'PTRM Data'!$Z$7:$Z$36,'PTRM Data'!AA$7:AA$36)*('BBM Costs'!C$7+'BBM Costs'!C$11) -> 30.05787986 | Y11: =_xlfn.XLOOKUP($W11,'PTRM Data'!$Z$7:$Z$36,'PTRM Data'!AB$7:AB$36)*('BBM Costs'!D$7+'BBM Costs'!D$11) -> 31.87545767 | Z11: =_xlfn.XLOOKUP($W11,'PTRM Data'!$Z$7:$Z$36,'PTRM Data'!AC$7:AC$36)*('BBM Costs'!E$7+'BBM Costs'!E$11) -> 34.55300894 | AA11: =_xlfn.XLOOKUP($W11,'PTRM Data'!$Z$7:$Z$36,'PTRM Data'!AD$7:AD$36)*('BBM Costs'!F$7+'BBM Costs'!F$11) -> 37.19368738 | AB11: =_xlfn.XLOOKUP($W11,'PTRM Data'!$Z$7:$Z$36,'PTRM Data'!AE$7:AE$36)*('BBM Costs'!G$7+'BBM Costs'!G$11) -> 41.13260905 | AD11: ='PTRM Data'!B11 -> Distribution Equipment | AE11: =_xlfn.XLOOKUP(AD11,'PTRM Data'!$B$7:$B$36,'PTRM Data'!$C$7:$C$36) -> 505.3831966
I12: ='Opex costs'!B12 -> Network operations | J12: =_xlfn.XLOOKUP($I12,'Opex costs'!$B$7:$B$20,'Opex costs'!C$7:C$20) -> 55.36451358 | K12: =_xlfn.XLOOKUP($I12,'Opex costs'!$B$7:$B$20,'Opex costs'!D$7:D$20) -> 57.24941912 | L12: =_xlfn.XLOOKUP($I12,'Opex costs'!$B$7:$B$20,'Opex costs'!E$7:E$20) -> 60.31356285 | M12: =_xlfn.XLOOKUP($I12,'Opex costs'!$B$7:$B$20,'Opex costs'!F$7:F$20) -> 63.21119753 | N12: =_xlfn.XLOOKUP($I12,'Opex costs'!$B$7:$B$20,'Opex costs'!G$7:G$20) -> 68.29488244 | P12: ='PTRM Data'!B12 -> Substation Bays | Q12: =_xlfn.XLOOKUP($P12,'PTRM Data'!$AU$7:$AU$36,'PTRM Data'!AV$7:AV$36) -> 15.03305594 | R12: =_xlfn.XLOOKUP($P12,'PTRM Data'!$AU$7:$AU$36,'PTRM Data'!AW$7:AW$36) -> 15.34220529 | S12: =_xlfn.XLOOKUP($P12,'PTRM Data'!$AU$7:$AU$36,'PTRM Data'!AX$7:AX$36) -> 16.31148714 | T12: =_xlfn.XLOOKUP($P12,'PTRM Data'!$AU$7:$AU$36,'PTRM Data'!AY$7:AY$36) -> 17.29436848 | U12: =_xlfn.XLOOKUP($P12,'PTRM Data'!$AU$7:$AU$36,'PTRM Data'!AZ$7:AZ$36) -> 18.29061012 | W12: ='PTRM Data'!B12 -> Substation Bays | X12: =_xlfn.XLOOKUP($W12,'PTRM Data'!$Z$7:$Z$36,'PTRM Data'!AA$7:AA$36)*('BBM Costs'!C$7+'BBM Costs'!C$11) -> 49.5533454 | Y12: =_xlfn.XLOOKUP($W12,'PTRM Data'!$Z$7:$Z$36,'PTRM Data'!AB$7:AB$36)*('BBM Costs'!D$7+'BBM Costs'!D$11) -> 50.35858842 | Z12: =_xlfn.XLOOKUP($W12,'PTRM Data'!$Z$7:$Z$36,'PTRM Data'!AC$7:AC$36)*('BBM Costs'!E$7+'BBM Costs'!E$11) -> 52.4706615 | AA12: =_xlfn.XLOOKUP($W12,'PTRM Data'!$Z$7:$Z$36,'PTRM Data'!AD$7:AD$36)*('BBM Costs'!F$7+'BBM Costs'!F$11) -> 54.47763239 | AB12: =_xlfn.XLOOKUP($W12,'PTRM Data'!$Z$7:$Z$36,'PTRM Data'!AE$7:AE$36)*('BBM Costs'!G$7+'BBM Costs'!G$11) -> 58.30382366 | AD12: ='PTRM Data'!B12 -> Substation Bays | AE12: =_xlfn.XLOOKUP(AD12,'PTRM Data'!$B$7:$B$36,'PTRM Data'!$C$7:$C$36) -> 833.1734714
B13: Total | C13: =SUM(C7:C11) -> 1511.51678 | D13: =SUM(D7:D11) -> 1636.136989 | E13: 1771.031775 | F13: 1917.048248 | G13: 2075.103359 | I13: ='Opex costs'!B13 -> Network billing and other energy market services | J13: =_xlfn.XLOOKUP($I13,'Opex costs'!$B$7:$B$20,'Opex costs'!C$7:C$20) -> 3.548085953 | K13: =_xlfn.XLOOKUP($I13,'Opex costs'!$B$7:$B$20,'Opex costs'!D$7:D$20) -> 3.668881864 | L13: =_xlfn.XLOOKUP($I13,'Opex costs'!$B$7:$B$20,'Opex costs'!E$7:E$20) -> 3.865250344 | M13: =_xlfn.XLOOKUP($I13,'Opex costs'!$B$7:$B$20,'Opex costs'!F$7:F$20) -> 4.050947937 | N13: =_xlfn.XLOOKUP($I13,'Opex costs'!$B$7:$B$20,'Opex costs'!G$7:G$20) -> 4.376740576 | P13: ='PTRM Data'!B13 -> Substation Establishment | Q13: =_xlfn.XLOOKUP($P13,'PTRM Data'!$AU$7:$AU$36,'PTRM Data'!AV$7:AV$36) -> 2.78874605 | R13: =_xlfn.XLOOKUP($P13,'PTRM Data'!$AU$7:$AU$36,'PTRM Data'!AW$7:AW$36) -> 2.611861714 | S13: =_xlfn.XLOOKUP($P13,'PTRM Data'!$AU$7:$AU$36,'PTRM Data'!AX$7:AX$36) -> 2.897051503 | T13: =_xlfn.XLOOKUP($P13,'PTRM Data'!$AU$7:$AU$36,'PTRM Data'!AY$7:AY$36) -> 3.203772101 | U13: =_xlfn.XLOOKUP($P13,'PTRM Data'!$AU$7:$AU$36,'PTRM Data'!AZ$7:AZ$36) -> 3.532012838 | W13: ='PTRM Data'!B13 -> Substation Establishment | X13: =_xlfn.XLOOKUP($W13,'PTRM Data'!$Z$7:$Z$36,'PTRM Data'!AA$7:AA$36)*('BBM Costs'!C$7+'BBM Costs'!C$11) -> 34.17612312 | Y13: =_xlfn.XLOOKUP($W13,'PTRM Data'!$Z$7:$Z$36,'PTRM Data'!AB$7:AB$36)*('BBM Costs'!D$7+'BBM Costs'!D$11) -> 35.82743561 | Z13: =_xlfn.XLOOKUP($W13,'PTRM Data'!$Z$7:$Z$36,'PTRM Data'!AC$7:AC$36)*('BBM Costs'!E$7+'BBM Costs'!E$11) -> 38.47791632 | AA13: =_xlfn.XLOOKUP($W13,'PTRM Data'!$Z$7:$Z$36,'PTRM Data'!AD$7:AD$36)*('BBM Costs'!F$7+'BBM Costs'!F$11) -> 41.13740301 | AB13: =_xlfn.XLOOKUP($W13,'PTRM Data'!$Z$7:$Z$36,'PTRM Data'!AE$7:AE$36)*('BBM Costs'!G$7+'BBM Costs'!G$11) -> 45.29281435 | AD13: ='PTRM Data'!B13 -> Substation Establishment | AE13: =_xlfn.XLOOKUP(AD13,'PTRM Data'!$B$7:$B$36,'PTRM Data'!$C$7:$C$36) -> 574.6259694
